Workbook

Sheet Legend
B1: METRIC | C1: DEFINITION | D1: Line | E1: COMMENT
B2: 010 Series | C2: Initial entitlement for service-connected disability (=>8 issues) | D2: Comp | E2: Rating Bundle: Claims for disability compensation, dependency and indemnity compensation, and Veterans’ pension benefits, including both original and supplemental claims. Rating Bundle claims normally require a rating decision during processing. The Rating Bundle Group is made up of 7 series and 1 group of End Products, plus 4 Agent Orange End Products, which are used to define VA Priority goals for Accuracy and reduction of claims over 125 days old
B3: 110 Series | C3: Initial entitlement for service-connected disability (<=7 issues) | D3: Comp
B4: 020 Series | C4: Increased evaluation and/or additional claimed conditions | D4: Comp
B5: 140 Series | C5: Initial claims from surviving spouses, children or parents | D5: Comp
B6: 180 Series | C6: Initial entitlement for Pension - Veteran | D6: Pension
B7: 120 Series | C7: Increased entitlement and/or reconsideration for Pension | D7: Pension
B8: 310 Group | C8: Future examination for disabilities (excludes EP 314) | D8: Comp
B9: 320 Series | C9: Increased entitlement due to hospitalization or surgery | D9: Comp
B10: EP 405 | C10: Reopened or new Agent Orange claims between 9/01/10 and 10/24/2011 | D10: Comp
B11: EP 409 | C11: Agent Orange claims where an interim decision was provided; No longer used as of 10/24/2011 | D11: Comp
B12: EP 681 | C12: Used to control claims under the Nehmer Agent Orange stipulation | D12: Comp
B13: EP 687 | C13: Previously used for Nehmer Agent Orange presumptive issues | D13: Comp
B14: EP 040 | C14: Decision Review Request - AMA Supplemental Claims | D14: Comp
B15: EP 335 | C15: Blue Water Navy Agent Orange (effective 1/1/2010) | D15: Comp | E15: Not-Rating: Claims for disability compensation, dependency and indemnity compensation, and Veterans’ pension benefits, which can but normally do not require a rating decision (i.e. claim to add dependent to award).
B18: ADP | C18: Average Days Pending, or total number of days pending divided by total number of claims pending
B19: ADC | C19: Average Days to Complete or total number of days to complete divided by total number of claims completed
B21: MTD | C21: Month to Date. Captures claim activity from the first day of the reporting month through the report date
B22: FYTD | C22: Fiscal Year to Date. Captures claim activity from the first day of the current fiscal year through the report date
B24: SOJ | C24: Station of Jurisdiction, or the Regional Office assigned to work the claim
B25: SOO | C25: Station of Origin, or the Regional Office with geographic oversight of the claim
B27: Pending Development | C27: Claims that are awaiting development initiation, which may involve gathering supporting evidence, medical exams, and military documentation.
B29: Pending Evidence | C29: Claims that are in the process of gathering supporting evidence and possibly medical exams.
B31: Pending Decision | C31: Claims that are awaiting an evidence review and decision by a rating specialist
B33: Pending Award | C33: Claims that are awaiting a first-level review of the evidence gathered and the decision.
B35: Pending Authorization | C35: Claims that are awaiting a final review of all aspects of the claim, which results in a notification to the claimant on the outcome of their claim.

Sheet Transformation
B2: Compensation and Pension Rating Bundle Metrics
B3: National View | H3: # Pending | I3: # Pending > 125 | J3: % Pending > 125 days
B4: ="Reporting through "&TEXT(D_DT[],"MMMM DD, YYYY") -> Reporting through August 21, 2021
B5: Compensation and Pension Rating Bundle | G5: Total | H5: =SUM(H6,H11,H22) -> 591099 | I5: =SUM(I6,I11,I22) -> 181570 | J5: =IF(H5=0, 0,I5/H5) -> 0.3071735868
B6: Original Entitlement | G6: Total | H6: =SUM(H7:H10) -> 152246 | I6: =SUM(I7:I10) -> 67259 | J6: =IF(H6=0, 0,I6/H6) -> 0.4417784375
A7: 010 | B7: Initial entitlement for service-connected disability (>=8 issues) | G7: EP 010 | H7: =IFERROR(SUMIFS(D_D[INV],D_D[MT],3,D_D[EP],$A7),0) -> 50226 | I7: =IFERROR(SUMIFS(D_D[BL],D_D[MT],3,D_D[EP],$A7),0) -> 23890 | J7: 0.4756500617
A8: 110 | B8: Initial entitlement for service-connected disability (<=7 issues) | G8: EP 110 | H8: =IFERROR(SUMIFS(D_D[INV],D_D[MT],3,D_D[EP],$A8),0) -> 91940 | I8: =IFERROR(SUMIFS(D_D[BL],D_D[MT],3,D_D[EP],$A8),0) -> 40516 | J8: 0.4406787035
A9: 180 | B9: Initial entitlement - Veteran's Pension | G9: EP 180 | H9: =IFERROR(SUMIFS(D_D[INV],D_D[MT],3,D_D[EP],$A9),0) -> 2152 | I9: =IFERROR(SUMIFS(D_D[BL],D_D[MT],3,D_D[EP],$A9),0) -> 203 | J9: 0.09433085502
A10: 140 | B10: Initial claims from surviving spouses, children or parents | G10: EP 140 | H10: =IFERROR(SUMIFS(D_D[INV],D_D[MT],3,D_D[EP],$A10),0) -> 7928 | I10: =IFERROR(SUMIFS(D_D[BL],D_D[MT],3,D_D[EP],$A10),0) -> 2650 | J10: 0.3342583249
B11: Supplemental Entitlement | G11: Total | H11: =SUM(H12:H21) -> 421168 | I11: =SUM(I12:I21) -> 97687 | J11: 0.2319430726
A12: 120 | B12: Increased entitlement and/or reconsideration for Pension | G12: EP 120 | H12: =IFERROR(SUMIFS(D_D[INV],D_D[MT],3,D_D[EP],$A12),0) -> 954 | I12: =IFERROR(SUMIFS(D_D[BL],D_D[MT],3,D_D[EP],$A12),0) -> 59 | J12: 0.06184486373
A13: 020 | B13: Increased evaluation and/or additional claimed conditions | G13: EP 020 | H13: =IFERROR(SUMIFS(D_D[INV],D_D[MT],3,D_D[EP],$A13),0) -> 211444 | I13: =IFERROR(SUMIFS(D_D[BL],D_D[MT],3,D_D[EP],$A13),0) -> 66630 | J13: 0.3151188967
A14: 310G | B14: Future examination for disabilities | G14: EP 310 | H14: =IFERROR(SUMIFS(D_D[INV],D_D[MT],3,D_D[EP],$A14),0) -> 15758 | I14: =IFERROR(SUMIFS(D_D[BL],D_D[MT],3,D_D[EP],$A14),0) -> 4985 | J14: 0.3163472522
A15: 320 | B15: Increased entitlement due to hospitalization or surgery | G15: EP 320 | H15: =IFERROR(SUMIFS(D_D[INV],D_D[MT],3,D_D[EP],$A15),0) -> 469 | I15: =IFERROR(SUMIFS(D_D[BL],D_D[MT],3,D_D[EP],$A15),0) -> 35 | J15: 0.07462686567
A16: 681 | B16: Used to control claims under the Nehmer Agent Orange stipulation | G16: EP 681 | H16: =IFERROR(SUMIFS(D_D[INV],D_D[MT],3,D_D[EP],$A16),0) -> 619 | I16: =IFERROR(SUMIFS(D_D[BL],D_D[MT],3,D_D[EP],$A16),0) -> 212 | J16: 0.3424878837
A17: 687 | B17: Blue Water Navy Agent Orange Nehmer Reviews | G17: EP 687 | H17: =IFERROR(SUMIFS(D_D[INV],D_D[MT],3,D_D[EP],$A17),0) -> 42999 | I17: =IFERROR(SUMIFS(D_D[BL],D_D[MT],3,D_D[EP],$A17),0) -> 71 | J17: =IF(H17=0, 0,I17/H17) -> 0.001651201191
A18: 688 | B18: NDAA Agent Orange Nehmer Reviews (3 new authorized disabilities) | G18: EP 688 | H18: =IFERROR(SUMIFS(D_D[INV],D_D[MT],3,D_D[EP],$A18),0) -> 71522 | I18: =IFERROR(SUMIFS(D_D[BL],D_D[MT],3,D_D[EP],$A18),0) -> 1473 | J18: =IF(H18=0, 0,I18/H18) -> 0.02059506166
A19: 405 | B19: Reopened or new Agent Orange claims between 9/01/10 and 10/24/2011 | G19: EP 405 | H19: =IFERROR(SUMIFS(D_D[INV],D_D[MT],3,D_D[EP],$A19),0) -> 0 | I19: =IFERROR(SUMIFS(D_D[BL],D_D[MT],3,D_D[EP],$A19),0) -> 0 | J19: =IF(H19=0, 0,I19/H19) -> 0
A20: 040 | B20: Decision Review Request - AMA Supplemental Claims | G20: EP 040 | H20: =IFERROR(SUMIFS(D_D[INV],D_D[MT],3.1,D_D[EP],$A20),0) -> 77395 | I20: =IFERROR(SUMIFS(D_D[BL],D_D[MT],3.1,D_D[EP],$A20),0) -> 24216 | J20: =IF(H20=0, 0,I20/H20) -> 0.3128884295
A21: 409 | B21: Agent Orange claims where an interim decision was provided; No longer used as of 10/24/2011 | G21: EP 409 | H21: =IFERROR(SUMIFS(D_D[INV],D_D[MT],3,D_D[EP],$A21),0) -> 8 | I21: =IFERROR(SUMIFS(D_D[BL],D_D[MT],3,D_D[EP],$A21),0) -> 6 | J21: =IF(H21=0, 0,I21/H21) -> 0.75
B22: Compensation Other – Diary – Becomes Part of Rating Bundle on 1/1/2020 | G22: Total | H22: =SUM(H23) -> 17685 | I22: =SUM(I23) -> 16624 | J22: =IF(H22=0, 0,I22/H22) -> 0.9400056545
A23: 335 | B23: Blue Water Navy - Agent Orange | G23: EP 335 | H23: =IFERROR(SUMIFS(D_D[INV],D_D[MT],3,D_D[EP],$A23),0) -> 17685 | I23: =IFERROR(SUMIFS(D_D[BL],D_D[MT],3,D_D[EP],$A23),0) -> 16624 | J23: 0.9400056545
B25: Education Metrics | G25: ="Pending on " &TEXT(D_DT[]-1,"MM/DD/YY") -> Pending on 08/20/21 | H25: ="Pending on " &TEXT(D_DT[]-8,"MM/DD/YY") -> Pending on 08/13/21 | I25: # Change | J25: % Change
A26: 1 | B26: Total Chapter 33 Original Claims * | G26: =IFERROR(SUMIFS(D_D[INV],D_D[MT],9,D_D[CAT],1,D_D[LOC],$A26),0) -> 9404 | H26: =IFERROR(SUMIFS(D_D[BL],D_D[MT],9,D_D[CAT],1,D_D[LOC],$A26),0) -> 8933 | I26: =IFERROR(SUMIFS(D_D[ADP],D_D[MT],9,D_D[CAT],1,D_D[LOC],$A26),0) -> 471 | J26: =IFERROR(I26/H26,0) -> 0.05272584798
A27: 307 | B27: Buffalo | G27: =IFERROR(SUMIFS(D_D[INV],D_D[MT],9,D_D[CAT],1,D_D[LOC],$A27),0) -> 4392 | H27: =IFERROR(SUMIFS(D_D[BL],D_D[MT],9,D_D[CAT],1,D_D[LOC],$A27),0) -> 4095 | I27: =IFERROR(SUMIFS(D_D[ADP],D_D[MT],9,D_D[CAT],1,D_D[LOC],$A27),0) -> 297 | J27: =IFERROR(I27/H27,0) -> 0.07252747253
A28: 316 | B28: Atlanta | G28: =IFERROR(SUMIFS(D_D[INV],D_D[MT],9,D_D[CAT],1,D_D[LOC],$A28),0) -> 0 | H28: =IFERROR(SUMIFS(D_D[BL],D_D[MT],9,D_D[CAT],1,D_D[LOC],$A28),0) -> 0 | I28: =IFERROR(SUMIFS(D_D[ADP],D_D[MT],9,D_D[CAT],1,D_D[LOC],$A28),0) -> 0 | J28: =IF(H28=0, 0,I28/H28) -> 0
A29: 331 | B29: St Louis | G29: =IFERROR(SUMIFS(D_D[INV],D_D[MT],9,D_D[CAT],1,D_D[LOC],$A29),0) -> 0 | H29: =IFERROR(SUMIFS(D_D[BL],D_D[MT],9,D_D[CAT],1,D_D[LOC],$A29),0) -> 0 | I29: =IFERROR(SUMIFS(D_D[ADP],D_D[MT],9,D_D[CAT],1,D_D[LOC],$A29),0) -> 0 | J29: =IFERROR(I29/H29,0) -> 0
A30: 351 | B30: Muskogee | G30: =IFERROR(SUMIFS(D_D[INV],D_D[MT],9,D_D[CAT],1,D_D[LOC],$A30),0) -> 5012 | H30: =IFERROR(SUMIFS(D_D[BL],D_D[MT],9,D_D[CAT],1,D_D[LOC],$A30),0) -> 4838 | I30: =IFERROR(SUMIFS(D_D[ADP],D_D[MT],9,D_D[CAT],1,D_D[LOC],$A30),0) -> 174 | J30: =IFERROR(I30/H30,0) -> 0.03596527491
A31: 1 | B31: Total Education Claims - All Education Programs ** | G31: =IFERROR(SUMIFS(D_D[INV],D_D[MT],9,D_D[CAT],2,D_D[LOC],$A31),0) -> 92334 | H31: =IFERROR(SUMIFS(D_D[BL],D_D[MT],9,D_D[CAT],2,D_D[LOC],$A31),0) -> 78853 | I31: =IFERROR(SUMIFS(D_D[ADP],D_D[MT],9,D_D[CAT],2,D_D[LOC],$A31),0) -> 13481 | J31: =IFERROR(I31/H31,0) -> 0.1709636919
A32: 307 | B32: Buffalo | G32: =IFERROR(SUMIFS(D_D[INV],D_D[MT],9,D_D[CAT],2,D_D[LOC],$A32),0) -> 36235 | H32: =IFERROR(SUMIFS(D_D[BL],D_D[MT],9,D_D[CAT],2,D_D[LOC],$A32),0) -> 29639 | I32: =IFERROR(SUMIFS(D_D[ADP],D_D[MT],9,D_D[CAT],2,D_D[LOC],$A32),0) -> 6596 | J32: =IFERROR(I32/H32,0) -> 0.2225446203
A33: 316 | B33: Atlanta | G33: =IFERROR(SUMIFS(D_D[INV],D_D[MT],9,D_D[CAT],2,D_D[LOC],$A33),0) -> 0 | H33: =IFERROR(SUMIFS(D_D[BL],D_D[MT],9,D_D[CAT],2,D_D[LOC],$A33),0) -> 0 | I33: =IFERROR(SUMIFS(D_D[ADP],D_D[MT],9,D_D[CAT],2,D_D[LOC],$A33),0) -> 0 | J33: =IF(H33=0, 0,I33/H33) -> 0
A34: 331 | B34: St Louis | G34: =IFERROR(SUMIFS(D_D[INV],D_D[MT],9,D_D[CAT],2,D_D[LOC],$A34),0) -> 0 | H34: =IFERROR(SUMIFS(D_D[BL],D_D[MT],9,D_D[CAT],2,D_D[LOC],$A34),0) -> 0 | I34: =IFERROR(SUMIFS(D_D[ADP],D_D[MT],9,D_D[CAT],2,D_D[LOC],$A34),0) -> 0 | J34: =IFERROR(I34/H34,0) -> 0
A35: 351 | B35: Muskogee | G35: =IFERROR(SUMIFS(D_D[INV],D_D[MT],9,D_D[CAT],2,D_D[LOC],$A35),0) -> 56099 | H35: =IFERROR(SUMIFS(D_D[BL],D_D[MT],9,D_D[CAT],2,D_D[LOC],$A35),0) -> 49214 | I35: =IFERROR(SUMIFS(D_D[ADP],D_D[MT],9,D_D[CAT],2,D_D[LOC],$A35),0) -> 6885 | J35: =IFERROR(I35/H35,0) -> 0.1398992157
B37: *Chapter 33 is the Post-9/11GI Bill.
B38: **Represents all Education Benefit Programs, including Chapter 33 claims.

Sheet Rating Bundle - SOJ
C2: DISTRICT SELECTOR | D2: Compensation and Pension Rating Bundle Metrics | L2: Report through
D3: Station of Jurisdiction View | L3: =D_DT[] -> 2021-08-21
D4: The Station of Jurisdiction (SOJ) is the regional office assigned to work the claim | L4: ADP = Average Days Pending | O4: MTD = Month to Date
D5: Each Special Mission has distinct claim counts | L5: ADC = Average Days to Complete | O5: FYTD = Fiscal Year to Date
D6: When Special Mission is set to Pension, BDD, or Quickstart, the District Selector has no impact
L7: Accuracy is available in Compensation and Pension Special Missions
D8: CLAIM METRICS | L8: ACCURACY METRICS
C9: SPECIAL MISSION SELECTOR | D9: # Pending | E9: # Pending > 125 Days | F9: % Pending > 125 Days | G9: ADP | H9: # Completed MTD | I9: ADC MTD | J9: # Completed FYTD | K9: ADC FYTD | L9: Rating 3 Month Issue | M9: Rating 3 Month Claim | N9: Rating 12 Month | P9: Authorization 12 Month
N10: % | O10: Margin of Error +/- | P10: % | Q10: Margin of Error +/-
N11: Correct | P11: Correct
A12: 100 | C12: =Driver!$C$20& " Total" -> USA - All Missions Total | D12: =IF(ISNA($A12),"",IFERROR(SUMIFS(D_D[INV],D_D[MT],5,D_D[CAT],SMS, D_D[EP],-1,D_D[LOC],$A12),0)) -> 591099 | E12: =IF(ISNA($A12),"",IFERROR(SUMIFS(D_D[BL],D_D[MT],5,D_D[CAT],SMS, D_D[EP],-1,D_D[LOC],$A12),0)) -> 181570 | F12: =IF(ISNA($A12),"",IFERROR(E12/D12,0)) -> 0.3071735868 | G12: =IF(ISNA($A12),"",IFERROR(SUMIFS(D_D[ADP],D_D[MT],5,D_D[CAT],SMS, D_D[EP],-1,D_D[LOC],$A12),0)) -> 141.08 | H12: =IF(ISNA($A12),"",IFERROR(SUMIFS(D_D[PROD_MTD],D_D[MT],5,D_D[CAT],SMS, D_D[EP],-1,D_D[LOC],$A12),0)) -> 98255 | I12: =IF(ISNA($A12),"",IFERROR(SUMIFS(D_D[ADCM],D_D[MT],5,D_D[CAT],SMS, D_D[EP],-1,D_D[LOC],$A12),0)) -> 114.08 | J12: =IF(ISNA($A12),"",IFERROR(SUMIFS(D_D[PROD_FYTD],D_D[MT],5,D_D[CAT],SMS, D_D[EP],-1,D_D[LOC],$A12),0)) -> 1344665 | K12: =IF(ISNA($A12),"",IFERROR(SUMIFS(D_D[ADCF],D_D[MT],5,D_D[CAT],SMS, D_D[EP],-1,D_D[LOC],$A12),0)) -> 111.45 | L12: =IF(ISNA($A12-99),"",IFERROR(SUMIFS(D_D[INV],D_D[MT],8,D_D[CAT],SMS,D_D[LOC],$A12-99),0)) -> 0 | M12: =IF(ISNA($A12-99),"",IFERROR(SUMIFS(D_D[BL],D_D[MT],8,D_D[CAT],SMS,D_D[LOC],$A12-99),0)) -> 0 | N12: =IF(ISNA($A12-99),"",IFERROR(SUMIFS(D_D[ADP],D_D[MT],8,D_D[CAT],SMS,D_D[LOC],$A12-99),0)) -> 0 | O12: =IF(ISNA($A12-99),"",IFERROR(SUMIFS(D_D[PROD_MTD],D_D[MT],8,D_D[CAT],SMS,D_D[LOC],$A12-99),0)) -> 0 | P12: =IF(ISNA($A12-99),"",IFERROR(SUMIFS(D_D[PROD_FYTD],D_D[MT],8,D_D[CAT],SMS,D_D[LOC],$A12-99),0)) -> 0 | Q12: =IF(ISNA($A12-99),"",IFERROR(SUMIFS(D_D[ADCM],D_D[MT],8,D_D[CAT],SMS,D_D[LOC],$A12-99),0)) -> 0
A13: =INDEX(RO,(MATCH($C13,RO_D,0))) -> 394 | B13: 1 | C13: =IFERROR(INDEX(INDIRECT(DS_RO_N),B13),"") -> Northeast District | D13: =IF(ISNA($A13),"",IFERROR(SUMIFS(D_D[INV],D_D[MT],5,D_D[CAT],SMS, D_D[EP],-1,D_D[LOC],$A13),0)) -> 19088 | E13: =IF(ISNA($A13),"",IFERROR(SUMIFS(D_D[BL],D_D[MT],5,D_D[CAT],SMS, D_D[EP],-1,D_D[LOC],$A13),0)) -> 6514 | F13: =IF(ISNA($A13),"",IFERROR(E13/D13,0)) -> 0.3412615256 | G13: =IF(ISNA($A13),"",IFERROR(SUMIFS(D_D[ADP],D_D[MT],5,D_D[CAT],SMS, D_D[EP],-1,D_D[LOC],$A13),0)) -> 129.83 | H13: =IF(ISNA($A13),"",IFERROR(SUMIFS(D_D[PROD_MTD],D_D[MT],5,D_D[CAT],SMS, D_D[EP],-1,D_D[LOC],$A13),0)) -> 23100 | I13: =IF(ISNA($A13),"",IFERROR(SUMIFS(D_D[ADCM],D_D[MT],5,D_D[CAT],SMS, D_D[EP],-1,D_D[LOC],$A13),0)) -> 121.08 | J13: =IF(ISNA($A13),"",IFERROR(SUMIFS(D_D[PROD_FYTD],D_D[MT],5,D_D[CAT],SMS, D_D[EP],-1,D_D[LOC],$A13),0)) -> 320548 | K13: =IF(ISNA($A13),"",IFERROR(SUMIFS(D_D[ADCF],D_D[MT],5,D_D[CAT],SMS, D_D[EP],-1,D_D[LOC],$A13),0)) -> 107.25 | L13: =IF(ISNA($A13),"",IFERROR(SUMIFS(D_D[INV],D_D[MT],8,D_D[CAT],SMS,D_D[LOC],$A13),0)) -> 0 | M13: =IF(ISNA($A13),"",IFERROR(SUMIFS(D_D[BL],D_D[MT],8,D_D[CAT],SMS,D_D[LOC],$A13),0)) -> 0 | N13: =IF(ISNA($A13),"",IFERROR(SUMIFS(D_D[ADP],D_D[MT],8,D_D[CAT],SMS,D_D[LOC],$A13),0)) -> 0 | O13: =IF(ISNA($A13),"",IFERROR(SUMIFS(D_D[PROD_MTD],D_D[MT],8,D_D[CAT],SMS,D_D[LOC],$A13),0)) -> 0 | P13: =IF(ISNA($A13),"",IFERROR(SUMIFS(D_D[PROD_FYTD],D_D[MT],8,D_D[CAT],SMS,D_D[LOC],$A13),0)) -> 0 | Q13: =IF(ISNA($A13),"",IFERROR(SUMIFS(D_D[ADCM],D_D[MT],8,D_D[CAT],SMS,D_D[LOC],$A13),0)) -> 0
A14: 313 | B14: 2 | C14: =IFERROR(INDEX(INDIRECT(DS_RO_N),B14),"") -> Baltimore | D14: =IF(ISNA($A14),"",IFERROR(SUMIFS(D_D[INV],D_D[MT],5,D_D[CAT],SMS, D_D[EP],-1,D_D[LOC],$A14),0)) -> 434 | E14: =IF(ISNA($A14),"",IFERROR(SUMIFS(D_D[BL],D_D[MT],5,D_D[CAT],SMS, D_D[EP],-1,D_D[LOC],$A14),0)) -> 108 | F14: =IF(ISNA($A14),"",IFERROR(E14/D14,0)) -> 0.2488479263 | G14: =IF(ISNA($A14),"",IFERROR(SUMIFS(D_D[ADP],D_D[MT],5,D_D[CAT],SMS, D_D[EP],-1,D_D[LOC],$A14),0)) -> 94.66 | H14: =IF(ISNA($A14),"",IFERROR(SUMIFS(D_D[PROD_MTD],D_D[MT],5,D_D[CAT],SMS, D_D[EP],-1,D_D[LOC],$A14),0)) -> 661 | I14: =IF(ISNA($A14),"",IFERROR(SUMIFS(D_D[ADCM],D_D[MT],5,D_D[CAT],SMS, D_D[EP],-1,D_D[LOC],$A14),0)) -> 151.08 | J14: =IF(ISNA($A14),"",IFERROR(SUMIFS(D_D[PROD_FYTD],D_D[MT],5,D_D[CAT],SMS, D_D[EP],-1,D_D[LOC],$A14),0)) -> 7023 | K14: =IF(ISNA($A14),"",IFERROR(SUMIFS(D_D[ADCF],D_D[MT],5,D_D[CAT],SMS, D_D[EP],-1,D_D[LOC],$A14),0)) -> 107.96 | L14: =IF(ISNA($A14),"",IFERROR(SUMIFS(D_D[INV],D_D[MT],8,D_D[CAT],SMS,D_D[LOC],$A14),0)) -> 0 | M14: =IF(ISNA($A14),"",IFERROR(SUMIFS(D_D[BL],D_D[MT],8,D_D[CAT],SMS,D_D[LOC],$A14),0)) -> 0 | N14: =IF(ISNA($A14),"",IFERROR(SUMIFS(D_D[ADP],D_D[MT],8,D_D[CAT],SMS,D_D[LOC],$A14),0)) -> 0 | O14: =IF(ISNA($A14),"",IFERROR(SUMIFS(D_D[PROD_MTD],D_D[MT],8,D_D[CAT],SMS,D_D[LOC],$A14),0)) -> 0 | P14: =IF(ISNA($A14),"",IFERROR(SUMIFS(D_D[PROD_FYTD],D_D[MT],8,D_D[CAT],SMS,D_D[LOC],$A14),0)) -> 0 | Q14: =IF(ISNA($A14),"",IFERROR(SUMIFS(D_D[ADCM],D_D[MT],8,D_D[CAT],SMS,D_D[LOC],$A14),0)) -> 0
A15: 301 | B15: 3 | C15: Boston | D15: =IF(ISNA($A15),"",IFERROR(SUMIFS(D_D[INV],D_D[MT],5,D_D[CAT],SMS, D_D[EP],-1,D_D[LOC],$A15),0)) -> 484 | E15: =IF(ISNA($A15),"",IFERROR(SUMIFS(D_D[BL],D_D[MT],5,D_D[CAT],SMS, D_D[EP],-1,D_D[LOC],$A15),0)) -> 135 | F15: 0.2789256198 | G15: =IF(ISNA($A15),"",IFERROR(SUMIFS(D_D[ADP],D_D[MT],5,D_D[CAT],SMS, D_D[EP],-1,D_D[LOC],$A15),0)) -> 118.96 | H15: =IF(ISNA($A15),"",IFERROR(SUMIFS(D_D[PROD_MTD],D_D[MT],5,D_D[CAT],SMS, D_D[EP],-1,D_D[LOC],$A15),0)) -> 977 | I15: =IF(ISNA($A15),"",IFERROR(SUMIFS(D_D[ADCM],D_D[MT],5,D_D[CAT],SMS, D_D[EP],-1,D_D[LOC],$A15),0)) -> 134.56 | J15: =IF(ISNA($A15),"",IFERROR(SUMIFS(D_D[PROD_FYTD],D_D[MT],5,D_D[CAT],SMS, D_D[EP],-1,D_D[LOC],$A15),0)) -> 11724 | K15: =IF(ISNA($A15),"",IFERROR(SUMIFS(D_D[ADCF],D_D[MT],5,D_D[CAT],SMS, D_D[EP],-1,D_D[LOC],$A15),0)) -> 106.22 | L15: =IF(ISNA($A15),"",IFERROR(SUMIFS(D_D[INV],D_D[MT],8,D_D[CAT],SMS,D_D[LOC],$A15),0)) -> 0 | M15: =IF(ISNA($A15),"",IFERROR(SUMIFS(D_D[BL],D_D[MT],8,D_D[CAT],SMS,D_D[LOC],$A15),0)) -> 0 | N15: =IF(ISNA($A15),"",IFERROR(SUMIFS(D_D[ADP],D_D[MT],8,D_D[CAT],SMS,D_D[LOC],$A15),0)) -> 0 | O15: =IF(ISNA($A15),"",IFERROR(SUMIFS(D_D[PROD_MTD],D_D[MT],8,D_D[CAT],SMS,D_D[LOC],$A15),0)) -> 0 | P15: =IF(ISNA($A15),"",IFERROR(SUMIFS(D_D[PROD_FYTD],D_D[MT],8,D_D[CAT],SMS,D_D[LOC],$A15),0)) -> 0 | Q15: =IF(ISNA($A15),"",IFERROR(SUMIFS(D_D[ADCM],D_D[MT],8,D_D[CAT],SMS,D_D[LOC],$A15),0)) -> 0
A16: 307 | B16: 4 | C16: Buffalo | D16: =IF(ISNA($A16),"",IFERROR(SUMIFS(D_D[INV],D_D[MT],5,D_D[CAT],SMS, D_D[EP],-1,D_D[LOC],$A16),0)) -> 627 | E16: =IF(ISNA($A16),"",IFERROR(SUMIFS(D_D[BL],D_D[MT],5,D_D[CAT],SMS, D_D[EP],-1,D_D[LOC],$A16),0)) -> 234 | F16: 0.3732057416 | G16: =IF(ISNA($A16),"",IFERROR(SUMIFS(D_D[ADP],D_D[MT],5,D_D[CAT],SMS, D_D[EP],-1,D_D[LOC],$A16),0)) -> 134.76 | H16: =IF(ISNA($A16),"",IFERROR(SUMIFS(D_D[PROD_MTD],D_D[MT],5,D_D[CAT],SMS, D_D[EP],-1,D_D[LOC],$A16),0)) -> 696 | I16: =IF(ISNA($A16),"",IFERROR(SUMIFS(D_D[ADCM],D_D[MT],5,D_D[CAT],SMS, D_D[EP],-1,D_D[LOC],$A16),0)) -> 185.99 | J16: =IF(ISNA($A16),"",IFERROR(SUMIFS(D_D[PROD_FYTD],D_D[MT],5,D_D[CAT],SMS, D_D[EP],-1,D_D[LOC],$A16),0)) -> 8092 | K16: =IF(ISNA($A16),"",IFERROR(SUMIFS(D_D[ADCF],D_D[MT],5,D_D[CAT],SMS, D_D[EP],-1,D_D[LOC],$A16),0)) -> 136.25 | L16: =IF(ISNA($A16),"",IFERROR(SUMIFS(D_D[INV],D_D[MT],8,D_D[CAT],SMS,D_D[LOC],$A16),0)) -> 0 | M16: =IF(ISNA($A16),"",IFERROR(SUMIFS(D_D[BL],D_D[MT],8,D_D[CAT],SMS,D_D[LOC],$A16),0)) -> 0 | N16: =IF(ISNA($A16),"",IFERROR(SUMIFS(D_D[ADP],D_D[MT],8,D_D[CAT],SMS,D_D[LOC],$A16),0)) -> 0 | O16: =IF(ISNA($A16),"",IFERROR(SUMIFS(D_D[PROD_MTD],D_D[MT],8,D_D[CAT],SMS,D_D[LOC],$A16),0)) -> 0 | P16: =IF(ISNA($A16),"",IFERROR(SUMIFS(D_D[PROD_FYTD],D_D[MT],8,D_D[CAT],SMS,D_D[LOC],$A16),0)) -> 0 | Q16: =IF(ISNA($A16),"",IFERROR(SUMIFS(D_D[ADCM],D_D[MT],8,D_D[CAT],SMS,D_D[LOC],$A16),0)) -> 0
A17: 328 | B17: 5 | C17: Chicago | D17: =IF(ISNA($A17),"",IFERROR(SUMIFS(D_D[INV],D_D[MT],5,D_D[CAT],SMS, D_D[EP],-1,D_D[LOC],$A17),0)) -> 527 | E17: =IF(ISNA($A17),"",IFERROR(SUMIFS(D_D[BL],D_D[MT],5,D_D[CAT],SMS, D_D[EP],-1,D_D[LOC],$A17),0)) -> 167 | F17: 0.3168880455 | G17: =IF(ISNA($A17),"",IFERROR(SUMIFS(D_D[ADP],D_D[MT],5,D_D[CAT],SMS, D_D[EP],-1,D_D[LOC],$A17),0)) -> 121.9 | H17: =IF(ISNA($A17),"",IFERROR(SUMIFS(D_D[PROD_MTD],D_D[MT],5,D_D[CAT],SMS, D_D[EP],-1,D_D[LOC],$A17),0)) -> 768 | I17: =IF(ISNA($A17),"",IFERROR(SUMIFS(D_D[ADCM],D_D[MT],5,D_D[CAT],SMS, D_D[EP],-1,D_D[LOC],$A17),0)) -> 128.14 | J17: =IF(ISNA($A17),"",IFERROR(SUMIFS(D_D[PROD_FYTD],D_D[MT],5,D_D[CAT],SMS, D_D[EP],-1,D_D[LOC],$A17),0)) -> 10305 | K17: =IF(ISNA($A17),"",IFERROR(SUMIFS(D_D[ADCF],D_D[MT],5,D_D[CAT],SMS, D_D[EP],-1,D_D[LOC],$A17),0)) -> 88.58 | L17: =IF(ISNA($A17),"",IFERROR(SUMIFS(D_D[INV],D_D[MT],8,D_D[CAT],SMS,D_D[LOC],$A17),0)) -> 0 | M17: =IF(ISNA($A17),"",IFERROR(SUMIFS(D_D[BL],D_D[MT],8,D_D[CAT],SMS,D_D[LOC],$A17),0)) -> 0 | N17: =IF(ISNA($A17),"",IFERROR(SUMIFS(D_D[ADP],D_D[MT],8,D_D[CAT],SMS,D_D[LOC],$A17),0)) -> 0 | O17: =IF(ISNA($A17),"",IFERROR(SUMIFS(D_D[PROD_MTD],D_D[MT],8,D_D[CAT],SMS,D_D[LOC],$A17),0)) -> 0 | P17: =IF(ISNA($A17),"",IFERROR(SUMIFS(D_D[PROD_FYTD],D_D[MT],8,D_D[CAT],SMS,D_D[LOC],$A17),0)) -> 0 | Q17: =IF(ISNA($A17),"",IFERROR(SUMIFS(D_D[ADCM],D_D[MT],8,D_D[CAT],SMS,D_D[LOC],$A17),0)) -> 0
A18: 325 | B18: 6 | C18: Cleveland | D18: =IF(ISNA($A18),"",IFERROR(SUMIFS(D_D[INV],D_D[MT],5,D_D[CAT],SMS, D_D[EP],-1,D_D[LOC],$A18),0)) -> 2264 | E18: =IF(ISNA($A18),"",IFERROR(SUMIFS(D_D[BL],D_D[MT],5,D_D[CAT],SMS, D_D[EP],-1,D_D[LOC],$A18),0)) -> 1105 | F18: 0.4880742049 | G18: =IF(ISNA($A18),"",IFERROR(SUMIFS(D_D[ADP],D_D[MT],5,D_D[CAT],SMS, D_D[EP],-1,D_D[LOC],$A18),0)) -> 159.28 | H18: =IF(ISNA($A18),"",IFERROR(SUMIFS(D_D[PROD_MTD],D_D[MT],5,D_D[CAT],SMS, D_D[EP],-1,D_D[LOC],$A18),0)) -> 1475 | I18: =IF(ISNA($A18),"",IFERROR(SUMIFS(D_D[ADCM],D_D[MT],5,D_D[CAT],SMS, D_D[EP],-1,D_D[LOC],$A18),0)) -> 176.36 | J18: =IF(ISNA($A18),"",IFERROR(SUMIFS(D_D[PROD_FYTD],D_D[MT],5,D_D[CAT],SMS, D_D[EP],-1,D_D[LOC],$A18),0)) -> 18414 | K18: =IF(ISNA($A18),"",IFERROR(SUMIFS(D_D[ADCF],D_D[MT],5,D_D[CAT],SMS, D_D[EP],-1,D_D[LOC],$A18),0)) -> 169.24 | L18: =IF(ISNA($A18),"",IFERROR(SUMIFS(D_D[INV],D_D[MT],8,D_D[CAT],SMS,D_D[LOC],$A18),0)) -> 0 | M18: =IF(ISNA($A18),"",IFERROR(SUMIFS(D_D[BL],D_D[MT],8,D_D[CAT],SMS,D_D[LOC],$A18),0)) -> 0 | N18: =IF(ISNA($A18),"",IFERROR(SUMIFS(D_D[ADP],D_D[MT],8,D_D[CAT],SMS,D_D[LOC],$A18),0)) -> 0 | O18: =IF(ISNA($A18),"",IFERROR(SUMIFS(D_D[PROD_MTD],D_D[MT],8,D_D[CAT],SMS,D_D[LOC],$A18),0)) -> 0 | P18: =IF(ISNA($A18),"",IFERROR(SUMIFS(D_D[PROD_FYTD],D_D[MT],8,D_D[CAT],SMS,D_D[LOC],$A18),0)) -> 0 | Q18: =IF(ISNA($A18),"",IFERROR(SUMIFS(D_D[ADCM],D_D[MT],8,D_D[CAT],SMS,D_D[LOC],$A18),0)) -> 0
A19: 329 | B19: 7 | C19: Detroit | D19: =IF(ISNA($A19),"",IFERROR(SUMIFS(D_D[INV],D_D[MT],5,D_D[CAT],SMS, D_D[EP],-1,D_D[LOC],$A19),0)) -> 1025 | E19: =IF(ISNA($A19),"",IFERROR(SUMIFS(D_D[BL],D_D[MT],5,D_D[CAT],SMS, D_D[EP],-1,D_D[LOC],$A19),0)) -> 235 | F19: 0.2292682927 | G19: =IF(ISNA($A19),"",IFERROR(SUMIFS(D_D[ADP],D_D[MT],5,D_D[CAT],SMS, D_D[EP],-1,D_D[LOC],$A19),0)) -> 95.06 | H19: =IF(ISNA($A19),"",IFERROR(SUMIFS(D_D[PROD_MTD],D_D[MT],5,D_D[CAT],SMS, D_D[EP],-1,D_D[LOC],$A19),0)) -> 1851 | I19: =IF(ISNA($A19),"",IFERROR(SUMIFS(D_D[ADCM],D_D[MT],5,D_D[CAT],SMS, D_D[EP],-1,D_D[LOC],$A19),0)) -> 94.77 | J19: =IF(ISNA($A19),"",IFERROR(SUMIFS(D_D[PROD_FYTD],D_D[MT],5,D_D[CAT],SMS, D_D[EP],-1,D_D[LOC],$A19),0)) -> 23059 | K19: =IF(ISNA($A19),"",IFERROR(SUMIFS(D_D[ADCF],D_D[MT],5,D_D[CAT],SMS, D_D[EP],-1,D_D[LOC],$A19),0)) -> 98.75 | L19: =IF(ISNA($A19),"",IFERROR(SUMIFS(D_D[INV],D_D[MT],8,D_D[CAT],SMS,D_D[LOC],$A19),0)) -> 0 | M19: =IF(ISNA($A19),"",IFERROR(SUMIFS(D_D[BL],D_D[MT],8,D_D[CAT],SMS,D_D[LOC],$A19),0)) -> 0 | N19: =IF(ISNA($A19),"",IFERROR(SUMIFS(D_D[ADP],D_D[MT],8,D_D[CAT],SMS,D_D[LOC],$A19),0)) -> 0 | O19: =IF(ISNA($A19),"",IFERROR(SUMIFS(D_D[PROD_MTD],D_D[MT],8,D_D[CAT],SMS,D_D[LOC],$A19),0)) -> 0 | P19: =IF(ISNA($A19),"",IFERROR(SUMIFS(D_D[PROD_FYTD],D_D[MT],8,D_D[CAT],SMS,D_D[LOC],$A19),0)) -> 0 | Q19: =IF(ISNA($A19),"",IFERROR(SUMIFS(D_D[ADCM],D_D[MT],8,D_D[CAT],SMS,D_D[LOC],$A19),0)) -> 0
A20: 308 | B20: 8 | C20: Hartford | D20: =IF(ISNA($A20),"",IFERROR(SUMIFS(D_D[INV],D_D[MT],5,D_D[CAT],SMS, D_D[EP],-1,D_D[LOC],$A20),0)) -> 588 | E20: =IF(ISNA($A20),"",IFERROR(SUMIFS(D_D[BL],D_D[MT],5,D_D[CAT],SMS, D_D[EP],-1,D_D[LOC],$A20),0)) -> 295 | F20: 0.5017006803 | G20: =IF(ISNA($A20),"",IFERROR(SUMIFS(D_D[ADP],D_D[MT],5,D_D[CAT],SMS, D_D[EP],-1,D_D[LOC],$A20),0)) -> 181.54 | H20: =IF(ISNA($A20),"",IFERROR(SUMIFS(D_D[PROD_MTD],D_D[MT],5,D_D[CAT],SMS, D_D[EP],-1,D_D[LOC],$A20),0)) -> 719 | I20: =IF(ISNA($A20),"",IFERROR(SUMIFS(D_D[ADCM],D_D[MT],5,D_D[CAT],SMS, D_D[EP],-1,D_D[LOC],$A20),0)) -> 176.73 | J20: =IF(ISNA($A20),"",IFERROR(SUMIFS(D_D[PROD_FYTD],D_D[MT],5,D_D[CAT],SMS, D_D[EP],-1,D_D[LOC],$A20),0)) -> 9622 | K20: =IF(ISNA($A20),"",IFERROR(SUMIFS(D_D[ADCF],D_D[MT],5,D_D[CAT],SMS, D_D[EP],-1,D_D[LOC],$A20),0)) -> 108.93 | L20: =IF(ISNA($A20),"",IFERROR(SUMIFS(D_D[INV],D_D[MT],8,D_D[CAT],SMS,D_D[LOC],$A20),0)) -> 0 | M20: =IF(ISNA($A20),"",IFERROR(SUMIFS(D_D[BL],D_D[MT],8,D_D[CAT],SMS,D_D[LOC],$A20),0)) -> 0 | N20: =IF(ISNA($A20),"",IFERROR(SUMIFS(D_D[ADP],D_D[MT],8,D_D[CAT],SMS,D_D[LOC],$A20),0)) -> 0 | O20: =IF(ISNA($A20),"",IFERROR(SUMIFS(D_D[PROD_MTD],D_D[MT],8,D_D[CAT],SMS,D_D[LOC],$A20),0)) -> 0 | P20: =IF(ISNA($A20),"",IFERROR(SUMIFS(D_D[PROD_FYTD],D_D[MT],8,D_D[CAT],SMS,D_D[LOC],$A20),0)) -> 0 | Q20: =IF(ISNA($A20),"",IFERROR(SUMIFS(D_D[ADCM],D_D[MT],8,D_D[CAT],SMS,D_D[LOC],$A20),0)) -> 0
A21: 326 | B21: 9 | C21: Indianapolis | D21: =IF(ISNA($A21),"",IFERROR(SUMIFS(D_D[INV],D_D[MT],5,D_D[CAT],SMS, D_D[EP],-1,D_D[LOC],$A21),0)) -> 745 | E21: =IF(ISNA($A21),"",IFERROR(SUMIFS(D_D[BL],D_D[MT],5,D_D[CAT],SMS, D_D[EP],-1,D_D[LOC],$A21),0)) -> 230 | F21: 0.3087248322 | G21: =IF(ISNA($A21),"",IFERROR(SUMIFS(D_D[ADP],D_D[MT],5,D_D[CAT],SMS, D_D[EP],-1,D_D[LOC],$A21),0)) -> 131.78 | H21: =IF(ISNA($A21),"",IFERROR(SUMIFS(D_D[PROD_MTD],D_D[MT],5,D_D[CAT],SMS, D_D[EP],-1,D_D[LOC],$A21),0)) -> 1554 | I21: =IF(ISNA($A21),"",IFERROR(SUMIFS(D_D[ADCM],D_D[MT],5,D_D[CAT],SMS, D_D[EP],-1,D_D[LOC],$A21),0)) -> 115.96 | J21: =IF(ISNA($A21),"",IFERROR(SUMIFS(D_D[PROD_FYTD],D_D[MT],5,D_D[CAT],SMS, D_D[EP],-1,D_D[LOC],$A21),0)) -> 18058 | K21: =IF(ISNA($A21),"",IFERROR(SUMIFS(D_D[ADCF],D_D[MT],5,D_D[CAT],SMS, D_D[EP],-1,D_D[LOC],$A21),0)) -> 124.59 | L21: =IF(ISNA($A21),"",IFERROR(SUMIFS(D_D[INV],D_D[MT],8,D_D[CAT],SMS,D_D[LOC],$A21),0)) -> 0 | M21: =IF(ISNA($A21),"",IFERROR(SUMIFS(D_D[BL],D_D[MT],8,D_D[CAT],SMS,D_D[LOC],$A21),0)) -> 0 | N21: =IF(ISNA($A21),"",IFERROR(SUMIFS(D_D[ADP],D_D[MT],8,D_D[CAT],SMS,D_D[LOC],$A21),0)) -> 0 | O21: =IF(ISNA($A21),"",IFERROR(SUMIFS(D_D[PROD_MTD],D_D[MT],8,D_D[CAT],SMS,D_D[LOC],$A21),0)) -> 0 | P21: =IF(ISNA($A21),"",IFERROR(SUMIFS(D_D[PROD_FYTD],D_D[MT],8,D_D[CAT],SMS,D_D[LOC],$A21),0)) -> 0 | Q21: =IF(ISNA($A21),"",IFERROR(SUMIFS(D_D[ADCM],D_D[MT],8,D_D[CAT],SMS,D_D[LOC],$A21),0)) -> 0
A22: 373 | B22: 10 | C22: Manchester | D22: =IF(ISNA($A22),"",IFERROR(SUMIFS(D_D[INV],D_D[MT],5,D_D[CAT],SMS, D_D[EP],-1,D_D[LOC],$A22),0)) -> 234 | E22: =IF(ISNA($A22),"",IFERROR(SUMIFS(D_D[BL],D_D[MT],5,D_D[CAT],SMS, D_D[EP],-1,D_D[LOC],$A22),0)) -> 101 | F22: 0.4316239316 | G22: =IF(ISNA($A22),"",IFERROR(SUMIFS(D_D[ADP],D_D[MT],5,D_D[CAT],SMS, D_D[EP],-1,D_D[LOC],$A22),0)) -> 152.72 | H22: =IF(ISNA($A22),"",IFERROR(SUMIFS(D_D[PROD_MTD],D_D[MT],5,D_D[CAT],SMS, D_D[EP],-1,D_D[LOC],$A22),0)) -> 397 | I22: =IF(ISNA($A22),"",IFERROR(SUMIFS(D_D[ADCM],D_D[MT],5,D_D[CAT],SMS, D_D[EP],-1,D_D[LOC],$A22),0)) -> 191.27 | J22: =IF(ISNA($A22),"",IFERROR(SUMIFS(D_D[PROD_FYTD],D_D[MT],5,D_D[CAT],SMS, D_D[EP],-1,D_D[LOC],$A22),0)) -> 3891 | K22: =IF(ISNA($A22),"",IFERROR(SUMIFS(D_D[ADCF],D_D[MT],5,D_D[CAT],SMS, D_D[EP],-1,D_D[LOC],$A22),0)) -> 126.3 | L22: =IF(ISNA($A22),"",IFERROR(SUMIFS(D_D[INV],D_D[MT],8,D_D[CAT],SMS,D_D[LOC],$A22),0)) -> 0 | M22: =IF(ISNA($A22),"",IFERROR(SUMIFS(D_D[BL],D_D[MT],8,D_D[CAT],SMS,D_D[LOC],$A22),0)) -> 0 | N22: =IF(ISNA($A22),"",IFERROR(SUMIFS(D_D[ADP],D_D[MT],8,D_D[CAT],SMS,D_D[LOC],$A22),0)) -> 0 | O22: =IF(ISNA($A22),"",IFERROR(SUMIFS(D_D[PROD_MTD],D_D[MT],8,D_D[CAT],SMS,D_D[LOC],$A22),0)) -> 0 | P22: =IF(ISNA($A22),"",IFERROR(SUMIFS(D_D[PROD_FYTD],D_D[MT],8,D_D[CAT],SMS,D_D[LOC],$A22),0)) -> 0 | Q22: =IF(ISNA($A22),"",IFERROR(SUMIFS(D_D[ADCM],D_D[MT],8,D_D[CAT],SMS,D_D[LOC],$A22),0)) -> 0
A23: 330 | B23: 11 | C23: Milwaukee | D23: =IF(ISNA($A23),"",IFERROR(SUMIFS(D_D[INV],D_D[MT],5,D_D[CAT],SMS, D_D[EP],-1,D_D[LOC],$A23),0)) -> 1610 | E23: =IF(ISNA($A23),"",IFERROR(SUMIFS(D_D[BL],D_D[MT],5,D_D[CAT],SMS, D_D[EP],-1,D_D[LOC],$A23),0)) -> 238 | F23: 0.147826087 | G23: =IF(ISNA($A23),"",IFERROR(SUMIFS(D_D[ADP],D_D[MT],5,D_D[CAT],SMS, D_D[EP],-1,D_D[LOC],$A23),0)) -> 78.16 | H23: =IF(ISNA($A23),"",IFERROR(SUMIFS(D_D[PROD_MTD],D_D[MT],5,D_D[CAT],SMS, D_D[EP],-1,D_D[LOC],$A23),0)) -> 3232 | I23: =IF(ISNA($A23),"",IFERROR(SUMIFS(D_D[ADCM],D_D[MT],5,D_D[CAT],SMS, D_D[EP],-1,D_D[LOC],$A23),0)) -> 74.18 | J23: =IF(ISNA($A23),"",IFERROR(SUMIFS(D_D[PROD_FYTD],D_D[MT],5,D_D[CAT],SMS, D_D[EP],-1,D_D[LOC],$A23),0)) -> 46117 | K23: =IF(ISNA($A23),"",IFERROR(SUMIFS(D_D[ADCF],D_D[MT],5,D_D[CAT],SMS, D_D[EP],-1,D_D[LOC],$A23),0)) -> 75.19 | L23: =IF(ISNA($A23),"",IFERROR(SUMIFS(D_D[INV],D_D[MT],8,D_D[CAT],SMS,D_D[LOC],$A23),0)) -> 0 | M23: =IF(ISNA($A23),"",IFERROR(SUMIFS(D_D[BL],D_D[MT],8,D_D[CAT],SMS,D_D[LOC],$A23),0)) -> 0 | N23: =IF(ISNA($A23),"",IFERROR(SUMIFS(D_D[ADP],D_D[MT],8,D_D[CAT],SMS,D_D[LOC],$A23),0)) -> 0 | O23: =IF(ISNA($A23),"",IFERROR(SUMIFS(D_D[PROD_MTD],D_D[MT],8,D_D[CAT],SMS,D_D[LOC],$A23),0)) -> 0 | P23: =IF(ISNA($A23),"",IFERROR(SUMIFS(D_D[PROD_FYTD],D_D[MT],8,D_D[CAT],SMS,D_D[LOC],$A23),0)) -> 0 | Q23: =IF(ISNA($A23),"",IFERROR(SUMIFS(D_D[ADCM],D_D[MT],8,D_D[CAT],SMS,D_D[LOC],$A23),0)) -> 0
A24: 306 | B24: 12 | C24: New York | D24: =IF(ISNA($A24),"",IFERROR(SUMIFS(D_D[INV],D_D[MT],5,D_D[CAT],SMS, D_D[EP],-1,D_D[LOC],$A24),0)) -> 828 | E24: =IF(ISNA($A24),"",IFERROR(SUMIFS(D_D[BL],D_D[MT],5,D_D[CAT],SMS, D_D[EP],-1,D_D[LOC],$A24),0)) -> 318 | F24: 0.384057971 | G24: =IF(ISNA($A24),"",IFERROR(SUMIFS(D_D[ADP],D_D[MT],5,D_D[CAT],SMS, D_D[EP],-1,D_D[LOC],$A24),0)) -> 153.77 | H24: =IF(ISNA($A24),"",IFERROR(SUMIFS(D_D[PROD_MTD],D_D[MT],5,D_D[CAT],SMS, D_D[EP],-1,D_D[LOC],$A24),0)) -> 1034 | I24: =IF(ISNA($A24),"",IFERROR(SUMIFS(D_D[ADCM],D_D[MT],5,D_D[CAT],SMS, D_D[EP],-1,D_D[LOC],$A24),0)) -> 149.5 | J24: =IF(ISNA($A24),"",IFERROR(SUMIFS(D_D[PROD_FYTD],D_D[MT],5,D_D[CAT],SMS, D_D[EP],-1,D_D[LOC],$A24),0)) -> 15871 | K24: =IF(ISNA($A24),"",IFERROR(SUMIFS(D_D[ADCF],D_D[MT],5,D_D[CAT],SMS, D_D[EP],-1,D_D[LOC],$A24),0)) -> 103.78 | L24: =IF(ISNA($A24),"",IFERROR(SUMIFS(D_D[INV],D_D[MT],8,D_D[CAT],SMS,D_D[LOC],$A24),0)) -> 0 | M24: =IF(ISNA($A24),"",IFERROR(SUMIFS(D_D[BL],D_D[MT],8,D_D[CAT],SMS,D_D[LOC],$A24),0)) -> 0 | N24: =IF(ISNA($A24),"",IFERROR(SUMIFS(D_D[ADP],D_D[MT],8,D_D[CAT],SMS,D_D[LOC],$A24),0)) -> 0 | O24: =IF(ISNA($A24),"",IFERROR(SUMIFS(D_D[PROD_MTD],D_D[MT],8,D_D[CAT],SMS,D_D[LOC],$A24),0)) -> 0 | P24: =IF(ISNA($A24),"",IFERROR(SUMIFS(D_D[PROD_FYTD],D_D[MT],8,D_D[CAT],SMS,D_D[LOC],$A24),0)) -> 0 | Q24: =IF(ISNA($A24),"",IFERROR(SUMIFS(D_D[ADCM],D_D[MT],8,D_D[CAT],SMS,D_D[LOC],$A24),0)) -> 0
A25: 309 | B25: 13 | C25: Newark | D25: =IF(ISNA($A25),"",IFERROR(SUMIFS(D_D[INV],D_D[MT],5,D_D[CAT],SMS, D_D[EP],-1,D_D[LOC],$A25),0)) -> 412 | E25: =IF(ISNA($A25),"",IFERROR(SUMIFS(D_D[BL],D_D[MT],5,D_D[CAT],SMS, D_D[EP],-1,D_D[LOC],$A25),0)) -> 139 | F25: 0.3373786408 | G25: =IF(ISNA($A25),"",IFERROR(SUMIFS(D_D[ADP],D_D[MT],5,D_D[CAT],SMS, D_D[EP],-1,D_D[LOC],$A25),0)) -> 121.27 | H25: =IF(ISNA($A25),"",IFERROR(SUMIFS(D_D[PROD_MTD],D_D[MT],5,D_D[CAT],SMS, D_D[EP],-1,D_D[LOC],$A25),0)) -> 742 | I25: =IF(ISNA($A25),"",IFERROR(SUMIFS(D_D[ADCM],D_D[MT],5,D_D[CAT],SMS, D_D[EP],-1,D_D[LOC],$A25),0)) -> 155.23 | J25: =IF(ISNA($A25),"",IFERROR(SUMIFS(D_D[PROD_FYTD],D_D[MT],5,D_D[CAT],SMS, D_D[EP],-1,D_D[LOC],$A25),0)) -> 8215 | K25: =IF(ISNA($A25),"",IFERROR(SUMIFS(D_D[ADCF],D_D[MT],5,D_D[CAT],SMS, D_D[EP],-1,D_D[LOC],$A25),0)) -> 107.94 | L25: =IF(ISNA($A25),"",IFERROR(SUMIFS(D_D[INV],D_D[MT],8,D_D[CAT],SMS,D_D[LOC],$A25),0)) -> 0 | M25: =IF(ISNA($A25),"",IFERROR(SUMIFS(D_D[BL],D_D[MT],8,D_D[CAT],SMS,D_D[LOC],$A25),0)) -> 0 | N25: =IF(ISNA($A25),"",IFERROR(SUMIFS(D_D[ADP],D_D[MT],8,D_D[CAT],SMS,D_D[LOC],$A25),0)) -> 0 | O25: =IF(ISNA($A25),"",IFERROR(SUMIFS(D_D[PROD_MTD],D_D[MT],8,D_D[CAT],SMS,D_D[LOC],$A25),0)) -> 0 | P25: =IF(ISNA($A25),"",IFERROR(SUMIFS(D_D[PROD_FYTD],D_D[MT],8,D_D[CAT],SMS,D_D[LOC],$A25),0)) -> 0 | Q25: =IF(ISNA($A25),"",IFERROR(SUMIFS(D_D[ADCM],D_D[MT],8,D_D[CAT],SMS,D_D[LOC],$A25),0)) -> 0
A26: 310 | B26: 14 | C26: Philadelphia | D26: =IF(ISNA($A26),"",IFERROR(SUMIFS(D_D[INV],D_D[MT],5,D_D[CAT],SMS, D_D[EP],-1,D_D[LOC],$A26),0)) -> 2753 | E26: =IF(ISNA($A26),"",IFERROR(SUMIFS(D_D[BL],D_D[MT],5,D_D[CAT],SMS, D_D[EP],-1,D_D[LOC],$A26),0)) -> 750 | F26: 0.2724300763 | G26: =IF(ISNA($A26),"",IFERROR(SUMIFS(D_D[ADP],D_D[MT],5,D_D[CAT],SMS, D_D[EP],-1,D_D[LOC],$A26),0)) -> 123.53 | H26: =IF(ISNA($A26),"",IFERROR(SUMIFS(D_D[PROD_MTD],D_D[MT],5,D_D[CAT],SMS, D_D[EP],-1,D_D[LOC],$A26),0)) -> 3517 | I26: =IF(ISNA($A26),"",IFERROR(SUMIFS(D_D[ADCM],D_D[MT],5,D_D[CAT],SMS, D_D[EP],-1,D_D[LOC],$A26),0)) -> 97.17 | J26: =IF(ISNA($A26),"",IFERROR(SUMIFS(D_D[PROD_FYTD],D_D[MT],5,D_D[CAT],SMS, D_D[EP],-1,D_D[LOC],$A26),0)) -> 57524 | K26: =IF(ISNA($A26),"",IFERROR(SUMIFS(D_D[ADCF],D_D[MT],5,D_D[CAT],SMS, D_D[EP],-1,D_D[LOC],$A26),0)) -> 98.2 | L26: =IF(ISNA($A26),"",IFERROR(SUMIFS(D_D[INV],D_D[MT],8,D_D[CAT],SMS,D_D[LOC],$A26),0)) -> 0 | M26: =IF(ISNA($A26),"",IFERROR(SUMIFS(D_D[BL],D_D[MT],8,D_D[CAT],SMS,D_D[LOC],$A26),0)) -> 0 | N26: =IF(ISNA($A26),"",IFERROR(SUMIFS(D_D[ADP],D_D[MT],8,D_D[CAT],SMS,D_D[LOC],$A26),0)) -> 0 | O26: =IF(ISNA($A26),"",IFERROR(SUMIFS(D_D[PROD_MTD],D_D[MT],8,D_D[CAT],SMS,D_D[LOC],$A26),0)) -> 0 | P26: =IF(ISNA($A26),"",IFERROR(SUMIFS(D_D[PROD_FYTD],D_D[MT],8,D_D[CAT],SMS,D_D[LOC],$A26),0)) -> 0 | Q26: =IF(ISNA($A26),"",IFERROR(SUMIFS(D_D[ADCM],D_D[MT],8,D_D[CAT],SMS,D_D[LOC],$A26),0)) -> 0
A27: 311 | B27: 15 | C27: Pittsburgh | D27: =IF(ISNA($A27),"",IFERROR(SUMIFS(D_D[INV],D_D[MT],5,D_D[CAT],SMS, D_D[EP],-1,D_D[LOC],$A27),0)) -> 715 | E27: =IF(ISNA($A27),"",IFERROR(SUMIFS(D_D[BL],D_D[MT],5,D_D[CAT],SMS, D_D[EP],-1,D_D[LOC],$A27),0)) -> 327 | F27: 0.4573426573 | G27: =IF(ISNA($A27),"",IFERROR(SUMIFS(D_D[ADP],D_D[MT],5,D_D[CAT],SMS, D_D[EP],-1,D_D[LOC],$A27),0)) -> 173.23 | H27: =IF(ISNA($A27),"",IFERROR(SUMIFS(D_D[PROD_MTD],D_D[MT],5,D_D[CAT],SMS, D_D[EP],-1,D_D[LOC],$A27),0)) -> 1071 | I27: =IF(ISNA($A27),"",IFERROR(SUMIFS(D_D[ADCM],D_D[MT],5,D_D[CAT],SMS, D_D[EP],-1,D_D[LOC],$A27),0)) -> 170.76 | J27: =IF(ISNA($A27),"",IFERROR(SUMIFS(D_D[PROD_FYTD],D_D[MT],5,D_D[CAT],SMS, D_D[EP],-1,D_D[LOC],$A27),0)) -> 12319 | K27: =IF(ISNA($A27),"",IFERROR(SUMIFS(D_D[ADCF],D_D[MT],5,D_D[CAT],SMS, D_D[EP],-1,D_D[LOC],$A27),0)) -> 130.96 | L27: =IF(ISNA($A27),"",IFERROR(SUMIFS(D_D[INV],D_D[MT],8,D_D[CAT],SMS,D_D[LOC],$A27),0)) -> 0 | M27: =IF(ISNA($A27),"",IFERROR(SUMIFS(D_D[BL],D_D[MT],8,D_D[CAT],SMS,D_D[LOC],$A27),0)) -> 0 | N27: =IF(ISNA($A27),"",IFERROR(SUMIFS(D_D[ADP],D_D[MT],8,D_D[CAT],SMS,D_D[LOC],$A27),0)) -> 0 | O27: =IF(ISNA($A27),"",IFERROR(SUMIFS(D_D[PROD_MTD],D_D[MT],8,D_D[CAT],SMS,D_D[LOC],$A27),0)) -> 0 | P27: =IF(ISNA($A27),"",IFERROR(SUMIFS(D_D[PROD_FYTD],D_D[MT],8,D_D[CAT],SMS,D_D[LOC],$A27),0)) -> 0 | Q27: =IF(ISNA($A27),"",IFERROR(SUMIFS(D_D[ADCM],D_D[MT],8,D_D[CAT],SMS,D_D[LOC],$A27),0)) -> 0
A28: 304 | B28: 16 | C28: Providence | D28: =IF(ISNA($A28),"",IFERROR(SUMIFS(D_D[INV],D_D[MT],5,D_D[CAT],SMS, D_D[EP],-1,D_D[LOC],$A28),0)) -> 1267 | E28: =IF(ISNA($A28),"",IFERROR(SUMIFS(D_D[BL],D_D[MT],5,D_D[CAT],SMS, D_D[EP],-1,D_D[LOC],$A28),0)) -> 245 | F28: 0.1933701657 | G28: =IF(ISNA($A28),"",IFERROR(SUMIFS(D_D[ADP],D_D[MT],5,D_D[CAT],SMS, D_D[EP],-1,D_D[LOC],$A28),0)) -> 93.55 | H28: =IF(ISNA($A28),"",IFERROR(SUMIFS(D_D[PROD_MTD],D_D[MT],5,D_D[CAT],SMS, D_D[EP],-1,D_D[LOC],$A28),0)) -> 2181 | I28: =IF(ISNA($A28),"",IFERROR(SUMIFS(D_D[ADCM],D_D[MT],5,D_D[CAT],SMS, D_D[EP],-1,D_D[LOC],$A28),0)) -> 84.25 | J28: =IF(ISNA($A28),"",IFERROR(SUMIFS(D_D[PROD_FYTD],D_D[MT],5,D_D[CAT],SMS, D_D[EP],-1,D_D[LOC],$A28),0)) -> 26784 | K28: =IF(ISNA($A28),"",IFERROR(SUMIFS(D_D[ADCF],D_D[MT],5,D_D[CAT],SMS, D_D[EP],-1,D_D[LOC],$A28),0)) -> 72.53 | L28: =IF(ISNA($A28),"",IFERROR(SUMIFS(D_D[INV],D_D[MT],8,D_D[CAT],SMS,D_D[LOC],$A28),0)) -> 0 | M28: =IF(ISNA($A28),"",IFERROR(SUMIFS(D_D[BL],D_D[MT],8,D_D[CAT],SMS,D_D[LOC],$A28),0)) -> 0 | N28: =IF(ISNA($A28),"",IFERROR(SUMIFS(D_D[ADP],D_D[MT],8,D_D[CAT],SMS,D_D[LOC],$A28),0)) -> 0 | O28: =IF(ISNA($A28),"",IFERROR(SUMIFS(D_D[PROD_MTD],D_D[MT],8,D_D[CAT],SMS,D_D[LOC],$A28),0)) -> 0 | P28: =IF(ISNA($A28),"",IFERROR(SUMIFS(D_D[PROD_FYTD],D_D[MT],8,D_D[CAT],SMS,D_D[LOC],$A28),0)) -> 0 | Q28: =IF(ISNA($A28),"",IFERROR(SUMIFS(D_D[ADCM],D_D[MT],8,D_D[CAT],SMS,D_D[LOC],$A28),0)) -> 0
A29: 376 | B29: 17 | C29: St. Louis RMC | D29: =IF(ISNA($A29),"",IFERROR(SUMIFS(D_D[INV],D_D[MT],5,D_D[CAT],SMS, D_D[EP],-1,D_D[LOC],$A29),0)) -> 0 | E29: =IF(ISNA($A29),"",IFERROR(SUMIFS(D_D[BL],D_D[MT],5,D_D[CAT],SMS, D_D[EP],-1,D_D[LOC],$A29),0)) -> 0 | F29: 0 | G29: =IF(ISNA($A29),"",IFERROR(SUMIFS(D_D[ADP],D_D[MT],5,D_D[CAT],SMS, D_D[EP],-1,D_D[LOC],$A29),0)) -> 0 | H29: =IF(ISNA($A29),"",IFERROR(SUMIFS(D_D[PROD_MTD],D_D[MT],5,D_D[CAT],SMS, D_D[EP],-1,D_D[LOC],$A29),0)) -> 0 | I29: =IF(ISNA($A29),"",IFERROR(SUMIFS(D_D[ADCM],D_D[MT],5,D_D[CAT],SMS, D_D[EP],-1,D_D[LOC],$A29),0)) -> 0 | J29: =IF(ISNA($A29),"",IFERROR(SUMIFS(D_D[PROD_FYTD],D_D[MT],5,D_D[CAT],SMS, D_D[EP],-1,D_D[LOC],$A29),0)) -> 0 | K29: =IF(ISNA($A29),"",IFERROR(SUMIFS(D_D[ADCF],D_D[MT],5,D_D[CAT],SMS, D_D[EP],-1,D_D[LOC],$A29),0)) -> 0 | L29: =IF(ISNA($A29),"",IFERROR(SUMIFS(D_D[INV],D_D[MT],8,D_D[CAT],SMS,D_D[LOC],$A29),0)) -> 0 | M29: =IF(ISNA($A29),"",IFERROR(SUMIFS(D_D[BL],D_D[MT],8,D_D[CAT],SMS,D_D[LOC],$A29),0)) -> 0 | N29: =IF(ISNA($A29),"",IFERROR(SUMIFS(D_D[ADP],D_D[MT],8,D_D[CAT],SMS,D_D[LOC],$A29),0)) -> 0 | O29: =IF(ISNA($A29),"",IFERROR(SUMIFS(D_D[PROD_MTD],D_D[MT],8,D_D[CAT],SMS,D_D[LOC],$A29),0)) -> 0 | P29: =IF(ISNA($A29),"",IFERROR(SUMIFS(D_D[PROD_FYTD],D_D[MT],8,D_D[CAT],SMS,D_D[LOC],$A29),0)) -> 0 | Q29: =IF(ISNA($A29),"",IFERROR(SUMIFS(D_D[ADCM],D_D[MT],8,D_D[CAT],SMS,D_D[LOC],$A29),0)) -> 0
A30: 331 | B30: 18 | C30: St. Louis | D30: =IF(ISNA($A30),"",IFERROR(SUMIFS(D_D[INV],D_D[MT],5,D_D[CAT],SMS, D_D[EP],-1,D_D[LOC],$A30),0)) -> 3405 | E30: =IF(ISNA($A30),"",IFERROR(SUMIFS(D_D[BL],D_D[MT],5,D_D[CAT],SMS, D_D[EP],-1,D_D[LOC],$A30),0)) -> 1614 | F30: 0.4740088106 | G30: =IF(ISNA($A30),"",IFERROR(SUMIFS(D_D[ADP],D_D[MT],5,D_D[CAT],SMS, D_D[EP],-1,D_D[LOC],$A30),0)) -> 147.32 | H30: =IF(ISNA($A30),"",IFERROR(SUMIFS(D_D[PROD_MTD],D_D[MT],5,D_D[CAT],SMS, D_D[EP],-1,D_D[LOC],$A30),0)) -> 1060 | I30: =IF(ISNA($A30),"",IFERROR(SUMIFS(D_D[ADCM],D_D[MT],5,D_D[CAT],SMS, D_D[EP],-1,D_D[LOC],$A30),0)) -> 115 | J30: =IF(ISNA($A30),"",IFERROR(SUMIFS(D_D[PROD_FYTD],D_D[MT],5,D_D[CAT],SMS, D_D[EP],-1,D_D[LOC],$A30),0)) -> 21668 | K30: =IF(ISNA($A30),"",IFERROR(SUMIFS(D_D[ADCF],D_D[MT],5,D_D[CAT],SMS, D_D[EP],-1,D_D[LOC],$A30),0)) -> 151.4 | L30: =IF(ISNA($A30),"",IFERROR(SUMIFS(D_D[INV],D_D[MT],8,D_D[CAT],SMS,D_D[LOC],$A30),0)) -> 0 | M30: =IF(ISNA($A30),"",IFERROR(SUMIFS(D_D[BL],D_D[MT],8,D_D[CAT],SMS,D_D[LOC],$A30),0)) -> 0 | N30: =IF(ISNA($A30),"",IFERROR(SUMIFS(D_D[ADP],D_D[MT],8,D_D[CAT],SMS,D_D[LOC],$A30),0)) -> 0 | O30: =IF(ISNA($A30),"",IFERROR(SUMIFS(D_D[PROD_MTD],D_D[MT],8,D_D[CAT],SMS,D_D[LOC],$A30),0)) -> 0 | P30: =IF(ISNA($A30),"",IFERROR(SUMIFS(D_D[PROD_FYTD],D_D[MT],8,D_D[CAT],SMS,D_D[LOC],$A30),0)) -> 0 | Q30: =IF(ISNA($A30),"",IFERROR(SUMIFS(D_D[ADCM],D_D[MT],8,D_D[CAT],SMS,D_D[LOC],$A30),0)) -> 0
A31: 402 | B31: 19 | C31: Togus | D31: =IF(ISNA($A31),"",IFERROR(SUMIFS(D_D[INV],D_D[MT],5,D_D[CAT],SMS, D_D[EP],-1,D_D[LOC],$A31),0)) -> 938 | E31: =IF(ISNA($A31),"",IFERROR(SUMIFS(D_D[BL],D_D[MT],5,D_D[CAT],SMS, D_D[EP],-1,D_D[LOC],$A31),0)) -> 176 | F31: 0.1876332623 | G31: =IF(ISNA($A31),"",IFERROR(SUMIFS(D_D[ADP],D_D[MT],5,D_D[CAT],SMS, D_D[EP],-1,D_D[LOC],$A31),0)) -> 115.58 | H31: =IF(ISNA($A31),"",IFERROR(SUMIFS(D_D[PROD_MTD],D_D[MT],5,D_D[CAT],SMS, D_D[EP],-1,D_D[LOC],$A31),0)) -> 789 | I31: =IF(ISNA($A31),"",IFERROR(SUMIFS(D_D[ADCM],D_D[MT],5,D_D[CAT],SMS, D_D[EP],-1,D_D[LOC],$A31),0)) -> 148.23 | J31: =IF(ISNA($A31),"",IFERROR(SUMIFS(D_D[PROD_FYTD],D_D[MT],5,D_D[CAT],SMS, D_D[EP],-1,D_D[LOC],$A31),0)) -> 17149 | K31: =IF(ISNA($A31),"",IFERROR(SUMIFS(D_D[ADCF],D_D[MT],5,D_D[CAT],SMS, D_D[EP],-1,D_D[LOC],$A31),0)) -> 124.86 | L31: =IF(ISNA($A31),"",IFERROR(SUMIFS(D_D[INV],D_D[MT],8,D_D[CAT],SMS,D_D[LOC],$A31),0)) -> 0 | M31: =IF(ISNA($A31),"",IFERROR(SUMIFS(D_D[BL],D_D[MT],8,D_D[CAT],SMS,D_D[LOC],$A31),0)) -> 0 | N31: =IF(ISNA($A31),"",IFERROR(SUMIFS(D_D[ADP],D_D[MT],8,D_D[CAT],SMS,D_D[LOC],$A31),0)) -> 0 | O31: =IF(ISNA($A31),"",IFERROR(SUMIFS(D_D[PROD_MTD],D_D[MT],8,D_D[CAT],SMS,D_D[LOC],$A31),0)) -> 0 | P31: =IF(ISNA($A31),"",IFERROR(SUMIFS(D_D[PROD_FYTD],D_D[MT],8,D_D[CAT],SMS,D_D[LOC],$A31),0)) -> 0 | Q31: =IF(ISNA($A31),"",IFERROR(SUMIFS(D_D[ADCM],D_D[MT],8,D_D[CAT],SMS,D_D[LOC],$A31),0)) -> 0
A32: 372 | B32: 20 | C32: Washington | D32: =IF(ISNA($A32),"",IFERROR(SUMIFS(D_D[INV],D_D[MT],5,D_D[CAT],SMS, D_D[EP],-1,D_D[LOC],$A32),0)) -> 3 | E32: =IF(ISNA($A32),"",IFERROR(SUMIFS(D_D[BL],D_D[MT],5,D_D[CAT],SMS, D_D[EP],-1,D_D[LOC],$A32),0)) -> 0 | F32: 0 | G32: =IF(ISNA($A32),"",IFERROR(SUMIFS(D_D[ADP],D_D[MT],5,D_D[CAT],SMS, D_D[EP],-1,D_D[LOC],$A32),0)) -> 40.33 | H32: =IF(ISNA($A32),"",IFERROR(SUMIFS(D_D[PROD_MTD],D_D[MT],5,D_D[CAT],SMS, D_D[EP],-1,D_D[LOC],$A32),0)) -> 0 | I32: =IF(ISNA($A32),"",IFERROR(SUMIFS(D_D[ADCM],D_D[MT],5,D_D[CAT],SMS, D_D[EP],-1,D_D[LOC],$A32),0)) -> 0 | J32: =IF(ISNA($A32),"",IFERROR(SUMIFS(D_D[PROD_FYTD],D_D[MT],5,D_D[CAT],SMS, D_D[EP],-1,D_D[LOC],$A32),0)) -> 3 | K32: =IF(ISNA($A32),"",IFERROR(SUMIFS(D_D[ADCF],D_D[MT],5,D_D[CAT],SMS, D_D[EP],-1,D_D[LOC],$A32),0)) -> 121.67 | L32: =IF(ISNA($A32),"",IFERROR(SUMIFS(D_D[INV],D_D[MT],8,D_D[CAT],SMS,D_D[LOC],$A32),0)) -> 0 | M32: =IF(ISNA($A32),"",IFERROR(SUMIFS(D_D[BL],D_D[MT],8,D_D[CAT],SMS,D_D[LOC],$A32),0)) -> 0 | N32: =IF(ISNA($A32),"",IFERROR(SUMIFS(D_D[ADP],D_D[MT],8,D_D[CAT],SMS,D_D[LOC],$A32),0)) -> 0 | O32: =IF(ISNA($A32),"",IFERROR(SUMIFS(D_D[PROD_MTD],D_D[MT],8,D_D[CAT],SMS,D_D[LOC],$A32),0)) -> 0 | P32: =IF(ISNA($A32),"",IFERROR(SUMIFS(D_D[PROD_FYTD],D_D[MT],8,D_D[CAT],SMS,D_D[LOC],$A32),0)) -> 0 | Q32: =IF(ISNA($A32),"",IFERROR(SUMIFS(D_D[ADCM],D_D[MT],8,D_D[CAT],SMS,D_D[LOC],$A32),0)) -> 0
A33: 405 | B33: 21 | C33: White River Junction | D33: =IF(ISNA($A33),"",IFERROR(SUMIFS(D_D[INV],D_D[MT],5,D_D[CAT],SMS, D_D[EP],-1,D_D[LOC],$A33),0)) -> 126 | E33: =IF(ISNA($A33),"",IFERROR(SUMIFS(D_D[BL],D_D[MT],5,D_D[CAT],SMS, D_D[EP],-1,D_D[LOC],$A33),0)) -> 54 | F33: 0.4285714286 | G33: =IF(ISNA($A33),"",IFERROR(SUMIFS(D_D[ADP],D_D[MT],5,D_D[CAT],SMS, D_D[EP],-1,D_D[LOC],$A33),0)) -> 169.87 | H33: =IF(ISNA($A33),"",IFERROR(SUMIFS(D_D[PROD_MTD],D_D[MT],5,D_D[CAT],SMS, D_D[EP],-1,D_D[LOC],$A33),0)) -> 173 | I33: =IF(ISNA($A33),"",IFERROR(SUMIFS(D_D[ADCM],D_D[MT],5,D_D[CAT],SMS, D_D[EP],-1,D_D[LOC],$A33),0)) -> 158.76 | J33: =IF(ISNA($A33),"",IFERROR(SUMIFS(D_D[PROD_FYTD],D_D[MT],5,D_D[CAT],SMS, D_D[EP],-1,D_D[LOC],$A33),0)) -> 2287 | K33: =IF(ISNA($A33),"",IFERROR(SUMIFS(D_D[ADCF],D_D[MT],5,D_D[CAT],SMS, D_D[EP],-1,D_D[LOC],$A33),0)) -> 115.18 | L33: =IF(ISNA($A33),"",IFERROR(SUMIFS(D_D[INV],D_D[MT],8,D_D[CAT],SMS,D_D[LOC],$A33),0)) -> 0 | M33: =IF(ISNA($A33),"",IFERROR(SUMIFS(D_D[BL],D_D[MT],8,D_D[CAT],SMS,D_D[LOC],$A33),0)) -> 0 | N33: =IF(ISNA($A33),"",IFERROR(SUMIFS(D_D[ADP],D_D[MT],8,D_D[CAT],SMS,D_D[LOC],$A33),0)) -> 0 | O33: =IF(ISNA($A33),"",IFERROR(SUMIFS(D_D[PROD_MTD],D_D[MT],8,D_D[CAT],SMS,D_D[LOC],$A33),0)) -> 0 | P33: =IF(ISNA($A33),"",IFERROR(SUMIFS(D_D[PROD_FYTD],D_D[MT],8,D_D[CAT],SMS,D_D[LOC],$A33),0)) -> 0 | Q33: =IF(ISNA($A33),"",IFERROR(SUMIFS(D_D[ADCM],D_D[MT],8,D_D[CAT],SMS,D_D[LOC],$A33),0)) -> 0
A34: 460 | B34: 22 | C34: Wilmington | D34: =IF(ISNA($A34),"",IFERROR(SUMIFS(D_D[INV],D_D[MT],5,D_D[CAT],SMS, D_D[EP],-1,D_D[LOC],$A34),0)) -> 103 | E34: =IF(ISNA($A34),"",IFERROR(SUMIFS(D_D[BL],D_D[MT],5,D_D[CAT],SMS, D_D[EP],-1,D_D[LOC],$A34),0)) -> 43 | F34: 0.4174757282 | G34: =IF(ISNA($A34),"",IFERROR(SUMIFS(D_D[ADP],D_D[MT],5,D_D[CAT],SMS, D_D[EP],-1,D_D[LOC],$A34),0)) -> 144.27 | H34: =IF(ISNA($A34),"",IFERROR(SUMIFS(D_D[PROD_MTD],D_D[MT],5,D_D[CAT],SMS, D_D[EP],-1,D_D[LOC],$A34),0)) -> 203 | I34: =IF(ISNA($A34),"",IFERROR(SUMIFS(D_D[ADCM],D_D[MT],5,D_D[CAT],SMS, D_D[EP],-1,D_D[LOC],$A34),0)) -> 171.89 | J34: =IF(ISNA($A34),"",IFERROR(SUMIFS(D_D[PROD_FYTD],D_D[MT],5,D_D[CAT],SMS, D_D[EP],-1,D_D[LOC],$A34),0)) -> 2423 | K34: =IF(ISNA($A34),"",IFERROR(SUMIFS(D_D[ADCF],D_D[MT],5,D_D[CAT],SMS, D_D[EP],-1,D_D[LOC],$A34),0)) -> 118.4 | L34: =IF(ISNA($A34),"",IFERROR(SUMIFS(D_D[INV],D_D[MT],8,D_D[CAT],SMS,D_D[LOC],$A34),0)) -> 0 | M34: =IF(ISNA($A34),"",IFERROR(SUMIFS(D_D[BL],D_D[MT],8,D_D[CAT],SMS,D_D[LOC],$A34),0)) -> 0 | N34: =IF(ISNA($A34),"",IFERROR(SUMIFS(D_D[ADP],D_D[MT],8,D_D[CAT],SMS,D_D[LOC],$A34),0)) -> 0 | O34: =IF(ISNA($A34),"",IFERROR(SUMIFS(D_D[PROD_MTD],D_D[MT],8,D_D[CAT],SMS,D_D[LOC],$A34),0)) -> 0 | P34: =IF(ISNA($A34),"",IFERROR(SUMIFS(D_D[PROD_FYTD],D_D[MT],8,D_D[CAT],SMS,D_D[LOC],$A34),0)) -> 0 | Q34: =IF(ISNA($A34),"",IFERROR(SUMIFS(D_D[ADCM],D_D[MT],8,D_D[CAT],SMS,D_D[LOC],$A34),0)) -> 0
B35: 23 | D35: =IF(ISNA($A35),"",IFERROR(SUMIFS(D_D[INV],D_D[MT],5,D_D[CAT],SMS, D_D[EP],-1,D_D[LOC],$A35),0)) ->  | E35: =IF(ISNA($A35),"",IFERROR(SUMIFS(D_D[BL],D_D[MT],5,D_D[CAT],SMS, D_D[EP],-1,D_D[LOC],$A35),0)) ->  | G35: =IF(ISNA($A35),"",IFERROR(SUMIFS(D_D[ADP],D_D[MT],5,D_D[CAT],SMS, D_D[EP],-1,D_D[LOC],$A35),0)) ->  | H35: =IF(ISNA($A35),"",IFERROR(SUMIFS(D_D[PROD_MTD],D_D[MT],5,D_D[CAT],SMS, D_D[EP],-1,D_D[LOC],$A35),0)) ->  | I35: =IF(ISNA($A35),"",IFERROR(SUMIFS(D_D[ADCM],D_D[MT],5,D_D[CAT],SMS, D_D[EP],-1,D_D[LOC],$A35),0)) ->  | J35: =IF(ISNA($A35),"",IFERROR(SUMIFS(D_D[PROD_FYTD],D_D[MT],5,D_D[CAT],SMS, D_D[EP],-1,D_D[LOC],$A35),0)) ->  | K35: =IF(ISNA($A35),"",IFERROR(SUMIFS(D_D[ADCF],D_D[MT],5,D_D[CAT],SMS, D_D[EP],-1,D_D[LOC],$A35),0)) ->  | L35: =IF(ISNA($A35),"",IFERROR(SUMIFS(D_D[INV],D_D[MT],8,D_D[CAT],SMS,D_D[LOC],$A35),0)) ->  | M35: =IF(ISNA($A35),"",IFERROR(SUMIFS(D_D[BL],D_D[MT],8,D_D[CAT],SMS,D_D[LOC],$A35),0)) ->  | N35: =IF(ISNA($A35),"",IFERROR(SUMIFS(D_D[ADP],D_D[MT],8,D_D[CAT],SMS,D_D[LOC],$A35),0)) ->  | O35: =IF(ISNA($A35),"",IFERROR(SUMIFS(D_D[PROD_MTD],D_D[MT],8,D_D[CAT],SMS,D_D[LOC],$A35),0)) ->  | P35: =IF(ISNA($A35),"",IFERROR(SUMIFS(D_D[PROD_FYTD],D_D[MT],8,D_D[CAT],SMS,D_D[LOC],$A35),0)) ->  | Q35: =IF(ISNA($A35),"",IFERROR(SUMIFS(D_D[ADCM],D_D[MT],8,D_D[CAT],SMS,D_D[LOC],$A35),0)) -> 

Sheet Rating Bundle - SOO
C2: DISTRICT SELECTOR | D2: Compensation and Pension Rating Bundle Metrics | L2: Report through
D3: Station of Origin View | L3: =D_DT[] -> 2021-08-21
D4: The Station of Origination (SOO) primarily represents pending claims based on geographic boundaries | L4: ADP = Average Days Pending | O4: MTD = Month to Date
D5: Each Special Mission has distinct claim counts | L5: ADC = Average Days to Complete | O5: FYTD = Fiscal Year to Date
D6: When Special Mission is set to Pension, BDD, or Quickstart, the District Selector has no impact.
L7: Accuracy metrics are available on Rating Bundle - SOJ tab
D8: CLAIM METRICS | L8: ACCURACY METRICS
C9: SPECIAL MISSION SELECTOR | D9: # Pending | E9: # Pending > 125 Days | F9: % Pending > 125 Days | G9: ADP | H9: # Completed MTD | I9: ADC MTD | J9: # Completed FYTD | K9: ADC FYTD | L9: Accuracy measurement is available on the Rating Bundle SOJ tab
A12: 100 | C12: =Driver!$C$20& " Total" -> USA - All Missions Total | D12: =IF(ISNA($A12),"",IFERROR(SUMIFS(D_D[INV],D_D[MT],4,D_D[CAT],SMS,D_D[LOC],$A12),0)) -> 591099 | E12: =IF(ISNA($A12),"",IFERROR(SUMIFS(D_D[BL],D_D[MT],4,D_D[CAT],SMS,D_D[LOC],$A12),0)) -> 181570 | F12: =IF(ISNA($A12),"",IFERROR(E12/D12,0)) -> 0.3071735868 | G12: =IF(ISNA($A12),"",IFERROR(SUMIFS(D_D[ADP],D_D[MT],4,D_D[CAT],SMS,D_D[LOC],$A12),0)) -> 141.08 | H12: =IF(ISNA($A12),"",IFERROR(SUMIFS(D_D[PROD_MTD],D_D[MT],4,D_D[CAT],SMS,D_D[LOC],$A12),0)) -> 98255 | I12: =IF(ISNA($A12),"",IFERROR(SUMIFS(D_D[ADCM],D_D[MT],4,D_D[CAT],SMS,D_D[LOC],$A12),0)) -> 114.08 | J12: =IF(ISNA($A12),"",IFERROR(SUMIFS(D_D[PROD_FYTD],D_D[MT],4,D_D[CAT],SMS,D_D[LOC],$A12),0)) -> 1344665 | K12: =IF(ISNA($A12),"",IFERROR(SUMIFS(D_D[ADCF],D_D[MT],4,D_D[CAT],SMS,D_D[LOC],$A12),0)) -> 111.45
A13: =INDEX(RO,(MATCH($C13,RO_D,0))) -> 394 | B13: 1 | C13: =IFERROR(INDEX(INDIRECT(DS_RO),B13),"") -> Northeast District | D13: =IF(ISNA($A13),"",IFERROR(SUMIFS(D_D[INV],D_D[MT],4,D_D[CAT],SMS,D_D[LOC],$A13),0)) -> 89087 | E13: =IF(ISNA($A13),"",IFERROR(SUMIFS(D_D[BL],D_D[MT],4,D_D[CAT],SMS,D_D[LOC],$A13),0)) -> 33499 | F13: =IF(ISNA($A13),"",IFERROR(E13/D13,0)) -> 0.3760256828 | G13: =IF(ISNA($A13),"",IFERROR(SUMIFS(D_D[ADP],D_D[MT],4,D_D[CAT],SMS,D_D[LOC],$A13),0)) -> 167.33 | H13: =IF(ISNA($A13),"",IFERROR(SUMIFS(D_D[PROD_MTD],D_D[MT],4,D_D[CAT],SMS,D_D[LOC],$A13),0)) -> 16553 | I13: =IF(ISNA($A13),"",IFERROR(SUMIFS(D_D[ADCM],D_D[MT],4,D_D[CAT],SMS,D_D[LOC],$A13),0)) -> 122.75 | J13: =IF(ISNA($A13),"",IFERROR(SUMIFS(D_D[PROD_FYTD],D_D[MT],4,D_D[CAT],SMS,D_D[LOC],$A13),0)) -> 236760 | K13: =IF(ISNA($A13),"",IFERROR(SUMIFS(D_D[ADCF],D_D[MT],4,D_D[CAT],SMS,D_D[LOC],$A13),0)) -> 123.74
A14: 313 | B14: 2 | C14: Baltimore | D14: =IF(ISNA($A14),"",IFERROR(SUMIFS(D_D[INV],D_D[MT],4,D_D[CAT],SMS,D_D[LOC],$A14),0)) -> 5883 | E14: =IF(ISNA($A14),"",IFERROR(SUMIFS(D_D[BL],D_D[MT],4,D_D[CAT],SMS,D_D[LOC],$A14),0)) -> 1982 | F14: =IF(ISNA($A14),"",IFERROR(E14/D14,0)) -> 0.3369029407 | G14: =IF(ISNA($A14),"",IFERROR(SUMIFS(D_D[ADP],D_D[MT],4,D_D[CAT],SMS,D_D[LOC],$A14),0)) -> 137.01 | H14: =IF(ISNA($A14),"",IFERROR(SUMIFS(D_D[PROD_MTD],D_D[MT],4,D_D[CAT],SMS,D_D[LOC],$A14),0)) -> 1257 | I14: =IF(ISNA($A14),"",IFERROR(SUMIFS(D_D[ADCM],D_D[MT],4,D_D[CAT],SMS,D_D[LOC],$A14),0)) -> 111.91 | J14: =IF(ISNA($A14),"",IFERROR(SUMIFS(D_D[PROD_FYTD],D_D[MT],4,D_D[CAT],SMS,D_D[LOC],$A14),0)) -> 16892 | K14: =IF(ISNA($A14),"",IFERROR(SUMIFS(D_D[ADCF],D_D[MT],4,D_D[CAT],SMS,D_D[LOC],$A14),0)) -> 120.35
A15: 301 | B15: 3 | C15: =IFERROR(INDEX(INDIRECT(DS_RO),B15),"") -> Boston | D15: =IF(ISNA($A15),"",IFERROR(SUMIFS(D_D[INV],D_D[MT],4,D_D[CAT],SMS,D_D[LOC],$A15),0)) -> 2579 | E15: =IF(ISNA($A15),"",IFERROR(SUMIFS(D_D[BL],D_D[MT],4,D_D[CAT],SMS,D_D[LOC],$A15),0)) -> 875 | F15: =IF(ISNA($A15),"",IFERROR(E15/D15,0)) -> 0.3392787902 | G15: =IF(ISNA($A15),"",IFERROR(SUMIFS(D_D[ADP],D_D[MT],4,D_D[CAT],SMS,D_D[LOC],$A15),0)) -> 143.74 | H15: =IF(ISNA($A15),"",IFERROR(SUMIFS(D_D[PROD_MTD],D_D[MT],4,D_D[CAT],SMS,D_D[LOC],$A15),0)) -> 445 | I15: =IF(ISNA($A15),"",IFERROR(SUMIFS(D_D[ADCM],D_D[MT],4,D_D[CAT],SMS,D_D[LOC],$A15),0)) -> 121.36 | J15: =IF(ISNA($A15),"",IFERROR(SUMIFS(D_D[PROD_FYTD],D_D[MT],4,D_D[CAT],SMS,D_D[LOC],$A15),0)) -> 5978 | K15: =IF(ISNA($A15),"",IFERROR(SUMIFS(D_D[ADCF],D_D[MT],4,D_D[CAT],SMS,D_D[LOC],$A15),0)) -> 117.25
A16: 307 | B16: 4 | C16: Buffalo | D16: =IF(ISNA($A16),"",IFERROR(SUMIFS(D_D[INV],D_D[MT],4,D_D[CAT],SMS,D_D[LOC],$A16),0)) -> 3336 | E16: =IF(ISNA($A16),"",IFERROR(SUMIFS(D_D[BL],D_D[MT],4,D_D[CAT],SMS,D_D[LOC],$A16),0)) -> 1116 | F16: 0.3345323741 | G16: =IF(ISNA($A16),"",IFERROR(SUMIFS(D_D[ADP],D_D[MT],4,D_D[CAT],SMS,D_D[LOC],$A16),0)) -> 152.32 | H16: =IF(ISNA($A16),"",IFERROR(SUMIFS(D_D[PROD_MTD],D_D[MT],4,D_D[CAT],SMS,D_D[LOC],$A16),0)) -> 490 | I16: =IF(ISNA($A16),"",IFERROR(SUMIFS(D_D[ADCM],D_D[MT],4,D_D[CAT],SMS,D_D[LOC],$A16),0)) -> 132.28 | J16: =IF(ISNA($A16),"",IFERROR(SUMIFS(D_D[PROD_FYTD],D_D[MT],4,D_D[CAT],SMS,D_D[LOC],$A16),0)) -> 6794 | K16: =IF(ISNA($A16),"",IFERROR(SUMIFS(D_D[ADCF],D_D[MT],4,D_D[CAT],SMS,D_D[LOC],$A16),0)) -> 142.74
A17: 328 | B17: 5 | C17: Chicago | D17: =IF(ISNA($A17),"",IFERROR(SUMIFS(D_D[INV],D_D[MT],4,D_D[CAT],SMS,D_D[LOC],$A17),0)) -> 7205 | E17: =IF(ISNA($A17),"",IFERROR(SUMIFS(D_D[BL],D_D[MT],4,D_D[CAT],SMS,D_D[LOC],$A17),0)) -> 2359 | F17: 0.3274115198 | G17: =IF(ISNA($A17),"",IFERROR(SUMIFS(D_D[ADP],D_D[MT],4,D_D[CAT],SMS,D_D[LOC],$A17),0)) -> 139.35 | H17: =IF(ISNA($A17),"",IFERROR(SUMIFS(D_D[PROD_MTD],D_D[MT],4,D_D[CAT],SMS,D_D[LOC],$A17),0)) -> 1154 | I17: =IF(ISNA($A17),"",IFERROR(SUMIFS(D_D[ADCM],D_D[MT],4,D_D[CAT],SMS,D_D[LOC],$A17),0)) -> 115.67 | J17: =IF(ISNA($A17),"",IFERROR(SUMIFS(D_D[PROD_FYTD],D_D[MT],4,D_D[CAT],SMS,D_D[LOC],$A17),0)) -> 15603 | K17: =IF(ISNA($A17),"",IFERROR(SUMIFS(D_D[ADCF],D_D[MT],4,D_D[CAT],SMS,D_D[LOC],$A17),0)) -> 125.7
A18: 325 | B18: 6 | C18: Cleveland | D18: =IF(ISNA($A18),"",IFERROR(SUMIFS(D_D[INV],D_D[MT],4,D_D[CAT],SMS,D_D[LOC],$A18),0)) -> 11072 | E18: =IF(ISNA($A18),"",IFERROR(SUMIFS(D_D[BL],D_D[MT],4,D_D[CAT],SMS,D_D[LOC],$A18),0)) -> 4785 | F18: 0.4321712428 | G18: =IF(ISNA($A18),"",IFERROR(SUMIFS(D_D[ADP],D_D[MT],4,D_D[CAT],SMS,D_D[LOC],$A18),0)) -> 207.23 | H18: =IF(ISNA($A18),"",IFERROR(SUMIFS(D_D[PROD_MTD],D_D[MT],4,D_D[CAT],SMS,D_D[LOC],$A18),0)) -> 1709 | I18: =IF(ISNA($A18),"",IFERROR(SUMIFS(D_D[ADCM],D_D[MT],4,D_D[CAT],SMS,D_D[LOC],$A18),0)) -> 141.67 | J18: =IF(ISNA($A18),"",IFERROR(SUMIFS(D_D[PROD_FYTD],D_D[MT],4,D_D[CAT],SMS,D_D[LOC],$A18),0)) -> 26312 | K18: =IF(ISNA($A18),"",IFERROR(SUMIFS(D_D[ADCF],D_D[MT],4,D_D[CAT],SMS,D_D[LOC],$A18),0)) -> 155.49
A19: 329 | B19: 7 | C19: Detroit | D19: =IF(ISNA($A19),"",IFERROR(SUMIFS(D_D[INV],D_D[MT],4,D_D[CAT],SMS,D_D[LOC],$A19),0)) -> 6453 | E19: =IF(ISNA($A19),"",IFERROR(SUMIFS(D_D[BL],D_D[MT],4,D_D[CAT],SMS,D_D[LOC],$A19),0)) -> 2308 | F19: 0.3576631024 | G19: =IF(ISNA($A19),"",IFERROR(SUMIFS(D_D[ADP],D_D[MT],4,D_D[CAT],SMS,D_D[LOC],$A19),0)) -> 166.31 | H19: =IF(ISNA($A19),"",IFERROR(SUMIFS(D_D[PROD_MTD],D_D[MT],4,D_D[CAT],SMS,D_D[LOC],$A19),0)) -> 1065 | I19: =IF(ISNA($A19),"",IFERROR(SUMIFS(D_D[ADCM],D_D[MT],4,D_D[CAT],SMS,D_D[LOC],$A19),0)) -> 136.41 | J19: =IF(ISNA($A19),"",IFERROR(SUMIFS(D_D[PROD_FYTD],D_D[MT],4,D_D[CAT],SMS,D_D[LOC],$A19),0)) -> 15063 | K19: =IF(ISNA($A19),"",IFERROR(SUMIFS(D_D[ADCF],D_D[MT],4,D_D[CAT],SMS,D_D[LOC],$A19),0)) -> 143.54
A20: 308 | B20: 8 | C20: Hartford | D20: =IF(ISNA($A20),"",IFERROR(SUMIFS(D_D[INV],D_D[MT],4,D_D[CAT],SMS,D_D[LOC],$A20),0)) -> 1950 | E20: =IF(ISNA($A20),"",IFERROR(SUMIFS(D_D[BL],D_D[MT],4,D_D[CAT],SMS,D_D[LOC],$A20),0)) -> 743 | F20: 0.381025641 | G20: =IF(ISNA($A20),"",IFERROR(SUMIFS(D_D[ADP],D_D[MT],4,D_D[CAT],SMS,D_D[LOC],$A20),0)) -> 159.44 | H20: =IF(ISNA($A20),"",IFERROR(SUMIFS(D_D[PROD_MTD],D_D[MT],4,D_D[CAT],SMS,D_D[LOC],$A20),0)) -> 344 | I20: =IF(ISNA($A20),"",IFERROR(SUMIFS(D_D[ADCM],D_D[MT],4,D_D[CAT],SMS,D_D[LOC],$A20),0)) -> 122.4 | J20: =IF(ISNA($A20),"",IFERROR(SUMIFS(D_D[PROD_FYTD],D_D[MT],4,D_D[CAT],SMS,D_D[LOC],$A20),0)) -> 4040 | K20: =IF(ISNA($A20),"",IFERROR(SUMIFS(D_D[ADCF],D_D[MT],4,D_D[CAT],SMS,D_D[LOC],$A20),0)) -> 132.23
A21: 326 | B21: 9 | C21: Indianapolis | D21: =IF(ISNA($A21),"",IFERROR(SUMIFS(D_D[INV],D_D[MT],4,D_D[CAT],SMS,D_D[LOC],$A21),0)) -> 5612 | E21: =IF(ISNA($A21),"",IFERROR(SUMIFS(D_D[BL],D_D[MT],4,D_D[CAT],SMS,D_D[LOC],$A21),0)) -> 1999 | F21: 0.3562009979 | G21: =IF(ISNA($A21),"",IFERROR(SUMIFS(D_D[ADP],D_D[MT],4,D_D[CAT],SMS,D_D[LOC],$A21),0)) -> 161.89 | H21: =IF(ISNA($A21),"",IFERROR(SUMIFS(D_D[PROD_MTD],D_D[MT],4,D_D[CAT],SMS,D_D[LOC],$A21),0)) -> 959 | I21: =IF(ISNA($A21),"",IFERROR(SUMIFS(D_D[ADCM],D_D[MT],4,D_D[CAT],SMS,D_D[LOC],$A21),0)) -> 130.75 | J21: =IF(ISNA($A21),"",IFERROR(SUMIFS(D_D[PROD_FYTD],D_D[MT],4,D_D[CAT],SMS,D_D[LOC],$A21),0)) -> 12214 | K21: =IF(ISNA($A21),"",IFERROR(SUMIFS(D_D[ADCF],D_D[MT],4,D_D[CAT],SMS,D_D[LOC],$A21),0)) -> 141.48
A22: 373 | B22: 10 | C22: Manchester | D22: =IF(ISNA($A22),"",IFERROR(SUMIFS(D_D[INV],D_D[MT],4,D_D[CAT],SMS,D_D[LOC],$A22),0)) -> 972 | E22: =IF(ISNA($A22),"",IFERROR(SUMIFS(D_D[BL],D_D[MT],4,D_D[CAT],SMS,D_D[LOC],$A22),0)) -> 363 | F22: 0.3734567901 | G22: =IF(ISNA($A22),"",IFERROR(SUMIFS(D_D[ADP],D_D[MT],4,D_D[CAT],SMS,D_D[LOC],$A22),0)) -> 154.89 | H22: =IF(ISNA($A22),"",IFERROR(SUMIFS(D_D[PROD_MTD],D_D[MT],4,D_D[CAT],SMS,D_D[LOC],$A22),0)) -> 175 | I22: =IF(ISNA($A22),"",IFERROR(SUMIFS(D_D[ADCM],D_D[MT],4,D_D[CAT],SMS,D_D[LOC],$A22),0)) -> 127.77 | J22: =IF(ISNA($A22),"",IFERROR(SUMIFS(D_D[PROD_FYTD],D_D[MT],4,D_D[CAT],SMS,D_D[LOC],$A22),0)) -> 2021 | K22: =IF(ISNA($A22),"",IFERROR(SUMIFS(D_D[ADCF],D_D[MT],4,D_D[CAT],SMS,D_D[LOC],$A22),0)) -> 142.24
A23: 330 | B23: 11 | C23: Milwaukee | D23: =IF(ISNA($A23),"",IFERROR(SUMIFS(D_D[INV],D_D[MT],4,D_D[CAT],SMS,D_D[LOC],$A23),0)) -> 7829 | E23: =IF(ISNA($A23),"",IFERROR(SUMIFS(D_D[BL],D_D[MT],4,D_D[CAT],SMS,D_D[LOC],$A23),0)) -> 3816 | F23: 0.487418572 | G23: =IF(ISNA($A23),"",IFERROR(SUMIFS(D_D[ADP],D_D[MT],4,D_D[CAT],SMS,D_D[LOC],$A23),0)) -> 221.65 | H23: =IF(ISNA($A23),"",IFERROR(SUMIFS(D_D[PROD_MTD],D_D[MT],4,D_D[CAT],SMS,D_D[LOC],$A23),0)) -> 1552 | I23: =IF(ISNA($A23),"",IFERROR(SUMIFS(D_D[ADCM],D_D[MT],4,D_D[CAT],SMS,D_D[LOC],$A23),0)) -> 148.63 | J23: =IF(ISNA($A23),"",IFERROR(SUMIFS(D_D[PROD_FYTD],D_D[MT],4,D_D[CAT],SMS,D_D[LOC],$A23),0)) -> 30606 | K23: =IF(ISNA($A23),"",IFERROR(SUMIFS(D_D[ADCF],D_D[MT],4,D_D[CAT],SMS,D_D[LOC],$A23),0)) -> 126.83
A24: 306 | B24: 12 | C24: New York | D24: =IF(ISNA($A24),"",IFERROR(SUMIFS(D_D[INV],D_D[MT],4,D_D[CAT],SMS,D_D[LOC],$A24),0)) -> 4626 | E24: =IF(ISNA($A24),"",IFERROR(SUMIFS(D_D[BL],D_D[MT],4,D_D[CAT],SMS,D_D[LOC],$A24),0)) -> 1813 | F24: 0.3919152616 | G24: =IF(ISNA($A24),"",IFERROR(SUMIFS(D_D[ADP],D_D[MT],4,D_D[CAT],SMS,D_D[LOC],$A24),0)) -> 162.34 | H24: =IF(ISNA($A24),"",IFERROR(SUMIFS(D_D[PROD_MTD],D_D[MT],4,D_D[CAT],SMS,D_D[LOC],$A24),0)) -> 806 | I24: =IF(ISNA($A24),"",IFERROR(SUMIFS(D_D[ADCM],D_D[MT],4,D_D[CAT],SMS,D_D[LOC],$A24),0)) -> 138.57 | J24: =IF(ISNA($A24),"",IFERROR(SUMIFS(D_D[PROD_FYTD],D_D[MT],4,D_D[CAT],SMS,D_D[LOC],$A24),0)) -> 10277 | K24: =IF(ISNA($A24),"",IFERROR(SUMIFS(D_D[ADCF],D_D[MT],4,D_D[CAT],SMS,D_D[LOC],$A24),0)) -> 138.82
A25: 309 | B25: 13 | C25: Newark | D25: =IF(ISNA($A25),"",IFERROR(SUMIFS(D_D[INV],D_D[MT],4,D_D[CAT],SMS,D_D[LOC],$A25),0)) -> 3090 | E25: =IF(ISNA($A25),"",IFERROR(SUMIFS(D_D[BL],D_D[MT],4,D_D[CAT],SMS,D_D[LOC],$A25),0)) -> 1235 | F25: 0.3996763754 | G25: =IF(ISNA($A25),"",IFERROR(SUMIFS(D_D[ADP],D_D[MT],4,D_D[CAT],SMS,D_D[LOC],$A25),0)) -> 164.2 | H25: =IF(ISNA($A25),"",IFERROR(SUMIFS(D_D[PROD_MTD],D_D[MT],4,D_D[CAT],SMS,D_D[LOC],$A25),0)) -> 504 | I25: =IF(ISNA($A25),"",IFERROR(SUMIFS(D_D[ADCM],D_D[MT],4,D_D[CAT],SMS,D_D[LOC],$A25),0)) -> 140.26 | J25: =IF(ISNA($A25),"",IFERROR(SUMIFS(D_D[PROD_FYTD],D_D[MT],4,D_D[CAT],SMS,D_D[LOC],$A25),0)) -> 6997 | K25: =IF(ISNA($A25),"",IFERROR(SUMIFS(D_D[ADCF],D_D[MT],4,D_D[CAT],SMS,D_D[LOC],$A25),0)) -> 143.29
A26: 310 | B26: 14 | C26: Philadelphia | D26: =IF(ISNA($A26),"",IFERROR(SUMIFS(D_D[INV],D_D[MT],4,D_D[CAT],SMS,D_D[LOC],$A26),0)) -> 8941 | E26: =IF(ISNA($A26),"",IFERROR(SUMIFS(D_D[BL],D_D[MT],4,D_D[CAT],SMS,D_D[LOC],$A26),0)) -> 3597 | F26: 0.4023039928 | G26: =IF(ISNA($A26),"",IFERROR(SUMIFS(D_D[ADP],D_D[MT],4,D_D[CAT],SMS,D_D[LOC],$A26),0)) -> 175.18 | H26: =IF(ISNA($A26),"",IFERROR(SUMIFS(D_D[PROD_MTD],D_D[MT],4,D_D[CAT],SMS,D_D[LOC],$A26),0)) -> 1755 | I26: =IF(ISNA($A26),"",IFERROR(SUMIFS(D_D[ADCM],D_D[MT],4,D_D[CAT],SMS,D_D[LOC],$A26),0)) -> 122.24 | J26: =IF(ISNA($A26),"",IFERROR(SUMIFS(D_D[PROD_FYTD],D_D[MT],4,D_D[CAT],SMS,D_D[LOC],$A26),0)) -> 30422 | K26: =IF(ISNA($A26),"",IFERROR(SUMIFS(D_D[ADCF],D_D[MT],4,D_D[CAT],SMS,D_D[LOC],$A26),0)) -> 110.2
A27: 311 | B27: 15 | C27: Pittsburgh | D27: =IF(ISNA($A27),"",IFERROR(SUMIFS(D_D[INV],D_D[MT],4,D_D[CAT],SMS,D_D[LOC],$A27),0)) -> 5822 | E27: =IF(ISNA($A27),"",IFERROR(SUMIFS(D_D[BL],D_D[MT],4,D_D[CAT],SMS,D_D[LOC],$A27),0)) -> 2263 | F27: 0.3886980419 | G27: =IF(ISNA($A27),"",IFERROR(SUMIFS(D_D[ADP],D_D[MT],4,D_D[CAT],SMS,D_D[LOC],$A27),0)) -> 155.5 | H27: =IF(ISNA($A27),"",IFERROR(SUMIFS(D_D[PROD_MTD],D_D[MT],4,D_D[CAT],SMS,D_D[LOC],$A27),0)) -> 937 | I27: =IF(ISNA($A27),"",IFERROR(SUMIFS(D_D[ADCM],D_D[MT],4,D_D[CAT],SMS,D_D[LOC],$A27),0)) -> 133.73 | J27: =IF(ISNA($A27),"",IFERROR(SUMIFS(D_D[PROD_FYTD],D_D[MT],4,D_D[CAT],SMS,D_D[LOC],$A27),0)) -> 11688 | K27: =IF(ISNA($A27),"",IFERROR(SUMIFS(D_D[ADCF],D_D[MT],4,D_D[CAT],SMS,D_D[LOC],$A27),0)) -> 136.21
A28: 304 | B28: 16 | C28: Providence | D28: =IF(ISNA($A28),"",IFERROR(SUMIFS(D_D[INV],D_D[MT],4,D_D[CAT],SMS,D_D[LOC],$A28),0)) -> 2234 | E28: =IF(ISNA($A28),"",IFERROR(SUMIFS(D_D[BL],D_D[MT],4,D_D[CAT],SMS,D_D[LOC],$A28),0)) -> 700 | F28: 0.3133393017 | G28: =IF(ISNA($A28),"",IFERROR(SUMIFS(D_D[ADP],D_D[MT],4,D_D[CAT],SMS,D_D[LOC],$A28),0)) -> 140.37 | H28: =IF(ISNA($A28),"",IFERROR(SUMIFS(D_D[PROD_MTD],D_D[MT],4,D_D[CAT],SMS,D_D[LOC],$A28),0)) -> 1434 | I28: =IF(ISNA($A28),"",IFERROR(SUMIFS(D_D[ADCM],D_D[MT],4,D_D[CAT],SMS,D_D[LOC],$A28),0)) -> 47.42 | J28: =IF(ISNA($A28),"",IFERROR(SUMIFS(D_D[PROD_FYTD],D_D[MT],4,D_D[CAT],SMS,D_D[LOC],$A28),0)) -> 18340 | K28: =IF(ISNA($A28),"",IFERROR(SUMIFS(D_D[ADCF],D_D[MT],4,D_D[CAT],SMS,D_D[LOC],$A28),0)) -> 41.34
A29: 376 | B29: 17 | C29: St. Louis RMC | D29: =IF(ISNA($A29),"",IFERROR(SUMIFS(D_D[INV],D_D[MT],4,D_D[CAT],SMS,D_D[LOC],$A29),0)) -> 1424 | E29: =IF(ISNA($A29),"",IFERROR(SUMIFS(D_D[BL],D_D[MT],4,D_D[CAT],SMS,D_D[LOC],$A29),0)) -> 92 | F29: 0.06460674157 | G29: =IF(ISNA($A29),"",IFERROR(SUMIFS(D_D[ADP],D_D[MT],4,D_D[CAT],SMS,D_D[LOC],$A29),0)) -> 112.6 | H29: =IF(ISNA($A29),"",IFERROR(SUMIFS(D_D[PROD_MTD],D_D[MT],4,D_D[CAT],SMS,D_D[LOC],$A29),0)) -> 342 | I29: =IF(ISNA($A29),"",IFERROR(SUMIFS(D_D[ADCM],D_D[MT],4,D_D[CAT],SMS,D_D[LOC],$A29),0)) -> 117.43 | J29: =IF(ISNA($A29),"",IFERROR(SUMIFS(D_D[PROD_FYTD],D_D[MT],4,D_D[CAT],SMS,D_D[LOC],$A29),0)) -> 2986 | K29: =IF(ISNA($A29),"",IFERROR(SUMIFS(D_D[ADCF],D_D[MT],4,D_D[CAT],SMS,D_D[LOC],$A29),0)) -> 51.48
A30: 331 | B30: 18 | C30: St. Louis | D30: =IF(ISNA($A30),"",IFERROR(SUMIFS(D_D[INV],D_D[MT],4,D_D[CAT],SMS,D_D[LOC],$A30),0)) -> 6987 | E30: =IF(ISNA($A30),"",IFERROR(SUMIFS(D_D[BL],D_D[MT],4,D_D[CAT],SMS,D_D[LOC],$A30),0)) -> 2410 | F30: 0.3449262917 | G30: =IF(ISNA($A30),"",IFERROR(SUMIFS(D_D[ADP],D_D[MT],4,D_D[CAT],SMS,D_D[LOC],$A30),0)) -> 155.22 | H30: =IF(ISNA($A30),"",IFERROR(SUMIFS(D_D[PROD_MTD],D_D[MT],4,D_D[CAT],SMS,D_D[LOC],$A30),0)) -> 1122 | I30: =IF(ISNA($A30),"",IFERROR(SUMIFS(D_D[ADCM],D_D[MT],4,D_D[CAT],SMS,D_D[LOC],$A30),0)) -> 120.19 | J30: =IF(ISNA($A30),"",IFERROR(SUMIFS(D_D[PROD_FYTD],D_D[MT],4,D_D[CAT],SMS,D_D[LOC],$A30),0)) -> 13835 | K30: =IF(ISNA($A30),"",IFERROR(SUMIFS(D_D[ADCF],D_D[MT],4,D_D[CAT],SMS,D_D[LOC],$A30),0)) -> 128.47
A31: 402 | B31: 19 | C31: Togus | D31: =IF(ISNA($A31),"",IFERROR(SUMIFS(D_D[INV],D_D[MT],4,D_D[CAT],SMS,D_D[LOC],$A31),0)) -> 1681 | E31: =IF(ISNA($A31),"",IFERROR(SUMIFS(D_D[BL],D_D[MT],4,D_D[CAT],SMS,D_D[LOC],$A31),0)) -> 585 | F31: 0.3480071386 | G31: =IF(ISNA($A31),"",IFERROR(SUMIFS(D_D[ADP],D_D[MT],4,D_D[CAT],SMS,D_D[LOC],$A31),0)) -> 161.54 | H31: =IF(ISNA($A31),"",IFERROR(SUMIFS(D_D[PROD_MTD],D_D[MT],4,D_D[CAT],SMS,D_D[LOC],$A31),0)) -> 250 | I31: =IF(ISNA($A31),"",IFERROR(SUMIFS(D_D[ADCM],D_D[MT],4,D_D[CAT],SMS,D_D[LOC],$A31),0)) -> 121.76 | J31: =IF(ISNA($A31),"",IFERROR(SUMIFS(D_D[PROD_FYTD],D_D[MT],4,D_D[CAT],SMS,D_D[LOC],$A31),0)) -> 3295 | K31: =IF(ISNA($A31),"",IFERROR(SUMIFS(D_D[ADCF],D_D[MT],4,D_D[CAT],SMS,D_D[LOC],$A31),0)) -> 139.93
A32: 372 | B32: 20 | C32: Washington | D32: =IF(ISNA($A32),"",IFERROR(SUMIFS(D_D[INV],D_D[MT],4,D_D[CAT],SMS,D_D[LOC],$A32),0)) -> 258 | E32: =IF(ISNA($A32),"",IFERROR(SUMIFS(D_D[BL],D_D[MT],4,D_D[CAT],SMS,D_D[LOC],$A32),0)) -> 108 | F32: 0.4186046512 | G32: =IF(ISNA($A32),"",IFERROR(SUMIFS(D_D[ADP],D_D[MT],4,D_D[CAT],SMS,D_D[LOC],$A32),0)) -> 157.09 | H32: =IF(ISNA($A32),"",IFERROR(SUMIFS(D_D[PROD_MTD],D_D[MT],4,D_D[CAT],SMS,D_D[LOC],$A32),0)) -> 61 | I32: =IF(ISNA($A32),"",IFERROR(SUMIFS(D_D[ADCM],D_D[MT],4,D_D[CAT],SMS,D_D[LOC],$A32),0)) -> 142.38 | J32: =IF(ISNA($A32),"",IFERROR(SUMIFS(D_D[PROD_FYTD],D_D[MT],4,D_D[CAT],SMS,D_D[LOC],$A32),0)) -> 1081 | K32: =IF(ISNA($A32),"",IFERROR(SUMIFS(D_D[ADCF],D_D[MT],4,D_D[CAT],SMS,D_D[LOC],$A32),0)) -> 125.19
A33: 405 | B33: 21 | C33: White River Junction | D33: =IF(ISNA($A33),"",IFERROR(SUMIFS(D_D[INV],D_D[MT],4,D_D[CAT],SMS,D_D[LOC],$A33),0)) -> 376 | E33: =IF(ISNA($A33),"",IFERROR(SUMIFS(D_D[BL],D_D[MT],4,D_D[CAT],SMS,D_D[LOC],$A33),0)) -> 146 | F33: 0.3882978723 | G33: =IF(ISNA($A33),"",IFERROR(SUMIFS(D_D[ADP],D_D[MT],4,D_D[CAT],SMS,D_D[LOC],$A33),0)) -> 152.27 | H33: =IF(ISNA($A33),"",IFERROR(SUMIFS(D_D[PROD_MTD],D_D[MT],4,D_D[CAT],SMS,D_D[LOC],$A33),0)) -> 47 | I33: =IF(ISNA($A33),"",IFERROR(SUMIFS(D_D[ADCM],D_D[MT],4,D_D[CAT],SMS,D_D[LOC],$A33),0)) -> 162.43 | J33: =IF(ISNA($A33),"",IFERROR(SUMIFS(D_D[PROD_FYTD],D_D[MT],4,D_D[CAT],SMS,D_D[LOC],$A33),0)) -> 699 | K33: =IF(ISNA($A33),"",IFERROR(SUMIFS(D_D[ADCF],D_D[MT],4,D_D[CAT],SMS,D_D[LOC],$A33),0)) -> 131.04
A34: 460 | B34: 22 | C34: Wilmington | D34: =IF(ISNA($A34),"",IFERROR(SUMIFS(D_D[INV],D_D[MT],4,D_D[CAT],SMS,D_D[LOC],$A34),0)) -> 757 | E34: =IF(ISNA($A34),"",IFERROR(SUMIFS(D_D[BL],D_D[MT],4,D_D[CAT],SMS,D_D[LOC],$A34),0)) -> 204 | F34: 0.2694848085 | G34: =IF(ISNA($A34),"",IFERROR(SUMIFS(D_D[ADP],D_D[MT],4,D_D[CAT],SMS,D_D[LOC],$A34),0)) -> 115.21 | H34: =IF(ISNA($A34),"",IFERROR(SUMIFS(D_D[PROD_MTD],D_D[MT],4,D_D[CAT],SMS,D_D[LOC],$A34),0)) -> 145 | I34: =IF(ISNA($A34),"",IFERROR(SUMIFS(D_D[ADCM],D_D[MT],4,D_D[CAT],SMS,D_D[LOC],$A34),0)) -> 131.3 | J34: =IF(ISNA($A34),"",IFERROR(SUMIFS(D_D[PROD_FYTD],D_D[MT],4,D_D[CAT],SMS,D_D[LOC],$A34),0)) -> 1617 | K34: =IF(ISNA($A34),"",IFERROR(SUMIFS(D_D[ADCF],D_D[MT],4,D_D[CAT],SMS,D_D[LOC],$A34),0)) -> 121.77
B35: 23 | D35: =IF(ISNA($A35),"",IFERROR(SUMIFS(D_D[INV],D_D[MT],4,D_D[CAT],SMS,D_D[LOC],$A35),0)) ->  | E35: =IF(ISNA($A35),"",IFERROR(SUMIFS(D_D[BL],D_D[MT],4,D_D[CAT],SMS,D_D[LOC],$A35),0)) ->  | G35: =IF(ISNA($A35),"",IFERROR(SUMIFS(D_D[ADP],D_D[MT],4,D_D[CAT],SMS,D_D[LOC],$A35),0)) ->  | H35: =IF(ISNA($A35),"",IFERROR(SUMIFS(D_D[PROD_MTD],D_D[MT],4,D_D[CAT],SMS,D_D[LOC],$A35),0)) ->  | I35: =IF(ISNA($A35),"",IFERROR(SUMIFS(D_D[ADCM],D_D[MT],4,D_D[CAT],SMS,D_D[LOC],$A35),0)) ->  | J35: =IF(ISNA($A35),"",IFERROR(SUMIFS(D_D[PROD_FYTD],D_D[MT],4,D_D[CAT],SMS,D_D[LOC],$A35),0)) ->  | K35: =IF(ISNA($A35),"",IFERROR(SUMIFS(D_D[ADCF],D_D[MT],4,D_D[CAT],SMS,D_D[LOC],$A35),0)) -> 

Sheet Rating Bundle - State
C2: DISTRICT SELECTOR | D2: Compensation and Pension Rating Bundle Metrics | L2: Report through
D3: State View | L3: =D_DT[] -> 2021-08-21
D4: The State listed is based on the address associated with the claim, not payment address | L4: ADP = Average Days Pending | O4: MTD = Month to Date
D5: Each Special Mission has distinct claim counts | L5: ADC = Average Days to Complete | O5: FYTD = Fiscal Year to Date
D6: When Special Mission is set to Pension, BDD, or Quickstart, the District Selector has no impact.
L7: Accuracy metrics are available on Rating Bundle - SOJ tab
D8: CLAIM METRICS | L8: ACCURACY METRICS
C9: SPECIAL MISSION SELECTOR | D9: # Pending | E9: # Pending > 125 Days | F9: % Pending > 125 Days | G9: ADP | H9: # Completed MTD | I9: ADC MTD | J9: # Completed FYTD | K9: ADC FYTD | L9: Accuracy measurement is available on the Rating Bundle SOJ tab
A12: 100 | C12: =Driver!$C$20& " Total" -> USA - All Missions Total | D12: =IF(ISNA($A12),"",IFERROR(SUMIFS(D_D[INV],D_D[MT],6,D_D[CAT],SMS,D_D[LOC],$A12),0)) -> 591099 | E12: =IF(ISNA($A12),"",IFERROR(SUMIFS(D_D[BL],D_D[MT],6,D_D[CAT],SMS,D_D[LOC],$A12),0)) -> 181570 | F12: =IF(ISNA($A12),"",IFERROR(E12/D12,0)) -> 0.3071735868 | G12: =IF(ISNA($A12),"",IFERROR(SUMIFS(D_D[ADP],D_D[MT],6,D_D[CAT],SMS,D_D[LOC],$A12),0)) -> 141.08 | H12: =IF(ISNA($A12),"",IFERROR(SUMIFS(D_D[PROD_MTD],D_D[MT],6,D_D[CAT],SMS,D_D[LOC],$A12),0)) -> 98255 | I12: =IF(ISNA($A12),"",IFERROR(SUMIFS(D_D[ADCM],D_D[MT],6,D_D[CAT],SMS,D_D[LOC],$A12),0)) -> 114.08 | J12: =IF(ISNA($A12),"",IFERROR(SUMIFS(D_D[PROD_FYTD],D_D[MT],6,D_D[CAT],SMS,D_D[LOC],$A12),0)) -> 1344665 | K12: =IF(ISNA($A12),"",IFERROR(SUMIFS(D_D[ADCF],D_D[MT],6,D_D[CAT],SMS,D_D[LOC],$A12),0)) -> 111.45
A13: =INDEX(STATE,(MATCH($C13,STATE_D,0))) -> 394 | B13: 1 | C13: =IFERROR(INDEX(INDIRECT(DS_ST),B13),"") -> Northeast District | D13: =IF(ISNA($A13),"",IFERROR(SUMIFS(D_D[INV],D_D[MT],6,D_D[CAT],SMS,D_D[LOC],$A13),0)) -> 146652 | E13: =IF(ISNA($A13),"",IFERROR(SUMIFS(D_D[BL],D_D[MT],6,D_D[CAT],SMS,D_D[LOC],$A13),0)) -> 48732 | F13: =IF(ISNA($A13),"",IFERROR(E13/D13,0)) -> 0.3322968661 | G13: =IF(ISNA($A13),"",IFERROR(SUMIFS(D_D[ADP],D_D[MT],6,D_D[CAT],SMS,D_D[LOC],$A13),0)) -> 149.5 | H13: =IF(ISNA($A13),"",IFERROR(SUMIFS(D_D[PROD_MTD],D_D[MT],6,D_D[CAT],SMS,D_D[LOC],$A13),0)) -> 22284 | I13: =IF(ISNA($A13),"",IFERROR(SUMIFS(D_D[ADCM],D_D[MT],6,D_D[CAT],SMS,D_D[LOC],$A13),0)) -> 124.67 | J13: =IF(ISNA($A13),"",IFERROR(SUMIFS(D_D[PROD_FYTD],D_D[MT],6,D_D[CAT],SMS,D_D[LOC],$A13),0)) -> 302281 | K13: =IF(ISNA($A13),"",IFERROR(SUMIFS(D_D[ADCF],D_D[MT],6,D_D[CAT],SMS,D_D[LOC],$A13),0)) -> 120.4
A14: CT | B14: 2 | C14: Connecticut | D14: =IF(ISNA($A14),"",IFERROR(SUMIFS(D_D[INV],D_D[MT],6,D_D[CAT],SMS,D_D[LOC],$A14),0)) -> 3524 | E14: =IF(ISNA($A14),"",IFERROR(SUMIFS(D_D[BL],D_D[MT],6,D_D[CAT],SMS,D_D[LOC],$A14),0)) -> 1298 | F14: =IF(ISNA($A14),"",IFERROR(E14/D14,0)) -> 0.3683314415 | G14: =IF(ISNA($A14),"",IFERROR(SUMIFS(D_D[ADP],D_D[MT],6,D_D[CAT],SMS,D_D[LOC],$A14),0)) -> 160.67 | H14: =IF(ISNA($A14),"",IFERROR(SUMIFS(D_D[PROD_MTD],D_D[MT],6,D_D[CAT],SMS,D_D[LOC],$A14),0)) -> 539 | I14: =IF(ISNA($A14),"",IFERROR(SUMIFS(D_D[ADCM],D_D[MT],6,D_D[CAT],SMS,D_D[LOC],$A14),0)) -> 129.18 | J14: =IF(ISNA($A14),"",IFERROR(SUMIFS(D_D[PROD_FYTD],D_D[MT],6,D_D[CAT],SMS,D_D[LOC],$A14),0)) -> 6743 | K14: =IF(ISNA($A14),"",IFERROR(SUMIFS(D_D[ADCF],D_D[MT],6,D_D[CAT],SMS,D_D[LOC],$A14),0)) -> 129.12
A15: DE | B15: 3 | C15: =IFERROR(INDEX(INDIRECT(DS_ST),B15),"") -> Delaware | D15: =IF(ISNA($A15),"",IFERROR(SUMIFS(D_D[INV],D_D[MT],6,D_D[CAT],SMS,D_D[LOC],$A15),0)) -> 1627 | E15: =IF(ISNA($A15),"",IFERROR(SUMIFS(D_D[BL],D_D[MT],6,D_D[CAT],SMS,D_D[LOC],$A15),0)) -> 511 | F15: =IF(ISNA($A15),"",IFERROR(E15/D15,0)) -> 0.3140749846 | G15: =IF(ISNA($A15),"",IFERROR(SUMIFS(D_D[ADP],D_D[MT],6,D_D[CAT],SMS,D_D[LOC],$A15),0)) -> 138.36 | H15: =IF(ISNA($A15),"",IFERROR(SUMIFS(D_D[PROD_MTD],D_D[MT],6,D_D[CAT],SMS,D_D[LOC],$A15),0)) -> 296 | I15: =IF(ISNA($A15),"",IFERROR(SUMIFS(D_D[ADCM],D_D[MT],6,D_D[CAT],SMS,D_D[LOC],$A15),0)) -> 110.52 | J15: =IF(ISNA($A15),"",IFERROR(SUMIFS(D_D[PROD_FYTD],D_D[MT],6,D_D[CAT],SMS,D_D[LOC],$A15),0)) -> 3833 | K15: =IF(ISNA($A15),"",IFERROR(SUMIFS(D_D[ADCF],D_D[MT],6,D_D[CAT],SMS,D_D[LOC],$A15),0)) -> 112.47
A16: DC | B16: 4 | C16: District of Columbia | D16: =IF(ISNA($A16),"",IFERROR(SUMIFS(D_D[INV],D_D[MT],6,D_D[CAT],SMS,D_D[LOC],$A16),0)) -> 665 | E16: =IF(ISNA($A16),"",IFERROR(SUMIFS(D_D[BL],D_D[MT],6,D_D[CAT],SMS,D_D[LOC],$A16),0)) -> 214 | F16: 0.3218045113 | G16: =IF(ISNA($A16),"",IFERROR(SUMIFS(D_D[ADP],D_D[MT],6,D_D[CAT],SMS,D_D[LOC],$A16),0)) -> 147.77 | H16: =IF(ISNA($A16),"",IFERROR(SUMIFS(D_D[PROD_MTD],D_D[MT],6,D_D[CAT],SMS,D_D[LOC],$A16),0)) -> 122 | I16: =IF(ISNA($A16),"",IFERROR(SUMIFS(D_D[ADCM],D_D[MT],6,D_D[CAT],SMS,D_D[LOC],$A16),0)) -> 116.63 | J16: =IF(ISNA($A16),"",IFERROR(SUMIFS(D_D[PROD_FYTD],D_D[MT],6,D_D[CAT],SMS,D_D[LOC],$A16),0)) -> 1736 | K16: =IF(ISNA($A16),"",IFERROR(SUMIFS(D_D[ADCF],D_D[MT],6,D_D[CAT],SMS,D_D[LOC],$A16),0)) -> 119.32
A17: IL | B17: 5 | C17: Illinois | D17: =IF(ISNA($A17),"",IFERROR(SUMIFS(D_D[INV],D_D[MT],6,D_D[CAT],SMS,D_D[LOC],$A17),0)) -> 14083 | E17: =IF(ISNA($A17),"",IFERROR(SUMIFS(D_D[BL],D_D[MT],6,D_D[CAT],SMS,D_D[LOC],$A17),0)) -> 4478 | F17: 0.317972023 | G17: =IF(ISNA($A17),"",IFERROR(SUMIFS(D_D[ADP],D_D[MT],6,D_D[CAT],SMS,D_D[LOC],$A17),0)) -> 143.8 | H17: =IF(ISNA($A17),"",IFERROR(SUMIFS(D_D[PROD_MTD],D_D[MT],6,D_D[CAT],SMS,D_D[LOC],$A17),0)) -> 1954 | I17: =IF(ISNA($A17),"",IFERROR(SUMIFS(D_D[ADCM],D_D[MT],6,D_D[CAT],SMS,D_D[LOC],$A17),0)) -> 119.97 | J17: =IF(ISNA($A17),"",IFERROR(SUMIFS(D_D[PROD_FYTD],D_D[MT],6,D_D[CAT],SMS,D_D[LOC],$A17),0)) -> 28451 | K17: =IF(ISNA($A17),"",IFERROR(SUMIFS(D_D[ADCF],D_D[MT],6,D_D[CAT],SMS,D_D[LOC],$A17),0)) -> 117.73
A18: IN | B18: 6 | C18: Indiana | D18: =IF(ISNA($A18),"",IFERROR(SUMIFS(D_D[INV],D_D[MT],6,D_D[CAT],SMS,D_D[LOC],$A18),0)) -> 11035 | E18: =IF(ISNA($A18),"",IFERROR(SUMIFS(D_D[BL],D_D[MT],6,D_D[CAT],SMS,D_D[LOC],$A18),0)) -> 3517 | F18: 0.3187131853 | G18: =IF(ISNA($A18),"",IFERROR(SUMIFS(D_D[ADP],D_D[MT],6,D_D[CAT],SMS,D_D[LOC],$A18),0)) -> 145.19 | H18: =IF(ISNA($A18),"",IFERROR(SUMIFS(D_D[PROD_MTD],D_D[MT],6,D_D[CAT],SMS,D_D[LOC],$A18),0)) -> 1613 | I18: =IF(ISNA($A18),"",IFERROR(SUMIFS(D_D[ADCM],D_D[MT],6,D_D[CAT],SMS,D_D[LOC],$A18),0)) -> 125.7 | J18: =IF(ISNA($A18),"",IFERROR(SUMIFS(D_D[PROD_FYTD],D_D[MT],6,D_D[CAT],SMS,D_D[LOC],$A18),0)) -> 21321 | K18: =IF(ISNA($A18),"",IFERROR(SUMIFS(D_D[ADCF],D_D[MT],6,D_D[CAT],SMS,D_D[LOC],$A18),0)) -> 122.3
A19: ME | B19: 7 | C19: Maine | D19: =IF(ISNA($A19),"",IFERROR(SUMIFS(D_D[INV],D_D[MT],6,D_D[CAT],SMS,D_D[LOC],$A19),0)) -> 2742 | E19: =IF(ISNA($A19),"",IFERROR(SUMIFS(D_D[BL],D_D[MT],6,D_D[CAT],SMS,D_D[LOC],$A19),0)) -> 1000 | F19: 0.3646973012 | G19: =IF(ISNA($A19),"",IFERROR(SUMIFS(D_D[ADP],D_D[MT],6,D_D[CAT],SMS,D_D[LOC],$A19),0)) -> 166.27 | H19: =IF(ISNA($A19),"",IFERROR(SUMIFS(D_D[PROD_MTD],D_D[MT],6,D_D[CAT],SMS,D_D[LOC],$A19),0)) -> 387 | I19: =IF(ISNA($A19),"",IFERROR(SUMIFS(D_D[ADCM],D_D[MT],6,D_D[CAT],SMS,D_D[LOC],$A19),0)) -> 140.75 | J19: =IF(ISNA($A19),"",IFERROR(SUMIFS(D_D[PROD_FYTD],D_D[MT],6,D_D[CAT],SMS,D_D[LOC],$A19),0)) -> 5133 | K19: =IF(ISNA($A19),"",IFERROR(SUMIFS(D_D[ADCF],D_D[MT],6,D_D[CAT],SMS,D_D[LOC],$A19),0)) -> 135.69
A20: MD | B20: 8 | C20: Maryland | D20: =IF(ISNA($A20),"",IFERROR(SUMIFS(D_D[INV],D_D[MT],6,D_D[CAT],SMS,D_D[LOC],$A20),0)) -> 9952 | E20: =IF(ISNA($A20),"",IFERROR(SUMIFS(D_D[BL],D_D[MT],6,D_D[CAT],SMS,D_D[LOC],$A20),0)) -> 2956 | F20: 0.2970257235 | G20: =IF(ISNA($A20),"",IFERROR(SUMIFS(D_D[ADP],D_D[MT],6,D_D[CAT],SMS,D_D[LOC],$A20),0)) -> 128.34 | H20: =IF(ISNA($A20),"",IFERROR(SUMIFS(D_D[PROD_MTD],D_D[MT],6,D_D[CAT],SMS,D_D[LOC],$A20),0)) -> 2124 | I20: =IF(ISNA($A20),"",IFERROR(SUMIFS(D_D[ADCM],D_D[MT],6,D_D[CAT],SMS,D_D[LOC],$A20),0)) -> 98.87 | J20: =IF(ISNA($A20),"",IFERROR(SUMIFS(D_D[PROD_FYTD],D_D[MT],6,D_D[CAT],SMS,D_D[LOC],$A20),0)) -> 29170 | K20: =IF(ISNA($A20),"",IFERROR(SUMIFS(D_D[ADCF],D_D[MT],6,D_D[CAT],SMS,D_D[LOC],$A20),0)) -> 106.86
A21: MA | B21: 9 | C21: Massachusetts | D21: =IF(ISNA($A21),"",IFERROR(SUMIFS(D_D[INV],D_D[MT],6,D_D[CAT],SMS,D_D[LOC],$A21),0)) -> 6239 | E21: =IF(ISNA($A21),"",IFERROR(SUMIFS(D_D[BL],D_D[MT],6,D_D[CAT],SMS,D_D[LOC],$A21),0)) -> 2264 | F21: 0.3628786665 | G21: =IF(ISNA($A21),"",IFERROR(SUMIFS(D_D[ADP],D_D[MT],6,D_D[CAT],SMS,D_D[LOC],$A21),0)) -> 157.65 | H21: =IF(ISNA($A21),"",IFERROR(SUMIFS(D_D[PROD_MTD],D_D[MT],6,D_D[CAT],SMS,D_D[LOC],$A21),0)) -> 970 | I21: =IF(ISNA($A21),"",IFERROR(SUMIFS(D_D[ADCM],D_D[MT],6,D_D[CAT],SMS,D_D[LOC],$A21),0)) -> 129.73 | J21: =IF(ISNA($A21),"",IFERROR(SUMIFS(D_D[PROD_FYTD],D_D[MT],6,D_D[CAT],SMS,D_D[LOC],$A21),0)) -> 13723 | K21: =IF(ISNA($A21),"",IFERROR(SUMIFS(D_D[ADCF],D_D[MT],6,D_D[CAT],SMS,D_D[LOC],$A21),0)) -> 124.49
A22: MI | B22: 10 | C22: Michigan | D22: =IF(ISNA($A22),"",IFERROR(SUMIFS(D_D[INV],D_D[MT],6,D_D[CAT],SMS,D_D[LOC],$A22),0)) -> 13155 | E22: =IF(ISNA($A22),"",IFERROR(SUMIFS(D_D[BL],D_D[MT],6,D_D[CAT],SMS,D_D[LOC],$A22),0)) -> 4058 | F22: 0.3084758647 | G22: =IF(ISNA($A22),"",IFERROR(SUMIFS(D_D[ADP],D_D[MT],6,D_D[CAT],SMS,D_D[LOC],$A22),0)) -> 144.74 | H22: =IF(ISNA($A22),"",IFERROR(SUMIFS(D_D[PROD_MTD],D_D[MT],6,D_D[CAT],SMS,D_D[LOC],$A22),0)) -> 1870 | I22: =IF(ISNA($A22),"",IFERROR(SUMIFS(D_D[ADCM],D_D[MT],6,D_D[CAT],SMS,D_D[LOC],$A22),0)) -> 122.54 | J22: =IF(ISNA($A22),"",IFERROR(SUMIFS(D_D[PROD_FYTD],D_D[MT],6,D_D[CAT],SMS,D_D[LOC],$A22),0)) -> 26627 | K22: =IF(ISNA($A22),"",IFERROR(SUMIFS(D_D[ADCF],D_D[MT],6,D_D[CAT],SMS,D_D[LOC],$A22),0)) -> 112.91
A23: MO | B23: 11 | C23: Missouri | D23: =IF(ISNA($A23),"",IFERROR(SUMIFS(D_D[INV],D_D[MT],6,D_D[CAT],SMS,D_D[LOC],$A23),0)) -> 12197 | E23: =IF(ISNA($A23),"",IFERROR(SUMIFS(D_D[BL],D_D[MT],6,D_D[CAT],SMS,D_D[LOC],$A23),0)) -> 3842 | F23: 0.3149954907 | G23: =IF(ISNA($A23),"",IFERROR(SUMIFS(D_D[ADP],D_D[MT],6,D_D[CAT],SMS,D_D[LOC],$A23),0)) -> 146.62 | H23: =IF(ISNA($A23),"",IFERROR(SUMIFS(D_D[PROD_MTD],D_D[MT],6,D_D[CAT],SMS,D_D[LOC],$A23),0)) -> 1824 | I23: =IF(ISNA($A23),"",IFERROR(SUMIFS(D_D[ADCM],D_D[MT],6,D_D[CAT],SMS,D_D[LOC],$A23),0)) -> 121.87 | J23: =IF(ISNA($A23),"",IFERROR(SUMIFS(D_D[PROD_FYTD],D_D[MT],6,D_D[CAT],SMS,D_D[LOC],$A23),0)) -> 24155 | K23: =IF(ISNA($A23),"",IFERROR(SUMIFS(D_D[ADCF],D_D[MT],6,D_D[CAT],SMS,D_D[LOC],$A23),0)) -> 114.78
A24: NH | B24: 12 | C24: New Hampshire | D24: =IF(ISNA($A24),"",IFERROR(SUMIFS(D_D[INV],D_D[MT],6,D_D[CAT],SMS,D_D[LOC],$A24),0)) -> 2000 | E24: =IF(ISNA($A24),"",IFERROR(SUMIFS(D_D[BL],D_D[MT],6,D_D[CAT],SMS,D_D[LOC],$A24),0)) -> 768 | F24: 0.384 | G24: =IF(ISNA($A24),"",IFERROR(SUMIFS(D_D[ADP],D_D[MT],6,D_D[CAT],SMS,D_D[LOC],$A24),0)) -> 170.22 | H24: =IF(ISNA($A24),"",IFERROR(SUMIFS(D_D[PROD_MTD],D_D[MT],6,D_D[CAT],SMS,D_D[LOC],$A24),0)) -> 290 | I24: =IF(ISNA($A24),"",IFERROR(SUMIFS(D_D[ADCM],D_D[MT],6,D_D[CAT],SMS,D_D[LOC],$A24),0)) -> 149.24 | J24: =IF(ISNA($A24),"",IFERROR(SUMIFS(D_D[PROD_FYTD],D_D[MT],6,D_D[CAT],SMS,D_D[LOC],$A24),0)) -> 3975 | K24: =IF(ISNA($A24),"",IFERROR(SUMIFS(D_D[ADCF],D_D[MT],6,D_D[CAT],SMS,D_D[LOC],$A24),0)) -> 141.28
A25: NJ | B25: 13 | C25: New Jersey | D25: =IF(ISNA($A25),"",IFERROR(SUMIFS(D_D[INV],D_D[MT],6,D_D[CAT],SMS,D_D[LOC],$A25),0)) -> 7365 | E25: =IF(ISNA($A25),"",IFERROR(SUMIFS(D_D[BL],D_D[MT],6,D_D[CAT],SMS,D_D[LOC],$A25),0)) -> 2789 | F25: 0.3786829599 | G25: =IF(ISNA($A25),"",IFERROR(SUMIFS(D_D[ADP],D_D[MT],6,D_D[CAT],SMS,D_D[LOC],$A25),0)) -> 162.17 | H25: =IF(ISNA($A25),"",IFERROR(SUMIFS(D_D[PROD_MTD],D_D[MT],6,D_D[CAT],SMS,D_D[LOC],$A25),0)) -> 1123 | I25: =IF(ISNA($A25),"",IFERROR(SUMIFS(D_D[ADCM],D_D[MT],6,D_D[CAT],SMS,D_D[LOC],$A25),0)) -> 130.72 | J25: =IF(ISNA($A25),"",IFERROR(SUMIFS(D_D[PROD_FYTD],D_D[MT],6,D_D[CAT],SMS,D_D[LOC],$A25),0)) -> 15756 | K25: =IF(ISNA($A25),"",IFERROR(SUMIFS(D_D[ADCF],D_D[MT],6,D_D[CAT],SMS,D_D[LOC],$A25),0)) -> 127.91
A26: NY | B26: 14 | C26: New York | D26: =IF(ISNA($A26),"",IFERROR(SUMIFS(D_D[INV],D_D[MT],6,D_D[CAT],SMS,D_D[LOC],$A26),0)) -> 15474 | E26: =IF(ISNA($A26),"",IFERROR(SUMIFS(D_D[BL],D_D[MT],6,D_D[CAT],SMS,D_D[LOC],$A26),0)) -> 5580 | F26: 0.3606048856 | G26: =IF(ISNA($A26),"",IFERROR(SUMIFS(D_D[ADP],D_D[MT],6,D_D[CAT],SMS,D_D[LOC],$A26),0)) -> 156.49 | H26: =IF(ISNA($A26),"",IFERROR(SUMIFS(D_D[PROD_MTD],D_D[MT],6,D_D[CAT],SMS,D_D[LOC],$A26),0)) -> 2237 | I26: =IF(ISNA($A26),"",IFERROR(SUMIFS(D_D[ADCM],D_D[MT],6,D_D[CAT],SMS,D_D[LOC],$A26),0)) -> 139.83 | J26: =IF(ISNA($A26),"",IFERROR(SUMIFS(D_D[PROD_FYTD],D_D[MT],6,D_D[CAT],SMS,D_D[LOC],$A26),0)) -> 30628 | K26: =IF(ISNA($A26),"",IFERROR(SUMIFS(D_D[ADCF],D_D[MT],6,D_D[CAT],SMS,D_D[LOC],$A26),0)) -> 127.12
A27: OH | B27: 15 | C27: Ohio | D27: =IF(ISNA($A27),"",IFERROR(SUMIFS(D_D[INV],D_D[MT],6,D_D[CAT],SMS,D_D[LOC],$A27),0)) -> 18485 | E27: =IF(ISNA($A27),"",IFERROR(SUMIFS(D_D[BL],D_D[MT],6,D_D[CAT],SMS,D_D[LOC],$A27),0)) -> 5602 | F27: 0.3030565323 | G27: =IF(ISNA($A27),"",IFERROR(SUMIFS(D_D[ADP],D_D[MT],6,D_D[CAT],SMS,D_D[LOC],$A27),0)) -> 143.96 | H27: =IF(ISNA($A27),"",IFERROR(SUMIFS(D_D[PROD_MTD],D_D[MT],6,D_D[CAT],SMS,D_D[LOC],$A27),0)) -> 2730 | I27: =IF(ISNA($A27),"",IFERROR(SUMIFS(D_D[ADCM],D_D[MT],6,D_D[CAT],SMS,D_D[LOC],$A27),0)) -> 123.44 | J27: =IF(ISNA($A27),"",IFERROR(SUMIFS(D_D[PROD_FYTD],D_D[MT],6,D_D[CAT],SMS,D_D[LOC],$A27),0)) -> 36559 | K27: =IF(ISNA($A27),"",IFERROR(SUMIFS(D_D[ADCF],D_D[MT],6,D_D[CAT],SMS,D_D[LOC],$A27),0)) -> 115.48
A28: PA | B28: 16 | C28: Pennsylvania | D28: =IF(ISNA($A28),"",IFERROR(SUMIFS(D_D[INV],D_D[MT],6,D_D[CAT],SMS,D_D[LOC],$A28),0)) -> 16630 | E28: =IF(ISNA($A28),"",IFERROR(SUMIFS(D_D[BL],D_D[MT],6,D_D[CAT],SMS,D_D[LOC],$A28),0)) -> 5651 | F28: 0.3398075767 | G28: =IF(ISNA($A28),"",IFERROR(SUMIFS(D_D[ADP],D_D[MT],6,D_D[CAT],SMS,D_D[LOC],$A28),0)) -> 154.7 | H28: =IF(ISNA($A28),"",IFERROR(SUMIFS(D_D[PROD_MTD],D_D[MT],6,D_D[CAT],SMS,D_D[LOC],$A28),0)) -> 2530 | I28: =IF(ISNA($A28),"",IFERROR(SUMIFS(D_D[ADCM],D_D[MT],6,D_D[CAT],SMS,D_D[LOC],$A28),0)) -> 125.47 | J28: =IF(ISNA($A28),"",IFERROR(SUMIFS(D_D[PROD_FYTD],D_D[MT],6,D_D[CAT],SMS,D_D[LOC],$A28),0)) -> 33398 | K28: =IF(ISNA($A28),"",IFERROR(SUMIFS(D_D[ADCF],D_D[MT],6,D_D[CAT],SMS,D_D[LOC],$A28),0)) -> 125.82
A29: RI | B29: 17 | C29: Rhode Island | D29: =IF(ISNA($A29),"",IFERROR(SUMIFS(D_D[INV],D_D[MT],6,D_D[CAT],SMS,D_D[LOC],$A29),0)) -> 1599 | E29: =IF(ISNA($A29),"",IFERROR(SUMIFS(D_D[BL],D_D[MT],6,D_D[CAT],SMS,D_D[LOC],$A29),0)) -> 573 | F29: 0.3583489681 | G29: =IF(ISNA($A29),"",IFERROR(SUMIFS(D_D[ADP],D_D[MT],6,D_D[CAT],SMS,D_D[LOC],$A29),0)) -> 158.18 | H29: =IF(ISNA($A29),"",IFERROR(SUMIFS(D_D[PROD_MTD],D_D[MT],6,D_D[CAT],SMS,D_D[LOC],$A29),0)) -> 261 | I29: =IF(ISNA($A29),"",IFERROR(SUMIFS(D_D[ADCM],D_D[MT],6,D_D[CAT],SMS,D_D[LOC],$A29),0)) -> 134.73 | J29: =IF(ISNA($A29),"",IFERROR(SUMIFS(D_D[PROD_FYTD],D_D[MT],6,D_D[CAT],SMS,D_D[LOC],$A29),0)) -> 3012 | K29: =IF(ISNA($A29),"",IFERROR(SUMIFS(D_D[ADCF],D_D[MT],6,D_D[CAT],SMS,D_D[LOC],$A29),0)) -> 137.07
A30: VT | B30: 18 | C30: Vermont | D30: =IF(ISNA($A30),"",IFERROR(SUMIFS(D_D[INV],D_D[MT],6,D_D[CAT],SMS,D_D[LOC],$A30),0)) -> 822 | E30: =IF(ISNA($A30),"",IFERROR(SUMIFS(D_D[BL],D_D[MT],6,D_D[CAT],SMS,D_D[LOC],$A30),0)) -> 359 | F30: 0.4367396594 | G30: =IF(ISNA($A30),"",IFERROR(SUMIFS(D_D[ADP],D_D[MT],6,D_D[CAT],SMS,D_D[LOC],$A30),0)) -> 180.79 | H30: =IF(ISNA($A30),"",IFERROR(SUMIFS(D_D[PROD_MTD],D_D[MT],6,D_D[CAT],SMS,D_D[LOC],$A30),0)) -> 80 | I30: =IF(ISNA($A30),"",IFERROR(SUMIFS(D_D[ADCM],D_D[MT],6,D_D[CAT],SMS,D_D[LOC],$A30),0)) -> 138.9 | J30: =IF(ISNA($A30),"",IFERROR(SUMIFS(D_D[PROD_FYTD],D_D[MT],6,D_D[CAT],SMS,D_D[LOC],$A30),0)) -> 1330 | K30: =IF(ISNA($A30),"",IFERROR(SUMIFS(D_D[ADCF],D_D[MT],6,D_D[CAT],SMS,D_D[LOC],$A30),0)) -> 142.34
A31: WI | B31: 19 | C31: Wisconsin | D31: =IF(ISNA($A31),"",IFERROR(SUMIFS(D_D[INV],D_D[MT],6,D_D[CAT],SMS,D_D[LOC],$A31),0)) -> 9058 | E31: =IF(ISNA($A31),"",IFERROR(SUMIFS(D_D[BL],D_D[MT],6,D_D[CAT],SMS,D_D[LOC],$A31),0)) -> 3272 | F31: 0.3612276441 | G31: =IF(ISNA($A31),"",IFERROR(SUMIFS(D_D[ADP],D_D[MT],6,D_D[CAT],SMS,D_D[LOC],$A31),0)) -> 155.36 | H31: =IF(ISNA($A31),"",IFERROR(SUMIFS(D_D[PROD_MTD],D_D[MT],6,D_D[CAT],SMS,D_D[LOC],$A31),0)) -> 1334 | I31: =IF(ISNA($A31),"",IFERROR(SUMIFS(D_D[ADCM],D_D[MT],6,D_D[CAT],SMS,D_D[LOC],$A31),0)) -> 134.25 | J31: =IF(ISNA($A31),"",IFERROR(SUMIFS(D_D[PROD_FYTD],D_D[MT],6,D_D[CAT],SMS,D_D[LOC],$A31),0)) -> 16731 | K31: =IF(ISNA($A31),"",IFERROR(SUMIFS(D_D[ADCF],D_D[MT],6,D_D[CAT],SMS,D_D[LOC],$A31),0)) -> 127.35
B32: 20 | D32: =IF(ISNA($A32),"",IFERROR(SUMIFS(D_D[INV],D_D[MT],6,D_D[CAT],SMS,D_D[LOC],$A32),0)) ->  | E32: =IF(ISNA($A32),"",IFERROR(SUMIFS(D_D[BL],D_D[MT],6,D_D[CAT],SMS,D_D[LOC],$A32),0)) ->  | G32: =IF(ISNA($A32),"",IFERROR(SUMIFS(D_D[ADP],D_D[MT],6,D_D[CAT],SMS,D_D[LOC],$A32),0)) ->  | H32: =IF(ISNA($A32),"",IFERROR(SUMIFS(D_D[PROD_MTD],D_D[MT],6,D_D[CAT],SMS,D_D[LOC],$A32),0)) ->  | I32: =IF(ISNA($A32),"",IFERROR(SUMIFS(D_D[ADCM],D_D[MT],6,D_D[CAT],SMS,D_D[LOC],$A32),0)) ->  | J32: =IF(ISNA($A32),"",IFERROR(SUMIFS(D_D[PROD_FYTD],D_D[MT],6,D_D[CAT],SMS,D_D[LOC],$A32),0)) ->  | K32: =IF(ISNA($A32),"",IFERROR(SUMIFS(D_D[ADCF],D_D[MT],6,D_D[CAT],SMS,D_D[LOC],$A32),0)) -> 
B33: 21 | D33: =IF(ISNA($A33),"",IFERROR(SUMIFS(D_D[INV],D_D[MT],6,D_D[CAT],SMS,D_D[LOC],$A33),0)) ->  | E33: =IF(ISNA($A33),"",IFERROR(SUMIFS(D_D[BL],D_D[MT],6,D_D[CAT],SMS,D_D[LOC],$A33),0)) ->  | G33: =IF(ISNA($A33),"",IFERROR(SUMIFS(D_D[ADP],D_D[MT],6,D_D[CAT],SMS,D_D[LOC],$A33),0)) ->  | H33: =IF(ISNA($A33),"",IFERROR(SUMIFS(D_D[PROD_MTD],D_D[MT],6,D_D[CAT],SMS,D_D[LOC],$A33),0)) ->  | I33: =IF(ISNA($A33),"",IFERROR(SUMIFS(D_D[ADCM],D_D[MT],6,D_D[CAT],SMS,D_D[LOC],$A33),0)) ->  | J33: =IF(ISNA($A33),"",IFERROR(SUMIFS(D_D[PROD_FYTD],D_D[MT],6,D_D[CAT],SMS,D_D[LOC],$A33),0)) ->  | K33: =IF(ISNA($A33),"",IFERROR(SUMIFS(D_D[ADCF],D_D[MT],6,D_D[CAT],SMS,D_D[LOC],$A33),0)) -> 
B34: 22 | D34: =IF(ISNA($A34),"",IFERROR(SUMIFS(D_D[INV],D_D[MT],6,D_D[CAT],SMS,D_D[LOC],$A34),0)) ->  | E34: =IF(ISNA($A34),"",IFERROR(SUMIFS(D_D[BL],D_D[MT],6,D_D[CAT],SMS,D_D[LOC],$A34),0)) ->  | G34: =IF(ISNA($A34),"",IFERROR(SUMIFS(D_D[ADP],D_D[MT],6,D_D[CAT],SMS,D_D[LOC],$A34),0)) ->  | H34: =IF(ISNA($A34),"",IFERROR(SUMIFS(D_D[PROD_MTD],D_D[MT],6,D_D[CAT],SMS,D_D[LOC],$A34),0)) ->  | I34: =IF(ISNA($A34),"",IFERROR(SUMIFS(D_D[ADCM],D_D[MT],6,D_D[CAT],SMS,D_D[LOC],$A34),0)) ->  | J34: =IF(ISNA($A34),"",IFERROR(SUMIFS(D_D[PROD_FYTD],D_D[MT],6,D_D[CAT],SMS,D_D[LOC],$A34),0)) ->  | K34: =IF(ISNA($A34),"",IFERROR(SUMIFS(D_D[ADCF],D_D[MT],6,D_D[CAT],SMS,D_D[LOC],$A34),0)) -> 
B35: 23 | D35: =IF(ISNA($A35),"",IFERROR(SUMIFS(D_D[INV],D_D[MT],6,D_D[CAT],SMS,D_D[LOC],$A35),0)) ->  | E35: =IF(ISNA($A35),"",IFERROR(SUMIFS(D_D[BL],D_D[MT],6,D_D[CAT],SMS,D_D[LOC],$A35),0)) ->  | G35: =IF(ISNA($A35),"",IFERROR(SUMIFS(D_D[ADP],D_D[MT],6,D_D[CAT],SMS,D_D[LOC],$A35),0)) ->  | H35: =IF(ISNA($A35),"",IFERROR(SUMIFS(D_D[PROD_MTD],D_D[MT],6,D_D[CAT],SMS,D_D[LOC],$A35),0)) ->  | I35: =IF(ISNA($A35),"",IFERROR(SUMIFS(D_D[ADCM],D_D[MT],6,D_D[CAT],SMS,D_D[LOC],$A35),0)) ->  | J35: =IF(ISNA($A35),"",IFERROR(SUMIFS(D_D[PROD_FYTD],D_D[MT],6,D_D[CAT],SMS,D_D[LOC],$A35),0)) ->  | K35: =IF(ISNA($A35),"",IFERROR(SUMIFS(D_D[ADCF],D_D[MT],6,D_D[CAT],SMS,D_D[LOC],$A35),0)) -> 

Sheet Rating Bundle - SOJ - NWQ
C2: DISTRICT SELECTOR | D2: Compensation and Pension Rating Bundle Metrics | J2: Report through
D3: NWQ-Station of Jurisdiction View | J3: =D_DT[] -> 2021-08-21
D4: The Station of Jurisdiction (SOJ) is the regional office assigned to work the claim | J4: ADP = Average Days Pending
D5: Each Special Mission has distinct claim counts
D6: When Special Mission is set to Pension, BDD, or Quickstart, the District Selector has | J6: Life Cycle Metrics defined on Legend tab
D7: no impact
D8: CLAIM METRICS | H8: LIFE CYCLE METRICS (as Percent of # Pending)
C9: SPECIAL MISSION SELECTOR | D9: # Pending | E9: # Pending > 125 Days | F9: % Pending > 125 Days | G9: ADP | H9: Pending Development | I9: Pending Evidence | J9: Pending Decision | K9: Pending Award | L9: Pending Authorization
A12: 100 | C12: =Driver!$C$20& " Total" -> USA - All Missions Total | D12: =IF(ISNA($A12),"",IFERROR(SUMIFS(D_D[INV],D_D[MT],5,D_D[CAT],SMS, D_D[EP],-1,D_D[LOC],$A12),0)) -> 591099 | E12: =IF(ISNA($A12),"",IFERROR(SUMIFS(D_D[BL],D_D[MT],5,D_D[CAT],SMS, D_D[EP],-1,D_D[LOC],$A12),0)) -> 181570 | F12: =IF(ISNA($A12),"",IFERROR(E12/D12,0)) -> 0.3071735868 | G12: =IF(ISNA($A12),"",IFERROR(SUMIFS(D_D[ADP],D_D[MT],5,D_D[CAT],SMS, D_D[EP],-1,D_D[LOC],$A12),0)) -> 141.08 | H12: =IF(ISNA($A12),"",IFERROR(SUMIFS(D_D[DEV],D_D[MT],5,D_D[CAT],SMS, D_D[EP],-1,D_D[LOC],$A12)/$D12,0)) -> 0.01990867858 | I12: =IF(ISNA($A12),"",IFERROR(SUMIFS(D_D[EVD],D_D[MT],5,D_D[CAT],SMS, D_D[EP],-1,D_D[LOC],$A12)/$D12,0)) -> 0.751197346 | J12: =IF(ISNA($A12),"",IFERROR(SUMIFS(D_D[DEC],D_D[MT],5,D_D[CAT],SMS, D_D[EP],-1,D_D[LOC],$A12)/$D12,0)) -> 0.2176319026 | K12: =IF(ISNA($A12),"",IFERROR(SUMIFS(D_D[AWD],D_D[MT],5,D_D[CAT],SMS, D_D[EP],-1,D_D[LOC],$A12)/$D12,0)) -> 0.008044337751 | L12: =IF(ISNA($A12),"",IFERROR(SUMIFS(D_D[AUT],D_D[MT],5,D_D[CAT],SMS, D_D[EP],-1,D_D[LOC],$A12)/$D12,0)) -> 0.003207584516
A13: 499 | C13: ="NWQ-"&Driver!$C$20& " Total" -> NWQ-USA - All Missions Total | D13: =IF(ISNA($A13),"",IFERROR(SUMIFS(D_D[INV],D_D[MT],5,D_D[CAT],SMS, D_D[EP],-1,D_D[LOC],$A13),0)) -> 502587 | E13: =IF(ISNA($A13),"",IFERROR(SUMIFS(D_D[BL],D_D[MT],5,D_D[CAT],SMS, D_D[EP],-1,D_D[LOC],$A13),0)) -> 152237 | F13: =IF(ISNA($A13),"",IFERROR(E13/D13,0)) -> 0.3029067604 | G13: =IF(ISNA($A13),"",IFERROR(SUMIFS(D_D[ADP],D_D[MT],5,D_D[CAT],SMS, D_D[EP],-1,D_D[LOC],$A13),0)) -> 140.81 | H13: =IF(ISNA($A13),"",IFERROR(SUMIFS(D_D[DEV],D_D[MT],5,D_D[CAT],SMS, D_D[EP],-1,D_D[LOC],$A13)/$D13,0)) -> 0.004516630951 | I13: =IF(ISNA($A13),"",IFERROR(SUMIFS(D_D[EVD],D_D[MT],5,D_D[CAT],SMS, D_D[EP],-1,D_D[LOC],$A13)/$D13,0)) -> 0.785762465 | J13: =IF(ISNA($A13),"",IFERROR(SUMIFS(D_D[DEC],D_D[MT],5,D_D[CAT],SMS, D_D[EP],-1,D_D[LOC],$A13)/$D13,0)) -> 0.2091558277 | K13: =IF(ISNA($A13),"",IFERROR(SUMIFS(D_D[AWD],D_D[MT],5,D_D[CAT],SMS, D_D[EP],-1,D_D[LOC],$A13)/$D13,0)) -> 0.000533241011 | L13: =IF(ISNA($A13),"",IFERROR(SUMIFS(D_D[AUT],D_D[MT],5,D_D[CAT],SMS, D_D[EP],-1,D_D[LOC],$A13)/$D13,0)) -> 3.183528424e-05
A14: =INDEX(RO,(MATCH($C14,RO_D,0))) -> 394 | B14: 1 | C14: =IFERROR(INDEX(INDIRECT(DS_RO),B14),"") -> Northeast District | D14: =IF(ISNA($A14),"",IFERROR(SUMIFS(D_D[INV],D_D[MT],5,D_D[CAT],SMS, D_D[EP],-1,D_D[LOC],$A14),0)) -> 19088 | E14: =IF(ISNA($A14),"",IFERROR(SUMIFS(D_D[BL],D_D[MT],5,D_D[CAT],SMS, D_D[EP],-1,D_D[LOC],$A14),0)) -> 6514 | F14: =IF(ISNA($A14),"",IFERROR(E14/D14,0)) -> 0.3412615256 | G14: =IF(ISNA($A14),"",IFERROR(SUMIFS(D_D[ADP],D_D[MT],5,D_D[CAT],SMS, D_D[EP],-1,D_D[LOC],$A14),0)) -> 129.83 | H14: =IF(ISNA($A14),"",IFERROR(SUMIFS(D_D[DEV],D_D[MT],5,D_D[CAT],SMS, D_D[EP],-1,D_D[LOC],$A14)/$D14,0)) -> 0.1066638726 | I14: =IF(ISNA($A14),"",IFERROR(SUMIFS(D_D[EVD],D_D[MT],5,D_D[CAT],SMS, D_D[EP],-1,D_D[LOC],$A14)/$D14,0)) -> 0.5461546521 | J14: =IF(ISNA($A14),"",IFERROR(SUMIFS(D_D[DEC],D_D[MT],5,D_D[CAT],SMS, D_D[EP],-1,D_D[LOC],$A14)/$D14,0)) -> 0.2688600168 | K14: =IF(ISNA($A14),"",IFERROR(SUMIFS(D_D[AWD],D_D[MT],5,D_D[CAT],SMS, D_D[EP],-1,D_D[LOC],$A14)/$D14,0)) -> 0.05464165968 | L14: =IF(ISNA($A14),"",IFERROR(SUMIFS(D_D[AUT],D_D[MT],5,D_D[CAT],SMS, D_D[EP],-1,D_D[LOC],$A14)/$D14,0)) -> 0.02357502096
A15: 313 | B15: 2 | C15: =IFERROR(INDEX(INDIRECT(DS_RO),B15),"") -> Baltimore | D15: =IF(ISNA($A15),"",IFERROR(SUMIFS(D_D[INV],D_D[MT],5,D_D[CAT],SMS, D_D[EP],-1,D_D[LOC],$A15),0)) -> 434 | E15: =IF(ISNA($A15),"",IFERROR(SUMIFS(D_D[BL],D_D[MT],5,D_D[CAT],SMS, D_D[EP],-1,D_D[LOC],$A15),0)) -> 108 | F15: =IF(ISNA($A15),"",IFERROR(E15/D15,0)) -> 0.2488479263 | G15: =IF(ISNA($A15),"",IFERROR(SUMIFS(D_D[ADP],D_D[MT],5,D_D[CAT],SMS, D_D[EP],-1,D_D[LOC],$A15),0)) -> 94.66 | H15: =IF(ISNA($A15),"",IFERROR(SUMIFS(D_D[DEV],D_D[MT],5,D_D[CAT],SMS, D_D[EP],-1,D_D[LOC],$A15)/$D15,0)) -> 0.2788018433 | I15: =IF(ISNA($A15),"",IFERROR(SUMIFS(D_D[EVD],D_D[MT],5,D_D[CAT],SMS, D_D[EP],-1,D_D[LOC],$A15)/$D15,0)) -> 0.4907834101 | J15: =IF(ISNA($A15),"",IFERROR(SUMIFS(D_D[DEC],D_D[MT],5,D_D[CAT],SMS, D_D[EP],-1,D_D[LOC],$A15)/$D15,0)) -> 0.1728110599 | K15: =IF(ISNA($A15),"",IFERROR(SUMIFS(D_D[AWD],D_D[MT],5,D_D[CAT],SMS, D_D[EP],-1,D_D[LOC],$A15)/$D15,0)) -> 0.03686635945 | L15: =IF(ISNA($A15),"",IFERROR(SUMIFS(D_D[AUT],D_D[MT],5,D_D[CAT],SMS, D_D[EP],-1,D_D[LOC],$A15)/$D15,0)) -> 0.02073732719
A16: 301 | B16: 3 | C16: Boston | D16: =IF(ISNA($A16),"",IFERROR(SUMIFS(D_D[INV],D_D[MT],5,D_D[CAT],SMS, D_D[EP],-1,D_D[LOC],$A16),0)) -> 484 | E16: =IF(ISNA($A16),"",IFERROR(SUMIFS(D_D[BL],D_D[MT],5,D_D[CAT],SMS, D_D[EP],-1,D_D[LOC],$A16),0)) -> 135 | F16: 0.2789256198 | G16: =IF(ISNA($A16),"",IFERROR(SUMIFS(D_D[ADP],D_D[MT],5,D_D[CAT],SMS, D_D[EP],-1,D_D[LOC],$A16),0)) -> 118.96 | H16: =IF(ISNA($A16),"",IFERROR(SUMIFS(D_D[DEV],D_D[MT],5,D_D[CAT],SMS, D_D[EP],-1,D_D[LOC],$A16)/$D16,0)) -> 0.1053719008 | I16: =IF(ISNA($A16),"",IFERROR(SUMIFS(D_D[EVD],D_D[MT],5,D_D[CAT],SMS, D_D[EP],-1,D_D[LOC],$A16)/$D16,0)) -> 0.5433884298 | J16: =IF(ISNA($A16),"",IFERROR(SUMIFS(D_D[DEC],D_D[MT],5,D_D[CAT],SMS, D_D[EP],-1,D_D[LOC],$A16)/$D16,0)) -> 0.2995867769 | K16: =IF(ISNA($A16),"",IFERROR(SUMIFS(D_D[AWD],D_D[MT],5,D_D[CAT],SMS, D_D[EP],-1,D_D[LOC],$A16)/$D16,0)) -> 0.03925619835 | L16: =IF(ISNA($A16),"",IFERROR(SUMIFS(D_D[AUT],D_D[MT],5,D_D[CAT],SMS, D_D[EP],-1,D_D[LOC],$A16)/$D16,0)) -> 0.01239669421
A17: 307 | B17: 4 | C17: Buffalo | D17: =IF(ISNA($A17),"",IFERROR(SUMIFS(D_D[INV],D_D[MT],5,D_D[CAT],SMS, D_D[EP],-1,D_D[LOC],$A17),0)) -> 627 | E17: =IF(ISNA($A17),"",IFERROR(SUMIFS(D_D[BL],D_D[MT],5,D_D[CAT],SMS, D_D[EP],-1,D_D[LOC],$A17),0)) -> 234 | F17: 0.3732057416 | G17: =IF(ISNA($A17),"",IFERROR(SUMIFS(D_D[ADP],D_D[MT],5,D_D[CAT],SMS, D_D[EP],-1,D_D[LOC],$A17),0)) -> 134.76 | H17: =IF(ISNA($A17),"",IFERROR(SUMIFS(D_D[DEV],D_D[MT],5,D_D[CAT],SMS, D_D[EP],-1,D_D[LOC],$A17)/$D17,0)) -> 0.1515151515 | I17: =IF(ISNA($A17),"",IFERROR(SUMIFS(D_D[EVD],D_D[MT],5,D_D[CAT],SMS, D_D[EP],-1,D_D[LOC],$A17)/$D17,0)) -> 0.4593301435 | J17: =IF(ISNA($A17),"",IFERROR(SUMIFS(D_D[DEC],D_D[MT],5,D_D[CAT],SMS, D_D[EP],-1,D_D[LOC],$A17)/$D17,0)) -> 0.31738437 | K17: =IF(ISNA($A17),"",IFERROR(SUMIFS(D_D[AWD],D_D[MT],5,D_D[CAT],SMS, D_D[EP],-1,D_D[LOC],$A17)/$D17,0)) -> 0.05103668262 | L17: =IF(ISNA($A17),"",IFERROR(SUMIFS(D_D[AUT],D_D[MT],5,D_D[CAT],SMS, D_D[EP],-1,D_D[LOC],$A17)/$D17,0)) -> 0.02073365231
A18: 328 | B18: 5 | C18: Chicago | D18: =IF(ISNA($A18),"",IFERROR(SUMIFS(D_D[INV],D_D[MT],5,D_D[CAT],SMS, D_D[EP],-1,D_D[LOC],$A18),0)) -> 527 | E18: =IF(ISNA($A18),"",IFERROR(SUMIFS(D_D[BL],D_D[MT],5,D_D[CAT],SMS, D_D[EP],-1,D_D[LOC],$A18),0)) -> 167 | F18: 0.3168880455 | G18: =IF(ISNA($A18),"",IFERROR(SUMIFS(D_D[ADP],D_D[MT],5,D_D[CAT],SMS, D_D[EP],-1,D_D[LOC],$A18),0)) -> 121.9 | H18: =IF(ISNA($A18),"",IFERROR(SUMIFS(D_D[DEV],D_D[MT],5,D_D[CAT],SMS, D_D[EP],-1,D_D[LOC],$A18)/$D18,0)) -> 0.1669829222 | I18: =IF(ISNA($A18),"",IFERROR(SUMIFS(D_D[EVD],D_D[MT],5,D_D[CAT],SMS, D_D[EP],-1,D_D[LOC],$A18)/$D18,0)) -> 0.4971537002 | J18: =IF(ISNA($A18),"",IFERROR(SUMIFS(D_D[DEC],D_D[MT],5,D_D[CAT],SMS, D_D[EP],-1,D_D[LOC],$A18)/$D18,0)) -> 0.2428842505 | K18: =IF(ISNA($A18),"",IFERROR(SUMIFS(D_D[AWD],D_D[MT],5,D_D[CAT],SMS, D_D[EP],-1,D_D[LOC],$A18)/$D18,0)) -> 0.06831119545 | L18: =IF(ISNA($A18),"",IFERROR(SUMIFS(D_D[AUT],D_D[MT],5,D_D[CAT],SMS, D_D[EP],-1,D_D[LOC],$A18)/$D18,0)) -> 0.02466793169
A19: 325 | B19: 6 | C19: Cleveland | D19: =IF(ISNA($A19),"",IFERROR(SUMIFS(D_D[INV],D_D[MT],5,D_D[CAT],SMS, D_D[EP],-1,D_D[LOC],$A19),0)) -> 2264 | E19: =IF(ISNA($A19),"",IFERROR(SUMIFS(D_D[BL],D_D[MT],5,D_D[CAT],SMS, D_D[EP],-1,D_D[LOC],$A19),0)) -> 1105 | F19: 0.4880742049 | G19: =IF(ISNA($A19),"",IFERROR(SUMIFS(D_D[ADP],D_D[MT],5,D_D[CAT],SMS, D_D[EP],-1,D_D[LOC],$A19),0)) -> 159.28 | H19: =IF(ISNA($A19),"",IFERROR(SUMIFS(D_D[DEV],D_D[MT],5,D_D[CAT],SMS, D_D[EP],-1,D_D[LOC],$A19)/$D19,0)) -> 0.1161660777 | I19: =IF(ISNA($A19),"",IFERROR(SUMIFS(D_D[EVD],D_D[MT],5,D_D[CAT],SMS, D_D[EP],-1,D_D[LOC],$A19)/$D19,0)) -> 0.656360424 | J19: =IF(ISNA($A19),"",IFERROR(SUMIFS(D_D[DEC],D_D[MT],5,D_D[CAT],SMS, D_D[EP],-1,D_D[LOC],$A19)/$D19,0)) -> 0.1740282686 | K19: =IF(ISNA($A19),"",IFERROR(SUMIFS(D_D[AWD],D_D[MT],5,D_D[CAT],SMS, D_D[EP],-1,D_D[LOC],$A19)/$D19,0)) -> 0.04107773852 | L19: =IF(ISNA($A19),"",IFERROR(SUMIFS(D_D[AUT],D_D[MT],5,D_D[CAT],SMS, D_D[EP],-1,D_D[LOC],$A19)/$D19,0)) -> 0.01236749117
A20: 329 | B20: 7 | C20: Detroit | D20: =IF(ISNA($A20),"",IFERROR(SUMIFS(D_D[INV],D_D[MT],5,D_D[CAT],SMS, D_D[EP],-1,D_D[LOC],$A20),0)) -> 1025 | E20: =IF(ISNA($A20),"",IFERROR(SUMIFS(D_D[BL],D_D[MT],5,D_D[CAT],SMS, D_D[EP],-1,D_D[LOC],$A20),0)) -> 235 | F20: 0.2292682927 | G20: =IF(ISNA($A20),"",IFERROR(SUMIFS(D_D[ADP],D_D[MT],5,D_D[CAT],SMS, D_D[EP],-1,D_D[LOC],$A20),0)) -> 95.06 | H20: =IF(ISNA($A20),"",IFERROR(SUMIFS(D_D[DEV],D_D[MT],5,D_D[CAT],SMS, D_D[EP],-1,D_D[LOC],$A20)/$D20,0)) -> 0.1180487805 | I20: =IF(ISNA($A20),"",IFERROR(SUMIFS(D_D[EVD],D_D[MT],5,D_D[CAT],SMS, D_D[EP],-1,D_D[LOC],$A20)/$D20,0)) -> 0.3951219512 | J20: =IF(ISNA($A20),"",IFERROR(SUMIFS(D_D[DEC],D_D[MT],5,D_D[CAT],SMS, D_D[EP],-1,D_D[LOC],$A20)/$D20,0)) -> 0.3990243902 | K20: =IF(ISNA($A20),"",IFERROR(SUMIFS(D_D[AWD],D_D[MT],5,D_D[CAT],SMS, D_D[EP],-1,D_D[LOC],$A20)/$D20,0)) -> 0.04682926829 | L20: =IF(ISNA($A20),"",IFERROR(SUMIFS(D_D[AUT],D_D[MT],5,D_D[CAT],SMS, D_D[EP],-1,D_D[LOC],$A20)/$D20,0)) -> 0.04097560976
A21: 308 | B21: 8 | C21: Hartford | D21: =IF(ISNA($A21),"",IFERROR(SUMIFS(D_D[INV],D_D[MT],5,D_D[CAT],SMS, D_D[EP],-1,D_D[LOC],$A21),0)) -> 588 | E21: =IF(ISNA($A21),"",IFERROR(SUMIFS(D_D[BL],D_D[MT],5,D_D[CAT],SMS, D_D[EP],-1,D_D[LOC],$A21),0)) -> 295 | F21: 0.5017006803 | G21: =IF(ISNA($A21),"",IFERROR(SUMIFS(D_D[ADP],D_D[MT],5,D_D[CAT],SMS, D_D[EP],-1,D_D[LOC],$A21),0)) -> 181.54 | H21: =IF(ISNA($A21),"",IFERROR(SUMIFS(D_D[DEV],D_D[MT],5,D_D[CAT],SMS, D_D[EP],-1,D_D[LOC],$A21)/$D21,0)) -> 0.1020408163 | I21: =IF(ISNA($A21),"",IFERROR(SUMIFS(D_D[EVD],D_D[MT],5,D_D[CAT],SMS, D_D[EP],-1,D_D[LOC],$A21)/$D21,0)) -> 0.6139455782 | J21: =IF(ISNA($A21),"",IFERROR(SUMIFS(D_D[DEC],D_D[MT],5,D_D[CAT],SMS, D_D[EP],-1,D_D[LOC],$A21)/$D21,0)) -> 0.2278911565 | K21: =IF(ISNA($A21),"",IFERROR(SUMIFS(D_D[AWD],D_D[MT],5,D_D[CAT],SMS, D_D[EP],-1,D_D[LOC],$A21)/$D21,0)) -> 0.04761904762 | L21: =IF(ISNA($A21),"",IFERROR(SUMIFS(D_D[AUT],D_D[MT],5,D_D[CAT],SMS, D_D[EP],-1,D_D[LOC],$A21)/$D21,0)) -> 0.008503401361
A22: 326 | B22: 9 | C22: Indianapolis | D22: =IF(ISNA($A22),"",IFERROR(SUMIFS(D_D[INV],D_D[MT],5,D_D[CAT],SMS, D_D[EP],-1,D_D[LOC],$A22),0)) -> 745 | E22: =IF(ISNA($A22),"",IFERROR(SUMIFS(D_D[BL],D_D[MT],5,D_D[CAT],SMS, D_D[EP],-1,D_D[LOC],$A22),0)) -> 230 | F22: 0.3087248322 | G22: =IF(ISNA($A22),"",IFERROR(SUMIFS(D_D[ADP],D_D[MT],5,D_D[CAT],SMS, D_D[EP],-1,D_D[LOC],$A22),0)) -> 131.78 | H22: =IF(ISNA($A22),"",IFERROR(SUMIFS(D_D[DEV],D_D[MT],5,D_D[CAT],SMS, D_D[EP],-1,D_D[LOC],$A22)/$D22,0)) -> 0.122147651 | I22: =IF(ISNA($A22),"",IFERROR(SUMIFS(D_D[EVD],D_D[MT],5,D_D[CAT],SMS, D_D[EP],-1,D_D[LOC],$A22)/$D22,0)) -> 0.5302013423 | J22: =IF(ISNA($A22),"",IFERROR(SUMIFS(D_D[DEC],D_D[MT],5,D_D[CAT],SMS, D_D[EP],-1,D_D[LOC],$A22)/$D22,0)) -> 0.3234899329 | K22: =IF(ISNA($A22),"",IFERROR(SUMIFS(D_D[AWD],D_D[MT],5,D_D[CAT],SMS, D_D[EP],-1,D_D[LOC],$A22)/$D22,0)) -> 0.01879194631 | L22: =IF(ISNA($A22),"",IFERROR(SUMIFS(D_D[AUT],D_D[MT],5,D_D[CAT],SMS, D_D[EP],-1,D_D[LOC],$A22)/$D22,0)) -> 0.005369127517
A23: 373 | B23: 10 | C23: Manchester | D23: =IF(ISNA($A23),"",IFERROR(SUMIFS(D_D[INV],D_D[MT],5,D_D[CAT],SMS, D_D[EP],-1,D_D[LOC],$A23),0)) -> 234 | E23: =IF(ISNA($A23),"",IFERROR(SUMIFS(D_D[BL],D_D[MT],5,D_D[CAT],SMS, D_D[EP],-1,D_D[LOC],$A23),0)) -> 101 | F23: 0.4316239316 | G23: =IF(ISNA($A23),"",IFERROR(SUMIFS(D_D[ADP],D_D[MT],5,D_D[CAT],SMS, D_D[EP],-1,D_D[LOC],$A23),0)) -> 152.72 | H23: =IF(ISNA($A23),"",IFERROR(SUMIFS(D_D[DEV],D_D[MT],5,D_D[CAT],SMS, D_D[EP],-1,D_D[LOC],$A23)/$D23,0)) -> 0.03846153846 | I23: =IF(ISNA($A23),"",IFERROR(SUMIFS(D_D[EVD],D_D[MT],5,D_D[CAT],SMS, D_D[EP],-1,D_D[LOC],$A23)/$D23,0)) -> 0.5555555556 | J23: =IF(ISNA($A23),"",IFERROR(SUMIFS(D_D[DEC],D_D[MT],5,D_D[CAT],SMS, D_D[EP],-1,D_D[LOC],$A23)/$D23,0)) -> 0.2948717949 | K23: =IF(ISNA($A23),"",IFERROR(SUMIFS(D_D[AWD],D_D[MT],5,D_D[CAT],SMS, D_D[EP],-1,D_D[LOC],$A23)/$D23,0)) -> 0.07264957265 | L23: =IF(ISNA($A23),"",IFERROR(SUMIFS(D_D[AUT],D_D[MT],5,D_D[CAT],SMS, D_D[EP],-1,D_D[LOC],$A23)/$D23,0)) -> 0.03846153846
A24: 330 | B24: 11 | C24: Milwaukee | D24: =IF(ISNA($A24),"",IFERROR(SUMIFS(D_D[INV],D_D[MT],5,D_D[CAT],SMS, D_D[EP],-1,D_D[LOC],$A24),0)) -> 1610 | E24: =IF(ISNA($A24),"",IFERROR(SUMIFS(D_D[BL],D_D[MT],5,D_D[CAT],SMS, D_D[EP],-1,D_D[LOC],$A24),0)) -> 238 | F24: 0.147826087 | G24: =IF(ISNA($A24),"",IFERROR(SUMIFS(D_D[ADP],D_D[MT],5,D_D[CAT],SMS, D_D[EP],-1,D_D[LOC],$A24),0)) -> 78.16 | H24: =IF(ISNA($A24),"",IFERROR(SUMIFS(D_D[DEV],D_D[MT],5,D_D[CAT],SMS, D_D[EP],-1,D_D[LOC],$A24)/$D24,0)) -> 0.1347826087 | I24: =IF(ISNA($A24),"",IFERROR(SUMIFS(D_D[EVD],D_D[MT],5,D_D[CAT],SMS, D_D[EP],-1,D_D[LOC],$A24)/$D24,0)) -> 0.3559006211 | J24: =IF(ISNA($A24),"",IFERROR(SUMIFS(D_D[DEC],D_D[MT],5,D_D[CAT],SMS, D_D[EP],-1,D_D[LOC],$A24)/$D24,0)) -> 0.3093167702 | K24: =IF(ISNA($A24),"",IFERROR(SUMIFS(D_D[AWD],D_D[MT],5,D_D[CAT],SMS, D_D[EP],-1,D_D[LOC],$A24)/$D24,0)) -> 0.1211180124 | L24: =IF(ISNA($A24),"",IFERROR(SUMIFS(D_D[AUT],D_D[MT],5,D_D[CAT],SMS, D_D[EP],-1,D_D[LOC],$A24)/$D24,0)) -> 0.07888198758
A25: 306 | B25: 12 | C25: New York | D25: =IF(ISNA($A25),"",IFERROR(SUMIFS(D_D[INV],D_D[MT],5,D_D[CAT],SMS, D_D[EP],-1,D_D[LOC],$A25),0)) -> 828 | E25: =IF(ISNA($A25),"",IFERROR(SUMIFS(D_D[BL],D_D[MT],5,D_D[CAT],SMS, D_D[EP],-1,D_D[LOC],$A25),0)) -> 318 | F25: 0.384057971 | G25: =IF(ISNA($A25),"",IFERROR(SUMIFS(D_D[ADP],D_D[MT],5,D_D[CAT],SMS, D_D[EP],-1,D_D[LOC],$A25),0)) -> 153.77 | H25: =IF(ISNA($A25),"",IFERROR(SUMIFS(D_D[DEV],D_D[MT],5,D_D[CAT],SMS, D_D[EP],-1,D_D[LOC],$A25)/$D25,0)) -> 0.1437198068 | I25: =IF(ISNA($A25),"",IFERROR(SUMIFS(D_D[EVD],D_D[MT],5,D_D[CAT],SMS, D_D[EP],-1,D_D[LOC],$A25)/$D25,0)) -> 0.5833333333 | J25: =IF(ISNA($A25),"",IFERROR(SUMIFS(D_D[DEC],D_D[MT],5,D_D[CAT],SMS, D_D[EP],-1,D_D[LOC],$A25)/$D25,0)) -> 0.2137681159 | K25: =IF(ISNA($A25),"",IFERROR(SUMIFS(D_D[AWD],D_D[MT],5,D_D[CAT],SMS, D_D[EP],-1,D_D[LOC],$A25)/$D25,0)) -> 0.03502415459 | L25: =IF(ISNA($A25),"",IFERROR(SUMIFS(D_D[AUT],D_D[MT],5,D_D[CAT],SMS, D_D[EP],-1,D_D[LOC],$A25)/$D25,0)) -> 0.02415458937
A26: 309 | B26: 13 | C26: Newark | D26: =IF(ISNA($A26),"",IFERROR(SUMIFS(D_D[INV],D_D[MT],5,D_D[CAT],SMS, D_D[EP],-1,D_D[LOC],$A26),0)) -> 412 | E26: =IF(ISNA($A26),"",IFERROR(SUMIFS(D_D[BL],D_D[MT],5,D_D[CAT],SMS, D_D[EP],-1,D_D[LOC],$A26),0)) -> 139 | F26: 0.3373786408 | G26: =IF(ISNA($A26),"",IFERROR(SUMIFS(D_D[ADP],D_D[MT],5,D_D[CAT],SMS, D_D[EP],-1,D_D[LOC],$A26),0)) -> 121.27 | H26: =IF(ISNA($A26),"",IFERROR(SUMIFS(D_D[DEV],D_D[MT],5,D_D[CAT],SMS, D_D[EP],-1,D_D[LOC],$A26)/$D26,0)) -> 0.1334951456 | I26: =IF(ISNA($A26),"",IFERROR(SUMIFS(D_D[EVD],D_D[MT],5,D_D[CAT],SMS, D_D[EP],-1,D_D[LOC],$A26)/$D26,0)) -> 0.5752427184 | J26: =IF(ISNA($A26),"",IFERROR(SUMIFS(D_D[DEC],D_D[MT],5,D_D[CAT],SMS, D_D[EP],-1,D_D[LOC],$A26)/$D26,0)) -> 0.2160194175 | K26: =IF(ISNA($A26),"",IFERROR(SUMIFS(D_D[AWD],D_D[MT],5,D_D[CAT],SMS, D_D[EP],-1,D_D[LOC],$A26)/$D26,0)) -> 0.04611650485 | L26: =IF(ISNA($A26),"",IFERROR(SUMIFS(D_D[AUT],D_D[MT],5,D_D[CAT],SMS, D_D[EP],-1,D_D[LOC],$A26)/$D26,0)) -> 0.02912621359
A27: 310 | B27: 14 | C27: Philadelphia | D27: =IF(ISNA($A27),"",IFERROR(SUMIFS(D_D[INV],D_D[MT],5,D_D[CAT],SMS, D_D[EP],-1,D_D[LOC],$A27),0)) -> 2753 | E27: =IF(ISNA($A27),"",IFERROR(SUMIFS(D_D[BL],D_D[MT],5,D_D[CAT],SMS, D_D[EP],-1,D_D[LOC],$A27),0)) -> 750 | F27: 0.2724300763 | G27: =IF(ISNA($A27),"",IFERROR(SUMIFS(D_D[ADP],D_D[MT],5,D_D[CAT],SMS, D_D[EP],-1,D_D[LOC],$A27),0)) -> 123.53 | H27: =IF(ISNA($A27),"",IFERROR(SUMIFS(D_D[DEV],D_D[MT],5,D_D[CAT],SMS, D_D[EP],-1,D_D[LOC],$A27)/$D27,0)) -> 0.07337450054 | I27: =IF(ISNA($A27),"",IFERROR(SUMIFS(D_D[EVD],D_D[MT],5,D_D[CAT],SMS, D_D[EP],-1,D_D[LOC],$A27)/$D27,0)) -> 0.4304395205 | J27: =IF(ISNA($A27),"",IFERROR(SUMIFS(D_D[DEC],D_D[MT],5,D_D[CAT],SMS, D_D[EP],-1,D_D[LOC],$A27)/$D27,0)) -> 0.4188158373 | K27: =IF(ISNA($A27),"",IFERROR(SUMIFS(D_D[AWD],D_D[MT],5,D_D[CAT],SMS, D_D[EP],-1,D_D[LOC],$A27)/$D27,0)) -> 0.05702869597 | L27: =IF(ISNA($A27),"",IFERROR(SUMIFS(D_D[AUT],D_D[MT],5,D_D[CAT],SMS, D_D[EP],-1,D_D[LOC],$A27)/$D27,0)) -> 0.0203414457
A28: 311 | B28: 15 | C28: Pittsburgh | D28: =IF(ISNA($A28),"",IFERROR(SUMIFS(D_D[INV],D_D[MT],5,D_D[CAT],SMS, D_D[EP],-1,D_D[LOC],$A28),0)) -> 715 | E28: =IF(ISNA($A28),"",IFERROR(SUMIFS(D_D[BL],D_D[MT],5,D_D[CAT],SMS, D_D[EP],-1,D_D[LOC],$A28),0)) -> 327 | F28: 0.4573426573 | G28: =IF(ISNA($A28),"",IFERROR(SUMIFS(D_D[ADP],D_D[MT],5,D_D[CAT],SMS, D_D[EP],-1,D_D[LOC],$A28),0)) -> 173.23 | H28: =IF(ISNA($A28),"",IFERROR(SUMIFS(D_D[DEV],D_D[MT],5,D_D[CAT],SMS, D_D[EP],-1,D_D[LOC],$A28)/$D28,0)) -> 0.1174825175 | I28: =IF(ISNA($A28),"",IFERROR(SUMIFS(D_D[EVD],D_D[MT],5,D_D[CAT],SMS, D_D[EP],-1,D_D[LOC],$A28)/$D28,0)) -> 0.627972028 | J28: =IF(ISNA($A28),"",IFERROR(SUMIFS(D_D[DEC],D_D[MT],5,D_D[CAT],SMS, D_D[EP],-1,D_D[LOC],$A28)/$D28,0)) -> 0.1944055944 | K28: =IF(ISNA($A28),"",IFERROR(SUMIFS(D_D[AWD],D_D[MT],5,D_D[CAT],SMS, D_D[EP],-1,D_D[LOC],$A28)/$D28,0)) -> 0.05314685315 | L28: =IF(ISNA($A28),"",IFERROR(SUMIFS(D_D[AUT],D_D[MT],5,D_D[CAT],SMS, D_D[EP],-1,D_D[LOC],$A28)/$D28,0)) -> 0.006993006993
A29: 304 | B29: 16 | C29: Providence | D29: =IF(ISNA($A29),"",IFERROR(SUMIFS(D_D[INV],D_D[MT],5,D_D[CAT],SMS, D_D[EP],-1,D_D[LOC],$A29),0)) -> 1267 | E29: =IF(ISNA($A29),"",IFERROR(SUMIFS(D_D[BL],D_D[MT],5,D_D[CAT],SMS, D_D[EP],-1,D_D[LOC],$A29),0)) -> 245 | F29: 0.1933701657 | G29: =IF(ISNA($A29),"",IFERROR(SUMIFS(D_D[ADP],D_D[MT],5,D_D[CAT],SMS, D_D[EP],-1,D_D[LOC],$A29),0)) -> 93.55 | H29: =IF(ISNA($A29),"",IFERROR(SUMIFS(D_D[DEV],D_D[MT],5,D_D[CAT],SMS, D_D[EP],-1,D_D[LOC],$A29)/$D29,0)) -> 0.07103393844 | I29: =IF(ISNA($A29),"",IFERROR(SUMIFS(D_D[EVD],D_D[MT],5,D_D[CAT],SMS, D_D[EP],-1,D_D[LOC],$A29)/$D29,0)) -> 0.3914759274 | J29: =IF(ISNA($A29),"",IFERROR(SUMIFS(D_D[DEC],D_D[MT],5,D_D[CAT],SMS, D_D[EP],-1,D_D[LOC],$A29)/$D29,0)) -> 0.3220205209 | K29: =IF(ISNA($A29),"",IFERROR(SUMIFS(D_D[AWD],D_D[MT],5,D_D[CAT],SMS, D_D[EP],-1,D_D[LOC],$A29)/$D29,0)) -> 0.1689029203 | L29: =IF(ISNA($A29),"",IFERROR(SUMIFS(D_D[AUT],D_D[MT],5,D_D[CAT],SMS, D_D[EP],-1,D_D[LOC],$A29)/$D29,0)) -> 0.04498816101
A30: 376 | B30: 17 | C30: St. Louis RMC | D30: =IF(ISNA($A30),"",IFERROR(SUMIFS(D_D[INV],D_D[MT],5,D_D[CAT],SMS, D_D[EP],-1,D_D[LOC],$A30),0)) -> 0 | E30: =IF(ISNA($A30),"",IFERROR(SUMIFS(D_D[BL],D_D[MT],5,D_D[CAT],SMS, D_D[EP],-1,D_D[LOC],$A30),0)) -> 0 | F30: 0 | G30: =IF(ISNA($A30),"",IFERROR(SUMIFS(D_D[ADP],D_D[MT],5,D_D[CAT],SMS, D_D[EP],-1,D_D[LOC],$A30),0)) -> 0 | H30: =IF(ISNA($A30),"",IFERROR(SUMIFS(D_D[DEV],D_D[MT],5,D_D[CAT],SMS, D_D[EP],-1,D_D[LOC],$A30)/$D30,0)) -> 0 | I30: =IF(ISNA($A30),"",IFERROR(SUMIFS(D_D[EVD],D_D[MT],5,D_D[CAT],SMS, D_D[EP],-1,D_D[LOC],$A30)/$D30,0)) -> 0 | J30: =IF(ISNA($A30),"",IFERROR(SUMIFS(D_D[DEC],D_D[MT],5,D_D[CAT],SMS, D_D[EP],-1,D_D[LOC],$A30)/$D30,0)) -> 0 | K30: =IF(ISNA($A30),"",IFERROR(SUMIFS(D_D[AWD],D_D[MT],5,D_D[CAT],SMS, D_D[EP],-1,D_D[LOC],$A30)/$D30,0)) -> 0 | L30: =IF(ISNA($A30),"",IFERROR(SUMIFS(D_D[AUT],D_D[MT],5,D_D[CAT],SMS, D_D[EP],-1,D_D[LOC],$A30)/$D30,0)) -> 0
A31: 331 | B31: 18 | C31: St. Louis | D31: =IF(ISNA($A31),"",IFERROR(SUMIFS(D_D[INV],D_D[MT],5,D_D[CAT],SMS, D_D[EP],-1,D_D[LOC],$A31),0)) -> 3405 | E31: =IF(ISNA($A31),"",IFERROR(SUMIFS(D_D[BL],D_D[MT],5,D_D[CAT],SMS, D_D[EP],-1,D_D[LOC],$A31),0)) -> 1614 | F31: 0.4740088106 | G31: =IF(ISNA($A31),"",IFERROR(SUMIFS(D_D[ADP],D_D[MT],5,D_D[CAT],SMS, D_D[EP],-1,D_D[LOC],$A31),0)) -> 147.32 | H31: =IF(ISNA($A31),"",IFERROR(SUMIFS(D_D[DEV],D_D[MT],5,D_D[CAT],SMS, D_D[EP],-1,D_D[LOC],$A31)/$D31,0)) -> 0.06255506608 | I31: =IF(ISNA($A31),"",IFERROR(SUMIFS(D_D[EVD],D_D[MT],5,D_D[CAT],SMS, D_D[EP],-1,D_D[LOC],$A31)/$D31,0)) -> 0.7600587372 | J31: =IF(ISNA($A31),"",IFERROR(SUMIFS(D_D[DEC],D_D[MT],5,D_D[CAT],SMS, D_D[EP],-1,D_D[LOC],$A31)/$D31,0)) -> 0.1568281938 | K31: =IF(ISNA($A31),"",IFERROR(SUMIFS(D_D[AWD],D_D[MT],5,D_D[CAT],SMS, D_D[EP],-1,D_D[LOC],$A31)/$D31,0)) -> 0.009691629956 | L31: =IF(ISNA($A31),"",IFERROR(SUMIFS(D_D[AUT],D_D[MT],5,D_D[CAT],SMS, D_D[EP],-1,D_D[LOC],$A31)/$D31,0)) -> 0.01086637298
A32: 402 | B32: 19 | C32: Togus | D32: =IF(ISNA($A32),"",IFERROR(SUMIFS(D_D[INV],D_D[MT],5,D_D[CAT],SMS, D_D[EP],-1,D_D[LOC],$A32),0)) -> 938 | E32: =IF(ISNA($A32),"",IFERROR(SUMIFS(D_D[BL],D_D[MT],5,D_D[CAT],SMS, D_D[EP],-1,D_D[LOC],$A32),0)) -> 176 | F32: 0.1876332623 | G32: =IF(ISNA($A32),"",IFERROR(SUMIFS(D_D[ADP],D_D[MT],5,D_D[CAT],SMS, D_D[EP],-1,D_D[LOC],$A32),0)) -> 115.58 | H32: =IF(ISNA($A32),"",IFERROR(SUMIFS(D_D[DEV],D_D[MT],5,D_D[CAT],SMS, D_D[EP],-1,D_D[LOC],$A32)/$D32,0)) -> 0.1407249467 | I32: =IF(ISNA($A32),"",IFERROR(SUMIFS(D_D[EVD],D_D[MT],5,D_D[CAT],SMS, D_D[EP],-1,D_D[LOC],$A32)/$D32,0)) -> 0.5287846482 | J32: =IF(ISNA($A32),"",IFERROR(SUMIFS(D_D[DEC],D_D[MT],5,D_D[CAT],SMS, D_D[EP],-1,D_D[LOC],$A32)/$D32,0)) -> 0.2718550107 | K32: =IF(ISNA($A32),"",IFERROR(SUMIFS(D_D[AWD],D_D[MT],5,D_D[CAT],SMS, D_D[EP],-1,D_D[LOC],$A32)/$D32,0)) -> 0.05543710021 | L32: =IF(ISNA($A32),"",IFERROR(SUMIFS(D_D[AUT],D_D[MT],5,D_D[CAT],SMS, D_D[EP],-1,D_D[LOC],$A32)/$D32,0)) -> 0.003198294243
A33: 372 | B33: 20 | C33: Washington | D33: =IF(ISNA($A33),"",IFERROR(SUMIFS(D_D[INV],D_D[MT],5,D_D[CAT],SMS, D_D[EP],-1,D_D[LOC],$A33),0)) -> 3 | E33: =IF(ISNA($A33),"",IFERROR(SUMIFS(D_D[BL],D_D[MT],5,D_D[CAT],SMS, D_D[EP],-1,D_D[LOC],$A33),0)) -> 0 | F33: 0 | G33: =IF(ISNA($A33),"",IFERROR(SUMIFS(D_D[ADP],D_D[MT],5,D_D[CAT],SMS, D_D[EP],-1,D_D[LOC],$A33),0)) -> 40.33 | H33: =IF(ISNA($A33),"",IFERROR(SUMIFS(D_D[DEV],D_D[MT],5,D_D[CAT],SMS, D_D[EP],-1,D_D[LOC],$A33)/$D33,0)) -> 0.6666666667 | I33: =IF(ISNA($A33),"",IFERROR(SUMIFS(D_D[EVD],D_D[MT],5,D_D[CAT],SMS, D_D[EP],-1,D_D[LOC],$A33)/$D33,0)) -> 0 | J33: =IF(ISNA($A33),"",IFERROR(SUMIFS(D_D[DEC],D_D[MT],5,D_D[CAT],SMS, D_D[EP],-1,D_D[LOC],$A33)/$D33,0)) -> 0.3333333333 | K33: =IF(ISNA($A33),"",IFERROR(SUMIFS(D_D[AWD],D_D[MT],5,D_D[CAT],SMS, D_D[EP],-1,D_D[LOC],$A33)/$D33,0)) -> 0 | L33: =IF(ISNA($A33),"",IFERROR(SUMIFS(D_D[AUT],D_D[MT],5,D_D[CAT],SMS, D_D[EP],-1,D_D[LOC],$A33)/$D33,0)) -> 0
A34: 405 | B34: 21 | C34: White River Junction | D34: =IF(ISNA($A34),"",IFERROR(SUMIFS(D_D[INV],D_D[MT],5,D_D[CAT],SMS, D_D[EP],-1,D_D[LOC],$A34),0)) -> 126 | E34: =IF(ISNA($A34),"",IFERROR(SUMIFS(D_D[BL],D_D[MT],5,D_D[CAT],SMS, D_D[EP],-1,D_D[LOC],$A34),0)) -> 54 | F34: 0.4285714286 | G34: =IF(ISNA($A34),"",IFERROR(SUMIFS(D_D[ADP],D_D[MT],5,D_D[CAT],SMS, D_D[EP],-1,D_D[LOC],$A34),0)) -> 169.87 | H34: =IF(ISNA($A34),"",IFERROR(SUMIFS(D_D[DEV],D_D[MT],5,D_D[CAT],SMS, D_D[EP],-1,D_D[LOC],$A34)/$D34,0)) -> 0.07142857143 | I34: =IF(ISNA($A34),"",IFERROR(SUMIFS(D_D[EVD],D_D[MT],5,D_D[CAT],SMS, D_D[EP],-1,D_D[LOC],$A34)/$D34,0)) -> 0.5793650794 | J34: =IF(ISNA($A34),"",IFERROR(SUMIFS(D_D[DEC],D_D[MT],5,D_D[CAT],SMS, D_D[EP],-1,D_D[LOC],$A34)/$D34,0)) -> 0.3015873016 | K34: =IF(ISNA($A34),"",IFERROR(SUMIFS(D_D[AWD],D_D[MT],5,D_D[CAT],SMS, D_D[EP],-1,D_D[LOC],$A34)/$D34,0)) -> 0.02380952381 | L34: =IF(ISNA($A34),"",IFERROR(SUMIFS(D_D[AUT],D_D[MT],5,D_D[CAT],SMS, D_D[EP],-1,D_D[LOC],$A34)/$D34,0)) -> 0.02380952381
A35: 460 | B35: 22 | C35: Wilmington | D35: =IF(ISNA($A35),"",IFERROR(SUMIFS(D_D[INV],D_D[MT],5,D_D[CAT],SMS, D_D[EP],-1,D_D[LOC],$A35),0)) -> 103 | E35: =IF(ISNA($A35),"",IFERROR(SUMIFS(D_D[BL],D_D[MT],5,D_D[CAT],SMS, D_D[EP],-1,D_D[LOC],$A35),0)) -> 43 | F35: 0.4174757282 | G35: =IF(ISNA($A35),"",IFERROR(SUMIFS(D_D[ADP],D_D[MT],5,D_D[CAT],SMS, D_D[EP],-1,D_D[LOC],$A35),0)) -> 144.27 | H35: =IF(ISNA($A35),"",IFERROR(SUMIFS(D_D[DEV],D_D[MT],5,D_D[CAT],SMS, D_D[EP],-1,D_D[LOC],$A35)/$D35,0)) -> 0.1359223301 | I35: =IF(ISNA($A35),"",IFERROR(SUMIFS(D_D[EVD],D_D[MT],5,D_D[CAT],SMS, D_D[EP],-1,D_D[LOC],$A35)/$D35,0)) -> 0.4077669903 | J35: =IF(ISNA($A35),"",IFERROR(SUMIFS(D_D[DEC],D_D[MT],5,D_D[CAT],SMS, D_D[EP],-1,D_D[LOC],$A35)/$D35,0)) -> 0.4466019417 | K35: =IF(ISNA($A35),"",IFERROR(SUMIFS(D_D[AWD],D_D[MT],5,D_D[CAT],SMS, D_D[EP],-1,D_D[LOC],$A35)/$D35,0)) -> 0 | L35: =IF(ISNA($A35),"",IFERROR(SUMIFS(D_D[AUT],D_D[MT],5,D_D[CAT],SMS, D_D[EP],-1,D_D[LOC],$A35)/$D35,0)) -> 0.009708737864
B36: 23 | D36: =IF(ISNA($A36),"",IFERROR(SUMIFS(D_D[INV],D_D[MT],5,D_D[CAT],SMS, D_D[EP],-1,D_D[LOC],$A36),0)) ->  | E36: =IF(ISNA($A36),"",IFERROR(SUMIFS(D_D[BL],D_D[MT],5,D_D[CAT],SMS, D_D[EP],-1,D_D[LOC],$A36),0)) ->  | G36: =IF(ISNA($A36),"",IFERROR(SUMIFS(D_D[ADP],D_D[MT],5,D_D[CAT],SMS, D_D[EP],-1,D_D[LOC],$A36),0)) ->  | H36: =IF(ISNA($A36),"",IFERROR(SUMIFS(D_D[DEV],D_D[MT],5,D_D[CAT],SMS, D_D[EP],-1,D_D[LOC],$A36)/$D36,0)) ->  | I36: =IF(ISNA($A36),"",IFERROR(SUMIFS(D_D[EVD],D_D[MT],5,D_D[CAT],SMS, D_D[EP],-1,D_D[LOC],$A36)/$D36,0)) ->  | J36: =IF(ISNA($A36),"",IFERROR(SUMIFS(D_D[DEC],D_D[MT],5,D_D[CAT],SMS, D_D[EP],-1,D_D[LOC],$A36)/$D36,0)) ->  | K36: =IF(ISNA($A36),"",IFERROR(SUMIFS(D_D[AWD],D_D[MT],5,D_D[CAT],SMS, D_D[EP],-1,D_D[LOC],$A36)/$D36,0)) ->  | L36: =IF(ISNA($A36),"",IFERROR(SUMIFS(D_D[AUT],D_D[MT],5,D_D[CAT],SMS, D_D[EP],-1,D_D[LOC],$A36)/$D36,0)) -> 

Sheet Rating Bundle - NWQ - State
C2: DISTRICT SELECTOR | E2: Compensation and Pension Rating Bundle Metrics | J2: Report through
E3: NWQ State View | J3: =D_DT[] -> 2021-08-21
E4: The State listed is based on the address associated with the claim, not payment address
E6: Each Special Mission has distinct claim counts | J6: Life Cycle Metrics defined on Legend tab
E8: CLAIM METRICS | H8: LIFE CYCLE METRICS (as Percent of # Pending)
C9: SPECIAL MISSION SELECTOR | E9: # Pending | F9: # Pending > 125 Days | G9: % Pending > 125 Days | H9: Pending Development | I9: Pending Evidence | J9: Pending Decision | K9: Pending Award | L9: Pending Authorization
A12: 100 | C12: =Driver!$C$20 -> USA - All Missions | D12: Total | E12: =IF(ISNA($A12),"",IFERROR(SUMIFS(D_D[INV],D_D[MT],5,D_D[CAT],SMS, D_D[EP],-1,D_D[LOC],$A12),0)) -> 591099 | F12: =IF(ISNA($A12),"",IFERROR(SUMIFS(D_D[BL],D_D[MT],5,D_D[CAT],SMS, D_D[EP],-1,D_D[LOC],$A12),0)) -> 181570 | G12: =IF(ISNA($A12),"",IFERROR(F12/E12,0)) -> 0.3071735868 | H12: =IF(ISNA($A12),"",IFERROR(SUMIFS(D_D[DEV],D_D[MT],5,D_D[CAT],SMS, D_D[EP],-1,D_D[LOC],$A12)/$E12,0)) -> 0.01990867858 | I12: =IF(ISNA($A12),"",IFERROR(SUMIFS(D_D[EVD],D_D[MT],5,D_D[CAT],SMS, D_D[EP],-1,D_D[LOC],$A12)/$E12,0)) -> 0.751197346 | J12: =IF(ISNA($A12),"",IFERROR(SUMIFS(D_D[DEC],D_D[MT],5,D_D[CAT],SMS, D_D[EP],-1,D_D[LOC],$A12)/$E12,0)) -> 0.2176319026 | K12: =IF(ISNA($A12),"",IFERROR(SUMIFS(D_D[AWD],D_D[MT],5,D_D[CAT],SMS, D_D[EP],-1,D_D[LOC],$A12)/$E12,0)) -> 0.008044337751 | L12: =IF(ISNA($A12),"",IFERROR(SUMIFS(D_D[AUT],D_D[MT],5,D_D[CAT],SMS, D_D[EP],-1,D_D[LOC],$A12)/$E12,0)) -> 0.003207584516
A13: 499 | C13: ="NWQ-"&Driver!$C$20 -> NWQ-USA - All Missions | D13: Total | E13: =IF(ISNA($A13),"",IFERROR(SUMIFS(D_D[INV],D_D[MT],5,D_D[CAT],SMS, D_D[EP],-1,D_D[LOC],$A13),0)) -> 502587 | F13: =IF(ISNA($A13),"",IFERROR(SUMIFS(D_D[BL],D_D[MT],5,D_D[CAT],SMS, D_D[EP],-1,D_D[LOC],$A13),0)) -> 152237 | G13: =IF(ISNA($A13),"",IFERROR(F13/E13,0)) -> 0.3029067604 | H13: =IF(ISNA($A13),"",IFERROR(SUMIFS(D_D[DEV],D_D[MT],5,D_D[CAT],SMS, D_D[EP],-1,D_D[LOC],$A13)/$E13,0)) -> 0.004516630951 | I13: =IF(ISNA($A13),"",IFERROR(SUMIFS(D_D[EVD],D_D[MT],5,D_D[CAT],SMS, D_D[EP],-1,D_D[LOC],$A13)/$E13,0)) -> 0.785762465 | J13: =IF(ISNA($A13),"",IFERROR(SUMIFS(D_D[DEC],D_D[MT],5,D_D[CAT],SMS, D_D[EP],-1,D_D[LOC],$A13)/$E13,0)) -> 0.2091558277 | K13: =IF(ISNA($A13),"",IFERROR(SUMIFS(D_D[AWD],D_D[MT],5,D_D[CAT],SMS, D_D[EP],-1,D_D[LOC],$A13)/$E13,0)) -> 0.000533241011 | L13: =IF(ISNA($A13),"",IFERROR(SUMIFS(D_D[AUT],D_D[MT],5,D_D[CAT],SMS, D_D[EP],-1,D_D[LOC],$A13)/$E13,0)) -> 3.183528424e-05
A14: =INDEX(STATE,(MATCH($C14,STATE_D,0))) -> 394 | B14: 1 | C14: =IFERROR(INDEX(INDIRECT(DS_NWQ),B14),"") -> Northeast District | D14: =IFERROR(INDEX(INDIRECT(DS_NWQD),B14),"") ->  | E14: =IF(ISNA($A14),"",IFERROR(SUMIFS(D_D[INV],D_D[MT],5,D_D[CAT],SMS, D_D[EP],499,D_D[LOC],$A14),0)) -> 146652 | F14: =IF(ISNA($A14),"",IFERROR(SUMIFS(D_D[BL],D_D[MT],5,D_D[CAT],SMS, D_D[EP],499,D_D[LOC],$A14),0)) -> 48732 | G14: =IF(ISNA($A14),"",IFERROR(F14/E14,0)) -> 0.3322968661 | H14: =IF(ISNA($A14),"",IFERROR(SUMIFS(D_D[DEV],D_D[MT],5,D_D[CAT],SMS, D_D[EP],499,D_D[LOC],$A14)/$E14,0)) -> 0.018410932 | I14: =IF(ISNA($A14),"",IFERROR(SUMIFS(D_D[EVD],D_D[MT],5,D_D[CAT],SMS, D_D[EP],499,D_D[LOC],$A14)/$E14,0)) -> 0.7516842593 | J14: =IF(ISNA($A14),"",IFERROR(SUMIFS(D_D[DEC],D_D[MT],5,D_D[CAT],SMS, D_D[EP],499,D_D[LOC],$A14)/$E14,0)) -> 0.2193628454 | K14: =IF(ISNA($A14),"",IFERROR(SUMIFS(D_D[AWD],D_D[MT],5,D_D[CAT],SMS, D_D[EP],499,D_D[LOC],$A14)/$E14,0)) -> 0.007391648256 | L14: =IF(ISNA($A14),"",IFERROR(SUMIFS(D_D[AUT],D_D[MT],5,D_D[CAT],SMS, D_D[EP],499,D_D[LOC],$A14)/$E14,0)) -> 0.003136677304
A15: =IFERROR(INDEX(INDIRECT(DS_NWQI),B15),#N/A) -> CT100 | B15: 2 | C15: Connecticut | D15: =IFERROR(INDEX(INDIRECT(DS_NWQD),B15),"") -> Connecticut-Total | E15: =IF(ISNA($A15),"",IFERROR(SUMIFS(D_D[INV],D_D[MT],5,D_D[CAT],SMS, D_D[EP],499,D_D[LOC],$A15),0)) -> 3524 | F15: =IF(ISNA($A15),"",IFERROR(SUMIFS(D_D[BL],D_D[MT],5,D_D[CAT],SMS, D_D[EP],499,D_D[LOC],$A15),0)) -> 1298 | G15: 0.3683314415 | H15: =IF(ISNA($A15),"",IFERROR(SUMIFS(D_D[DEV],D_D[MT],5,D_D[CAT],SMS, D_D[EP],499,D_D[LOC],$A15)/$E15,0)) -> 0.01248581158 | I15: =IF(ISNA($A15),"",IFERROR(SUMIFS(D_D[EVD],D_D[MT],5,D_D[CAT],SMS, D_D[EP],499,D_D[LOC],$A15)/$E15,0)) -> 0.8047673099 | J15: =IF(ISNA($A15),"",IFERROR(SUMIFS(D_D[DEC],D_D[MT],5,D_D[CAT],SMS, D_D[EP],499,D_D[LOC],$A15)/$E15,0)) -> 0.1742338252 | K15: =IF(ISNA($A15),"",IFERROR(SUMIFS(D_D[AWD],D_D[MT],5,D_D[CAT],SMS, D_D[EP],499,D_D[LOC],$A15)/$E15,0)) -> 0.005391600454 | L15: =IF(ISNA($A15),"",IFERROR(SUMIFS(D_D[AUT],D_D[MT],5,D_D[CAT],SMS, D_D[EP],499,D_D[LOC],$A15)/$E15,0)) -> 0.003121452894
A16: CT308 | B16: 3 | C16: 0 | D16: Hartford RO | E16: =IF(ISNA($A16),"",IFERROR(SUMIFS(D_D[INV],D_D[MT],5,D_D[CAT],SMS, D_D[EP],499,D_D[LOC],$A16),0)) -> 44 | F16: =IF(ISNA($A16),"",IFERROR(SUMIFS(D_D[BL],D_D[MT],5,D_D[CAT],SMS, D_D[EP],499,D_D[LOC],$A16),0)) -> 13 | G16: 0.2954545455 | H16: =IF(ISNA($A16),"",IFERROR(SUMIFS(D_D[DEV],D_D[MT],5,D_D[CAT],SMS, D_D[EP],499,D_D[LOC],$A16)/$E16,0)) -> 0.4318181818 | I16: =IF(ISNA($A16),"",IFERROR(SUMIFS(D_D[EVD],D_D[MT],5,D_D[CAT],SMS, D_D[EP],499,D_D[LOC],$A16)/$E16,0)) -> 0.4090909091 | J16: =IF(ISNA($A16),"",IFERROR(SUMIFS(D_D[DEC],D_D[MT],5,D_D[CAT],SMS, D_D[EP],499,D_D[LOC],$A16)/$E16,0)) -> 0.1136363636 | K16: =IF(ISNA($A16),"",IFERROR(SUMIFS(D_D[AWD],D_D[MT],5,D_D[CAT],SMS, D_D[EP],499,D_D[LOC],$A16)/$E16,0)) -> 0.04545454545 | L16: =IF(ISNA($A16),"",IFERROR(SUMIFS(D_D[AUT],D_D[MT],5,D_D[CAT],SMS, D_D[EP],499,D_D[LOC],$A16)/$E16,0)) -> 0
A17: CT-1 | B17: 4 | D17: Connecticut-Other RO | E17: =IF(ISNA($A17),"",IFERROR(SUMIFS(D_D[INV],D_D[MT],5,D_D[CAT],SMS, D_D[EP],499,D_D[LOC],$A17),0)) -> 455 | F17: =IF(ISNA($A17),"",IFERROR(SUMIFS(D_D[BL],D_D[MT],5,D_D[CAT],SMS, D_D[EP],499,D_D[LOC],$A17),0)) -> 178 | G17: 0.3912087912 | H17: =IF(ISNA($A17),"",IFERROR(SUMIFS(D_D[DEV],D_D[MT],5,D_D[CAT],SMS, D_D[EP],499,D_D[LOC],$A17)/$E17,0)) -> 0.03956043956 | I17: =IF(ISNA($A17),"",IFERROR(SUMIFS(D_D[EVD],D_D[MT],5,D_D[CAT],SMS, D_D[EP],499,D_D[LOC],$A17)/$E17,0)) -> 0.6681318681 | J17: =IF(ISNA($A17),"",IFERROR(SUMIFS(D_D[DEC],D_D[MT],5,D_D[CAT],SMS, D_D[EP],499,D_D[LOC],$A17)/$E17,0)) -> 0.232967033 | K17: =IF(ISNA($A17),"",IFERROR(SUMIFS(D_D[AWD],D_D[MT],5,D_D[CAT],SMS, D_D[EP],499,D_D[LOC],$A17)/$E17,0)) -> 0.03736263736 | L17: =IF(ISNA($A17),"",IFERROR(SUMIFS(D_D[AUT],D_D[MT],5,D_D[CAT],SMS, D_D[EP],499,D_D[LOC],$A17)/$E17,0)) -> 0.02197802198
A18: CT499 | B18: 5 | D18: Connecticut-NWQ | E18: =IF(ISNA($A18),"",IFERROR(SUMIFS(D_D[INV],D_D[MT],5,D_D[CAT],SMS, D_D[EP],499,D_D[LOC],$A18),0)) -> 3025 | F18: =IF(ISNA($A18),"",IFERROR(SUMIFS(D_D[BL],D_D[MT],5,D_D[CAT],SMS, D_D[EP],499,D_D[LOC],$A18),0)) -> 1107 | G18: 0.3659504132 | H18: =IF(ISNA($A18),"",IFERROR(SUMIFS(D_D[DEV],D_D[MT],5,D_D[CAT],SMS, D_D[EP],499,D_D[LOC],$A18)/$E18,0)) -> 0.002314049587 | I18: =IF(ISNA($A18),"",IFERROR(SUMIFS(D_D[EVD],D_D[MT],5,D_D[CAT],SMS, D_D[EP],499,D_D[LOC],$A18)/$E18,0)) -> 0.8310743802 | J18: =IF(ISNA($A18),"",IFERROR(SUMIFS(D_D[DEC],D_D[MT],5,D_D[CAT],SMS, D_D[EP],499,D_D[LOC],$A18)/$E18,0)) -> 0.1662809917 | K18: =IF(ISNA($A18),"",IFERROR(SUMIFS(D_D[AWD],D_D[MT],5,D_D[CAT],SMS, D_D[EP],499,D_D[LOC],$A18)/$E18,0)) -> 0 | L18: =IF(ISNA($A18),"",IFERROR(SUMIFS(D_D[AUT],D_D[MT],5,D_D[CAT],SMS, D_D[EP],499,D_D[LOC],$A18)/$E18,0)) -> 0.0003305785124
A19: DE100 | B19: 6 | C19: Delaware | D19: Delaware-Total | E19: =IF(ISNA($A19),"",IFERROR(SUMIFS(D_D[INV],D_D[MT],5,D_D[CAT],SMS, D_D[EP],499,D_D[LOC],$A19),0)) -> 1627 | F19: =IF(ISNA($A19),"",IFERROR(SUMIFS(D_D[BL],D_D[MT],5,D_D[CAT],SMS, D_D[EP],499,D_D[LOC],$A19),0)) -> 511 | G19: 0.3140749846 | H19: =IF(ISNA($A19),"",IFERROR(SUMIFS(D_D[DEV],D_D[MT],5,D_D[CAT],SMS, D_D[EP],499,D_D[LOC],$A19)/$E19,0)) -> 0.0184388445 | I19: =IF(ISNA($A19),"",IFERROR(SUMIFS(D_D[EVD],D_D[MT],5,D_D[CAT],SMS, D_D[EP],499,D_D[LOC],$A19)/$E19,0)) -> 0.7473878304 | J19: =IF(ISNA($A19),"",IFERROR(SUMIFS(D_D[DEC],D_D[MT],5,D_D[CAT],SMS, D_D[EP],499,D_D[LOC],$A19)/$E19,0)) -> 0.2237246466 | K19: =IF(ISNA($A19),"",IFERROR(SUMIFS(D_D[AWD],D_D[MT],5,D_D[CAT],SMS, D_D[EP],499,D_D[LOC],$A19)/$E19,0)) -> 0.00921942225 | L19: =IF(ISNA($A19),"",IFERROR(SUMIFS(D_D[AUT],D_D[MT],5,D_D[CAT],SMS, D_D[EP],499,D_D[LOC],$A19)/$E19,0)) -> 0.0012292563
A20: DE460 | B20: 7 | C20: 0 | D20: Wilmington RO | E20: =IF(ISNA($A20),"",IFERROR(SUMIFS(D_D[INV],D_D[MT],5,D_D[CAT],SMS, D_D[EP],499,D_D[LOC],$A20),0)) -> 19 | F20: =IF(ISNA($A20),"",IFERROR(SUMIFS(D_D[BL],D_D[MT],5,D_D[CAT],SMS, D_D[EP],499,D_D[LOC],$A20),0)) -> 4 | G20: 0.2105263158 | H20: =IF(ISNA($A20),"",IFERROR(SUMIFS(D_D[DEV],D_D[MT],5,D_D[CAT],SMS, D_D[EP],499,D_D[LOC],$A20)/$E20,0)) -> 0.5263157895 | I20: =IF(ISNA($A20),"",IFERROR(SUMIFS(D_D[EVD],D_D[MT],5,D_D[CAT],SMS, D_D[EP],499,D_D[LOC],$A20)/$E20,0)) -> 0.2105263158 | J20: =IF(ISNA($A20),"",IFERROR(SUMIFS(D_D[DEC],D_D[MT],5,D_D[CAT],SMS, D_D[EP],499,D_D[LOC],$A20)/$E20,0)) -> 0.2631578947 | K20: =IF(ISNA($A20),"",IFERROR(SUMIFS(D_D[AWD],D_D[MT],5,D_D[CAT],SMS, D_D[EP],499,D_D[LOC],$A20)/$E20,0)) -> 0 | L20: =IF(ISNA($A20),"",IFERROR(SUMIFS(D_D[AUT],D_D[MT],5,D_D[CAT],SMS, D_D[EP],499,D_D[LOC],$A20)/$E20,0)) -> 0
A21: DE-1 | B21: 8 | D21: Delaware-Other RO | E21: =IF(ISNA($A21),"",IFERROR(SUMIFS(D_D[INV],D_D[MT],5,D_D[CAT],SMS, D_D[EP],499,D_D[LOC],$A21),0)) -> 209 | F21: =IF(ISNA($A21),"",IFERROR(SUMIFS(D_D[BL],D_D[MT],5,D_D[CAT],SMS, D_D[EP],499,D_D[LOC],$A21),0)) -> 76 | G21: 0.3636363636 | H21: =IF(ISNA($A21),"",IFERROR(SUMIFS(D_D[DEV],D_D[MT],5,D_D[CAT],SMS, D_D[EP],499,D_D[LOC],$A21)/$E21,0)) -> 0.06698564593 | I21: =IF(ISNA($A21),"",IFERROR(SUMIFS(D_D[EVD],D_D[MT],5,D_D[CAT],SMS, D_D[EP],499,D_D[LOC],$A21)/$E21,0)) -> 0.5215311005 | J21: =IF(ISNA($A21),"",IFERROR(SUMIFS(D_D[DEC],D_D[MT],5,D_D[CAT],SMS, D_D[EP],499,D_D[LOC],$A21)/$E21,0)) -> 0.3301435407 | K21: =IF(ISNA($A21),"",IFERROR(SUMIFS(D_D[AWD],D_D[MT],5,D_D[CAT],SMS, D_D[EP],499,D_D[LOC],$A21)/$E21,0)) -> 0.07177033493 | L21: =IF(ISNA($A21),"",IFERROR(SUMIFS(D_D[AUT],D_D[MT],5,D_D[CAT],SMS, D_D[EP],499,D_D[LOC],$A21)/$E21,0)) -> 0.00956937799
A22: DE499 | B22: 9 | D22: =IFERROR(INDEX(INDIRECT(DS_NWQD),B22),"") -> Delaware-NWQ | E22: =IF(ISNA($A22),"",IFERROR(SUMIFS(D_D[INV],D_D[MT],5,D_D[CAT],SMS, D_D[EP],499,D_D[LOC],$A22),0)) -> 1399 | F22: =IF(ISNA($A22),"",IFERROR(SUMIFS(D_D[BL],D_D[MT],5,D_D[CAT],SMS, D_D[EP],499,D_D[LOC],$A22),0)) -> 431 | G22: =IF(ISNA($A22),"",IFERROR(F22/E22,0)) -> 0.308077198 | H22: =IF(ISNA($A22),"",IFERROR(SUMIFS(D_D[DEV],D_D[MT],5,D_D[CAT],SMS, D_D[EP],499,D_D[LOC],$A22)/$E22,0)) -> 0.004288777698 | I22: =IF(ISNA($A22),"",IFERROR(SUMIFS(D_D[EVD],D_D[MT],5,D_D[CAT],SMS, D_D[EP],499,D_D[LOC],$A22)/$E22,0)) -> 0.7884203002 | J22: =IF(ISNA($A22),"",IFERROR(SUMIFS(D_D[DEC],D_D[MT],5,D_D[CAT],SMS, D_D[EP],499,D_D[LOC],$A22)/$E22,0)) -> 0.2072909221 | K22: =IF(ISNA($A22),"",IFERROR(SUMIFS(D_D[AWD],D_D[MT],5,D_D[CAT],SMS, D_D[EP],499,D_D[LOC],$A22)/$E22,0)) -> 0 | L22: =IF(ISNA($A22),"",IFERROR(SUMIFS(D_D[AUT],D_D[MT],5,D_D[CAT],SMS, D_D[EP],499,D_D[LOC],$A22)/$E22,0)) -> 0
A23: DC100 | B23: 10 | C23: DC | D23: DC-Total | E23: =IF(ISNA($A23),"",IFERROR(SUMIFS(D_D[INV],D_D[MT],5,D_D[CAT],SMS, D_D[EP],499,D_D[LOC],$A23),0)) -> 665 | F23: =IF(ISNA($A23),"",IFERROR(SUMIFS(D_D[BL],D_D[MT],5,D_D[CAT],SMS, D_D[EP],499,D_D[LOC],$A23),0)) -> 214 | G23: 0.3218045113 | H23: =IF(ISNA($A23),"",IFERROR(SUMIFS(D_D[DEV],D_D[MT],5,D_D[CAT],SMS, D_D[EP],499,D_D[LOC],$A23)/$E23,0)) -> 0.01954887218 | I23: =IF(ISNA($A23),"",IFERROR(SUMIFS(D_D[EVD],D_D[MT],5,D_D[CAT],SMS, D_D[EP],499,D_D[LOC],$A23)/$E23,0)) -> 0.7383458647 | J23: =IF(ISNA($A23),"",IFERROR(SUMIFS(D_D[DEC],D_D[MT],5,D_D[CAT],SMS, D_D[EP],499,D_D[LOC],$A23)/$E23,0)) -> 0.2285714286 | K23: =IF(ISNA($A23),"",IFERROR(SUMIFS(D_D[AWD],D_D[MT],5,D_D[CAT],SMS, D_D[EP],499,D_D[LOC],$A23)/$E23,0)) -> 0.01203007519 | L23: =IF(ISNA($A23),"",IFERROR(SUMIFS(D_D[AUT],D_D[MT],5,D_D[CAT],SMS, D_D[EP],499,D_D[LOC],$A23)/$E23,0)) -> 0.001503759398
A24: DC372 | B24: 11 | D24: Washington DC RO | E24: =IF(ISNA($A24),"",IFERROR(SUMIFS(D_D[INV],D_D[MT],5,D_D[CAT],SMS, D_D[EP],499,D_D[LOC],$A24),0)) -> 0 | F24: =IF(ISNA($A24),"",IFERROR(SUMIFS(D_D[BL],D_D[MT],5,D_D[CAT],SMS, D_D[EP],499,D_D[LOC],$A24),0)) -> 0 | G24: 0 | H24: =IF(ISNA($A24),"",IFERROR(SUMIFS(D_D[DEV],D_D[MT],5,D_D[CAT],SMS, D_D[EP],499,D_D[LOC],$A24)/$E24,0)) -> 0 | I24: =IF(ISNA($A24),"",IFERROR(SUMIFS(D_D[EVD],D_D[MT],5,D_D[CAT],SMS, D_D[EP],499,D_D[LOC],$A24)/$E24,0)) -> 0 | J24: =IF(ISNA($A24),"",IFERROR(SUMIFS(D_D[DEC],D_D[MT],5,D_D[CAT],SMS, D_D[EP],499,D_D[LOC],$A24)/$E24,0)) -> 0 | K24: =IF(ISNA($A24),"",IFERROR(SUMIFS(D_D[AWD],D_D[MT],5,D_D[CAT],SMS, D_D[EP],499,D_D[LOC],$A24)/$E24,0)) -> 0 | L24: =IF(ISNA($A24),"",IFERROR(SUMIFS(D_D[AUT],D_D[MT],5,D_D[CAT],SMS, D_D[EP],499,D_D[LOC],$A24)/$E24,0)) -> 0
A25: DC-1 | B25: 12 | D25: DC-Other RO | E25: =IF(ISNA($A25),"",IFERROR(SUMIFS(D_D[INV],D_D[MT],5,D_D[CAT],SMS, D_D[EP],499,D_D[LOC],$A25),0)) -> 103 | F25: =IF(ISNA($A25),"",IFERROR(SUMIFS(D_D[BL],D_D[MT],5,D_D[CAT],SMS, D_D[EP],499,D_D[LOC],$A25),0)) -> 32 | G25: 0.3106796117 | H25: =IF(ISNA($A25),"",IFERROR(SUMIFS(D_D[DEV],D_D[MT],5,D_D[CAT],SMS, D_D[EP],499,D_D[LOC],$A25)/$E25,0)) -> 0.1067961165 | I25: =IF(ISNA($A25),"",IFERROR(SUMIFS(D_D[EVD],D_D[MT],5,D_D[CAT],SMS, D_D[EP],499,D_D[LOC],$A25)/$E25,0)) -> 0.5825242718 | J25: =IF(ISNA($A25),"",IFERROR(SUMIFS(D_D[DEC],D_D[MT],5,D_D[CAT],SMS, D_D[EP],499,D_D[LOC],$A25)/$E25,0)) -> 0.2330097087 | K25: =IF(ISNA($A25),"",IFERROR(SUMIFS(D_D[AWD],D_D[MT],5,D_D[CAT],SMS, D_D[EP],499,D_D[LOC],$A25)/$E25,0)) -> 0.06796116505 | L25: =IF(ISNA($A25),"",IFERROR(SUMIFS(D_D[AUT],D_D[MT],5,D_D[CAT],SMS, D_D[EP],499,D_D[LOC],$A25)/$E25,0)) -> 0.009708737864
A26: DC499 | B26: 13 | D26: DC-NWQ | E26: =IF(ISNA($A26),"",IFERROR(SUMIFS(D_D[INV],D_D[MT],5,D_D[CAT],SMS, D_D[EP],499,D_D[LOC],$A26),0)) -> 562 | F26: =IF(ISNA($A26),"",IFERROR(SUMIFS(D_D[BL],D_D[MT],5,D_D[CAT],SMS, D_D[EP],499,D_D[LOC],$A26),0)) -> 182 | G26: 0.3238434164 | H26: =IF(ISNA($A26),"",IFERROR(SUMIFS(D_D[DEV],D_D[MT],5,D_D[CAT],SMS, D_D[EP],499,D_D[LOC],$A26)/$E26,0)) -> 0.003558718861 | I26: =IF(ISNA($A26),"",IFERROR(SUMIFS(D_D[EVD],D_D[MT],5,D_D[CAT],SMS, D_D[EP],499,D_D[LOC],$A26)/$E26,0)) -> 0.7669039146 | J26: =IF(ISNA($A26),"",IFERROR(SUMIFS(D_D[DEC],D_D[MT],5,D_D[CAT],SMS, D_D[EP],499,D_D[LOC],$A26)/$E26,0)) -> 0.2277580071 | K26: =IF(ISNA($A26),"",IFERROR(SUMIFS(D_D[AWD],D_D[MT],5,D_D[CAT],SMS, D_D[EP],499,D_D[LOC],$A26)/$E26,0)) -> 0.001779359431 | L26: =IF(ISNA($A26),"",IFERROR(SUMIFS(D_D[AUT],D_D[MT],5,D_D[CAT],SMS, D_D[EP],499,D_D[LOC],$A26)/$E26,0)) -> 0
A27: IL100 | B27: 14 | C27: Illinois | D27: Illinois-Total | E27: =IF(ISNA($A27),"",IFERROR(SUMIFS(D_D[INV],D_D[MT],5,D_D[CAT],SMS, D_D[EP],499,D_D[LOC],$A27),0)) -> 14083 | F27: =IF(ISNA($A27),"",IFERROR(SUMIFS(D_D[BL],D_D[MT],5,D_D[CAT],SMS, D_D[EP],499,D_D[LOC],$A27),0)) -> 4478 | G27: 0.317972023 | H27: =IF(ISNA($A27),"",IFERROR(SUMIFS(D_D[DEV],D_D[MT],5,D_D[CAT],SMS, D_D[EP],499,D_D[LOC],$A27)/$E27,0)) -> 0.01768089186 | I27: =IF(ISNA($A27),"",IFERROR(SUMIFS(D_D[EVD],D_D[MT],5,D_D[CAT],SMS, D_D[EP],499,D_D[LOC],$A27)/$E27,0)) -> 0.7493431797 | J27: =IF(ISNA($A27),"",IFERROR(SUMIFS(D_D[DEC],D_D[MT],5,D_D[CAT],SMS, D_D[EP],499,D_D[LOC],$A27)/$E27,0)) -> 0.2224668039 | K27: =IF(ISNA($A27),"",IFERROR(SUMIFS(D_D[AWD],D_D[MT],5,D_D[CAT],SMS, D_D[EP],499,D_D[LOC],$A27)/$E27,0)) -> 0.007384790173 | L27: =IF(ISNA($A27),"",IFERROR(SUMIFS(D_D[AUT],D_D[MT],5,D_D[CAT],SMS, D_D[EP],499,D_D[LOC],$A27)/$E27,0)) -> 0.003124334304
A28: IL328 | B28: 15 | C28: 0 | D28: =IFERROR(INDEX(INDIRECT(DS_NWQD),B28),"") -> Chicago RO | E28: =IF(ISNA($A28),"",IFERROR(SUMIFS(D_D[INV],D_D[MT],5,D_D[CAT],SMS, D_D[EP],499,D_D[LOC],$A28),0)) -> 186 | F28: =IF(ISNA($A28),"",IFERROR(SUMIFS(D_D[BL],D_D[MT],5,D_D[CAT],SMS, D_D[EP],499,D_D[LOC],$A28),0)) -> 24 | G28: =IF(ISNA($A28),"",IFERROR(F28/E28,0)) -> 0.1290322581 | H28: =IF(ISNA($A28),"",IFERROR(SUMIFS(D_D[DEV],D_D[MT],5,D_D[CAT],SMS, D_D[EP],499,D_D[LOC],$A28)/$E28,0)) -> 0.3978494624 | I28: =IF(ISNA($A28),"",IFERROR(SUMIFS(D_D[EVD],D_D[MT],5,D_D[CAT],SMS, D_D[EP],499,D_D[LOC],$A28)/$E28,0)) -> 0.4139784946 | J28: =IF(ISNA($A28),"",IFERROR(SUMIFS(D_D[DEC],D_D[MT],5,D_D[CAT],SMS, D_D[EP],499,D_D[LOC],$A28)/$E28,0)) -> 0.1451612903 | K28: =IF(ISNA($A28),"",IFERROR(SUMIFS(D_D[AWD],D_D[MT],5,D_D[CAT],SMS, D_D[EP],499,D_D[LOC],$A28)/$E28,0)) -> 0.03225806452 | L28: =IF(ISNA($A28),"",IFERROR(SUMIFS(D_D[AUT],D_D[MT],5,D_D[CAT],SMS, D_D[EP],499,D_D[LOC],$A28)/$E28,0)) -> 0.01075268817
A29: IL-1 | B29: 16 | D29: Illinois-Other RO | E29: =IF(ISNA($A29),"",IFERROR(SUMIFS(D_D[INV],D_D[MT],5,D_D[CAT],SMS, D_D[EP],499,D_D[LOC],$A29),0)) -> 1862 | F29: =IF(ISNA($A29),"",IFERROR(SUMIFS(D_D[BL],D_D[MT],5,D_D[CAT],SMS, D_D[EP],499,D_D[LOC],$A29),0)) -> 736 | G29: 0.395273899 | H29: =IF(ISNA($A29),"",IFERROR(SUMIFS(D_D[DEV],D_D[MT],5,D_D[CAT],SMS, D_D[EP],499,D_D[LOC],$A29)/$E29,0)) -> 0.06283566058 | I29: =IF(ISNA($A29),"",IFERROR(SUMIFS(D_D[EVD],D_D[MT],5,D_D[CAT],SMS, D_D[EP],499,D_D[LOC],$A29)/$E29,0)) -> 0.5961331901 | J29: =IF(ISNA($A29),"",IFERROR(SUMIFS(D_D[DEC],D_D[MT],5,D_D[CAT],SMS, D_D[EP],499,D_D[LOC],$A29)/$E29,0)) -> 0.2696025779 | K29: =IF(ISNA($A29),"",IFERROR(SUMIFS(D_D[AWD],D_D[MT],5,D_D[CAT],SMS, D_D[EP],499,D_D[LOC],$A29)/$E29,0)) -> 0.04887218045 | L29: =IF(ISNA($A29),"",IFERROR(SUMIFS(D_D[AUT],D_D[MT],5,D_D[CAT],SMS, D_D[EP],499,D_D[LOC],$A29)/$E29,0)) -> 0.02255639098
A30: IL499 | B30: 17 | D30: Illinois-NWQ | E30: =IF(ISNA($A30),"",IFERROR(SUMIFS(D_D[INV],D_D[MT],5,D_D[CAT],SMS, D_D[EP],499,D_D[LOC],$A30),0)) -> 12035 | F30: =IF(ISNA($A30),"",IFERROR(SUMIFS(D_D[BL],D_D[MT],5,D_D[CAT],SMS, D_D[EP],499,D_D[LOC],$A30),0)) -> 3718 | G30: 0.3089322808 | H30: =IF(ISNA($A30),"",IFERROR(SUMIFS(D_D[DEV],D_D[MT],5,D_D[CAT],SMS, D_D[EP],499,D_D[LOC],$A30)/$E30,0)) -> 0.004819277108 | I30: =IF(ISNA($A30),"",IFERROR(SUMIFS(D_D[EVD],D_D[MT],5,D_D[CAT],SMS, D_D[EP],499,D_D[LOC],$A30)/$E30,0)) -> 0.778230162 | J30: =IF(ISNA($A30),"",IFERROR(SUMIFS(D_D[DEC],D_D[MT],5,D_D[CAT],SMS, D_D[EP],499,D_D[LOC],$A30)/$E30,0)) -> 0.216368924 | K30: =IF(ISNA($A30),"",IFERROR(SUMIFS(D_D[AWD],D_D[MT],5,D_D[CAT],SMS, D_D[EP],499,D_D[LOC],$A30)/$E30,0)) -> 0.0005816368924 | L30: =IF(ISNA($A30),"",IFERROR(SUMIFS(D_D[AUT],D_D[MT],5,D_D[CAT],SMS, D_D[EP],499,D_D[LOC],$A30)/$E30,0)) -> 0
A31: IN100 | B31: 18 | C31: Indiana | D31: Indiana-Total | E31: =IF(ISNA($A31),"",IFERROR(SUMIFS(D_D[INV],D_D[MT],5,D_D[CAT],SMS, D_D[EP],499,D_D[LOC],$A31),0)) -> 11035 | F31: =IF(ISNA($A31),"",IFERROR(SUMIFS(D_D[BL],D_D[MT],5,D_D[CAT],SMS, D_D[EP],499,D_D[LOC],$A31),0)) -> 3517 | G31: 0.3187131853 | H31: =IF(ISNA($A31),"",IFERROR(SUMIFS(D_D[DEV],D_D[MT],5,D_D[CAT],SMS, D_D[EP],499,D_D[LOC],$A31)/$E31,0)) -> 0.01794290893 | I31: =IF(ISNA($A31),"",IFERROR(SUMIFS(D_D[EVD],D_D[MT],5,D_D[CAT],SMS, D_D[EP],499,D_D[LOC],$A31)/$E31,0)) -> 0.7574082465 | J31: =IF(ISNA($A31),"",IFERROR(SUMIFS(D_D[DEC],D_D[MT],5,D_D[CAT],SMS, D_D[EP],499,D_D[LOC],$A31)/$E31,0)) -> 0.2158586316 | K31: =IF(ISNA($A31),"",IFERROR(SUMIFS(D_D[AWD],D_D[MT],5,D_D[CAT],SMS, D_D[EP],499,D_D[LOC],$A31)/$E31,0)) -> 0.00589034889 | L31: =IF(ISNA($A31),"",IFERROR(SUMIFS(D_D[AUT],D_D[MT],5,D_D[CAT],SMS, D_D[EP],499,D_D[LOC],$A31)/$E31,0)) -> 0.002899864069
A32: IN326 | B32: 19 | C32: 0 | D32: Indianapolis RO | E32: =IF(ISNA($A32),"",IFERROR(SUMIFS(D_D[INV],D_D[MT],5,D_D[CAT],SMS, D_D[EP],499,D_D[LOC],$A32),0)) -> 160 | F32: =IF(ISNA($A32),"",IFERROR(SUMIFS(D_D[BL],D_D[MT],5,D_D[CAT],SMS, D_D[EP],499,D_D[LOC],$A32),0)) -> 29 | G32: 0.18125 | H32: =IF(ISNA($A32),"",IFERROR(SUMIFS(D_D[DEV],D_D[MT],5,D_D[CAT],SMS, D_D[EP],499,D_D[LOC],$A32)/$E32,0)) -> 0.38125 | I32: =IF(ISNA($A32),"",IFERROR(SUMIFS(D_D[EVD],D_D[MT],5,D_D[CAT],SMS, D_D[EP],499,D_D[LOC],$A32)/$E32,0)) -> 0.34375 | J32: =IF(ISNA($A32),"",IFERROR(SUMIFS(D_D[DEC],D_D[MT],5,D_D[CAT],SMS, D_D[EP],499,D_D[LOC],$A32)/$E32,0)) -> 0.24375 | K32: =IF(ISNA($A32),"",IFERROR(SUMIFS(D_D[AWD],D_D[MT],5,D_D[CAT],SMS, D_D[EP],499,D_D[LOC],$A32)/$E32,0)) -> 0.01875 | L32: =IF(ISNA($A32),"",IFERROR(SUMIFS(D_D[AUT],D_D[MT],5,D_D[CAT],SMS, D_D[EP],499,D_D[LOC],$A32)/$E32,0)) -> 0.0125
A33: IN-1 | B33: 20 | D33: Indiana-Other RO | E33: =IF(ISNA($A33),"",IFERROR(SUMIFS(D_D[INV],D_D[MT],5,D_D[CAT],SMS, D_D[EP],499,D_D[LOC],$A33),0)) -> 1439 | F33: =IF(ISNA($A33),"",IFERROR(SUMIFS(D_D[BL],D_D[MT],5,D_D[CAT],SMS, D_D[EP],499,D_D[LOC],$A33),0)) -> 543 | G33: 0.3773453787 | H33: =IF(ISNA($A33),"",IFERROR(SUMIFS(D_D[DEV],D_D[MT],5,D_D[CAT],SMS, D_D[EP],499,D_D[LOC],$A33)/$E33,0)) -> 0.07088255733 | I33: =IF(ISNA($A33),"",IFERROR(SUMIFS(D_D[EVD],D_D[MT],5,D_D[CAT],SMS, D_D[EP],499,D_D[LOC],$A33)/$E33,0)) -> 0.5892981237 | J33: =IF(ISNA($A33),"",IFERROR(SUMIFS(D_D[DEC],D_D[MT],5,D_D[CAT],SMS, D_D[EP],499,D_D[LOC],$A33)/$E33,0)) -> 0.2779708131 | K33: =IF(ISNA($A33),"",IFERROR(SUMIFS(D_D[AWD],D_D[MT],5,D_D[CAT],SMS, D_D[EP],499,D_D[LOC],$A33)/$E33,0)) -> 0.04100069493 | L33: =IF(ISNA($A33),"",IFERROR(SUMIFS(D_D[AUT],D_D[MT],5,D_D[CAT],SMS, D_D[EP],499,D_D[LOC],$A33)/$E33,0)) -> 0.02084781098
A34: IN499 | B34: 21 | D34: Indiana-NWQ | E34: =IF(ISNA($A34),"",IFERROR(SUMIFS(D_D[INV],D_D[MT],5,D_D[CAT],SMS, D_D[EP],499,D_D[LOC],$A34),0)) -> 9436 | F34: =IF(ISNA($A34),"",IFERROR(SUMIFS(D_D[BL],D_D[MT],5,D_D[CAT],SMS, D_D[EP],499,D_D[LOC],$A34),0)) -> 2945 | G34: 0.3121025858 | H34: =IF(ISNA($A34),"",IFERROR(SUMIFS(D_D[DEV],D_D[MT],5,D_D[CAT],SMS, D_D[EP],499,D_D[LOC],$A34)/$E34,0)) -> 0.003709198813 | I34: =IF(ISNA($A34),"",IFERROR(SUMIFS(D_D[EVD],D_D[MT],5,D_D[CAT],SMS, D_D[EP],499,D_D[LOC],$A34)/$E34,0)) -> 0.7900593472 | J34: =IF(ISNA($A34),"",IFERROR(SUMIFS(D_D[DEC],D_D[MT],5,D_D[CAT],SMS, D_D[EP],499,D_D[LOC],$A34)/$E34,0)) -> 0.2059135227 | K34: =IF(ISNA($A34),"",IFERROR(SUMIFS(D_D[AWD],D_D[MT],5,D_D[CAT],SMS, D_D[EP],499,D_D[LOC],$A34)/$E34,0)) -> 0.0003179313268 | L34: =IF(ISNA($A34),"",IFERROR(SUMIFS(D_D[AUT],D_D[MT],5,D_D[CAT],SMS, D_D[EP],499,D_D[LOC],$A34)/$E34,0)) -> 0
A35: ME100 | B35: 22 | C35: Maine | D35: Maine-Total | E35: =IF(ISNA($A35),"",IFERROR(SUMIFS(D_D[INV],D_D[MT],5,D_D[CAT],SMS, D_D[EP],499,D_D[LOC],$A35),0)) -> 2742 | F35: =IF(ISNA($A35),"",IFERROR(SUMIFS(D_D[BL],D_D[MT],5,D_D[CAT],SMS, D_D[EP],499,D_D[LOC],$A35),0)) -> 1000 | G35: 0.3646973012 | H35: =IF(ISNA($A35),"",IFERROR(SUMIFS(D_D[DEV],D_D[MT],5,D_D[CAT],SMS, D_D[EP],499,D_D[LOC],$A35)/$E35,0)) -> 0.01604668125 | I35: =IF(ISNA($A35),"",IFERROR(SUMIFS(D_D[EVD],D_D[MT],5,D_D[CAT],SMS, D_D[EP],499,D_D[LOC],$A35)/$E35,0)) -> 0.7490882567 | J35: =IF(ISNA($A35),"",IFERROR(SUMIFS(D_D[DEC],D_D[MT],5,D_D[CAT],SMS, D_D[EP],499,D_D[LOC],$A35)/$E35,0)) -> 0.2283005106 | K35: =IF(ISNA($A35),"",IFERROR(SUMIFS(D_D[AWD],D_D[MT],5,D_D[CAT],SMS, D_D[EP],499,D_D[LOC],$A35)/$E35,0)) -> 0.004376367615 | L35: =IF(ISNA($A35),"",IFERROR(SUMIFS(D_D[AUT],D_D[MT],5,D_D[CAT],SMS, D_D[EP],499,D_D[LOC],$A35)/$E35,0)) -> 0.002188183807
A36: ME402 | B36: 23 | C36: 0 | D36: Togus RO | E36: =IF(ISNA($A36),"",IFERROR(SUMIFS(D_D[INV],D_D[MT],5,D_D[CAT],SMS, D_D[EP],499,D_D[LOC],$A36),0)) -> 30 | F36: =IF(ISNA($A36),"",IFERROR(SUMIFS(D_D[BL],D_D[MT],5,D_D[CAT],SMS, D_D[EP],499,D_D[LOC],$A36),0)) -> 4 | G36: 0.1333333333 | H36: =IF(ISNA($A36),"",IFERROR(SUMIFS(D_D[DEV],D_D[MT],5,D_D[CAT],SMS, D_D[EP],499,D_D[LOC],$A36)/$E36,0)) -> 0.5666666667 | I36: =IF(ISNA($A36),"",IFERROR(SUMIFS(D_D[EVD],D_D[MT],5,D_D[CAT],SMS, D_D[EP],499,D_D[LOC],$A36)/$E36,0)) -> 0.3 | J36: =IF(ISNA($A36),"",IFERROR(SUMIFS(D_D[DEC],D_D[MT],5,D_D[CAT],SMS, D_D[EP],499,D_D[LOC],$A36)/$E36,0)) -> 0.1333333333 | K36: =IF(ISNA($A36),"",IFERROR(SUMIFS(D_D[AWD],D_D[MT],5,D_D[CAT],SMS, D_D[EP],499,D_D[LOC],$A36)/$E36,0)) -> 0 | L36: =IF(ISNA($A36),"",IFERROR(SUMIFS(D_D[AUT],D_D[MT],5,D_D[CAT],SMS, D_D[EP],499,D_D[LOC],$A36)/$E36,0)) -> 0
A37: ME-1 | B37: 24 | C37: 0 | D37: Maine-Other RO | E37: =IF(ISNA($A37),"",IFERROR(SUMIFS(D_D[INV],D_D[MT],5,D_D[CAT],SMS, D_D[EP],499,D_D[LOC],$A37),0)) -> 395 | F37: =IF(ISNA($A37),"",IFERROR(SUMIFS(D_D[BL],D_D[MT],5,D_D[CAT],SMS, D_D[EP],499,D_D[LOC],$A37),0)) -> 153 | G37: 0.3873417722 | H37: =IF(ISNA($A37),"",IFERROR(SUMIFS(D_D[DEV],D_D[MT],5,D_D[CAT],SMS, D_D[EP],499,D_D[LOC],$A37)/$E37,0)) -> 0.04810126582 | I37: =IF(ISNA($A37),"",IFERROR(SUMIFS(D_D[EVD],D_D[MT],5,D_D[CAT],SMS, D_D[EP],499,D_D[LOC],$A37)/$E37,0)) -> 0.6303797468 | J37: =IF(ISNA($A37),"",IFERROR(SUMIFS(D_D[DEC],D_D[MT],5,D_D[CAT],SMS, D_D[EP],499,D_D[LOC],$A37)/$E37,0)) -> 0.2784810127 | K37: =IF(ISNA($A37),"",IFERROR(SUMIFS(D_D[AWD],D_D[MT],5,D_D[CAT],SMS, D_D[EP],499,D_D[LOC],$A37)/$E37,0)) -> 0.02784810127 | L37: =IF(ISNA($A37),"",IFERROR(SUMIFS(D_D[AUT],D_D[MT],5,D_D[CAT],SMS, D_D[EP],499,D_D[LOC],$A37)/$E37,0)) -> 0.01518987342
A38: ME499 | B38: 25 | C38: 0 | D38: Maine-NWQ | E38: =IF(ISNA($A38),"",IFERROR(SUMIFS(D_D[INV],D_D[MT],5,D_D[CAT],SMS, D_D[EP],499,D_D[LOC],$A38),0)) -> 2317 | F38: =IF(ISNA($A38),"",IFERROR(SUMIFS(D_D[BL],D_D[MT],5,D_D[CAT],SMS, D_D[EP],499,D_D[LOC],$A38),0)) -> 843 | G38: 0.3638325421 | H38: =IF(ISNA($A38),"",IFERROR(SUMIFS(D_D[DEV],D_D[MT],5,D_D[CAT],SMS, D_D[EP],499,D_D[LOC],$A38)/$E38,0)) -> 0.003452740613 | I38: =IF(ISNA($A38),"",IFERROR(SUMIFS(D_D[EVD],D_D[MT],5,D_D[CAT],SMS, D_D[EP],499,D_D[LOC],$A38)/$E38,0)) -> 0.7751402676 | J38: =IF(ISNA($A38),"",IFERROR(SUMIFS(D_D[DEC],D_D[MT],5,D_D[CAT],SMS, D_D[EP],499,D_D[LOC],$A38)/$E38,0)) -> 0.2209753992 | K38: =IF(ISNA($A38),"",IFERROR(SUMIFS(D_D[AWD],D_D[MT],5,D_D[CAT],SMS, D_D[EP],499,D_D[LOC],$A38)/$E38,0)) -> 0.0004315925766 | L38: =IF(ISNA($A38),"",IFERROR(SUMIFS(D_D[AUT],D_D[MT],5,D_D[CAT],SMS, D_D[EP],499,D_D[LOC],$A38)/$E38,0)) -> 0
A39: MD100 | B39: 26 | C39: Maryland | D39: Maryland-Total | E39: =IF(ISNA($A39),"",IFERROR(SUMIFS(D_D[INV],D_D[MT],5,D_D[CAT],SMS, D_D[EP],499,D_D[LOC],$A39),0)) -> 9952 | F39: =IF(ISNA($A39),"",IFERROR(SUMIFS(D_D[BL],D_D[MT],5,D_D[CAT],SMS, D_D[EP],499,D_D[LOC],$A39),0)) -> 2956 | G39: 0.2970257235 | H39: =IF(ISNA($A39),"",IFERROR(SUMIFS(D_D[DEV],D_D[MT],5,D_D[CAT],SMS, D_D[EP],499,D_D[LOC],$A39)/$E39,0)) -> 0.02351286174 | I39: =IF(ISNA($A39),"",IFERROR(SUMIFS(D_D[EVD],D_D[MT],5,D_D[CAT],SMS, D_D[EP],499,D_D[LOC],$A39)/$E39,0)) -> 0.7494975884 | J39: =IF(ISNA($A39),"",IFERROR(SUMIFS(D_D[DEC],D_D[MT],5,D_D[CAT],SMS, D_D[EP],499,D_D[LOC],$A39)/$E39,0)) -> 0.2132234727 | K39: =IF(ISNA($A39),"",IFERROR(SUMIFS(D_D[AWD],D_D[MT],5,D_D[CAT],SMS, D_D[EP],499,D_D[LOC],$A39)/$E39,0)) -> 0.0106511254 | L39: =IF(ISNA($A39),"",IFERROR(SUMIFS(D_D[AUT],D_D[MT],5,D_D[CAT],SMS, D_D[EP],499,D_D[LOC],$A39)/$E39,0)) -> 0.003114951768
A40: MD313 | B40: 27 | C40: 0 | D40: Baltimore RO | E40: =IF(ISNA($A40),"",IFERROR(SUMIFS(D_D[INV],D_D[MT],5,D_D[CAT],SMS, D_D[EP],499,D_D[LOC],$A40),0)) -> 149 | F40: =IF(ISNA($A40),"",IFERROR(SUMIFS(D_D[BL],D_D[MT],5,D_D[CAT],SMS, D_D[EP],499,D_D[LOC],$A40),0)) -> 14 | G40: 0.09395973154 | H40: =IF(ISNA($A40),"",IFERROR(SUMIFS(D_D[DEV],D_D[MT],5,D_D[CAT],SMS, D_D[EP],499,D_D[LOC],$A40)/$E40,0)) -> 0.5503355705 | I40: =IF(ISNA($A40),"",IFERROR(SUMIFS(D_D[EVD],D_D[MT],5,D_D[CAT],SMS, D_D[EP],499,D_D[LOC],$A40)/$E40,0)) -> 0.3355704698 | J40: =IF(ISNA($A40),"",IFERROR(SUMIFS(D_D[DEC],D_D[MT],5,D_D[CAT],SMS, D_D[EP],499,D_D[LOC],$A40)/$E40,0)) -> 0.08724832215 | K40: =IF(ISNA($A40),"",IFERROR(SUMIFS(D_D[AWD],D_D[MT],5,D_D[CAT],SMS, D_D[EP],499,D_D[LOC],$A40)/$E40,0)) -> 0.01342281879 | L40: =IF(ISNA($A40),"",IFERROR(SUMIFS(D_D[AUT],D_D[MT],5,D_D[CAT],SMS, D_D[EP],499,D_D[LOC],$A40)/$E40,0)) -> 0.01342281879
A41: MD-1 | B41: 28 | C41: 0 | D41: Maryland-Other RO | E41: =IF(ISNA($A41),"",IFERROR(SUMIFS(D_D[INV],D_D[MT],5,D_D[CAT],SMS, D_D[EP],499,D_D[LOC],$A41),0)) -> 1438 | F41: =IF(ISNA($A41),"",IFERROR(SUMIFS(D_D[BL],D_D[MT],5,D_D[CAT],SMS, D_D[EP],499,D_D[LOC],$A41),0)) -> 407 | G41: 0.2830319889 | H41: =IF(ISNA($A41),"",IFERROR(SUMIFS(D_D[DEV],D_D[MT],5,D_D[CAT],SMS, D_D[EP],499,D_D[LOC],$A41)/$E41,0)) -> 0.07232267038 | I41: =IF(ISNA($A41),"",IFERROR(SUMIFS(D_D[EVD],D_D[MT],5,D_D[CAT],SMS, D_D[EP],499,D_D[LOC],$A41)/$E41,0)) -> 0.5639777469 | J41: =IF(ISNA($A41),"",IFERROR(SUMIFS(D_D[DEC],D_D[MT],5,D_D[CAT],SMS, D_D[EP],499,D_D[LOC],$A41)/$E41,0)) -> 0.2753824757 | K41: =IF(ISNA($A41),"",IFERROR(SUMIFS(D_D[AWD],D_D[MT],5,D_D[CAT],SMS, D_D[EP],499,D_D[LOC],$A41)/$E41,0)) -> 0.06815020862 | L41: =IF(ISNA($A41),"",IFERROR(SUMIFS(D_D[AUT],D_D[MT],5,D_D[CAT],SMS, D_D[EP],499,D_D[LOC],$A41)/$E41,0)) -> 0.02016689847
A42: MD499 | B42: 29 | C42: 0 | D42: Maryland-NWQ | E42: =IF(ISNA($A42),"",IFERROR(SUMIFS(D_D[INV],D_D[MT],5,D_D[CAT],SMS, D_D[EP],499,D_D[LOC],$A42),0)) -> 8365 | F42: =IF(ISNA($A42),"",IFERROR(SUMIFS(D_D[BL],D_D[MT],5,D_D[CAT],SMS, D_D[EP],499,D_D[LOC],$A42),0)) -> 2535 | G42: 0.303048416 | H42: =IF(ISNA($A42),"",IFERROR(SUMIFS(D_D[DEV],D_D[MT],5,D_D[CAT],SMS, D_D[EP],499,D_D[LOC],$A42)/$E42,0)) -> 0.00573819486 | I42: =IF(ISNA($A42),"",IFERROR(SUMIFS(D_D[EVD],D_D[MT],5,D_D[CAT],SMS, D_D[EP],499,D_D[LOC],$A42)/$E42,0)) -> 0.7887627017 | J42: =IF(ISNA($A42),"",IFERROR(SUMIFS(D_D[DEC],D_D[MT],5,D_D[CAT],SMS, D_D[EP],499,D_D[LOC],$A42)/$E42,0)) -> 0.204781829 | K42: =IF(ISNA($A42),"",IFERROR(SUMIFS(D_D[AWD],D_D[MT],5,D_D[CAT],SMS, D_D[EP],499,D_D[LOC],$A42)/$E42,0)) -> 0.0007172743574 | L42: =IF(ISNA($A42),"",IFERROR(SUMIFS(D_D[AUT],D_D[MT],5,D_D[CAT],SMS, D_D[EP],499,D_D[LOC],$A42)/$E42,0)) -> 0
A43: MA100 | B43: 30 | C43: Massachusetts | D43: Massachusetts-Total | E43: =IF(ISNA($A43),"",IFERROR(SUMIFS(D_D[INV],D_D[MT],5,D_D[CAT],SMS, D_D[EP],499,D_D[LOC],$A43),0)) -> 6239 | F43: =IF(ISNA($A43),"",IFERROR(SUMIFS(D_D[BL],D_D[MT],5,D_D[CAT],SMS, D_D[EP],499,D_D[LOC],$A43),0)) -> 2264 | G43: 0.3628786665 | H43: =IF(ISNA($A43),"",IFERROR(SUMIFS(D_D[DEV],D_D[MT],5,D_D[CAT],SMS, D_D[EP],499,D_D[LOC],$A43)/$E43,0)) -> 0.0181118769 | I43: =IF(ISNA($A43),"",IFERROR(SUMIFS(D_D[EVD],D_D[MT],5,D_D[CAT],SMS, D_D[EP],499,D_D[LOC],$A43)/$E43,0)) -> 0.7767270396 | J43: =IF(ISNA($A43),"",IFERROR(SUMIFS(D_D[DEC],D_D[MT],5,D_D[CAT],SMS, D_D[EP],499,D_D[LOC],$A43)/$E43,0)) -> 0.1936207726 | K43: =IF(ISNA($A43),"",IFERROR(SUMIFS(D_D[AWD],D_D[MT],5,D_D[CAT],SMS, D_D[EP],499,D_D[LOC],$A43)/$E43,0)) -> 0.008334669017 | L43: =IF(ISNA($A43),"",IFERROR(SUMIFS(D_D[AUT],D_D[MT],5,D_D[CAT],SMS, D_D[EP],499,D_D[LOC],$A43)/$E43,0)) -> 0.00320564193
A44: MA301 | B44: 31 | C44: 0 | D44: Boston RO | E44: =IF(ISNA($A44),"",IFERROR(SUMIFS(D_D[INV],D_D[MT],5,D_D[CAT],SMS, D_D[EP],499,D_D[LOC],$A44),0)) -> 82 | F44: =IF(ISNA($A44),"",IFERROR(SUMIFS(D_D[BL],D_D[MT],5,D_D[CAT],SMS, D_D[EP],499,D_D[LOC],$A44),0)) -> 12 | G44: 0.1463414634 | H44: =IF(ISNA($A44),"",IFERROR(SUMIFS(D_D[DEV],D_D[MT],5,D_D[CAT],SMS, D_D[EP],499,D_D[LOC],$A44)/$E44,0)) -> 0.3780487805 | I44: =IF(ISNA($A44),"",IFERROR(SUMIFS(D_D[EVD],D_D[MT],5,D_D[CAT],SMS, D_D[EP],499,D_D[LOC],$A44)/$E44,0)) -> 0.3780487805 | J44: =IF(ISNA($A44),"",IFERROR(SUMIFS(D_D[DEC],D_D[MT],5,D_D[CAT],SMS, D_D[EP],499,D_D[LOC],$A44)/$E44,0)) -> 0.1951219512 | K44: =IF(ISNA($A44),"",IFERROR(SUMIFS(D_D[AWD],D_D[MT],5,D_D[CAT],SMS, D_D[EP],499,D_D[LOC],$A44)/$E44,0)) -> 0.03658536585 | L44: =IF(ISNA($A44),"",IFERROR(SUMIFS(D_D[AUT],D_D[MT],5,D_D[CAT],SMS, D_D[EP],499,D_D[LOC],$A44)/$E44,0)) -> 0.01219512195
A45: MA-1 | B45: 32 | C45: 0 | D45: Massachusetts-Other RO | E45: =IF(ISNA($A45),"",IFERROR(SUMIFS(D_D[INV],D_D[MT],5,D_D[CAT],SMS, D_D[EP],499,D_D[LOC],$A45),0)) -> 860 | F45: =IF(ISNA($A45),"",IFERROR(SUMIFS(D_D[BL],D_D[MT],5,D_D[CAT],SMS, D_D[EP],499,D_D[LOC],$A45),0)) -> 322 | G45: 0.3744186047 | H45: =IF(ISNA($A45),"",IFERROR(SUMIFS(D_D[DEV],D_D[MT],5,D_D[CAT],SMS, D_D[EP],499,D_D[LOC],$A45)/$E45,0)) -> 0.07441860465 | I45: =IF(ISNA($A45),"",IFERROR(SUMIFS(D_D[EVD],D_D[MT],5,D_D[CAT],SMS, D_D[EP],499,D_D[LOC],$A45)/$E45,0)) -> 0.6046511628 | J45: =IF(ISNA($A45),"",IFERROR(SUMIFS(D_D[DEC],D_D[MT],5,D_D[CAT],SMS, D_D[EP],499,D_D[LOC],$A45)/$E45,0)) -> 0.2465116279 | K45: =IF(ISNA($A45),"",IFERROR(SUMIFS(D_D[AWD],D_D[MT],5,D_D[CAT],SMS, D_D[EP],499,D_D[LOC],$A45)/$E45,0)) -> 0.0523255814 | L45: =IF(ISNA($A45),"",IFERROR(SUMIFS(D_D[AUT],D_D[MT],5,D_D[CAT],SMS, D_D[EP],499,D_D[LOC],$A45)/$E45,0)) -> 0.02209302326
A46: MA499 | B46: 33 | C46: 0 | D46: Massachusetts-NWQ | E46: =IF(ISNA($A46),"",IFERROR(SUMIFS(D_D[INV],D_D[MT],5,D_D[CAT],SMS, D_D[EP],499,D_D[LOC],$A46),0)) -> 5297 | F46: =IF(ISNA($A46),"",IFERROR(SUMIFS(D_D[BL],D_D[MT],5,D_D[CAT],SMS, D_D[EP],499,D_D[LOC],$A46),0)) -> 1930 | G46: 0.3643571833 | H46: =IF(ISNA($A46),"",IFERROR(SUMIFS(D_D[DEV],D_D[MT],5,D_D[CAT],SMS, D_D[EP],499,D_D[LOC],$A46)/$E46,0)) -> 0.003398149896 | I46: =IF(ISNA($A46),"",IFERROR(SUMIFS(D_D[EVD],D_D[MT],5,D_D[CAT],SMS, D_D[EP],499,D_D[LOC],$A46)/$E46,0)) -> 0.8108363224 | J46: =IF(ISNA($A46),"",IFERROR(SUMIFS(D_D[DEC],D_D[MT],5,D_D[CAT],SMS, D_D[EP],499,D_D[LOC],$A46)/$E46,0)) -> 0.1850103832 | K46: =IF(ISNA($A46),"",IFERROR(SUMIFS(D_D[AWD],D_D[MT],5,D_D[CAT],SMS, D_D[EP],499,D_D[LOC],$A46)/$E46,0)) -> 0.0007551444214 | L46: =IF(ISNA($A46),"",IFERROR(SUMIFS(D_D[AUT],D_D[MT],5,D_D[CAT],SMS, D_D[EP],499,D_D[LOC],$A46)/$E46,0)) -> 0
A47: =IFERROR(INDEX(INDIRECT(DS_NWQI),B47),#N/A) -> MI100 | B47: 34 | C47: Michigan | D47: Michigan-Total | E47: =IF(ISNA($A47),"",IFERROR(SUMIFS(D_D[INV],D_D[MT],5,D_D[CAT],SMS, D_D[EP],499,D_D[LOC],$A47),0)) -> 13155 | F47: =IF(ISNA($A47),"",IFERROR(SUMIFS(D_D[BL],D_D[MT],5,D_D[CAT],SMS, D_D[EP],499,D_D[LOC],$A47),0)) -> 4058 | G47: 0.3084758647 | H47: =IF(ISNA($A47),"",IFERROR(SUMIFS(D_D[DEV],D_D[MT],5,D_D[CAT],SMS, D_D[EP],499,D_D[LOC],$A47)/$E47,0)) -> 0.01748384645 | I47: =IF(ISNA($A47),"",IFERROR(SUMIFS(D_D[EVD],D_D[MT],5,D_D[CAT],SMS, D_D[EP],499,D_D[LOC],$A47)/$E47,0)) -> 0.7369821361 | J47: =IF(ISNA($A47),"",IFERROR(SUMIFS(D_D[DEC],D_D[MT],5,D_D[CAT],SMS, D_D[EP],499,D_D[LOC],$A47)/$E47,0)) -> 0.2365640441 | K47: =IF(ISNA($A47),"",IFERROR(SUMIFS(D_D[AWD],D_D[MT],5,D_D[CAT],SMS, D_D[EP],499,D_D[LOC],$A47)/$E47,0)) -> 0.006005321171 | L47: =IF(ISNA($A47),"",IFERROR(SUMIFS(D_D[AUT],D_D[MT],5,D_D[CAT],SMS, D_D[EP],499,D_D[LOC],$A47)/$E47,0)) -> 0.002964652223
A48: MI329 | B48: 35 | C48: 0 | D48: Detroit RO | E48: =IF(ISNA($A48),"",IFERROR(SUMIFS(D_D[INV],D_D[MT],5,D_D[CAT],SMS, D_D[EP],499,D_D[LOC],$A48),0)) -> 229 | F48: =IF(ISNA($A48),"",IFERROR(SUMIFS(D_D[BL],D_D[MT],5,D_D[CAT],SMS, D_D[EP],499,D_D[LOC],$A48),0)) -> 31 | G48: 0.135371179 | H48: =IF(ISNA($A48),"",IFERROR(SUMIFS(D_D[DEV],D_D[MT],5,D_D[CAT],SMS, D_D[EP],499,D_D[LOC],$A48)/$E48,0)) -> 0.3406113537 | I48: =IF(ISNA($A48),"",IFERROR(SUMIFS(D_D[EVD],D_D[MT],5,D_D[CAT],SMS, D_D[EP],499,D_D[LOC],$A48)/$E48,0)) -> 0.3973799127 | J48: =IF(ISNA($A48),"",IFERROR(SUMIFS(D_D[DEC],D_D[MT],5,D_D[CAT],SMS, D_D[EP],499,D_D[LOC],$A48)/$E48,0)) -> 0.2183406114 | K48: =IF(ISNA($A48),"",IFERROR(SUMIFS(D_D[AWD],D_D[MT],5,D_D[CAT],SMS, D_D[EP],499,D_D[LOC],$A48)/$E48,0)) -> 0.02183406114 | L48: =IF(ISNA($A48),"",IFERROR(SUMIFS(D_D[AUT],D_D[MT],5,D_D[CAT],SMS, D_D[EP],499,D_D[LOC],$A48)/$E48,0)) -> 0.02183406114
A49: MI-1 | B49: 36 | C49: 0 | D49: =IFERROR(INDEX(INDIRECT(DS_NWQD),B49),"") -> Michigan-Other RO | E49: =IF(ISNA($A49),"",IFERROR(SUMIFS(D_D[INV],D_D[MT],5,D_D[CAT],SMS, D_D[EP],499,D_D[LOC],$A49),0)) -> 1639 | F49: =IF(ISNA($A49),"",IFERROR(SUMIFS(D_D[BL],D_D[MT],5,D_D[CAT],SMS, D_D[EP],499,D_D[LOC],$A49),0)) -> 662 | G49: =IF(ISNA($A49),"",IFERROR(F49/E49,0)) -> 0.40390482 | H49: =IF(ISNA($A49),"",IFERROR(SUMIFS(D_D[DEV],D_D[MT],5,D_D[CAT],SMS, D_D[EP],499,D_D[LOC],$A49)/$E49,0)) -> 0.05979255644 | I49: =IF(ISNA($A49),"",IFERROR(SUMIFS(D_D[EVD],D_D[MT],5,D_D[CAT],SMS, D_D[EP],499,D_D[LOC],$A49)/$E49,0)) -> 0.6497864552 | J49: =IF(ISNA($A49),"",IFERROR(SUMIFS(D_D[DEC],D_D[MT],5,D_D[CAT],SMS, D_D[EP],499,D_D[LOC],$A49)/$E49,0)) -> 0.2281879195 | K49: =IF(ISNA($A49),"",IFERROR(SUMIFS(D_D[AWD],D_D[MT],5,D_D[CAT],SMS, D_D[EP],499,D_D[LOC],$A49)/$E49,0)) -> 0.04148871263 | L49: =IF(ISNA($A49),"",IFERROR(SUMIFS(D_D[AUT],D_D[MT],5,D_D[CAT],SMS, D_D[EP],499,D_D[LOC],$A49)/$E49,0)) -> 0.02074435631
A50: MI499 | B50: 37 | C50: 0 | D50: Michigan-NWQ | E50: =IF(ISNA($A50),"",IFERROR(SUMIFS(D_D[INV],D_D[MT],5,D_D[CAT],SMS, D_D[EP],499,D_D[LOC],$A50),0)) -> 11287 | F50: =IF(ISNA($A50),"",IFERROR(SUMIFS(D_D[BL],D_D[MT],5,D_D[CAT],SMS, D_D[EP],499,D_D[LOC],$A50),0)) -> 3365 | G50: 0.2981305927 | H50: =IF(ISNA($A50),"",IFERROR(SUMIFS(D_D[DEV],D_D[MT],5,D_D[CAT],SMS, D_D[EP],499,D_D[LOC],$A50)/$E50,0)) -> 0.004784265084 | I50: =IF(ISNA($A50),"",IFERROR(SUMIFS(D_D[EVD],D_D[MT],5,D_D[CAT],SMS, D_D[EP],499,D_D[LOC],$A50)/$E50,0)) -> 0.7565340657 | J50: =IF(ISNA($A50),"",IFERROR(SUMIFS(D_D[DEC],D_D[MT],5,D_D[CAT],SMS, D_D[EP],499,D_D[LOC],$A50)/$E50,0)) -> 0.2381500842 | K50: =IF(ISNA($A50),"",IFERROR(SUMIFS(D_D[AWD],D_D[MT],5,D_D[CAT],SMS, D_D[EP],499,D_D[LOC],$A50)/$E50,0)) -> 0.0005315850093 | L50: =IF(ISNA($A50),"",IFERROR(SUMIFS(D_D[AUT],D_D[MT],5,D_D[CAT],SMS, D_D[EP],499,D_D[LOC],$A50)/$E50,0)) -> 0
A51: MO100 | B51: 38 | C51: Missouri | D51: Missouri-Total | E51: =IF(ISNA($A51),"",IFERROR(SUMIFS(D_D[INV],D_D[MT],5,D_D[CAT],SMS, D_D[EP],499,D_D[LOC],$A51),0)) -> 12197 | F51: =IF(ISNA($A51),"",IFERROR(SUMIFS(D_D[BL],D_D[MT],5,D_D[CAT],SMS, D_D[EP],499,D_D[LOC],$A51),0)) -> 3842 | G51: 0.3149954907 | H51: =IF(ISNA($A51),"",IFERROR(SUMIFS(D_D[DEV],D_D[MT],5,D_D[CAT],SMS, D_D[EP],499,D_D[LOC],$A51)/$E51,0)) -> 0.02238255309 | I51: =IF(ISNA($A51),"",IFERROR(SUMIFS(D_D[EVD],D_D[MT],5,D_D[CAT],SMS, D_D[EP],499,D_D[LOC],$A51)/$E51,0)) -> 0.7365745675 | J51: =IF(ISNA($A51),"",IFERROR(SUMIFS(D_D[DEC],D_D[MT],5,D_D[CAT],SMS, D_D[EP],499,D_D[LOC],$A51)/$E51,0)) -> 0.2298106092 | K51: =IF(ISNA($A51),"",IFERROR(SUMIFS(D_D[AWD],D_D[MT],5,D_D[CAT],SMS, D_D[EP],499,D_D[LOC],$A51)/$E51,0)) -> 0.008198737394 | L51: =IF(ISNA($A51),"",IFERROR(SUMIFS(D_D[AUT],D_D[MT],5,D_D[CAT],SMS, D_D[EP],499,D_D[LOC],$A51)/$E51,0)) -> 0.003033532836
A52: MO331 | B52: 39 | C52: 0 | D52: St. Louis RO | E52: =IF(ISNA($A52),"",IFERROR(SUMIFS(D_D[INV],D_D[MT],5,D_D[CAT],SMS, D_D[EP],499,D_D[LOC],$A52),0)) -> 257 | F52: =IF(ISNA($A52),"",IFERROR(SUMIFS(D_D[BL],D_D[MT],5,D_D[CAT],SMS, D_D[EP],499,D_D[LOC],$A52),0)) -> 56 | G52: 0.2178988327 | H52: =IF(ISNA($A52),"",IFERROR(SUMIFS(D_D[DEV],D_D[MT],5,D_D[CAT],SMS, D_D[EP],499,D_D[LOC],$A52)/$E52,0)) -> 0.4902723735 | I52: =IF(ISNA($A52),"",IFERROR(SUMIFS(D_D[EVD],D_D[MT],5,D_D[CAT],SMS, D_D[EP],499,D_D[LOC],$A52)/$E52,0)) -> 0.3891050584 | J52: =IF(ISNA($A52),"",IFERROR(SUMIFS(D_D[DEC],D_D[MT],5,D_D[CAT],SMS, D_D[EP],499,D_D[LOC],$A52)/$E52,0)) -> 0.1128404669 | K52: =IF(ISNA($A52),"",IFERROR(SUMIFS(D_D[AWD],D_D[MT],5,D_D[CAT],SMS, D_D[EP],499,D_D[LOC],$A52)/$E52,0)) -> 0.003891050584 | L52: =IF(ISNA($A52),"",IFERROR(SUMIFS(D_D[AUT],D_D[MT],5,D_D[CAT],SMS, D_D[EP],499,D_D[LOC],$A52)/$E52,0)) -> 0.003891050584
A53: MO-1 | B53: 40 | C53: 0 | D53: Missouri-Other RO | E53: =IF(ISNA($A53),"",IFERROR(SUMIFS(D_D[INV],D_D[MT],5,D_D[CAT],SMS, D_D[EP],499,D_D[LOC],$A53),0)) -> 1544 | F53: =IF(ISNA($A53),"",IFERROR(SUMIFS(D_D[BL],D_D[MT],5,D_D[CAT],SMS, D_D[EP],499,D_D[LOC],$A53),0)) -> 580 | G53: 0.3756476684 | H53: =IF(ISNA($A53),"",IFERROR(SUMIFS(D_D[DEV],D_D[MT],5,D_D[CAT],SMS, D_D[EP],499,D_D[LOC],$A53)/$E53,0)) -> 0.06541450777 | I53: =IF(ISNA($A53),"",IFERROR(SUMIFS(D_D[EVD],D_D[MT],5,D_D[CAT],SMS, D_D[EP],499,D_D[LOC],$A53)/$E53,0)) -> 0.5977979275 | J53: =IF(ISNA($A53),"",IFERROR(SUMIFS(D_D[DEC],D_D[MT],5,D_D[CAT],SMS, D_D[EP],499,D_D[LOC],$A53)/$E53,0)) -> 0.2525906736 | K53: =IF(ISNA($A53),"",IFERROR(SUMIFS(D_D[AWD],D_D[MT],5,D_D[CAT],SMS, D_D[EP],499,D_D[LOC],$A53)/$E53,0)) -> 0.06088082902 | L53: =IF(ISNA($A53),"",IFERROR(SUMIFS(D_D[AUT],D_D[MT],5,D_D[CAT],SMS, D_D[EP],499,D_D[LOC],$A53)/$E53,0)) -> 0.02331606218
A54: MO499 | B54: 41 | C54: 0 | D54: Missouri-NWQ | E54: =IF(ISNA($A54),"",IFERROR(SUMIFS(D_D[INV],D_D[MT],5,D_D[CAT],SMS, D_D[EP],499,D_D[LOC],$A54),0)) -> 10396 | F54: =IF(ISNA($A54),"",IFERROR(SUMIFS(D_D[BL],D_D[MT],5,D_D[CAT],SMS, D_D[EP],499,D_D[LOC],$A54),0)) -> 3206 | G54: 0.3083878415 | H54: =IF(ISNA($A54),"",IFERROR(SUMIFS(D_D[DEV],D_D[MT],5,D_D[CAT],SMS, D_D[EP],499,D_D[LOC],$A54)/$E54,0)) -> 0.004424778761 | I54: =IF(ISNA($A54),"",IFERROR(SUMIFS(D_D[EVD],D_D[MT],5,D_D[CAT],SMS, D_D[EP],499,D_D[LOC],$A54)/$E54,0)) -> 0.7657752982 | J54: =IF(ISNA($A54),"",IFERROR(SUMIFS(D_D[DEC],D_D[MT],5,D_D[CAT],SMS, D_D[EP],499,D_D[LOC],$A54)/$E54,0)) -> 0.2293189688 | K54: =IF(ISNA($A54),"",IFERROR(SUMIFS(D_D[AWD],D_D[MT],5,D_D[CAT],SMS, D_D[EP],499,D_D[LOC],$A54)/$E54,0)) -> 0.0004809542132 | L54: =IF(ISNA($A54),"",IFERROR(SUMIFS(D_D[AUT],D_D[MT],5,D_D[CAT],SMS, D_D[EP],499,D_D[LOC],$A54)/$E54,0)) -> 0
A55: NH100 | B55: 42 | C55: New Hampshire | D55: New Hampshire-Total | E55: =IF(ISNA($A55),"",IFERROR(SUMIFS(D_D[INV],D_D[MT],5,D_D[CAT],SMS, D_D[EP],499,D_D[LOC],$A55),0)) -> 2000 | F55: =IF(ISNA($A55),"",IFERROR(SUMIFS(D_D[BL],D_D[MT],5,D_D[CAT],SMS, D_D[EP],499,D_D[LOC],$A55),0)) -> 768 | G55: 0.384 | H55: =IF(ISNA($A55),"",IFERROR(SUMIFS(D_D[DEV],D_D[MT],5,D_D[CAT],SMS, D_D[EP],499,D_D[LOC],$A55)/$E55,0)) -> 0.0105 | I55: =IF(ISNA($A55),"",IFERROR(SUMIFS(D_D[EVD],D_D[MT],5,D_D[CAT],SMS, D_D[EP],499,D_D[LOC],$A55)/$E55,0)) -> 0.7765 | J55: =IF(ISNA($A55),"",IFERROR(SUMIFS(D_D[DEC],D_D[MT],5,D_D[CAT],SMS, D_D[EP],499,D_D[LOC],$A55)/$E55,0)) -> 0.202 | K55: =IF(ISNA($A55),"",IFERROR(SUMIFS(D_D[AWD],D_D[MT],5,D_D[CAT],SMS, D_D[EP],499,D_D[LOC],$A55)/$E55,0)) -> 0.0075 | L55: =IF(ISNA($A55),"",IFERROR(SUMIFS(D_D[AUT],D_D[MT],5,D_D[CAT],SMS, D_D[EP],499,D_D[LOC],$A55)/$E55,0)) -> 0.0035
A56: NH373 | B56: 43 | C56: 0 | D56: Manchester RO | E56: =IF(ISNA($A56),"",IFERROR(SUMIFS(D_D[INV],D_D[MT],5,D_D[CAT],SMS, D_D[EP],499,D_D[LOC],$A56),0)) -> 17 | F56: =IF(ISNA($A56),"",IFERROR(SUMIFS(D_D[BL],D_D[MT],5,D_D[CAT],SMS, D_D[EP],499,D_D[LOC],$A56),0)) -> 2 | G56: 0.1176470588 | H56: =IF(ISNA($A56),"",IFERROR(SUMIFS(D_D[DEV],D_D[MT],5,D_D[CAT],SMS, D_D[EP],499,D_D[LOC],$A56)/$E56,0)) -> 0.2941176471 | I56: =IF(ISNA($A56),"",IFERROR(SUMIFS(D_D[EVD],D_D[MT],5,D_D[CAT],SMS, D_D[EP],499,D_D[LOC],$A56)/$E56,0)) -> 0.6470588235 | J56: =IF(ISNA($A56),"",IFERROR(SUMIFS(D_D[DEC],D_D[MT],5,D_D[CAT],SMS, D_D[EP],499,D_D[LOC],$A56)/$E56,0)) -> 0 | K56: =IF(ISNA($A56),"",IFERROR(SUMIFS(D_D[AWD],D_D[MT],5,D_D[CAT],SMS, D_D[EP],499,D_D[LOC],$A56)/$E56,0)) -> 0.05882352941 | L56: =IF(ISNA($A56),"",IFERROR(SUMIFS(D_D[AUT],D_D[MT],5,D_D[CAT],SMS, D_D[EP],499,D_D[LOC],$A56)/$E56,0)) -> 0
A57: NH-1 | B57: 44 | C57: 0 | D57: New Hampshire-Other RO | E57: =IF(ISNA($A57),"",IFERROR(SUMIFS(D_D[INV],D_D[MT],5,D_D[CAT],SMS, D_D[EP],499,D_D[LOC],$A57),0)) -> 287 | F57: =IF(ISNA($A57),"",IFERROR(SUMIFS(D_D[BL],D_D[MT],5,D_D[CAT],SMS, D_D[EP],499,D_D[LOC],$A57),0)) -> 114 | G57: 0.3972125436 | H57: =IF(ISNA($A57),"",IFERROR(SUMIFS(D_D[DEV],D_D[MT],5,D_D[CAT],SMS, D_D[EP],499,D_D[LOC],$A57)/$E57,0)) -> 0.0487804878 | I57: =IF(ISNA($A57),"",IFERROR(SUMIFS(D_D[EVD],D_D[MT],5,D_D[CAT],SMS, D_D[EP],499,D_D[LOC],$A57)/$E57,0)) -> 0.5923344948 | J57: =IF(ISNA($A57),"",IFERROR(SUMIFS(D_D[DEC],D_D[MT],5,D_D[CAT],SMS, D_D[EP],499,D_D[LOC],$A57)/$E57,0)) -> 0.2857142857 | K57: =IF(ISNA($A57),"",IFERROR(SUMIFS(D_D[AWD],D_D[MT],5,D_D[CAT],SMS, D_D[EP],499,D_D[LOC],$A57)/$E57,0)) -> 0.0487804878 | L57: =IF(ISNA($A57),"",IFERROR(SUMIFS(D_D[AUT],D_D[MT],5,D_D[CAT],SMS, D_D[EP],499,D_D[LOC],$A57)/$E57,0)) -> 0.0243902439
A58: NH499 | B58: 45 | C58: 0 | D58: New Hampshire-NWQ | E58: =IF(ISNA($A58),"",IFERROR(SUMIFS(D_D[INV],D_D[MT],5,D_D[CAT],SMS, D_D[EP],499,D_D[LOC],$A58),0)) -> 1696 | F58: =IF(ISNA($A58),"",IFERROR(SUMIFS(D_D[BL],D_D[MT],5,D_D[CAT],SMS, D_D[EP],499,D_D[LOC],$A58),0)) -> 652 | G58: 0.3844339623 | H58: =IF(ISNA($A58),"",IFERROR(SUMIFS(D_D[DEV],D_D[MT],5,D_D[CAT],SMS, D_D[EP],499,D_D[LOC],$A58)/$E58,0)) -> 0.001179245283 | I58: =IF(ISNA($A58),"",IFERROR(SUMIFS(D_D[EVD],D_D[MT],5,D_D[CAT],SMS, D_D[EP],499,D_D[LOC],$A58)/$E58,0)) -> 0.8089622642 | J58: =IF(ISNA($A58),"",IFERROR(SUMIFS(D_D[DEC],D_D[MT],5,D_D[CAT],SMS, D_D[EP],499,D_D[LOC],$A58)/$E58,0)) -> 0.1898584906 | K58: =IF(ISNA($A58),"",IFERROR(SUMIFS(D_D[AWD],D_D[MT],5,D_D[CAT],SMS, D_D[EP],499,D_D[LOC],$A58)/$E58,0)) -> 0 | L58: =IF(ISNA($A58),"",IFERROR(SUMIFS(D_D[AUT],D_D[MT],5,D_D[CAT],SMS, D_D[EP],499,D_D[LOC],$A58)/$E58,0)) -> 0
A59: NJ100 | B59: 46 | C59: New Jersey | D59: New Jersey-Total | E59: =IF(ISNA($A59),"",IFERROR(SUMIFS(D_D[INV],D_D[MT],5,D_D[CAT],SMS, D_D[EP],499,D_D[LOC],$A59),0)) -> 7365 | F59: =IF(ISNA($A59),"",IFERROR(SUMIFS(D_D[BL],D_D[MT],5,D_D[CAT],SMS, D_D[EP],499,D_D[LOC],$A59),0)) -> 2789 | G59: 0.3786829599 | H59: =IF(ISNA($A59),"",IFERROR(SUMIFS(D_D[DEV],D_D[MT],5,D_D[CAT],SMS, D_D[EP],499,D_D[LOC],$A59)/$E59,0)) -> 0.016700611 | I59: =IF(ISNA($A59),"",IFERROR(SUMIFS(D_D[EVD],D_D[MT],5,D_D[CAT],SMS, D_D[EP],499,D_D[LOC],$A59)/$E59,0)) -> 0.782892057 | J59: =IF(ISNA($A59),"",IFERROR(SUMIFS(D_D[DEC],D_D[MT],5,D_D[CAT],SMS, D_D[EP],499,D_D[LOC],$A59)/$E59,0)) -> 0.1894093686 | K59: =IF(ISNA($A59),"",IFERROR(SUMIFS(D_D[AWD],D_D[MT],5,D_D[CAT],SMS, D_D[EP],499,D_D[LOC],$A59)/$E59,0)) -> 0.00706042091 | L59: =IF(ISNA($A59),"",IFERROR(SUMIFS(D_D[AUT],D_D[MT],5,D_D[CAT],SMS, D_D[EP],499,D_D[LOC],$A59)/$E59,0)) -> 0.00393754243
A60: NJ309 | B60: 47 | C60: 0 | D60: =IFERROR(INDEX(INDIRECT(DS_NWQD),B60),"") -> Newark RO | E60: =IF(ISNA($A60),"",IFERROR(SUMIFS(D_D[INV],D_D[MT],5,D_D[CAT],SMS, D_D[EP],499,D_D[LOC],$A60),0)) -> 63 | F60: =IF(ISNA($A60),"",IFERROR(SUMIFS(D_D[BL],D_D[MT],5,D_D[CAT],SMS, D_D[EP],499,D_D[LOC],$A60),0)) -> 15 | G60: =IF(ISNA($A60),"",IFERROR(F60/E60,0)) -> 0.2380952381 | H60: =IF(ISNA($A60),"",IFERROR(SUMIFS(D_D[DEV],D_D[MT],5,D_D[CAT],SMS, D_D[EP],499,D_D[LOC],$A60)/$E60,0)) -> 0.5396825397 | I60: =IF(ISNA($A60),"",IFERROR(SUMIFS(D_D[EVD],D_D[MT],5,D_D[CAT],SMS, D_D[EP],499,D_D[LOC],$A60)/$E60,0)) -> 0.3333333333 | J60: =IF(ISNA($A60),"",IFERROR(SUMIFS(D_D[DEC],D_D[MT],5,D_D[CAT],SMS, D_D[EP],499,D_D[LOC],$A60)/$E60,0)) -> 0.1111111111 | K60: =IF(ISNA($A60),"",IFERROR(SUMIFS(D_D[AWD],D_D[MT],5,D_D[CAT],SMS, D_D[EP],499,D_D[LOC],$A60)/$E60,0)) -> 0.01587301587 | L60: =IF(ISNA($A60),"",IFERROR(SUMIFS(D_D[AUT],D_D[MT],5,D_D[CAT],SMS, D_D[EP],499,D_D[LOC],$A60)/$E60,0)) -> 0
A61: NJ-1 | B61: 48 | C61: 0 | D61: New Jersey-Other RO | E61: =IF(ISNA($A61),"",IFERROR(SUMIFS(D_D[INV],D_D[MT],5,D_D[CAT],SMS, D_D[EP],499,D_D[LOC],$A61),0)) -> 1048 | F61: =IF(ISNA($A61),"",IFERROR(SUMIFS(D_D[BL],D_D[MT],5,D_D[CAT],SMS, D_D[EP],499,D_D[LOC],$A61),0)) -> 429 | G61: 0.409351145 | H61: =IF(ISNA($A61),"",IFERROR(SUMIFS(D_D[DEV],D_D[MT],5,D_D[CAT],SMS, D_D[EP],499,D_D[LOC],$A61)/$E61,0)) -> 0.06106870229 | I61: =IF(ISNA($A61),"",IFERROR(SUMIFS(D_D[EVD],D_D[MT],5,D_D[CAT],SMS, D_D[EP],499,D_D[LOC],$A61)/$E61,0)) -> 0.5973282443 | J61: =IF(ISNA($A61),"",IFERROR(SUMIFS(D_D[DEC],D_D[MT],5,D_D[CAT],SMS, D_D[EP],499,D_D[LOC],$A61)/$E61,0)) -> 0.268129771 | K61: =IF(ISNA($A61),"",IFERROR(SUMIFS(D_D[AWD],D_D[MT],5,D_D[CAT],SMS, D_D[EP],499,D_D[LOC],$A61)/$E61,0)) -> 0.04675572519 | L61: =IF(ISNA($A61),"",IFERROR(SUMIFS(D_D[AUT],D_D[MT],5,D_D[CAT],SMS, D_D[EP],499,D_D[LOC],$A61)/$E61,0)) -> 0.02671755725
A62: NJ499 | B62: 49 | C62: 0 | D62: New Jersey-NWQ | E62: =IF(ISNA($A62),"",IFERROR(SUMIFS(D_D[INV],D_D[MT],5,D_D[CAT],SMS, D_D[EP],499,D_D[LOC],$A62),0)) -> 6254 | F62: =IF(ISNA($A62),"",IFERROR(SUMIFS(D_D[BL],D_D[MT],5,D_D[CAT],SMS, D_D[EP],499,D_D[LOC],$A62),0)) -> 2345 | G62: 0.3749600256 | H62: =IF(ISNA($A62),"",IFERROR(SUMIFS(D_D[DEV],D_D[MT],5,D_D[CAT],SMS, D_D[EP],499,D_D[LOC],$A62)/$E62,0)) -> 0.003997441637 | I62: =IF(ISNA($A62),"",IFERROR(SUMIFS(D_D[EVD],D_D[MT],5,D_D[CAT],SMS, D_D[EP],499,D_D[LOC],$A62)/$E62,0)) -> 0.8185161497 | J62: =IF(ISNA($A62),"",IFERROR(SUMIFS(D_D[DEC],D_D[MT],5,D_D[CAT],SMS, D_D[EP],499,D_D[LOC],$A62)/$E62,0)) -> 0.1770067157 | K62: =IF(ISNA($A62),"",IFERROR(SUMIFS(D_D[AWD],D_D[MT],5,D_D[CAT],SMS, D_D[EP],499,D_D[LOC],$A62)/$E62,0)) -> 0.000319795331 | L62: =IF(ISNA($A62),"",IFERROR(SUMIFS(D_D[AUT],D_D[MT],5,D_D[CAT],SMS, D_D[EP],499,D_D[LOC],$A62)/$E62,0)) -> 0.0001598976655
A63: NY100 | B63: 50 | C63: =IFERROR(INDEX(INDIRECT(DS_NWQ),B63),"") -> New York | D63: New York-Total | E63: =IF(ISNA($A63),"",IFERROR(SUMIFS(D_D[INV],D_D[MT],5,D_D[CAT],SMS, D_D[EP],499,D_D[LOC],$A63),0)) -> 15474 | F63: =IF(ISNA($A63),"",IFERROR(SUMIFS(D_D[BL],D_D[MT],5,D_D[CAT],SMS, D_D[EP],499,D_D[LOC],$A63),0)) -> 5580 | G63: 0.3606048856 | H63: =IF(ISNA($A63),"",IFERROR(SUMIFS(D_D[DEV],D_D[MT],5,D_D[CAT],SMS, D_D[EP],499,D_D[LOC],$A63)/$E63,0)) -> 0.01777174615 | I63: =IF(ISNA($A63),"",IFERROR(SUMIFS(D_D[EVD],D_D[MT],5,D_D[CAT],SMS, D_D[EP],499,D_D[LOC],$A63)/$E63,0)) -> 0.7639265865 | J63: =IF(ISNA($A63),"",IFERROR(SUMIFS(D_D[DEC],D_D[MT],5,D_D[CAT],SMS, D_D[EP],499,D_D[LOC],$A63)/$E63,0)) -> 0.2071216234 | K63: =IF(ISNA($A63),"",IFERROR(SUMIFS(D_D[AWD],D_D[MT],5,D_D[CAT],SMS, D_D[EP],499,D_D[LOC],$A63)/$E63,0)) -> 0.007690319245 | L63: =IF(ISNA($A63),"",IFERROR(SUMIFS(D_D[AUT],D_D[MT],5,D_D[CAT],SMS, D_D[EP],499,D_D[LOC],$A63)/$E63,0)) -> 0.003489724699
A64: NY307 | B64: 51 | C64: 0 | D64: =IFERROR(INDEX(INDIRECT(DS_NWQD),B64),"") -> Buffalo RO | E64: =IF(ISNA($A64),"",IFERROR(SUMIFS(D_D[INV],D_D[MT],5,D_D[CAT],SMS, D_D[EP],499,D_D[LOC],$A64),0)) -> 107 | F64: =IF(ISNA($A64),"",IFERROR(SUMIFS(D_D[BL],D_D[MT],5,D_D[CAT],SMS, D_D[EP],499,D_D[LOC],$A64),0)) -> 20 | G64: =IF(ISNA($A64),"",IFERROR(F64/E64,0)) -> 0.1869158879 | H64: =IF(ISNA($A64),"",IFERROR(SUMIFS(D_D[DEV],D_D[MT],5,D_D[CAT],SMS, D_D[EP],499,D_D[LOC],$A64)/$E64,0)) -> 0.5140186916 | I64: =IF(ISNA($A64),"",IFERROR(SUMIFS(D_D[EVD],D_D[MT],5,D_D[CAT],SMS, D_D[EP],499,D_D[LOC],$A64)/$E64,0)) -> 0.2429906542 | J64: =IF(ISNA($A64),"",IFERROR(SUMIFS(D_D[DEC],D_D[MT],5,D_D[CAT],SMS, D_D[EP],499,D_D[LOC],$A64)/$E64,0)) -> 0.1495327103 | K64: =IF(ISNA($A64),"",IFERROR(SUMIFS(D_D[AWD],D_D[MT],5,D_D[CAT],SMS, D_D[EP],499,D_D[LOC],$A64)/$E64,0)) -> 0.03738317757 | L64: =IF(ISNA($A64),"",IFERROR(SUMIFS(D_D[AUT],D_D[MT],5,D_D[CAT],SMS, D_D[EP],499,D_D[LOC],$A64)/$E64,0)) -> 0.05607476636
A65: NY306 | B65: 52 | C65: 0 | D65: New York RO | E65: =IF(ISNA($A65),"",IFERROR(SUMIFS(D_D[INV],D_D[MT],5,D_D[CAT],SMS, D_D[EP],499,D_D[LOC],$A65),0)) -> 119 | F65: =IF(ISNA($A65),"",IFERROR(SUMIFS(D_D[BL],D_D[MT],5,D_D[CAT],SMS, D_D[EP],499,D_D[LOC],$A65),0)) -> 18 | G65: 0.1512605042 | H65: =IF(ISNA($A65),"",IFERROR(SUMIFS(D_D[DEV],D_D[MT],5,D_D[CAT],SMS, D_D[EP],499,D_D[LOC],$A65)/$E65,0)) -> 0.4705882353 | I65: =IF(ISNA($A65),"",IFERROR(SUMIFS(D_D[EVD],D_D[MT],5,D_D[CAT],SMS, D_D[EP],499,D_D[LOC],$A65)/$E65,0)) -> 0.3109243697 | J65: =IF(ISNA($A65),"",IFERROR(SUMIFS(D_D[DEC],D_D[MT],5,D_D[CAT],SMS, D_D[EP],499,D_D[LOC],$A65)/$E65,0)) -> 0.1344537815 | K65: =IF(ISNA($A65),"",IFERROR(SUMIFS(D_D[AWD],D_D[MT],5,D_D[CAT],SMS, D_D[EP],499,D_D[LOC],$A65)/$E65,0)) -> 0.02521008403 | L65: =IF(ISNA($A65),"",IFERROR(SUMIFS(D_D[AUT],D_D[MT],5,D_D[CAT],SMS, D_D[EP],499,D_D[LOC],$A65)/$E65,0)) -> 0.05882352941
A66: NY-1 | B66: 53 | C66: 0 | D66: New York-Other RO | E66: =IF(ISNA($A66),"",IFERROR(SUMIFS(D_D[INV],D_D[MT],5,D_D[CAT],SMS, D_D[EP],499,D_D[LOC],$A66),0)) -> 1971 | F66: =IF(ISNA($A66),"",IFERROR(SUMIFS(D_D[BL],D_D[MT],5,D_D[CAT],SMS, D_D[EP],499,D_D[LOC],$A66),0)) -> 792 | G66: 0.401826484 | H66: =IF(ISNA($A66),"",IFERROR(SUMIFS(D_D[DEV],D_D[MT],5,D_D[CAT],SMS, D_D[EP],499,D_D[LOC],$A66)/$E66,0)) -> 0.05885337392 | I66: =IF(ISNA($A66),"",IFERROR(SUMIFS(D_D[EVD],D_D[MT],5,D_D[CAT],SMS, D_D[EP],499,D_D[LOC],$A66)/$E66,0)) -> 0.5905631659 | J66: =IF(ISNA($A66),"",IFERROR(SUMIFS(D_D[DEC],D_D[MT],5,D_D[CAT],SMS, D_D[EP],499,D_D[LOC],$A66)/$E66,0)) -> 0.2765093861 | K66: =IF(ISNA($A66),"",IFERROR(SUMIFS(D_D[AWD],D_D[MT],5,D_D[CAT],SMS, D_D[EP],499,D_D[LOC],$A66)/$E66,0)) -> 0.05327245053 | L66: =IF(ISNA($A66),"",IFERROR(SUMIFS(D_D[AUT],D_D[MT],5,D_D[CAT],SMS, D_D[EP],499,D_D[LOC],$A66)/$E66,0)) -> 0.02080162354
A67: NY499 | B67: 54 | C67: 0 | D67: New York-NWQ | E67: =IF(ISNA($A67),"",IFERROR(SUMIFS(D_D[INV],D_D[MT],5,D_D[CAT],SMS, D_D[EP],499,D_D[LOC],$A67),0)) -> 13277 | F67: =IF(ISNA($A67),"",IFERROR(SUMIFS(D_D[BL],D_D[MT],5,D_D[CAT],SMS, D_D[EP],499,D_D[LOC],$A67),0)) -> 4750 | G67: 0.3577615425 | H67: =IF(ISNA($A67),"",IFERROR(SUMIFS(D_D[DEV],D_D[MT],5,D_D[CAT],SMS, D_D[EP],499,D_D[LOC],$A67)/$E67,0)) -> 0.003615274535 | I67: =IF(ISNA($A67),"",IFERROR(SUMIFS(D_D[EVD],D_D[MT],5,D_D[CAT],SMS, D_D[EP],499,D_D[LOC],$A67)/$E67,0)) -> 0.7979212171 | J67: =IF(ISNA($A67),"",IFERROR(SUMIFS(D_D[DEC],D_D[MT],5,D_D[CAT],SMS, D_D[EP],499,D_D[LOC],$A67)/$E67,0)) -> 0.1979362808 | K67: =IF(ISNA($A67),"",IFERROR(SUMIFS(D_D[AWD],D_D[MT],5,D_D[CAT],SMS, D_D[EP],499,D_D[LOC],$A67)/$E67,0)) -> 0.0005272275363 | L67: =IF(ISNA($A67),"",IFERROR(SUMIFS(D_D[AUT],D_D[MT],5,D_D[CAT],SMS, D_D[EP],499,D_D[LOC],$A67)/$E67,0)) -> 0
A68: OH100 | B68: 55 | C68: Ohio | D68: Ohio-Total | E68: =IF(ISNA($A68),"",IFERROR(SUMIFS(D_D[INV],D_D[MT],5,D_D[CAT],SMS, D_D[EP],499,D_D[LOC],$A68),0)) -> 18485 | F68: =IF(ISNA($A68),"",IFERROR(SUMIFS(D_D[BL],D_D[MT],5,D_D[CAT],SMS, D_D[EP],499,D_D[LOC],$A68),0)) -> 5602 | G68: 0.3030565323 | H68: =IF(ISNA($A68),"",IFERROR(SUMIFS(D_D[DEV],D_D[MT],5,D_D[CAT],SMS, D_D[EP],499,D_D[LOC],$A68)/$E68,0)) -> 0.02028671896 | I68: =IF(ISNA($A68),"",IFERROR(SUMIFS(D_D[EVD],D_D[MT],5,D_D[CAT],SMS, D_D[EP],499,D_D[LOC],$A68)/$E68,0)) -> 0.7383283744 | J68: =IF(ISNA($A68),"",IFERROR(SUMIFS(D_D[DEC],D_D[MT],5,D_D[CAT],SMS, D_D[EP],499,D_D[LOC],$A68)/$E68,0)) -> 0.2311604003 | K68: =IF(ISNA($A68),"",IFERROR(SUMIFS(D_D[AWD],D_D[MT],5,D_D[CAT],SMS, D_D[EP],499,D_D[LOC],$A68)/$E68,0)) -> 0.007249120909 | L68: =IF(ISNA($A68),"",IFERROR(SUMIFS(D_D[AUT],D_D[MT],5,D_D[CAT],SMS, D_D[EP],499,D_D[LOC],$A68)/$E68,0)) -> 0.00292128753
A69: OH325 | B69: 56 | C69: 0 | D69: Cleveland RO | E69: =IF(ISNA($A69),"",IFERROR(SUMIFS(D_D[INV],D_D[MT],5,D_D[CAT],SMS, D_D[EP],499,D_D[LOC],$A69),0)) -> 320 | F69: =IF(ISNA($A69),"",IFERROR(SUMIFS(D_D[BL],D_D[MT],5,D_D[CAT],SMS, D_D[EP],499,D_D[LOC],$A69),0)) -> 85 | G69: 0.265625 | H69: =IF(ISNA($A69),"",IFERROR(SUMIFS(D_D[DEV],D_D[MT],5,D_D[CAT],SMS, D_D[EP],499,D_D[LOC],$A69)/$E69,0)) -> 0.446875 | I69: =IF(ISNA($A69),"",IFERROR(SUMIFS(D_D[EVD],D_D[MT],5,D_D[CAT],SMS, D_D[EP],499,D_D[LOC],$A69)/$E69,0)) -> 0.40625 | J69: =IF(ISNA($A69),"",IFERROR(SUMIFS(D_D[DEC],D_D[MT],5,D_D[CAT],SMS, D_D[EP],499,D_D[LOC],$A69)/$E69,0)) -> 0.103125 | K69: =IF(ISNA($A69),"",IFERROR(SUMIFS(D_D[AWD],D_D[MT],5,D_D[CAT],SMS, D_D[EP],499,D_D[LOC],$A69)/$E69,0)) -> 0.034375 | L69: =IF(ISNA($A69),"",IFERROR(SUMIFS(D_D[AUT],D_D[MT],5,D_D[CAT],SMS, D_D[EP],499,D_D[LOC],$A69)/$E69,0)) -> 0.009375
A70: OH-1 | B70: 57 | C70: 0 | D70: Ohio-Other RO | E70: =IF(ISNA($A70),"",IFERROR(SUMIFS(D_D[INV],D_D[MT],5,D_D[CAT],SMS, D_D[EP],499,D_D[LOC],$A70),0)) -> 2384 | F70: =IF(ISNA($A70),"",IFERROR(SUMIFS(D_D[BL],D_D[MT],5,D_D[CAT],SMS, D_D[EP],499,D_D[LOC],$A70),0)) -> 864 | G70: 0.3624161074 | H70: =IF(ISNA($A70),"",IFERROR(SUMIFS(D_D[DEV],D_D[MT],5,D_D[CAT],SMS, D_D[EP],499,D_D[LOC],$A70)/$E70,0)) -> 0.06501677852 | I70: =IF(ISNA($A70),"",IFERROR(SUMIFS(D_D[EVD],D_D[MT],5,D_D[CAT],SMS, D_D[EP],499,D_D[LOC],$A70)/$E70,0)) -> 0.6082214765 | J70: =IF(ISNA($A70),"",IFERROR(SUMIFS(D_D[DEC],D_D[MT],5,D_D[CAT],SMS, D_D[EP],499,D_D[LOC],$A70)/$E70,0)) -> 0.2583892617 | K70: =IF(ISNA($A70),"",IFERROR(SUMIFS(D_D[AWD],D_D[MT],5,D_D[CAT],SMS, D_D[EP],499,D_D[LOC],$A70)/$E70,0)) -> 0.04697986577 | L70: =IF(ISNA($A70),"",IFERROR(SUMIFS(D_D[AUT],D_D[MT],5,D_D[CAT],SMS, D_D[EP],499,D_D[LOC],$A70)/$E70,0)) -> 0.02097315436
A71: OH499 | B71: 58 | C71: 0 | D71: Ohio-NWQ | E71: =IF(ISNA($A71),"",IFERROR(SUMIFS(D_D[INV],D_D[MT],5,D_D[CAT],SMS, D_D[EP],499,D_D[LOC],$A71),0)) -> 15781 | F71: =IF(ISNA($A71),"",IFERROR(SUMIFS(D_D[BL],D_D[MT],5,D_D[CAT],SMS, D_D[EP],499,D_D[LOC],$A71),0)) -> 4653 | G71: 0.2948482352 | H71: =IF(ISNA($A71),"",IFERROR(SUMIFS(D_D[DEV],D_D[MT],5,D_D[CAT],SMS, D_D[EP],499,D_D[LOC],$A71)/$E71,0)) -> 0.004879285216 | I71: =IF(ISNA($A71),"",IFERROR(SUMIFS(D_D[EVD],D_D[MT],5,D_D[CAT],SMS, D_D[EP],499,D_D[LOC],$A71)/$E71,0)) -> 0.7647170648 | J71: =IF(ISNA($A71),"",IFERROR(SUMIFS(D_D[DEC],D_D[MT],5,D_D[CAT],SMS, D_D[EP],499,D_D[LOC],$A71)/$E71,0)) -> 0.2296432419 | K71: =IF(ISNA($A71),"",IFERROR(SUMIFS(D_D[AWD],D_D[MT],5,D_D[CAT],SMS, D_D[EP],499,D_D[LOC],$A71)/$E71,0)) -> 0.0006970407452 | L71: =IF(ISNA($A71),"",IFERROR(SUMIFS(D_D[AUT],D_D[MT],5,D_D[CAT],SMS, D_D[EP],499,D_D[LOC],$A71)/$E71,0)) -> 6.336734047e-05
A72: PA100 | B72: 59 | C72: Pennsylvania | D72: Pennsylvania-Total | E72: =IF(ISNA($A72),"",IFERROR(SUMIFS(D_D[INV],D_D[MT],5,D_D[CAT],SMS, D_D[EP],499,D_D[LOC],$A72),0)) -> 16630 | F72: =IF(ISNA($A72),"",IFERROR(SUMIFS(D_D[BL],D_D[MT],5,D_D[CAT],SMS, D_D[EP],499,D_D[LOC],$A72),0)) -> 5651 | G72: 0.3398075767 | H72: =IF(ISNA($A72),"",IFERROR(SUMIFS(D_D[DEV],D_D[MT],5,D_D[CAT],SMS, D_D[EP],499,D_D[LOC],$A72)/$E72,0)) -> 0.01707757066 | I72: =IF(ISNA($A72),"",IFERROR(SUMIFS(D_D[EVD],D_D[MT],5,D_D[CAT],SMS, D_D[EP],499,D_D[LOC],$A72)/$E72,0)) -> 0.7381238725 | J72: =IF(ISNA($A72),"",IFERROR(SUMIFS(D_D[DEC],D_D[MT],5,D_D[CAT],SMS, D_D[EP],499,D_D[LOC],$A72)/$E72,0)) -> 0.233674083 | K72: =IF(ISNA($A72),"",IFERROR(SUMIFS(D_D[AWD],D_D[MT],5,D_D[CAT],SMS, D_D[EP],499,D_D[LOC],$A72)/$E72,0)) -> 0.007937462417 | L72: =IF(ISNA($A72),"",IFERROR(SUMIFS(D_D[AUT],D_D[MT],5,D_D[CAT],SMS, D_D[EP],499,D_D[LOC],$A72)/$E72,0)) -> 0.003126879134
A73: PA310 | B73: 60 | C73: 0 | D73: Philadelphia RO | E73: =IF(ISNA($A73),"",IFERROR(SUMIFS(D_D[INV],D_D[MT],5,D_D[CAT],SMS, D_D[EP],499,D_D[LOC],$A73),0)) -> 238 | F73: =IF(ISNA($A73),"",IFERROR(SUMIFS(D_D[BL],D_D[MT],5,D_D[CAT],SMS, D_D[EP],499,D_D[LOC],$A73),0)) -> 51 | G73: 0.2142857143 | H73: =IF(ISNA($A73),"",IFERROR(SUMIFS(D_D[DEV],D_D[MT],5,D_D[CAT],SMS, D_D[EP],499,D_D[LOC],$A73)/$E73,0)) -> 0.3193277311 | I73: =IF(ISNA($A73),"",IFERROR(SUMIFS(D_D[EVD],D_D[MT],5,D_D[CAT],SMS, D_D[EP],499,D_D[LOC],$A73)/$E73,0)) -> 0.2899159664 | J73: =IF(ISNA($A73),"",IFERROR(SUMIFS(D_D[DEC],D_D[MT],5,D_D[CAT],SMS, D_D[EP],499,D_D[LOC],$A73)/$E73,0)) -> 0.3403361345 | K73: =IF(ISNA($A73),"",IFERROR(SUMIFS(D_D[AWD],D_D[MT],5,D_D[CAT],SMS, D_D[EP],499,D_D[LOC],$A73)/$E73,0)) -> 0.02941176471 | L73: =IF(ISNA($A73),"",IFERROR(SUMIFS(D_D[AUT],D_D[MT],5,D_D[CAT],SMS, D_D[EP],499,D_D[LOC],$A73)/$E73,0)) -> 0.02100840336
A74: PA311 | B74: 61 | C74: 0 | D74: Pittsburgh RO | E74: =IF(ISNA($A74),"",IFERROR(SUMIFS(D_D[INV],D_D[MT],5,D_D[CAT],SMS, D_D[EP],499,D_D[LOC],$A74),0)) -> 74 | F74: =IF(ISNA($A74),"",IFERROR(SUMIFS(D_D[BL],D_D[MT],5,D_D[CAT],SMS, D_D[EP],499,D_D[LOC],$A74),0)) -> 9 | G74: 0.1216216216 | H74: =IF(ISNA($A74),"",IFERROR(SUMIFS(D_D[DEV],D_D[MT],5,D_D[CAT],SMS, D_D[EP],499,D_D[LOC],$A74)/$E74,0)) -> 0.472972973 | I74: =IF(ISNA($A74),"",IFERROR(SUMIFS(D_D[EVD],D_D[MT],5,D_D[CAT],SMS, D_D[EP],499,D_D[LOC],$A74)/$E74,0)) -> 0.3243243243 | J74: =IF(ISNA($A74),"",IFERROR(SUMIFS(D_D[DEC],D_D[MT],5,D_D[CAT],SMS, D_D[EP],499,D_D[LOC],$A74)/$E74,0)) -> 0.1756756757 | K74: =IF(ISNA($A74),"",IFERROR(SUMIFS(D_D[AWD],D_D[MT],5,D_D[CAT],SMS, D_D[EP],499,D_D[LOC],$A74)/$E74,0)) -> 0.02702702703 | L74: =IF(ISNA($A74),"",IFERROR(SUMIFS(D_D[AUT],D_D[MT],5,D_D[CAT],SMS, D_D[EP],499,D_D[LOC],$A74)/$E74,0)) -> 0
A75: PA-1 | B75: 62 | C75: 0 | D75: Pennsylvania-Other RO | E75: =IF(ISNA($A75),"",IFERROR(SUMIFS(D_D[INV],D_D[MT],5,D_D[CAT],SMS, D_D[EP],499,D_D[LOC],$A75),0)) -> 2213 | F75: =IF(ISNA($A75),"",IFERROR(SUMIFS(D_D[BL],D_D[MT],5,D_D[CAT],SMS, D_D[EP],499,D_D[LOC],$A75),0)) -> 904 | G75: 0.4084952553 | H75: =IF(ISNA($A75),"",IFERROR(SUMIFS(D_D[DEV],D_D[MT],5,D_D[CAT],SMS, D_D[EP],499,D_D[LOC],$A75)/$E75,0)) -> 0.05422503389 | I75: =IF(ISNA($A75),"",IFERROR(SUMIFS(D_D[EVD],D_D[MT],5,D_D[CAT],SMS, D_D[EP],499,D_D[LOC],$A75)/$E75,0)) -> 0.6037053773 | J75: =IF(ISNA($A75),"",IFERROR(SUMIFS(D_D[DEC],D_D[MT],5,D_D[CAT],SMS, D_D[EP],499,D_D[LOC],$A75)/$E75,0)) -> 0.2679620425 | K75: =IF(ISNA($A75),"",IFERROR(SUMIFS(D_D[AWD],D_D[MT],5,D_D[CAT],SMS, D_D[EP],499,D_D[LOC],$A75)/$E75,0)) -> 0.05241753276 | L75: =IF(ISNA($A75),"",IFERROR(SUMIFS(D_D[AUT],D_D[MT],5,D_D[CAT],SMS, D_D[EP],499,D_D[LOC],$A75)/$E75,0)) -> 0.02123813827
A76: PA499 | B76: 63 | C76: 0 | D76: Pennsylvania-NWQ | E76: =IF(ISNA($A76),"",IFERROR(SUMIFS(D_D[INV],D_D[MT],5,D_D[CAT],SMS, D_D[EP],499,D_D[LOC],$A76),0)) -> 14105 | F76: =IF(ISNA($A76),"",IFERROR(SUMIFS(D_D[BL],D_D[MT],5,D_D[CAT],SMS, D_D[EP],499,D_D[LOC],$A76),0)) -> 4687 | G76: 0.3322935129 | H76: =IF(ISNA($A76),"",IFERROR(SUMIFS(D_D[DEV],D_D[MT],5,D_D[CAT],SMS, D_D[EP],499,D_D[LOC],$A76)/$E76,0)) -> 0.00375753279 | I76: =IF(ISNA($A76),"",IFERROR(SUMIFS(D_D[EVD],D_D[MT],5,D_D[CAT],SMS, D_D[EP],499,D_D[LOC],$A76)/$E76,0)) -> 0.7689471819 | J76: =IF(ISNA($A76),"",IFERROR(SUMIFS(D_D[DEC],D_D[MT],5,D_D[CAT],SMS, D_D[EP],499,D_D[LOC],$A76)/$E76,0)) -> 0.2267990074 | K76: =IF(ISNA($A76),"",IFERROR(SUMIFS(D_D[AWD],D_D[MT],5,D_D[CAT],SMS, D_D[EP],499,D_D[LOC],$A76)/$E76,0)) -> 0.0004962779156 | L76: =IF(ISNA($A76),"",IFERROR(SUMIFS(D_D[AUT],D_D[MT],5,D_D[CAT],SMS, D_D[EP],499,D_D[LOC],$A76)/$E76,0)) -> 0
A77: RI100 | B77: 64 | C77: Rhode Island | D77: Rhode Island-Total | E77: =IF(ISNA($A77),"",IFERROR(SUMIFS(D_D[INV],D_D[MT],5,D_D[CAT],SMS, D_D[EP],499,D_D[LOC],$A77),0)) -> 1599 | F77: =IF(ISNA($A77),"",IFERROR(SUMIFS(D_D[BL],D_D[MT],5,D_D[CAT],SMS, D_D[EP],499,D_D[LOC],$A77),0)) -> 573 | G77: 0.3583489681 | H77: =IF(ISNA($A77),"",IFERROR(SUMIFS(D_D[DEV],D_D[MT],5,D_D[CAT],SMS, D_D[EP],499,D_D[LOC],$A77)/$E77,0)) -> 0.01375859912 | I77: =IF(ISNA($A77),"",IFERROR(SUMIFS(D_D[EVD],D_D[MT],5,D_D[CAT],SMS, D_D[EP],499,D_D[LOC],$A77)/$E77,0)) -> 0.7773608505 | J77: =IF(ISNA($A77),"",IFERROR(SUMIFS(D_D[DEC],D_D[MT],5,D_D[CAT],SMS, D_D[EP],499,D_D[LOC],$A77)/$E77,0)) -> 0.1982489056 | K77: =IF(ISNA($A77),"",IFERROR(SUMIFS(D_D[AWD],D_D[MT],5,D_D[CAT],SMS, D_D[EP],499,D_D[LOC],$A77)/$E77,0)) -> 0.007504690432 | L77: =IF(ISNA($A77),"",IFERROR(SUMIFS(D_D[AUT],D_D[MT],5,D_D[CAT],SMS, D_D[EP],499,D_D[LOC],$A77)/$E77,0)) -> 0.003126954346
A78: RI304 | B78: 65 | C78: 0 | D78: Providence RO | E78: =IF(ISNA($A78),"",IFERROR(SUMIFS(D_D[INV],D_D[MT],5,D_D[CAT],SMS, D_D[EP],499,D_D[LOC],$A78),0)) -> 29 | F78: =IF(ISNA($A78),"",IFERROR(SUMIFS(D_D[BL],D_D[MT],5,D_D[CAT],SMS, D_D[EP],499,D_D[LOC],$A78),0)) -> 8 | G78: 0.275862069 | H78: =IF(ISNA($A78),"",IFERROR(SUMIFS(D_D[DEV],D_D[MT],5,D_D[CAT],SMS, D_D[EP],499,D_D[LOC],$A78)/$E78,0)) -> 0.275862069 | I78: =IF(ISNA($A78),"",IFERROR(SUMIFS(D_D[EVD],D_D[MT],5,D_D[CAT],SMS, D_D[EP],499,D_D[LOC],$A78)/$E78,0)) -> 0.4137931034 | J78: =IF(ISNA($A78),"",IFERROR(SUMIFS(D_D[DEC],D_D[MT],5,D_D[CAT],SMS, D_D[EP],499,D_D[LOC],$A78)/$E78,0)) -> 0.3103448276 | K78: =IF(ISNA($A78),"",IFERROR(SUMIFS(D_D[AWD],D_D[MT],5,D_D[CAT],SMS, D_D[EP],499,D_D[LOC],$A78)/$E78,0)) -> 0 | L78: =IF(ISNA($A78),"",IFERROR(SUMIFS(D_D[AUT],D_D[MT],5,D_D[CAT],SMS, D_D[EP],499,D_D[LOC],$A78)/$E78,0)) -> 0
A79: RI-1 | B79: 66 | C79: 0 | D79: Rhode Island-Other RO | E79: =IF(ISNA($A79),"",IFERROR(SUMIFS(D_D[INV],D_D[MT],5,D_D[CAT],SMS, D_D[EP],499,D_D[LOC],$A79),0)) -> 202 | F79: =IF(ISNA($A79),"",IFERROR(SUMIFS(D_D[BL],D_D[MT],5,D_D[CAT],SMS, D_D[EP],499,D_D[LOC],$A79),0)) -> 78 | G79: 0.3861386139 | H79: =IF(ISNA($A79),"",IFERROR(SUMIFS(D_D[DEV],D_D[MT],5,D_D[CAT],SMS, D_D[EP],499,D_D[LOC],$A79)/$E79,0)) -> 0.05940594059 | I79: =IF(ISNA($A79),"",IFERROR(SUMIFS(D_D[EVD],D_D[MT],5,D_D[CAT],SMS, D_D[EP],499,D_D[LOC],$A79)/$E79,0)) -> 0.6188118812 | J79: =IF(ISNA($A79),"",IFERROR(SUMIFS(D_D[DEC],D_D[MT],5,D_D[CAT],SMS, D_D[EP],499,D_D[LOC],$A79)/$E79,0)) -> 0.2376237624 | K79: =IF(ISNA($A79),"",IFERROR(SUMIFS(D_D[AWD],D_D[MT],5,D_D[CAT],SMS, D_D[EP],499,D_D[LOC],$A79)/$E79,0)) -> 0.05940594059 | L79: =IF(ISNA($A79),"",IFERROR(SUMIFS(D_D[AUT],D_D[MT],5,D_D[CAT],SMS, D_D[EP],499,D_D[LOC],$A79)/$E79,0)) -> 0.02475247525
A80: RI499 | B80: 67 | C80: 0 | D80: Rhode Island-NWQ | E80: =IF(ISNA($A80),"",IFERROR(SUMIFS(D_D[INV],D_D[MT],5,D_D[CAT],SMS, D_D[EP],499,D_D[LOC],$A80),0)) -> 1368 | F80: =IF(ISNA($A80),"",IFERROR(SUMIFS(D_D[BL],D_D[MT],5,D_D[CAT],SMS, D_D[EP],499,D_D[LOC],$A80),0)) -> 487 | G80: 0.355994152 | H80: =IF(ISNA($A80),"",IFERROR(SUMIFS(D_D[DEV],D_D[MT],5,D_D[CAT],SMS, D_D[EP],499,D_D[LOC],$A80)/$E80,0)) -> 0.001461988304 | I80: =IF(ISNA($A80),"",IFERROR(SUMIFS(D_D[EVD],D_D[MT],5,D_D[CAT],SMS, D_D[EP],499,D_D[LOC],$A80)/$E80,0)) -> 0.8084795322 | J80: =IF(ISNA($A80),"",IFERROR(SUMIFS(D_D[DEC],D_D[MT],5,D_D[CAT],SMS, D_D[EP],499,D_D[LOC],$A80)/$E80,0)) -> 0.1900584795 | K80: =IF(ISNA($A80),"",IFERROR(SUMIFS(D_D[AWD],D_D[MT],5,D_D[CAT],SMS, D_D[EP],499,D_D[LOC],$A80)/$E80,0)) -> 0 | L80: =IF(ISNA($A80),"",IFERROR(SUMIFS(D_D[AUT],D_D[MT],5,D_D[CAT],SMS, D_D[EP],499,D_D[LOC],$A80)/$E80,0)) -> 0
A81: VT100 | B81: 68 | C81: =IFERROR(INDEX(INDIRECT(DS_NWQ),B81),"") -> Vermont | D81: Vermont-Total | E81: =IF(ISNA($A81),"",IFERROR(SUMIFS(D_D[INV],D_D[MT],5,D_D[CAT],SMS, D_D[EP],499,D_D[LOC],$A81),0)) -> 822 | F81: =IF(ISNA($A81),"",IFERROR(SUMIFS(D_D[BL],D_D[MT],5,D_D[CAT],SMS, D_D[EP],499,D_D[LOC],$A81),0)) -> 359 | G81: 0.4367396594 | H81: =IF(ISNA($A81),"",IFERROR(SUMIFS(D_D[DEV],D_D[MT],5,D_D[CAT],SMS, D_D[EP],499,D_D[LOC],$A81)/$E81,0)) -> 0.01703163017 | I81: =IF(ISNA($A81),"",IFERROR(SUMIFS(D_D[EVD],D_D[MT],5,D_D[CAT],SMS, D_D[EP],499,D_D[LOC],$A81)/$E81,0)) -> 0.7931873479 | J81: =IF(ISNA($A81),"",IFERROR(SUMIFS(D_D[DEC],D_D[MT],5,D_D[CAT],SMS, D_D[EP],499,D_D[LOC],$A81)/$E81,0)) -> 0.1812652068 | K81: =IF(ISNA($A81),"",IFERROR(SUMIFS(D_D[AWD],D_D[MT],5,D_D[CAT],SMS, D_D[EP],499,D_D[LOC],$A81)/$E81,0)) -> 0.007299270073 | L81: =IF(ISNA($A81),"",IFERROR(SUMIFS(D_D[AUT],D_D[MT],5,D_D[CAT],SMS, D_D[EP],499,D_D[LOC],$A81)/$E81,0)) -> 0.001216545012
A82: VT405 | B82: 69 | C82: 0 | D82: =IFERROR(INDEX(INDIRECT(DS_NWQD),B82),"") -> White River RO | E82: =IF(ISNA($A82),"",IFERROR(SUMIFS(D_D[INV],D_D[MT],5,D_D[CAT],SMS, D_D[EP],499,D_D[LOC],$A82),0)) -> 6 | F82: =IF(ISNA($A82),"",IFERROR(SUMIFS(D_D[BL],D_D[MT],5,D_D[CAT],SMS, D_D[EP],499,D_D[LOC],$A82),0)) -> 2 | G82: =IF(ISNA($A82),"",IFERROR(F82/E82,0)) -> 0.3333333333 | H82: =IF(ISNA($A82),"",IFERROR(SUMIFS(D_D[DEV],D_D[MT],5,D_D[CAT],SMS, D_D[EP],499,D_D[LOC],$A82)/$E82,0)) -> 0.6666666667 | I82: =IF(ISNA($A82),"",IFERROR(SUMIFS(D_D[EVD],D_D[MT],5,D_D[CAT],SMS, D_D[EP],499,D_D[LOC],$A82)/$E82,0)) -> 0.3333333333 | J82: =IF(ISNA($A82),"",IFERROR(SUMIFS(D_D[DEC],D_D[MT],5,D_D[CAT],SMS, D_D[EP],499,D_D[LOC],$A82)/$E82,0)) -> 0 | K82: =IF(ISNA($A82),"",IFERROR(SUMIFS(D_D[AWD],D_D[MT],5,D_D[CAT],SMS, D_D[EP],499,D_D[LOC],$A82)/$E82,0)) -> 0 | L82: =IF(ISNA($A82),"",IFERROR(SUMIFS(D_D[AUT],D_D[MT],5,D_D[CAT],SMS, D_D[EP],499,D_D[LOC],$A82)/$E82,0)) -> 0
A83: VT-1 | B83: 70 | C83: 0 | D83: Vermont-Other RO | E83: =IF(ISNA($A83),"",IFERROR(SUMIFS(D_D[INV],D_D[MT],5,D_D[CAT],SMS, D_D[EP],499,D_D[LOC],$A83),0)) -> 117 | F83: =IF(ISNA($A83),"",IFERROR(SUMIFS(D_D[BL],D_D[MT],5,D_D[CAT],SMS, D_D[EP],499,D_D[LOC],$A83),0)) -> 52 | G83: 0.4444444444 | H83: =IF(ISNA($A83),"",IFERROR(SUMIFS(D_D[DEV],D_D[MT],5,D_D[CAT],SMS, D_D[EP],499,D_D[LOC],$A83)/$E83,0)) -> 0.06837606838 | I83: =IF(ISNA($A83),"",IFERROR(SUMIFS(D_D[EVD],D_D[MT],5,D_D[CAT],SMS, D_D[EP],499,D_D[LOC],$A83)/$E83,0)) -> 0.5982905983 | J83: =IF(ISNA($A83),"",IFERROR(SUMIFS(D_D[DEC],D_D[MT],5,D_D[CAT],SMS, D_D[EP],499,D_D[LOC],$A83)/$E83,0)) -> 0.2820512821 | K83: =IF(ISNA($A83),"",IFERROR(SUMIFS(D_D[AWD],D_D[MT],5,D_D[CAT],SMS, D_D[EP],499,D_D[LOC],$A83)/$E83,0)) -> 0.04273504274 | L83: =IF(ISNA($A83),"",IFERROR(SUMIFS(D_D[AUT],D_D[MT],5,D_D[CAT],SMS, D_D[EP],499,D_D[LOC],$A83)/$E83,0)) -> 0.008547008547
A84: VT499 | B84: 71 | C84: 0 | D84: Vermont-NWQ | E84: =IF(ISNA($A84),"",IFERROR(SUMIFS(D_D[INV],D_D[MT],5,D_D[CAT],SMS, D_D[EP],499,D_D[LOC],$A84),0)) -> 699 | F84: =IF(ISNA($A84),"",IFERROR(SUMIFS(D_D[BL],D_D[MT],5,D_D[CAT],SMS, D_D[EP],499,D_D[LOC],$A84),0)) -> 305 | G84: 0.4363376252 | H84: =IF(ISNA($A84),"",IFERROR(SUMIFS(D_D[DEV],D_D[MT],5,D_D[CAT],SMS, D_D[EP],499,D_D[LOC],$A84)/$E84,0)) -> 0.002861230329 | I84: =IF(ISNA($A84),"",IFERROR(SUMIFS(D_D[EVD],D_D[MT],5,D_D[CAT],SMS, D_D[EP],499,D_D[LOC],$A84)/$E84,0)) -> 0.8297567954 | J84: =IF(ISNA($A84),"",IFERROR(SUMIFS(D_D[DEC],D_D[MT],5,D_D[CAT],SMS, D_D[EP],499,D_D[LOC],$A84)/$E84,0)) -> 0.1659513591 | K84: =IF(ISNA($A84),"",IFERROR(SUMIFS(D_D[AWD],D_D[MT],5,D_D[CAT],SMS, D_D[EP],499,D_D[LOC],$A84)/$E84,0)) -> 0.001430615165 | L84: =IF(ISNA($A84),"",IFERROR(SUMIFS(D_D[AUT],D_D[MT],5,D_D[CAT],SMS, D_D[EP],499,D_D[LOC],$A84)/$E84,0)) -> 0
A85: WI100 | B85: 72 | C85: Wisconsin | D85: Wisconsin-Total | E85: =IF(ISNA($A85),"",IFERROR(SUMIFS(D_D[INV],D_D[MT],5,D_D[CAT],SMS, D_D[EP],499,D_D[LOC],$A85),0)) -> 9058 | F85: =IF(ISNA($A85),"",IFERROR(SUMIFS(D_D[BL],D_D[MT],5,D_D[CAT],SMS, D_D[EP],499,D_D[LOC],$A85),0)) -> 3272 | G85: 0.3612276441 | H85: =IF(ISNA($A85),"",IFERROR(SUMIFS(D_D[DEV],D_D[MT],5,D_D[CAT],SMS, D_D[EP],499,D_D[LOC],$A85)/$E85,0)) -> 0.01744314418 | I85: =IF(ISNA($A85),"",IFERROR(SUMIFS(D_D[EVD],D_D[MT],5,D_D[CAT],SMS, D_D[EP],499,D_D[LOC],$A85)/$E85,0)) -> 0.7491720026 | J85: =IF(ISNA($A85),"",IFERROR(SUMIFS(D_D[DEC],D_D[MT],5,D_D[CAT],SMS, D_D[EP],499,D_D[LOC],$A85)/$E85,0)) -> 0.2235592846 | K85: =IF(ISNA($A85),"",IFERROR(SUMIFS(D_D[AWD],D_D[MT],5,D_D[CAT],SMS, D_D[EP],499,D_D[LOC],$A85)/$E85,0)) -> 0.005961580923 | L85: =IF(ISNA($A85),"",IFERROR(SUMIFS(D_D[AUT],D_D[MT],5,D_D[CAT],SMS, D_D[EP],499,D_D[LOC],$A85)/$E85,0)) -> 0.003863987635
A86: WI330 | B86: 73 | C86: 0 | D86: Milwaukee RO | E86: =IF(ISNA($A86),"",IFERROR(SUMIFS(D_D[INV],D_D[MT],5,D_D[CAT],SMS, D_D[EP],499,D_D[LOC],$A86),0)) -> 120 | F86: =IF(ISNA($A86),"",IFERROR(SUMIFS(D_D[BL],D_D[MT],5,D_D[CAT],SMS, D_D[EP],499,D_D[LOC],$A86),0)) -> 18 | G86: 0.15 | H86: =IF(ISNA($A86),"",IFERROR(SUMIFS(D_D[DEV],D_D[MT],5,D_D[CAT],SMS, D_D[EP],499,D_D[LOC],$A86)/$E86,0)) -> 0.425 | I86: =IF(ISNA($A86),"",IFERROR(SUMIFS(D_D[EVD],D_D[MT],5,D_D[CAT],SMS, D_D[EP],499,D_D[LOC],$A86)/$E86,0)) -> 0.3083333333 | J86: =IF(ISNA($A86),"",IFERROR(SUMIFS(D_D[DEC],D_D[MT],5,D_D[CAT],SMS, D_D[EP],499,D_D[LOC],$A86)/$E86,0)) -> 0.1916666667 | K86: =IF(ISNA($A86),"",IFERROR(SUMIFS(D_D[AWD],D_D[MT],5,D_D[CAT],SMS, D_D[EP],499,D_D[LOC],$A86)/$E86,0)) -> 0.05833333333 | L86: =IF(ISNA($A86),"",IFERROR(SUMIFS(D_D[AUT],D_D[MT],5,D_D[CAT],SMS, D_D[EP],499,D_D[LOC],$A86)/$E86,0)) -> 0.01666666667
A87: WI-1 | B87: 74 | C87: 0 | D87: Wisconsin-Other RO | E87: =IF(ISNA($A87),"",IFERROR(SUMIFS(D_D[INV],D_D[MT],5,D_D[CAT],SMS, D_D[EP],499,D_D[LOC],$A87),0)) -> 1265 | F87: =IF(ISNA($A87),"",IFERROR(SUMIFS(D_D[BL],D_D[MT],5,D_D[CAT],SMS, D_D[EP],499,D_D[LOC],$A87),0)) -> 545 | G87: 0.4308300395 | H87: =IF(ISNA($A87),"",IFERROR(SUMIFS(D_D[DEV],D_D[MT],5,D_D[CAT],SMS, D_D[EP],499,D_D[LOC],$A87)/$E87,0)) -> 0.05533596838 | I87: =IF(ISNA($A87),"",IFERROR(SUMIFS(D_D[EVD],D_D[MT],5,D_D[CAT],SMS, D_D[EP],499,D_D[LOC],$A87)/$E87,0)) -> 0.6245059289 | J87: =IF(ISNA($A87),"",IFERROR(SUMIFS(D_D[DEC],D_D[MT],5,D_D[CAT],SMS, D_D[EP],499,D_D[LOC],$A87)/$E87,0)) -> 0.2584980237 | K87: =IF(ISNA($A87),"",IFERROR(SUMIFS(D_D[AWD],D_D[MT],5,D_D[CAT],SMS, D_D[EP],499,D_D[LOC],$A87)/$E87,0)) -> 0.03557312253 | L87: =IF(ISNA($A87),"",IFERROR(SUMIFS(D_D[AUT],D_D[MT],5,D_D[CAT],SMS, D_D[EP],499,D_D[LOC],$A87)/$E87,0)) -> 0.02608695652
A88: WI499 | B88: 75 | C88: 0 | D88: Wisconsin-NWQ | E88: =IF(ISNA($A88),"",IFERROR(SUMIFS(D_D[INV],D_D[MT],5,D_D[CAT],SMS, D_D[EP],499,D_D[LOC],$A88),0)) -> 7673 | F88: =IF(ISNA($A88),"",IFERROR(SUMIFS(D_D[BL],D_D[MT],5,D_D[CAT],SMS, D_D[EP],499,D_D[LOC],$A88),0)) -> 2709 | G88: 0.353056171 | H88: =IF(ISNA($A88),"",IFERROR(SUMIFS(D_D[DEV],D_D[MT],5,D_D[CAT],SMS, D_D[EP],499,D_D[LOC],$A88)/$E88,0)) -> 0.00482210348 | I88: =IF(ISNA($A88),"",IFERROR(SUMIFS(D_D[EVD],D_D[MT],5,D_D[CAT],SMS, D_D[EP],499,D_D[LOC],$A88)/$E88,0)) -> 0.7766193145 | J88: =IF(ISNA($A88),"",IFERROR(SUMIFS(D_D[DEC],D_D[MT],5,D_D[CAT],SMS, D_D[EP],499,D_D[LOC],$A88)/$E88,0)) -> 0.2182979278 | K88: =IF(ISNA($A88),"",IFERROR(SUMIFS(D_D[AWD],D_D[MT],5,D_D[CAT],SMS, D_D[EP],499,D_D[LOC],$A88)/$E88,0)) -> 0.0002606542421 | L88: =IF(ISNA($A88),"",IFERROR(SUMIFS(D_D[AUT],D_D[MT],5,D_D[CAT],SMS, D_D[EP],499,D_D[LOC],$A88)/$E88,0)) -> 0
B89: 77 | D89: =IFERROR(INDEX(INDIRECT(DS_NWQD),B89),"") ->  | E89: =IF(ISNA($A89),"",IFERROR(SUMIFS(D_D[INV],D_D[MT],5,D_D[CAT],SMS, D_D[EP],499,D_D[LOC],$A89),0)) ->  | F89: =IF(ISNA($A89),"",IFERROR(SUMIFS(D_D[BL],D_D[MT],5,D_D[CAT],SMS, D_D[EP],499,D_D[LOC],$A89),0)) ->  | G89: =IF(ISNA($A89),"",IFERROR(F89/E89,0)) ->  | H89: =IF(ISNA($A89),"",IFERROR(SUMIFS(D_D[DEV],D_D[MT],5,D_D[CAT],SMS, D_D[EP],499,D_D[LOC],$A89)/$E89,0)) ->  | I89: =IF(ISNA($A89),"",IFERROR(SUMIFS(D_D[EVD],D_D[MT],5,D_D[CAT],SMS, D_D[EP],499,D_D[LOC],$A89)/$E89,0)) ->  | J89: =IF(ISNA($A89),"",IFERROR(SUMIFS(D_D[DEC],D_D[MT],5,D_D[CAT],SMS, D_D[EP],499,D_D[LOC],$A89)/$E89,0)) ->  | K89: =IF(ISNA($A89),"",IFERROR(SUMIFS(D_D[AWD],D_D[MT],5,D_D[CAT],SMS, D_D[EP],499,D_D[LOC],$A89)/$E89,0)) ->  | L89: =IF(ISNA($A89),"",IFERROR(SUMIFS(D_D[AUT],D_D[MT],5,D_D[CAT],SMS, D_D[EP],499,D_D[LOC],$A89)/$E89,0)) -> 

Sheet Traditional Aggregate (TA)
B2: ="Compensation and Pension National Inventory - Historical Reporting Bundles* - Data through " -> Compensation and Pension National Inventory - Historical Reporting Bundles* - Data through | H2: =D_DT[] -> 2021-08-21
B3: *The data on this page represents historical, alternative reporting on VBA claims processing. VBA actively measures and monitors these workloads, but the bundles are not specifically tied to VBA's strategic target 125 Days and 98% Accuracy. The Rating Bundle measures are the only claims processing bundle that is directly related to the strategic 2015 goals. End products which are included in the Rating Bundle group are highlighted in green.
B4: Compensation Entitlement | G4: Pension Entitlement | L4: Legacy Appeals
B5: Measurement | C5: Claims Pending | D5: Pending over 125 days | E5: Percent Pending over 125 days | G5: Measurement | H5: Claims Pending | I5: Pending over 125 days | J5: Percent Pending over 125 days | L5: Measurement | M5: Appeals Pending | N5: Average Days Pending
B6: Original Entitlement - Veterans1 | C6: =SUM(C7:C9) -> 142174 | D6: =SUM(D7:D9) -> 64408 | E6: =IFERROR(D6/C6,0) -> 0.4530223529 | G6: Original Entitlement | H6: =SUM(H7:H9) -> 5061 | I6: =SUM(I7:I9) -> 427 | J6: =IFERROR(I6/H6,0) -> 0.08437067773 | K6: 1 | L6: Notice of Disagreements | M6: =IFERROR(SUMIFS(D_D[INV],D_D[MT],7,D_D[CAT],1,D_D[EP],$K6),0) -> 1493 | N6: =IFERROR(SUMIFS(D_D[ADP],D_D[MT],7,D_D[CAT],1,D_D[EP],$K6),0) -> 1253.35
A7: 095 | B7: EP 095 - Initial entitlement decisions for Voc Rehab | C7: =IFERROR(SUMIFS(D_D[INV],D_D[MT],3,D_D[CAT],TA_21,D_D[EP],$A7),0) -> 8 | D7: =IFERROR(SUMIFS(D_D[BL],D_D[MT],3,D_D[CAT],TA_21,D_D[EP],$A7),0) -> 2 | E7: =IFERROR(D7/C7,0) -> 0.25 | F7: 180 | G7: EP 180 - Initial entitlement - Veteran | H7: =IFERROR(SUMIFS(D_D[INV],D_D[MT],3,D_D[CAT],TA_31,D_D[EP],$F7),0) -> 2152 | I7: =IFERROR(SUMIFS(D_D[BL],D_D[MT],3,D_D[CAT],TA_31,D_D[EP],$F7),0) -> 203 | J7: 0.09433085502 | K7: 9 | L7: Statement of the Case* | M7: =IFERROR(SUMIFS(D_D[INV],D_D[MT],7,D_D[CAT],1,D_D[EP],$K7),0) -> 485 | N7: =IFERROR(SUMIFS(D_D[ADP],D_D[MT],7,D_D[CAT],1,D_D[EP],$K7),0) -> 1459.75
A8: 010 | B8: EP 010 - Initial entitlement for service-connected disability (=>8) | C8: =IFERROR(SUMIFS(D_D[INV],D_D[MT],3,D_D[CAT],TA_21,D_D[EP],$A8),0) -> 50226 | D8: =IFERROR(SUMIFS(D_D[BL],D_D[MT],3,D_D[CAT],TA_21,D_D[EP],$A8),0) -> 23890 | E8: 0.4756500617 | F8: 120 | G8: EP 120 - Increased entitlement and/or reconsideration | H8: =IFERROR(SUMIFS(D_D[INV],D_D[MT],3,D_D[CAT],TA_31,D_D[EP],$F8),0) -> 954 | I8: =IFERROR(SUMIFS(D_D[BL],D_D[MT],3,D_D[CAT],TA_31,D_D[EP],$F8),0) -> 59 | J8: 0.06184486373 | K8: 2 | L8: Form 9s | M8: =IFERROR(SUMIFS(D_D[INV],D_D[MT],7,D_D[CAT],1,D_D[EP],$K8),0) -> 585 | N8: =IFERROR(SUMIFS(D_D[ADP],D_D[MT],7,D_D[CAT],1,D_D[EP],$K8),0) -> 809.76
A9: 110 | B9: EP 110 - Initial entitlement for service-connected disability (<=7) | C9: =IFERROR(SUMIFS(D_D[INV],D_D[MT],3,D_D[CAT],TA_21,D_D[EP],$A9),0) -> 91940 | D9: =IFERROR(SUMIFS(D_D[BL],D_D[MT],3,D_D[CAT],TA_21,D_D[EP],$A9),0) -> 40516 | E9: 0.4406787035 | F9: 190 | G9: EP 190 - Initial entitlement - Survivor | H9: =IFERROR(SUMIFS(D_D[INV],D_D[MT],3,D_D[CAT],TA_31,D_D[EP],$F9),0) -> 1955 | I9: =IFERROR(SUMIFS(D_D[BL],D_D[MT],3,D_D[CAT],TA_31,D_D[EP],$F9),0) -> 165 | J9: 0.08439897698 | K9: 3 | L9: Remands | M9: =IFERROR(SUMIFS(D_D[INV],D_D[MT],7,D_D[CAT],1,D_D[EP],$K9),0) -> 29173 | N9: =IFERROR(SUMIFS(D_D[ADP],D_D[MT],7,D_D[CAT],1,D_D[EP],$K9),0) -> 280.71
B10: Original Entitlement - Survivors2 | C10: =SUM(C11:C12) -> 7976 | D10: =SUM(D11:D12) -> 2666 | E10: 0.3342527583 | G10: Pension Award Adjustments | H10: =SUM(H11:H16) -> 1033 | I10: =SUM(I11:I16) -> 31 | J10: 0.03000968054 | L10: Total Appeals Pending Under VBA control | M10: =M6+M7+M8+M9 -> 31736
A11: 140 | B11: EP 140 - Initial claims from surviving spouses, children or parents | C11: =IFERROR(SUMIFS(D_D[INV],D_D[MT],3,D_D[CAT],TA_21,D_D[EP],$A11),0) -> 7928 | D11: =IFERROR(SUMIFS(D_D[BL],D_D[MT],3,D_D[CAT],TA_21,D_D[EP],$A11),0) -> 2650 | E11: 0.3342583249 | F11: 135 | G11: EP 135 - Hospitalization adjustment (non-rating) | H11: =IFERROR(SUMIFS(D_D[INV],D_D[MT],3,D_D[CAT],TA_32,D_D[EP],$F11),0) -> 26 | I11: =IFERROR(SUMIFS(D_D[BL],D_D[MT],3,D_D[CAT],TA_32,D_D[EP],$F11),0) -> 2 | J11: =IFERROR(I11/H11,0) -> 0.07692307692 | L11: *the veteran has 60 days to respond to an SOC to continue onto the Form 9 stage
A12: 410 | B12: EP 410 - Initial claims from Veterans' children with Spina bifida and/or birth defects | C12: =IFERROR(SUMIFS(D_D[INV],D_D[MT],3,D_D[CAT],TA_21,D_D[EP],$A12),0) -> 48 | D12: =IFERROR(SUMIFS(D_D[BL],D_D[MT],3,D_D[CAT],TA_21,D_D[EP],$A12),0) -> 16 | E12: 0.3333333333 | F12: 137 | G12: EP 137 - Dependency | H12: =IFERROR(SUMIFS(D_D[INV],D_D[MT],3,D_D[CAT],TA_32,D_D[EP],$F12),0) -> 2 | I12: =IFERROR(SUMIFS(D_D[BL],D_D[MT],3,D_D[CAT],TA_32,D_D[EP],$F12),0) -> 1 | J12: 0.5 | L12: RAMP (Rapid Appeals Modernization Program)
B13: Supplemental Entitlement | C13: =SUM(C14:C17) -> 274025 | D13: =SUM(D14:D17) -> 90884 | E13: 0.3316631694 | F13: 150G | G13: EP 150 - Income adjustments | H13: =IFERROR(SUMIFS(D_D[INV],D_D[MT],3,D_D[CAT],TA_32,D_D[EP],$F13),0) -> 992 | I13: =IFERROR(SUMIFS(D_D[BL],D_D[MT],3,D_D[CAT],TA_32,D_D[EP],$F13),0) -> 27 | J13: 0.02721774194 | K13: 7 | L13: EP 682 - Higher Level Review | M13: =IFERROR(SUMIFS(D_D[INV],D_D[MT],7,D_D[CAT],1,D_D[EP],$K13),0) -> 3 | N13: =IFERROR(SUMIFS(D_D[ADP],D_D[MT],7,D_D[CAT],1,D_D[EP],$K13),0) -> 719.33
A14: 040 | B14: EP 040 - Supplemental Claims (AMA) | C14: =IFERROR(SUMIFS(D_D[INV],D_D[MT],3,D_D[CAT],TA_21,D_D[EP],$A14),0) -> 62099 | D14: =IFERROR(SUMIFS(D_D[BL],D_D[MT],3,D_D[CAT],TA_21,D_D[EP],$A14),0) -> 24216 | E14: 0.3899579703 | F14: 155 | G14: EP 155 - Annual eligibility verification reporting (EVRs) | H14: =IFERROR(SUMIFS(D_D[INV],D_D[MT],3,D_D[CAT],TA_32,D_D[EP],$F14),0) -> 0 | I14: =IFERROR(SUMIFS(D_D[BL],D_D[MT],3,D_D[CAT],TA_32,D_D[EP],$F14),0) -> 0 | J14: 0 | K14: 8 | L14: EP 683 - Supplemental Evidence | M14: =IFERROR(SUMIFS(D_D[INV],D_D[MT],7,D_D[CAT],1,D_D[EP],$K14),0) -> 30 | N14: =IFERROR(SUMIFS(D_D[ADP],D_D[MT],7,D_D[CAT],1,D_D[EP],$K14),0) -> 888.6
A15: 020 | B15: EP 020 - Increased evaluation and/or additional claimed conditions | C15: =IFERROR(SUMIFS(D_D[INV],D_D[MT],3,D_D[CAT],TA_21,D_D[EP],$A15),0) -> 211444 | D15: =IFERROR(SUMIFS(D_D[BL],D_D[MT],3,D_D[CAT],TA_21,D_D[EP],$A15),0) -> 66630 | E15: 0.3151188967 | F15: 297 | G15: EP 297 - Misc determinations | H15: =IFERROR(SUMIFS(D_D[INV],D_D[MT],3,D_D[CAT],TA_32,D_D[EP],$F15),0) -> 1 | I15: =IFERROR(SUMIFS(D_D[BL],D_D[MT],3,D_D[CAT],TA_32,D_D[EP],$F15),0) -> 1 | J15: 1 | K15: 6 | L15: Total RAMP | M15: =IFERROR(SUMIFS(D_D[INV],D_D[MT],7,D_D[CAT],1,D_D[EP],$K15),0) -> 33 | N15: =IFERROR(SUMIFS(D_D[ADP],D_D[MT],7,D_D[CAT],1,D_D[EP],$K15),0) -> 873.21
A16: 320 | B16: EP 320 -Increased entitlement due to hospitalization or surgery | C16: =IFERROR(SUMIFS(D_D[INV],D_D[MT],3,D_D[CAT],TA_21,D_D[EP],$A16),0) -> 469 | D16: =IFERROR(SUMIFS(D_D[BL],D_D[MT],3,D_D[CAT],TA_21,D_D[EP],$A16),0) -> 35 | E16: 0.07462686567 | F16: 607 | G16: EP 607 - Due process | H16: =IFERROR(SUMIFS(D_D[INV],D_D[MT],3,D_D[CAT],TA_32,D_D[EP],$F16),0) -> 12 | I16: =IFERROR(SUMIFS(D_D[BL],D_D[MT],3,D_D[CAT],TA_32,D_D[EP],$F16),0) -> 0 | J16: 0
A17: 420 | B17: EP 420 - Spina bifida and/or birth defects reconsideration | C17: =IFERROR(SUMIFS(D_D[INV],D_D[MT],3,D_D[CAT],TA_21,D_D[EP],$A17),0) -> 13 | D17: =IFERROR(SUMIFS(D_D[BL],D_D[MT],3,D_D[CAT],TA_21,D_D[EP],$A17),0) -> 3 | E17: 0.2307692308 | G17: Program Reviews | H17: =SUM(H18:H20) -> 109 | I17: =SUM(I18:I20) -> 105 | J17: =IFERROR(I17/H17,0) -> 0.9633027523 | L17: DROC Decision Review Workload (AMA)
A18: 12 | B18: Award Adjustments | C18: =SUM(C19:C25) -> 97038 | D18: =SUM(D19:D25) -> 18436 | E18: 0.1899874276 | F18: 154 | G18: EP 154 - Income Verification Match | H18: =IFERROR(SUMIFS(D_D[INV],D_D[MT],3,D_D[CAT],TA_33,D_D[EP],$F18),0) -> 4 | I18: =IFERROR(SUMIFS(D_D[BL],D_D[MT],3,D_D[CAT],TA_33,D_D[EP],$F18),0) -> 2 | J18: 0.5 | M18: Claims Pending | N18: Average Days Pending
A19: 130G | B19: EP 130 - Dependency | C19: =IFERROR(SUMIFS(D_D[INV],D_D[MT],3,D_D[CAT],TA_22,D_D[EP],$A19),0) -> 13007 | D19: =IFERROR(SUMIFS(D_D[BL],D_D[MT],3,D_D[CAT],TA_22,D_D[EP],$A19),0) -> 1454 | E19: =IFERROR(D19/C19,0) -> 0.1117859614 | F19: 696 | G19: EP 696 - Cost of Living Adjustments | H19: =IFERROR(SUMIFS(D_D[INV],D_D[MT],3,D_D[CAT],TA_33,D_D[EP],$F19),0) -> 105 | I19: =IFERROR(SUMIFS(D_D[BL],D_D[MT],3,D_D[CAT],TA_33,D_D[EP],$F19),0) -> 103 | J19: 0.980952381 | K19: 1 | L19: EP 030 - Higher-Level Reviews (HLR) | M19: =IFERROR(SUMIFS(D_D[INV],D_D[MT],12,D_D[CAT],9000,D_D[EP],$K19),0) -> 15599 | N19: =IFERROR(SUMIFS(D_D[ADP],D_D[MT],12,D_D[CAT],9000,D_D[EP],$K19),0) -> 29.17039554
A20: 133 | B20: EP 133 - Survivor restored entitlement | C20: =IFERROR(SUMIFS(D_D[INV],D_D[MT],3,D_D[CAT],TA_22,D_D[EP],$A20),0) -> 4 | D20: =IFERROR(SUMIFS(D_D[BL],D_D[MT],3,D_D[CAT],TA_22,D_D[EP],$A20),0) -> 0 | E20: 0 | F20: 697 | G20: EP 697 - Non-entitlement reviews | H20: =IFERROR(SUMIFS(D_D[INV],D_D[MT],3,D_D[CAT],TA_33,D_D[EP],$F20),0) -> 0 | I20: =IFERROR(SUMIFS(D_D[BL],D_D[MT],3,D_D[CAT],TA_33,D_D[EP],$F20),0) -> 0 | J20: 0 | K20: 1.1 | L20: HLR - Compensation | M20: =IFERROR(SUMIFS(D_D[INV],D_D[MT],12,D_D[CAT],9000,D_D[EP],$K20),0) -> 14884 | N20: =IFERROR(SUMIFS(D_D[ADP],D_D[MT],12,D_D[CAT],9000,D_D[EP],$K20),0) -> 27.68234346
A21: 135 | B21: EP 135 - Hospitalization adjustment (non-rating) | C21: =IFERROR(SUMIFS(D_D[INV],D_D[MT],3,D_D[CAT],TA_22,D_D[EP],$A21),0) -> 41 | D21: =IFERROR(SUMIFS(D_D[BL],D_D[MT],3,D_D[CAT],TA_22,D_D[EP],$A21),0) -> 1 | E21: 0.0243902439 | G21: Pension Other | H21: =SUM(H22:H25) -> 93 | I21: =SUM(I22:I25) -> 13 | J21: =IFERROR(I21/H21,0) -> 0.1397849462 | K21: 1.2 | L21: HLR - Pension | M21: =IFERROR(SUMIFS(D_D[INV],D_D[MT],12,D_D[CAT],9000,D_D[EP],$K21),0) -> 715 | N21: =IFERROR(SUMIFS(D_D[ADP],D_D[MT],12,D_D[CAT],9000,D_D[EP],$K21),0) -> 60.14685315
A22: 290G | B22: EP 290 - Misc determinations | C22: =IFERROR(SUMIFS(D_D[INV],D_D[MT],3,D_D[CAT],TA_22,D_D[EP],$A22),0) -> 26785 | D22: =IFERROR(SUMIFS(D_D[BL],D_D[MT],3,D_D[CAT],TA_22,D_D[EP],$A22),0) -> 3823 | E22: 0.1427291394 | F22: 407 | G22: EP 407 - Correspondence | H22: =IFERROR(SUMIFS(D_D[INV],D_D[MT],3,D_D[CAT],TA_34,D_D[EP],$F22),0) -> 90 | I22: =IFERROR(SUMIFS(D_D[BL],D_D[MT],3,D_D[CAT],TA_34,D_D[EP],$F22),0) -> 11 | J22: 0.1222222222 | K22: 2 | L22: EP 040 - Higher-Level Review Returns (HLRR) | M22: =IFERROR(SUMIFS(D_D[INV],D_D[MT],12,D_D[CAT],9000,D_D[EP],$K22),0) -> 12034 | N22: =IFERROR(SUMIFS(D_D[ADP],D_D[MT],12,D_D[CAT],9000,D_D[EP],$K22),0) -> 104.2185474
A23: 450 | B23: EP 450 - Spina bifida and/or birth defects adjustments | C23: =IFERROR(SUMIFS(D_D[INV],D_D[MT],3,D_D[CAT],TA_22,D_D[EP],$A23),0) -> 8 | D23: =IFERROR(SUMIFS(D_D[BL],D_D[MT],3,D_D[CAT],TA_22,D_D[EP],$A23),0) -> 6 | E23: 0.75 | F23: 507 | G23: EP 507 - Congressional correspondence | H23: =IFERROR(SUMIFS(D_D[INV],D_D[MT],3,D_D[CAT],TA_34,D_D[EP],$F23),0) -> 0 | I23: =IFERROR(SUMIFS(D_D[BL],D_D[MT],3,D_D[CAT],TA_34,D_D[EP],$F23),0) -> 0 | J23: 0 | K23: 2.1 | L23: HLRR - Compensation | M23: =IFERROR(SUMIFS(D_D[INV],D_D[MT],12,D_D[CAT],9000,D_D[EP],$K23),0) -> 11849 | N23: =IFERROR(SUMIFS(D_D[ADP],D_D[MT],12,D_D[CAT],9000,D_D[EP],$K23),0) -> 103.5032492
A24: 310G | B24: EP 310 -Future examination for disabilities | C24: =IFERROR(SUMIFS(D_D[INV],D_D[MT],3,D_D[CAT],TA_22,D_D[EP],$A24),0) -> 15758 | D24: =IFERROR(SUMIFS(D_D[BL],D_D[MT],3,D_D[CAT],TA_22,D_D[EP],$A24),0) -> 4985 | E24: 0.3163472522 | F24: 937 | G24: EP 937 - Internal quality reviews | H24: =IFERROR(SUMIFS(D_D[INV],D_D[MT],3,D_D[CAT],TA_34,D_D[EP],$F24),0) -> 3 | I24: =IFERROR(SUMIFS(D_D[BL],D_D[MT],3,D_D[CAT],TA_34,D_D[EP],$F24),0) -> 2 | J24: 0.6666666667 | K24: 2.2 | L24: HLRR - Pension | M24: =IFERROR(SUMIFS(D_D[INV],D_D[MT],12,D_D[CAT],9000,D_D[EP],$K24),0) -> 185 | N24: =IFERROR(SUMIFS(D_D[ADP],D_D[MT],12,D_D[CAT],9000,D_D[EP],$K24),0) -> 150.0324324
A25: 600G | B25: EP 600 - Due process | C25: =IFERROR(SUMIFS(D_D[INV],D_D[MT],3,D_D[CAT],TA_22,D_D[EP],$A25),0) -> 41435 | D25: =IFERROR(SUMIFS(D_D[BL],D_D[MT],3,D_D[CAT],TA_22,D_D[EP],$A25),0) -> 8167 | E25: 0.1971038977 | F25: 967 | G25: EP 967 - Correction of errors | H25: =IFERROR(SUMIFS(D_D[INV],D_D[MT],3,D_D[CAT],TA_34,D_D[EP],$F25),0) -> 0 | I25: =IFERROR(SUMIFS(D_D[BL],D_D[MT],3,D_D[CAT],TA_34,D_D[EP],$F25),0) -> 0 | J25: 0 | K25: 3 | L25: EP 040 - Board AMA Returns (Remands) | M25: =IFERROR(SUMIFS(D_D[INV],D_D[MT],12,D_D[CAT],9000,D_D[EP],$K25),0) -> 3262 | N25: =IFERROR(SUMIFS(D_D[ADP],D_D[MT],12,D_D[CAT],9000,D_D[EP],$K25),0) -> 162.9261189
B26: Program Reviews | C26: =SUM(C27:C33) -> 460 | D26: =SUM(D27:D33) -> 272 | E26: =IFERROR(D26/C26,0) -> 0.5913043478 | G26: Pension Burial/Accrued | H26: =SUM(H27:H29) -> 1716 | I26: =SUM(I27:I29) -> 843 | J26: =IFERROR(I26/H26,0) -> 0.4912587413 | K26: 3.1 | L26: Remands - Compensation | M26: =IFERROR(SUMIFS(D_D[INV],D_D[MT],12,D_D[CAT],9000,D_D[EP],$K26),0) -> 3185 | N26: =IFERROR(SUMIFS(D_D[ADP],D_D[MT],12,D_D[CAT],9000,D_D[EP],$K26),0) -> 163.0043956
A27: 314 | B27: EP 314 - Income verification for unemployability | C27: =IFERROR(SUMIFS(D_D[INV],D_D[MT],3,D_D[CAT],TA_23,D_D[EP],$A27),0) -> 0 | D27: =IFERROR(SUMIFS(D_D[BL],D_D[MT],3,D_D[CAT],TA_23,D_D[EP],$A27),0) -> 0 | E27: 0 | F27: 167 | G27: EP 167 - Burials | H27: =IFERROR(SUMIFS(D_D[INV],D_D[MT],3,D_D[CAT],TA_35,D_D[EP],$F27),0) -> 0 | I27: =IFERROR(SUMIFS(D_D[BL],D_D[MT],3,D_D[CAT],TA_35,D_D[EP],$F27),0) -> 0 | J27: 0 | K27: 3.2 | L27: Remands - Pension | M27: =IFERROR(SUMIFS(D_D[INV],D_D[MT],12,D_D[CAT],9000,D_D[EP],$K27),0) -> 77 | N27: =IFERROR(SUMIFS(D_D[ADP],D_D[MT],12,D_D[CAT],9000,D_D[EP],$K27),0) -> 159.6883117
A28: 680G | B28: EP 680 - Review of Hemodialysis related cases/conditions | C28: =IFERROR(SUMIFS(D_D[INV],D_D[MT],3,D_D[CAT],TA_23,D_D[EP],$A28),0) -> 42 | D28: =IFERROR(SUMIFS(D_D[BL],D_D[MT],3,D_D[CAT],TA_23,D_D[EP],$A28),0) -> 31 | E28: 0.7380952381 | F28: 165 | G28: EP 165 - Accrued | H28: =IFERROR(SUMIFS(D_D[INV],D_D[MT],3,D_D[CAT],TA_36,D_D[EP],$F28),0) -> 1716 | I28: =IFERROR(SUMIFS(D_D[BL],D_D[MT],3,D_D[CAT],TA_36,D_D[EP],$F28),0) -> 843 | J28: 0.4912587413 | K28: 4 | L28: EP 030 - Board AMA Full Grants | M28: =IFERROR(SUMIFS(D_D[INV],D_D[MT],12,D_D[CAT],9000,D_D[EP],$K28),0) -> 530 | N28: =IFERROR(SUMIFS(D_D[ADP],D_D[MT],12,D_D[CAT],9000,D_D[EP],$K28),0) -> 72.33207547
A29: 682 | B29: EP 682 - Review of Radiation related cases/conditions | C29: =IFERROR(SUMIFS(D_D[INV],D_D[MT],3,D_D[CAT],TA_23,D_D[EP],$A29),0) -> 0 | D29: =IFERROR(SUMIFS(D_D[BL],D_D[MT],3,D_D[CAT],TA_23,D_D[EP],$A29),0) -> 0 | E29: 0 | K29: 4.1 | L29: Grants - Compensation | M29: =IFERROR(SUMIFS(D_D[INV],D_D[MT],12,D_D[CAT],9000,D_D[EP],$K29),0) -> 489 | N29: =IFERROR(SUMIFS(D_D[ADP],D_D[MT],12,D_D[CAT],9000,D_D[EP],$K29),0) -> 71.55828221
A30: 684 | B30: EP 684 - Review of Misc cases referred to central office | C30: =IFERROR(SUMIFS(D_D[INV],D_D[MT],3,D_D[CAT],TA_23,D_D[EP],$A30),0) -> 1 | D30: =IFERROR(SUMIFS(D_D[BL],D_D[MT],3,D_D[CAT],TA_23,D_D[EP],$A30),0) -> 0 | E30: 0 | K30: 4.2 | L30: Grants - Pension | M30: =IFERROR(SUMIFS(D_D[INV],D_D[MT],12,D_D[CAT],9000,D_D[EP],$K30),0) -> 41 | N30: =IFERROR(SUMIFS(D_D[ADP],D_D[MT],12,D_D[CAT],9000,D_D[EP],$K30),0) -> 81.56097561
A31: 685 | B31: EP 685 - Review of effective date related to herbicide exposure | C31: =IFERROR(SUMIFS(D_D[INV],D_D[MT],3,D_D[CAT],TA_23,D_D[EP],$A31),0) -> 289 | D31: =IFERROR(SUMIFS(D_D[BL],D_D[MT],3,D_D[CAT],TA_23,D_D[EP],$A31),0) -> 220 | E31: 0.7612456747
A32: 690G | B32: EP 690 - Cost of Living Adjustments (COLAs) and other reviews | C32: =IFERROR(SUMIFS(D_D[INV],D_D[MT],3,D_D[CAT],TA_23,D_D[EP],$A32),0) -> 125 | D32: =IFERROR(SUMIFS(D_D[BL],D_D[MT],3,D_D[CAT],TA_23,D_D[EP],$A32),0) -> 21 | E32: 0.168 | L32: Integrated Disability Evaluation System (IDES)
A33: 690 | B33: EP 690 - Social Security number verification | C33: =IFERROR(SUMIFS(D_D[INV],D_D[MT],3,D_D[CAT],TA_23,D_D[EP],$A33),0) -> 3 | D33: =IFERROR(SUMIFS(D_D[BL],D_D[MT],3,D_D[CAT],TA_23,D_D[EP],$A33),0) -> 0 | E33: 0 | L33: Number of IDES claims pending | N33: =IFERROR(SUMIFS(D_D[INV],D_D[MT],10,D_D[CAT],1,D_D[EP],-1),0) -> 22952
B34: Compensation Other | C34: =SUM(C35:C45) -> 195298 | D34: =SUM(D35:D45) -> 38527 | E34: =IFERROR(D34/C34,0) -> 0.1972728855
A35: 335 | B35: EP 335 - Blue Water Navy (Agent Orange) | C35: =IFERROR(SUMIFS(D_D[INV],D_D[MT],3,D_D[CAT],TA_24,D_D[EP],$A35),0) -> 17685 | D35: =IFERROR(SUMIFS(D_D[BL],D_D[MT],3,D_D[CAT],TA_24,D_D[EP],$A35),0) -> 16624 | E35: =IFERROR(D35/C35,0) -> 0.9400056545
A36: 400G | B36: EP 400 - Correspondence | C36: =IFERROR(SUMIFS(D_D[INV],D_D[MT],3,D_D[CAT],TA_24,D_D[EP],$A36),0) -> 10399 | D36: =IFERROR(SUMIFS(D_D[BL],D_D[MT],3,D_D[CAT],TA_24,D_D[EP],$A36),0) -> 1325 | E36: 0.1274160977
A37: 500G | B37: EP 500 - Congressional correspondence | C37: =IFERROR(SUMIFS(D_D[INV],D_D[MT],3,D_D[CAT],TA_24,D_D[EP],$A37),0) -> 273 | D37: =IFERROR(SUMIFS(D_D[BL],D_D[MT],3,D_D[CAT],TA_24,D_D[EP],$A37),0) -> 26 | E37: 0.09523809524
A38: 510 | B38: EP 510 - Freedom of Information Act (FOIA) requests | C38: =IFERROR(SUMIFS(D_D[INV],D_D[MT],3,D_D[CAT],TA_24,D_D[EP],$A38),0) -> 40955 | D38: =IFERROR(SUMIFS(D_D[BL],D_D[MT],3,D_D[CAT],TA_24,D_D[EP],$A38),0) -> 10833 | E38: 0.2645098279
A39: 930G | B39: EP 930 - Review, including quality assurance | C39: =IFERROR(SUMIFS(D_D[INV],D_D[MT],3,D_D[CAT],TA_24,D_D[EP],$A39),0) -> 10220 | D39: =IFERROR(SUMIFS(D_D[BL],D_D[MT],3,D_D[CAT],TA_24,D_D[EP],$A39),0) -> 7819 | E39: 0.7650684932
A40: 960G | B40: EP 960 - Correction of errors | C40: =IFERROR(SUMIFS(D_D[INV],D_D[MT],3,D_D[CAT],TA_24,D_D[EP],$A40),0) -> 618 | D40: =IFERROR(SUMIFS(D_D[BL],D_D[MT],3,D_D[CAT],TA_24,D_D[EP],$A40),0) -> 138 | E40: 0.2233009709
A41: 681 | B41: EP 681 - Used to control claims under the Nehmer Agent Orange stipulation | C41: =IFERROR(SUMIFS(D_D[INV],D_D[MT],3,D_D[CAT],TA_24,D_D[EP],$A41),0) -> 619 | D41: =IFERROR(SUMIFS(D_D[BL],D_D[MT],3,D_D[CAT],TA_24,D_D[EP],$A41),0) -> 212 | E41: =IFERROR(D41/C41,0) -> 0.3424878837
A42: 687 | B42: EP 687 - Blue Water Navy Agent Orange Nehmer Reviews | C42: =IFERROR(SUMIFS(D_D[INV],D_D[MT],3,D_D[CAT],TA_24,D_D[EP],$A42),0) -> 42999 | D42: =IFERROR(SUMIFS(D_D[BL],D_D[MT],3,D_D[CAT],TA_24,D_D[EP],$A42),0) -> 71 | E42: =IFERROR(D42/C42,0) -> 0.001651201191
A43: 688 | B43: EP 688 - NDAA Agent Orange Nehmer Reviews (3 new authorized AO disabilities) | C43: =IFERROR(SUMIFS(D_D[INV],D_D[MT],3,D_D[CAT],TA_24,D_D[EP],$A43),0) -> 71522 | D43: =IFERROR(SUMIFS(D_D[BL],D_D[MT],3,D_D[CAT],TA_24,D_D[EP],$A43),0) -> 1473 | E43: =IFERROR(D43/C43,0) -> 0.02059506166
A44: 405 | B44: EP 405 - Reopened or new Agent Orange claims between 9/01/10 and 10/24/2011 | C44: =IFERROR(SUMIFS(D_D[INV],D_D[MT],3,D_D[CAT],TA_24,D_D[EP],$A44),0) -> 0 | D44: =IFERROR(SUMIFS(D_D[BL],D_D[MT],3,D_D[CAT],TA_24,D_D[EP],$A44),0) -> 0 | E44: =IFERROR(D44/C44,0) -> 0
A45: 409 | B45: EP 409 - Agent Orange claims where an interim decision was provided; No longer used as of 10/24/2011 | C45: =IFERROR(SUMIFS(D_D[INV],D_D[MT],3,D_D[CAT],TA_24,D_D[EP],$A45),0) -> 8 | D45: =IFERROR(SUMIFS(D_D[BL],D_D[MT],3,D_D[CAT],TA_24,D_D[EP],$A45),0) -> 6 | E45: =IFERROR(D45/C45,0) -> 0.75
B46: Compensation Burial/Accrued | C46: =SUM(C47:C49) -> 14563 | D46: =SUM(D47:D49) -> 1863 | E46: =IFERROR(D46/C46,0) -> 0.1279269381
A47: 160G | B47: EP 160 - Burials | C47: =IFERROR(SUMIFS(D_D[INV],D_D[MT],3,D_D[CAT],TA_25,D_D[EP],$A47),0) -> 4530 | D47: =IFERROR(SUMIFS(D_D[BL],D_D[MT],3,D_D[CAT],TA_25,D_D[EP],$A47),0) -> 1477 | E47: 0.3260485651
A48: 165 | B48: EP 165 - Accrued | C48: =IFERROR(SUMIFS(D_D[INV],D_D[MT],3,D_D[CAT],TA_26,D_D[EP],$A48),0) -> 10033 | D48: =IFERROR(SUMIFS(D_D[BL],D_D[MT],3,D_D[CAT],TA_26,D_D[EP],$A48),0) -> 386 | E48: 0.03847303897

Sheet Diarys and Future Claims
B1: Compensation and Pension Diary and Future Claims - Historical Reporting Bundles* - Data through | F1: =D_DT[] -> 2021-08-21
B2: The data on this page represents future claims that VA is aware of. A portion of these claims roll into the traditional Rating Bundle group of end-products (EP) once the date of claim matures.
B3: Compensation Entitlement | E3: Pension Entitlement
B4: Measurement | C4: Claims Pending | E4: Measurement | F4: Claims Pending
B5: Original Entitlement - Veterans1 | C5: =SUM(C6:C8) -> 16337 | E5: Original Entitlement | F5: =SUM(F6:F8) -> 0
A6: 095 | B6: EP 095 - Initial entitlement decisions for Voc Rehab | C6: =IFERROR(SUMIFS(D_D[INV],D_D[MT],11,D_D[CAT],TA_21,D_D[EP],$A6),0) -> 0 | D6: 180 | E6: EP 180 - Initial entitlement - Veteran | F6: =IFERROR(SUMIFS(D_D[INV],D_D[MT],11,D_D[CAT],TA_31,D_D[EP],$D6),0) -> 0
A7: 010 | B7: EP 010 - Initial entitlement for service-connected disability (=>8) | C7: =IFERROR(SUMIFS(D_D[INV],D_D[MT],11,D_D[CAT],TA_21,D_D[EP],$A7),0) -> 13420 | D7: 120 | E7: EP 120 - Increased entitlement and/or reconsideration | F7: =IFERROR(SUMIFS(D_D[INV],D_D[MT],11,D_D[CAT],TA_31,D_D[EP],$D7),0) -> 0
A8: 110 | B8: EP 110 - Initial entitlement for service-connected disability (<=7) | C8: =IFERROR(SUMIFS(D_D[INV],D_D[MT],11,D_D[CAT],TA_21,D_D[EP],$A8),0) -> 2917 | D8: 190 | E8: EP 190 - Initial entitlement - Survivor | F8: =IFERROR(SUMIFS(D_D[INV],D_D[MT],11,D_D[CAT],TA_31,D_D[EP],$D8),0) -> 0
B9: Original Entitlement - Survivors2 | C9: =SUM(C10:C11) -> 0 | E9: Pension Award Adjustments | F9: =SUM(F10:F15) -> 0
A10: 140 | B10: EP 140 - Initial claims from surviving spouses, children or parents | C10: =IFERROR(SUMIFS(D_D[INV],D_D[MT],11,D_D[CAT],TA_21,D_D[EP],$A10),0) -> 0 | D10: 135 | E10: EP 135 - Hospitalization adjustment (non-rating) | F10: =IFERROR(SUMIFS(D_D[INV],D_D[MT],11,D_D[CAT],TA_31,D_D[EP],$D10),0) -> 0
A11: 410 | B11: EP 410 - Initial claims from Veterans' children with Spina bifida and/or birth defects | C11: =IFERROR(SUMIFS(D_D[INV],D_D[MT],11,D_D[CAT],TA_21,D_D[EP],$A11),0) -> 0 | D11: 137 | E11: EP 137 - Dependency | F11: =IFERROR(SUMIFS(D_D[INV],D_D[MT],11,D_D[CAT],TA_31,D_D[EP],$D11),0) -> 0
B12: Supplemental Entitlement | C12: =SUM(C13:C16) -> 681 | D12: 150G | E12: EP 150 - Income adjustments | F12: =IFERROR(SUMIFS(D_D[INV],D_D[MT],11,D_D[CAT],TA_31,D_D[EP],$D12),0) -> 0
A13: 040 | B13: EP 040 - Decision Review Request | C13: =IFERROR(SUMIFS(D_D[INV],D_D[MT],11,D_D[CAT],TA_21,D_D[EP],$A13),0) -> 0 | D13: 155 | E13: EP 155 - Annual eligibility verification reporting (EVRs) | F13: =IFERROR(SUMIFS(D_D[INV],D_D[MT],11,D_D[CAT],TA_31,D_D[EP],$D13),0) -> 0
A14: 020 | B14: EP 020 - Increased evaluation and/or additional claimed conditions | C14: =IFERROR(SUMIFS(D_D[INV],D_D[MT],11,D_D[CAT],TA_21,D_D[EP],$A14),0) -> 681 | D14: 297 | E14: EP 297 - Misc determinations | F14: =IFERROR(SUMIFS(D_D[INV],D_D[MT],11,D_D[CAT],TA_31,D_D[EP],$D14),0) -> 0
A15: 320 | B15: EP 320 -Increased entitlement due to hospitalization or surgery | C15: =IFERROR(SUMIFS(D_D[INV],D_D[MT],11,D_D[CAT],TA_21,D_D[EP],$A15),0) -> 0 | D15: 607 | E15: EP 607 - Due process | F15: =IFERROR(SUMIFS(D_D[INV],D_D[MT],11,D_D[CAT],TA_31,D_D[EP],$D15),0) -> 0
A16: 420 | B16: EP 420 - Spina bifida and/or birth defects reconsideration | C16: =IFERROR(SUMIFS(D_D[INV],D_D[MT],11,D_D[CAT],TA_21,D_D[EP],$A16),0) -> 0 | E16: Program Reviews | F16: =SUM(F17:F19) -> 0
A17: 12 | B17: Award Adjustments | C17: =SUM(C18:C24) -> 12 | D17: 154 | E17: EP 154 - Income Verification Match | F17: =IFERROR(SUMIFS(D_D[INV],D_D[MT],11,D_D[CAT],TA_31,D_D[EP],$D17),0) -> 0
A18: 130G | B18: EP 130 - Dependency | C18: =IFERROR(SUMIFS(D_D[INV],D_D[MT],11,D_D[CAT],TA_22,D_D[EP],$A18),0) -> 5 | D18: 696 | E18: EP 696 - Cost of Living Adjustments | F18: =IFERROR(SUMIFS(D_D[INV],D_D[MT],11,D_D[CAT],TA_31,D_D[EP],$D18),0) -> 0
A19: 133 | B19: EP 133 - Survivor restored entitlement | C19: =IFERROR(SUMIFS(D_D[INV],D_D[MT],11,D_D[CAT],TA_22,D_D[EP],$A19),0) -> 0 | D19: 697 | E19: EP 697 - Non-entitlement reviews | F19: =IFERROR(SUMIFS(D_D[INV],D_D[MT],11,D_D[CAT],TA_31,D_D[EP],$D19),0) -> 0
A20: 135 | B20: EP 135 - Hospitalization adjustment (non-rating) | C20: =IFERROR(SUMIFS(D_D[INV],D_D[MT],11,D_D[CAT],TA_22,D_D[EP],$A20),0) -> 0 | E20: Pension Other | F20: =SUM(F21:F24) -> 0
A21: 290G | B21: EP 290 - Misc determinations | C21: =IFERROR(SUMIFS(D_D[INV],D_D[MT],11,D_D[CAT],TA_22,D_D[EP],$A21),0) -> 7 | D21: 407 | E21: EP 407 - Correspondence | F21: =IFERROR(SUMIFS(D_D[INV],D_D[MT],11,D_D[CAT],TA_31,D_D[EP],$D21),0) -> 0
A22: 450 | B22: EP 450 - Spina bifida and/or birth defects adjustments | C22: =IFERROR(SUMIFS(D_D[INV],D_D[MT],11,D_D[CAT],TA_22,D_D[EP],$A22),0) -> 0 | D22: 507 | E22: EP 507 - Congressional correspondence | F22: =IFERROR(SUMIFS(D_D[INV],D_D[MT],11,D_D[CAT],TA_31,D_D[EP],$D22),0) -> 0
A23: 310G | B23: EP 310 -Future examination for disabilities | C23: =IFERROR(SUMIFS(D_D[INV],D_D[MT],11,D_D[CAT],TA_22,D_D[EP],$A23),0) -> 0 | D23: 937 | E23: EP 937 - Internal quality reviews | F23: =IFERROR(SUMIFS(D_D[INV],D_D[MT],11,D_D[CAT],TA_31,D_D[EP],$D23),0) -> 0
A24: 600G | B24: EP 600 - Due process | C24: =IFERROR(SUMIFS(D_D[INV],D_D[MT],11,D_D[CAT],TA_22,D_D[EP],$A24),0) -> 0 | D24: 967 | E24: EP 967 - Correction of errors | F24: =IFERROR(SUMIFS(D_D[INV],D_D[MT],11,D_D[CAT],TA_31,D_D[EP],$D24),0) -> 0
B25: Program Reviews | C25: =SUM(C26:C33) -> 919 | E25: Pension Burial/Accrued | F25: =SUM(F26:F27) -> 0
A26: 314 | B26: EP 314 - Income verification for unemployability | C26: =IFERROR(SUMIFS(D_D[INV],D_D[MT],11,D_D[CAT],TA_23,D_D[EP],$A26),0) -> 0 | D26: 167 | E26: EP 167 - Burials | F26: =IFERROR(SUMIFS(D_D[INV],D_D[MT],11,D_D[CAT],TA_31,D_D[EP],$D26),0) -> 0
A27: 330 | B27: EP 330 - Reviews | C27: =IFERROR(SUMIFS(D_D[INV],D_D[MT],11,D_D[CAT],TA_23,D_D[EP],$A27),0) -> 919 | D27: 165 | E27: EP 165 - Accrued | F27: =IFERROR(SUMIFS(D_D[INV],D_D[MT],11,D_D[CAT],TA_31,D_D[EP],$D27),0) -> 0
A28: 680G | B28: EP 680 - Review of Hemodialysis related cases/conditions | C28: =IFERROR(SUMIFS(D_D[INV],D_D[MT],11,D_D[CAT],TA_23,D_D[EP],$A28),0) -> 0
A29: 682 | B29: EP 682 - Review of Radiation related cases/conditions | C29: =IFERROR(SUMIFS(D_D[INV],D_D[MT],11,D_D[CAT],TA_23,D_D[EP],$A29),0) -> 0
A30: 684 | B30: EP 684 - Review of Misc cases referred to central office | C30: =IFERROR(SUMIFS(D_D[INV],D_D[MT],11,D_D[CAT],TA_23,D_D[EP],$A30),0) -> 0 | E30: Integrated Disability Evaluation System (IDES)
A31: 685 | B31: EP 685 - Review of effective date related to herbicide exposure | C31: =IFERROR(SUMIFS(D_D[INV],D_D[MT],11,D_D[CAT],TA_23,D_D[EP],$A31),0) -> 0 | E31: EP 689 - IDES | F31: =IFERROR(SUMIFS(D_D[INV],D_D[MT],11,D_D[CAT],1,D_D[EP],-1),0) -> 0
A32: 690G | B32: EP 690 - Cost of Living Adjustments (COLAs) and other reviews | C32: =IFERROR(SUMIFS(D_D[INV],D_D[MT],11,D_D[CAT],TA_23,D_D[EP],$A32),0) -> 0
A33: 690 | B33: EP 690 - Social Security number verification | C33: =IFERROR(SUMIFS(D_D[INV],D_D[MT],11,D_D[CAT],TA_23,D_D[EP],$A33),0) -> 0
B34: Compensation Other | C34: =SUM(C35:C44) -> 115
A35: 335 | B35: EP 335 - Blue Water Navy (Agent Orange) | C35: =IFERROR(SUMIFS(D_D[INV],D_D[MT],11,D_D[CAT],TA_24,D_D[EP],$A35),0) -> 0
A36: 400G | B36: EP 400 - Correspondence | C36: =IFERROR(SUMIFS(D_D[INV],D_D[MT],11,D_D[CAT],TA_24,D_D[EP],$A36),0) -> 115
A37: 500G | B37: EP 500 - Congressional correspondence | C37: =IFERROR(SUMIFS(D_D[INV],D_D[MT],11,D_D[CAT],TA_24,D_D[EP],$A37),0) -> 0
A38: 510 | B38: EP 510 - Freedom of Information Act (FOIA) requests | C38: =IFERROR(SUMIFS(D_D[INV],D_D[MT],11,D_D[CAT],TA_24,D_D[EP],$A38),0) -> 0
A39: 930G | B39: EP 930 - Review, including quality assurance | C39: =IFERROR(SUMIFS(D_D[INV],D_D[MT],11,D_D[CAT],TA_24,D_D[EP],$A39),0) -> 0
A40: 960G | B40: EP 960 - Correction of errors | C40: =IFERROR(SUMIFS(D_D[INV],D_D[MT],11,D_D[CAT],TA_24,D_D[EP],$A40),0) -> 0
A41: 681 | B41: EP 681 - Used to control claims under the Nehmer Agent Orange stipulation | C41: =IFERROR(SUMIFS(D_D[INV],D_D[MT],11,D_D[CAT],TA_24,D_D[EP],$A41),0) -> 0
A42: 687 | B42: EP 687 - Previously used for Nehmer Agent Orange presumptive issues | C42: =IFERROR(SUMIFS(D_D[INV],D_D[MT],11,D_D[CAT],TA_24,D_D[EP],$A42),0) -> 0
A43: 405 | B43: EP 405 - Reopened or new Agent Orange claims between 9/01/10 and 10/24/2011 | C43: =IFERROR(SUMIFS(D_D[INV],D_D[MT],11,D_D[CAT],TA_24,D_D[EP],$A43),0) -> 0
A44: 409 | B44: EP 409 - Agent Orange claims where an interim decision was provided; No longer used as of 10/24/2011 | C44: =IFERROR(SUMIFS(D_D[INV],D_D[MT],11,D_D[CAT],TA_24,D_D[EP],$A44),0) -> 0
B45: Compensation Burial/Accrued | C45: =SUM(C46:C47) -> 0
A46: 160G | B46: EP 160 - Burials | C46: =IFERROR(SUMIFS(D_D[INV],D_D[MT],11,D_D[CAT],TA_25,D_D[EP],$A46),0) -> 0
A47: 165 | B47: EP 165 - Accrued | C47: =IFERROR(SUMIFS(D_D[INV],D_D[MT],11,D_D[CAT],TA_25,D_D[EP],$A47),0) -> 0

Sheet TA-Regional Office
C1: 2000 | D1: 2000 | E1: 11 | F1: 11 | H1: 12 | I1: 12 | K1: 13 | L1: 13 | N1: 14 | O1: 14 | Q1: 15 | R1: 16 | S1: 1
B2: Scroll down to see Pension | C2: =("Inventory by Regional Office - Data through ") -> Inventory by Regional Office - Data through | G2: =D_DT[] -> 2021-08-21
C3: *The claims pending under 'Non-Rating' are a subset of claims listed under the 'Award Adjustment' column and should not be counted twice when computing totals
C4: Non-Rating | E4: Entitlement | H4: Award Adjustment | K4: Program Review | N4: Other | Q4: Burial | R4: Accrued | S4: Legacy Appeals
C5: Claims Pending | D5: Avg. Days Pending | E5: Claims Pending | F5: Pending over 125 days | G5: Percent Pending over 125 days | H5: Claims Pending | I5: Pending over 125 days | J5: Percent Pending over 125 days | K5: Claims Pending | L5: Pending over 125 days | M5: Percent Pending over 125 days | N5: Claims Pending | O5: Pending over 125 days | P5: Percent Pending over 125 days | Q5: Claims Pending | R5: Claims Pending | S5: Appeals Pending
C6: Compensation
A7: 100 | B7: USA Compensation | C7: =IFERROR(SUMIFS(D_D[INV],D_D[MT],1,D_D[CAT],TA_20,D_D[EP],-1, D_D[LOC],$A7),0) -> 39792 | D7: =IFERROR(SUMIFS(D_D[ADP],D_D[MT],1,D_D[CAT],D$1,D_D[EP],-1, D_D[LOC],$A7),0) -> 71.36 | E7: =IFERROR(SUMIFS(D_D[INV],D_D[MT],2,D_D[CAT],TA_21,D_D[EP],-1, D_D[LOC],$A7),0) -> 439471 | F7: =IFERROR(SUMIFS(D_D[BL],D_D[MT],2,D_D[CAT],TA_21,D_D[EP],-1, D_D[LOC],$A7),0) -> 157958 | G7: =IFERROR(F7/E7,"0%") -> 0.3594275845 | H7: =IFERROR(SUMIFS(D_D[INV],D_D[MT],2,D_D[CAT],TA_22,D_D[EP],-1, D_D[LOC],$A7),0) -> 97038 | I7: =IFERROR(SUMIFS(D_D[BL],D_D[MT],2,D_D[CAT],TA_22,D_D[EP],-1, D_D[LOC],$A7),0) -> 18436 | J7: =IFERROR(I7/H7,"0%") -> 0.1899874276 | K7: =IFERROR(SUMIFS(D_D[INV],D_D[MT],2,D_D[CAT],TA_23,D_D[EP],-1, D_D[LOC],$A7),0) -> 2012 | L7: =IFERROR(SUMIFS(D_D[BL],D_D[MT],2,D_D[CAT],TA_23,D_D[EP],-1, D_D[LOC],$A7),0) -> 317 | M7: =IFERROR(L7/K7,"0%") -> 0.157554672 | N7: =IFERROR(SUMIFS(D_D[INV],D_D[MT],2,D_D[CAT],TA_24,D_D[EP],-1, D_D[LOC],$A7),0) - 'Diarys and Future Claims'!C35 -> 195300 | O7: =IFERROR(SUMIFS(D_D[BL],D_D[MT],2,D_D[CAT],TA_24,D_D[EP],-1, D_D[LOC],$A7),0) -> 38527 | P7: =IFERROR(O7/N7,"0%") -> 0.1972708653 | Q7: =IFERROR(SUMIFS(D_D[INV],D_D[MT],2,D_D[CAT],TA_25,D_D[EP],-1, D_D[LOC],$A7),0) -> 4530 | R7: =IFERROR(SUMIFS(D_D[INV],D_D[MT],2,D_D[CAT],TA_26,D_D[EP],-1, D_D[LOC],$A7),0) -> 10033 | S7: =IFERROR(SUMIFS(D_D[INV],D_D[MT],7,D_D[CAT],2,D_D[EP],TA_20, D_D[LOC],$A7),0) -> 30825
A8: 394 | B8: Northeast | C8: =IFERROR(SUMIFS(D_D[INV],D_D[MT],1,D_D[CAT],TA_20,D_D[EP],-1, D_D[LOC],$A8),0) -> 10540 | D8: =IFERROR(SUMIFS(D_D[ADP],D_D[MT],1,D_D[CAT],D$1,D_D[EP],-1, D_D[LOC],$A8),0) -> 69.35 | E8: =IFERROR(SUMIFS(D_D[INV],D_D[MT],2,D_D[CAT],TA_21,D_D[EP],-1, D_D[LOC],$A8),0) -> 78186 | F8: =IFERROR(SUMIFS(D_D[BL],D_D[MT],2,D_D[CAT],TA_21,D_D[EP],-1, D_D[LOC],$A8),0) -> 28392 | G8: =IFERROR(F8/E8,"0%") -> 0.3631340649 | H8: =IFERROR(SUMIFS(D_D[INV],D_D[MT],2,D_D[CAT],TA_22,D_D[EP],-1, D_D[LOC],$A8),0) -> 26727 | I8: =IFERROR(SUMIFS(D_D[BL],D_D[MT],2,D_D[CAT],TA_22,D_D[EP],-1, D_D[LOC],$A8),0) -> 4689 | J8: =IFERROR(I8/H8,"0%") -> 0.1754405657 | K8: =IFERROR(SUMIFS(D_D[INV],D_D[MT],2,D_D[CAT],TA_23,D_D[EP],-1, D_D[LOC],$A8),0) -> 450 | L8: =IFERROR(SUMIFS(D_D[BL],D_D[MT],2,D_D[CAT],TA_23,D_D[EP],-1, D_D[LOC],$A8),0) -> 19 | M8: =IFERROR(L8/K8,"0%") -> 0.04222222222 | N8: =IFERROR(SUMIFS(D_D[INV],D_D[MT],2,D_D[CAT],TA_24,D_D[EP],-1, D_D[LOC],$A8),0) -> 22773 | O8: =IFERROR(SUMIFS(D_D[BL],D_D[MT],2,D_D[CAT],TA_24,D_D[EP],-1, D_D[LOC],$A8),0) -> 8699 | P8: =IFERROR(O8/N8,"0%") -> 0.3819874413 | Q8: =IFERROR(SUMIFS(D_D[INV],D_D[MT],2,D_D[CAT],TA_25,D_D[EP],-1, D_D[LOC],$A8),0) -> 1510 | R8: =IFERROR(SUMIFS(D_D[INV],D_D[MT],2,D_D[CAT],TA_26,D_D[EP],-1, D_D[LOC],$A8),0) -> 114 | S8: =IFERROR(SUMIFS(D_D[INV],D_D[MT],7,D_D[CAT],2,D_D[EP],TA_20, D_D[LOC],$A8),0) -> 288
A9: 313 | B9: Baltimore | C9: =IFERROR(SUMIFS(D_D[INV],D_D[MT],1,D_D[CAT],TA_20,D_D[EP],-1, D_D[LOC],$A9),0) -> 201 | D9: =IFERROR(SUMIFS(D_D[ADP],D_D[MT],1,D_D[CAT],D$1,D_D[EP],-1, D_D[LOC],$A9),0) -> 56.04 | E9: =IFERROR(SUMIFS(D_D[INV],D_D[MT],2,D_D[CAT],TA_21,D_D[EP],-1, D_D[LOC],$A9),0) -> 5558 | F9: =IFERROR(SUMIFS(D_D[BL],D_D[MT],2,D_D[CAT],TA_21,D_D[EP],-1, D_D[LOC],$A9),0) -> 1852 | G9: 0.3332133861 | H9: =IFERROR(SUMIFS(D_D[INV],D_D[MT],2,D_D[CAT],TA_22,D_D[EP],-1, D_D[LOC],$A9),0) -> 570 | I9: =IFERROR(SUMIFS(D_D[BL],D_D[MT],2,D_D[CAT],TA_22,D_D[EP],-1, D_D[LOC],$A9),0) -> 102 | J9: 0.1789473684 | K9: =IFERROR(SUMIFS(D_D[INV],D_D[MT],2,D_D[CAT],TA_23,D_D[EP],-1, D_D[LOC],$A9),0) -> 19 | L9: =IFERROR(SUMIFS(D_D[BL],D_D[MT],2,D_D[CAT],TA_23,D_D[EP],-1, D_D[LOC],$A9),0) -> 1 | M9: 0.05263157895 | N9: =IFERROR(SUMIFS(D_D[INV],D_D[MT],2,D_D[CAT],TA_24,D_D[EP],-1, D_D[LOC],$A9),0) -> 524 | O9: =IFERROR(SUMIFS(D_D[BL],D_D[MT],2,D_D[CAT],TA_24,D_D[EP],-1, D_D[LOC],$A9),0) -> 245 | P9: 0.4675572519 | Q9: =IFERROR(SUMIFS(D_D[INV],D_D[MT],2,D_D[CAT],TA_25,D_D[EP],-1, D_D[LOC],$A9),0) -> 20 | R9: =IFERROR(SUMIFS(D_D[INV],D_D[MT],2,D_D[CAT],TA_26,D_D[EP],-1, D_D[LOC],$A9),0) -> 4 | S9: =IFERROR(SUMIFS(D_D[INV],D_D[MT],7,D_D[CAT],2,D_D[EP],TA_20, D_D[LOC],$A9),0) -> 3
A10: 301 | B10: Boston | C10: =IFERROR(SUMIFS(D_D[INV],D_D[MT],1,D_D[CAT],TA_20,D_D[EP],-1, D_D[LOC],$A10),0) -> 58 | D10: =IFERROR(SUMIFS(D_D[ADP],D_D[MT],1,D_D[CAT],D$1,D_D[EP],-1, D_D[LOC],$A10),0) -> 50.67 | E10: =IFERROR(SUMIFS(D_D[INV],D_D[MT],2,D_D[CAT],TA_21,D_D[EP],-1, D_D[LOC],$A10),0) -> 2359 | F10: =IFERROR(SUMIFS(D_D[BL],D_D[MT],2,D_D[CAT],TA_21,D_D[EP],-1, D_D[LOC],$A10),0) -> 773 | G10: =IFERROR(F10/E10,"0%") -> 0.3276812209 | H10: =IFERROR(SUMIFS(D_D[INV],D_D[MT],2,D_D[CAT],TA_22,D_D[EP],-1, D_D[LOC],$A10),0) -> 434 | I10: =IFERROR(SUMIFS(D_D[BL],D_D[MT],2,D_D[CAT],TA_22,D_D[EP],-1, D_D[LOC],$A10),0) -> 111 | J10: =IFERROR(I10/H10,"0%") -> 0.2557603687 | K10: =IFERROR(SUMIFS(D_D[INV],D_D[MT],2,D_D[CAT],TA_23,D_D[EP],-1, D_D[LOC],$A10),0) -> 18 | L10: =IFERROR(SUMIFS(D_D[BL],D_D[MT],2,D_D[CAT],TA_23,D_D[EP],-1, D_D[LOC],$A10),0) -> 0 | M10: =IFERROR(L10/K10,"0%") -> 0 | N10: =IFERROR(SUMIFS(D_D[INV],D_D[MT],2,D_D[CAT],TA_24,D_D[EP],-1, D_D[LOC],$A10),0) -> 154 | O10: =IFERROR(SUMIFS(D_D[BL],D_D[MT],2,D_D[CAT],TA_24,D_D[EP],-1, D_D[LOC],$A10),0) -> 105 | P10: =IFERROR(O10/N10,"0%") -> 0.6818181818 | Q10: =IFERROR(SUMIFS(D_D[INV],D_D[MT],2,D_D[CAT],TA_25,D_D[EP],-1, D_D[LOC],$A10),0) -> 11 | R10: =IFERROR(SUMIFS(D_D[INV],D_D[MT],2,D_D[CAT],TA_26,D_D[EP],-1, D_D[LOC],$A10),0) -> 2 | S10: =IFERROR(SUMIFS(D_D[INV],D_D[MT],7,D_D[CAT],2,D_D[EP],TA_20, D_D[LOC],$A10),0) -> 0
A11: 307 | B11: Buffalo | C11: =IFERROR(SUMIFS(D_D[INV],D_D[MT],1,D_D[CAT],TA_20,D_D[EP],-1, D_D[LOC],$A11),0) -> 104 | D11: =IFERROR(SUMIFS(D_D[ADP],D_D[MT],1,D_D[CAT],D$1,D_D[EP],-1, D_D[LOC],$A11),0) -> 82.63 | E11: =IFERROR(SUMIFS(D_D[INV],D_D[MT],2,D_D[CAT],TA_21,D_D[EP],-1, D_D[LOC],$A11),0) -> 2875 | F11: =IFERROR(SUMIFS(D_D[BL],D_D[MT],2,D_D[CAT],TA_21,D_D[EP],-1, D_D[LOC],$A11),0) -> 918 | G11: 0.3193043478 | H11: =IFERROR(SUMIFS(D_D[INV],D_D[MT],2,D_D[CAT],TA_22,D_D[EP],-1, D_D[LOC],$A11),0) -> 589 | I11: =IFERROR(SUMIFS(D_D[BL],D_D[MT],2,D_D[CAT],TA_22,D_D[EP],-1, D_D[LOC],$A11),0) -> 157 | J11: 0.2665534805 | K11: =IFERROR(SUMIFS(D_D[INV],D_D[MT],2,D_D[CAT],TA_23,D_D[EP],-1, D_D[LOC],$A11),0) -> 22 | L11: =IFERROR(SUMIFS(D_D[BL],D_D[MT],2,D_D[CAT],TA_23,D_D[EP],-1, D_D[LOC],$A11),0) -> 0 | M11: 0 | N11: =IFERROR(SUMIFS(D_D[INV],D_D[MT],2,D_D[CAT],TA_24,D_D[EP],-1, D_D[LOC],$A11),0) -> 233 | O11: =IFERROR(SUMIFS(D_D[BL],D_D[MT],2,D_D[CAT],TA_24,D_D[EP],-1, D_D[LOC],$A11),0) -> 153 | P11: 0.6566523605 | Q11: =IFERROR(SUMIFS(D_D[INV],D_D[MT],2,D_D[CAT],TA_25,D_D[EP],-1, D_D[LOC],$A11),0) -> 19 | R11: =IFERROR(SUMIFS(D_D[INV],D_D[MT],2,D_D[CAT],TA_26,D_D[EP],-1, D_D[LOC],$A11),0) -> 1 | S11: =IFERROR(SUMIFS(D_D[INV],D_D[MT],7,D_D[CAT],2,D_D[EP],TA_20, D_D[LOC],$A11),0) -> 5
A12: 328 | B12: Chicago | C12: =IFERROR(SUMIFS(D_D[INV],D_D[MT],1,D_D[CAT],TA_20,D_D[EP],-1, D_D[LOC],$A12),0) -> 214 | D12: =IFERROR(SUMIFS(D_D[ADP],D_D[MT],1,D_D[CAT],D$1,D_D[EP],-1, D_D[LOC],$A12),0) -> 64.59 | E12: =IFERROR(SUMIFS(D_D[INV],D_D[MT],2,D_D[CAT],TA_21,D_D[EP],-1, D_D[LOC],$A12),0) -> 6626 | F12: =IFERROR(SUMIFS(D_D[BL],D_D[MT],2,D_D[CAT],TA_21,D_D[EP],-1, D_D[LOC],$A12),0) -> 2124 | G12: 0.3205553879 | H12: =IFERROR(SUMIFS(D_D[INV],D_D[MT],2,D_D[CAT],TA_22,D_D[EP],-1, D_D[LOC],$A12),0) -> 952 | I12: =IFERROR(SUMIFS(D_D[BL],D_D[MT],2,D_D[CAT],TA_22,D_D[EP],-1, D_D[LOC],$A12),0) -> 212 | J12: 0.2226890756 | K12: =IFERROR(SUMIFS(D_D[INV],D_D[MT],2,D_D[CAT],TA_23,D_D[EP],-1, D_D[LOC],$A12),0) -> 39 | L12: =IFERROR(SUMIFS(D_D[BL],D_D[MT],2,D_D[CAT],TA_23,D_D[EP],-1, D_D[LOC],$A12),0) -> 0 | M12: 0 | N12: =IFERROR(SUMIFS(D_D[INV],D_D[MT],2,D_D[CAT],TA_24,D_D[EP],-1, D_D[LOC],$A12),0) -> 528 | O12: =IFERROR(SUMIFS(D_D[BL],D_D[MT],2,D_D[CAT],TA_24,D_D[EP],-1, D_D[LOC],$A12),0) -> 305 | P12: 0.5776515152 | Q12: =IFERROR(SUMIFS(D_D[INV],D_D[MT],2,D_D[CAT],TA_25,D_D[EP],-1, D_D[LOC],$A12),0) -> 44 | R12: =IFERROR(SUMIFS(D_D[INV],D_D[MT],2,D_D[CAT],TA_26,D_D[EP],-1, D_D[LOC],$A12),0) -> 7 | S12: =IFERROR(SUMIFS(D_D[INV],D_D[MT],7,D_D[CAT],2,D_D[EP],TA_20, D_D[LOC],$A12),0) -> 11
A13: 325 | B13: Cleveland | C13: =IFERROR(SUMIFS(D_D[INV],D_D[MT],1,D_D[CAT],TA_20,D_D[EP],-1, D_D[LOC],$A13),0) -> 461 | D13: =IFERROR(SUMIFS(D_D[ADP],D_D[MT],1,D_D[CAT],D$1,D_D[EP],-1, D_D[LOC],$A13),0) -> 99.31 | E13: =IFERROR(SUMIFS(D_D[INV],D_D[MT],2,D_D[CAT],TA_21,D_D[EP],-1, D_D[LOC],$A13),0) -> 8984 | F13: =IFERROR(SUMIFS(D_D[BL],D_D[MT],2,D_D[CAT],TA_21,D_D[EP],-1, D_D[LOC],$A13),0) -> 3694 | G13: 0.411175423 | H13: =IFERROR(SUMIFS(D_D[INV],D_D[MT],2,D_D[CAT],TA_22,D_D[EP],-1, D_D[LOC],$A13),0) -> 1389 | I13: =IFERROR(SUMIFS(D_D[BL],D_D[MT],2,D_D[CAT],TA_22,D_D[EP],-1, D_D[LOC],$A13),0) -> 432 | J13: 0.3110151188 | K13: =IFERROR(SUMIFS(D_D[INV],D_D[MT],2,D_D[CAT],TA_23,D_D[EP],-1, D_D[LOC],$A13),0) -> 33 | L13: =IFERROR(SUMIFS(D_D[BL],D_D[MT],2,D_D[CAT],TA_23,D_D[EP],-1, D_D[LOC],$A13),0) -> 3 | M13: 0.09090909091 | N13: =IFERROR(SUMIFS(D_D[INV],D_D[MT],2,D_D[CAT],TA_24,D_D[EP],-1, D_D[LOC],$A13),0) -> 2098 | O13: =IFERROR(SUMIFS(D_D[BL],D_D[MT],2,D_D[CAT],TA_24,D_D[EP],-1, D_D[LOC],$A13),0) -> 1227 | P13: 0.5848427073 | Q13: =IFERROR(SUMIFS(D_D[INV],D_D[MT],2,D_D[CAT],TA_25,D_D[EP],-1, D_D[LOC],$A13),0) -> 47 | R13: =IFERROR(SUMIFS(D_D[INV],D_D[MT],2,D_D[CAT],TA_26,D_D[EP],-1, D_D[LOC],$A13),0) -> 7 | S13: =IFERROR(SUMIFS(D_D[INV],D_D[MT],7,D_D[CAT],2,D_D[EP],TA_20, D_D[LOC],$A13),0) -> 10
A14: 329 | B14: Detroit | C14: =IFERROR(SUMIFS(D_D[INV],D_D[MT],1,D_D[CAT],TA_20,D_D[EP],-1, D_D[LOC],$A14),0) -> 1227 | D14: =IFERROR(SUMIFS(D_D[ADP],D_D[MT],1,D_D[CAT],D$1,D_D[EP],-1, D_D[LOC],$A14),0) -> 55.72 | E14: =IFERROR(SUMIFS(D_D[INV],D_D[MT],2,D_D[CAT],TA_21,D_D[EP],-1, D_D[LOC],$A14),0) -> 5841 | F14: =IFERROR(SUMIFS(D_D[BL],D_D[MT],2,D_D[CAT],TA_21,D_D[EP],-1, D_D[LOC],$A14),0) -> 2021 | G14: 0.3460023968 | H14: =IFERROR(SUMIFS(D_D[INV],D_D[MT],2,D_D[CAT],TA_22,D_D[EP],-1, D_D[LOC],$A14),0) -> 3906 | I14: =IFERROR(SUMIFS(D_D[BL],D_D[MT],2,D_D[CAT],TA_22,D_D[EP],-1, D_D[LOC],$A14),0) -> 372 | J14: 0.09523809524 | K14: =IFERROR(SUMIFS(D_D[INV],D_D[MT],2,D_D[CAT],TA_23,D_D[EP],-1, D_D[LOC],$A14),0) -> 39 | L14: =IFERROR(SUMIFS(D_D[BL],D_D[MT],2,D_D[CAT],TA_23,D_D[EP],-1, D_D[LOC],$A14),0) -> 3 | M14: 0.07692307692 | N14: =IFERROR(SUMIFS(D_D[INV],D_D[MT],2,D_D[CAT],TA_24,D_D[EP],-1, D_D[LOC],$A14),0) -> 720 | O14: =IFERROR(SUMIFS(D_D[BL],D_D[MT],2,D_D[CAT],TA_24,D_D[EP],-1, D_D[LOC],$A14),0) -> 412 | P14: 0.5722222222 | Q14: =IFERROR(SUMIFS(D_D[INV],D_D[MT],2,D_D[CAT],TA_25,D_D[EP],-1, D_D[LOC],$A14),0) -> 44 | R14: =IFERROR(SUMIFS(D_D[INV],D_D[MT],2,D_D[CAT],TA_26,D_D[EP],-1, D_D[LOC],$A14),0) -> 4 | S14: =IFERROR(SUMIFS(D_D[INV],D_D[MT],7,D_D[CAT],2,D_D[EP],TA_20, D_D[LOC],$A14),0) -> 12
A15: 308 | B15: Hartford | C15: =IFERROR(SUMIFS(D_D[INV],D_D[MT],1,D_D[CAT],TA_20,D_D[EP],-1, D_D[LOC],$A15),0) -> 69 | D15: =IFERROR(SUMIFS(D_D[ADP],D_D[MT],1,D_D[CAT],D$1,D_D[EP],-1, D_D[LOC],$A15),0) -> 50.64 | E15: =IFERROR(SUMIFS(D_D[INV],D_D[MT],2,D_D[CAT],TA_21,D_D[EP],-1, D_D[LOC],$A15),0) -> 1721 | F15: =IFERROR(SUMIFS(D_D[BL],D_D[MT],2,D_D[CAT],TA_21,D_D[EP],-1, D_D[LOC],$A15),0) -> 624 | G15: 0.3625798954 | H15: =IFERROR(SUMIFS(D_D[INV],D_D[MT],2,D_D[CAT],TA_22,D_D[EP],-1, D_D[LOC],$A15),0) -> 411 | I15: =IFERROR(SUMIFS(D_D[BL],D_D[MT],2,D_D[CAT],TA_22,D_D[EP],-1, D_D[LOC],$A15),0) -> 111 | J15: 0.2700729927 | K15: =IFERROR(SUMIFS(D_D[INV],D_D[MT],2,D_D[CAT],TA_23,D_D[EP],-1, D_D[LOC],$A15),0) -> 12 | L15: =IFERROR(SUMIFS(D_D[BL],D_D[MT],2,D_D[CAT],TA_23,D_D[EP],-1, D_D[LOC],$A15),0) -> 0 | M15: 0 | N15: =IFERROR(SUMIFS(D_D[INV],D_D[MT],2,D_D[CAT],TA_24,D_D[EP],-1, D_D[LOC],$A15),0) -> 296 | O15: =IFERROR(SUMIFS(D_D[BL],D_D[MT],2,D_D[CAT],TA_24,D_D[EP],-1, D_D[LOC],$A15),0) -> 139 | P15: 0.4695945946 | Q15: =IFERROR(SUMIFS(D_D[INV],D_D[MT],2,D_D[CAT],TA_25,D_D[EP],-1, D_D[LOC],$A15),0) -> 9 | R15: =IFERROR(SUMIFS(D_D[INV],D_D[MT],2,D_D[CAT],TA_26,D_D[EP],-1, D_D[LOC],$A15),0) -> 2 | S15: =IFERROR(SUMIFS(D_D[INV],D_D[MT],7,D_D[CAT],2,D_D[EP],TA_20, D_D[LOC],$A15),0) -> 2
A16: 326 | B16: Indianapolis | C16: =IFERROR(SUMIFS(D_D[INV],D_D[MT],1,D_D[CAT],TA_20,D_D[EP],-1, D_D[LOC],$A16),0) -> 3832 | D16: =IFERROR(SUMIFS(D_D[ADP],D_D[MT],1,D_D[CAT],D$1,D_D[EP],-1, D_D[LOC],$A16),0) -> 81.57 | E16: =IFERROR(SUMIFS(D_D[INV],D_D[MT],2,D_D[CAT],TA_21,D_D[EP],-1, D_D[LOC],$A16),0) -> 5171 | F16: =IFERROR(SUMIFS(D_D[BL],D_D[MT],2,D_D[CAT],TA_21,D_D[EP],-1, D_D[LOC],$A16),0) -> 1783 | G16: 0.3448075807 | H16: =IFERROR(SUMIFS(D_D[INV],D_D[MT],2,D_D[CAT],TA_22,D_D[EP],-1, D_D[LOC],$A16),0) -> 4527 | I16: =IFERROR(SUMIFS(D_D[BL],D_D[MT],2,D_D[CAT],TA_22,D_D[EP],-1, D_D[LOC],$A16),0) -> 806 | J16: 0.178042854 | K16: =IFERROR(SUMIFS(D_D[INV],D_D[MT],2,D_D[CAT],TA_23,D_D[EP],-1, D_D[LOC],$A16),0) -> 32 | L16: =IFERROR(SUMIFS(D_D[BL],D_D[MT],2,D_D[CAT],TA_23,D_D[EP],-1, D_D[LOC],$A16),0) -> 1 | M16: 0.03125 | N16: =IFERROR(SUMIFS(D_D[INV],D_D[MT],2,D_D[CAT],TA_24,D_D[EP],-1, D_D[LOC],$A16),0) -> 962 | O16: =IFERROR(SUMIFS(D_D[BL],D_D[MT],2,D_D[CAT],TA_24,D_D[EP],-1, D_D[LOC],$A16),0) -> 275 | P16: 0.2858627859 | Q16: =IFERROR(SUMIFS(D_D[INV],D_D[MT],2,D_D[CAT],TA_25,D_D[EP],-1, D_D[LOC],$A16),0) -> 26 | R16: =IFERROR(SUMIFS(D_D[INV],D_D[MT],2,D_D[CAT],TA_26,D_D[EP],-1, D_D[LOC],$A16),0) -> 11 | S16: =IFERROR(SUMIFS(D_D[INV],D_D[MT],7,D_D[CAT],2,D_D[EP],TA_20, D_D[LOC],$A16),0) -> 3
A17: 373 | B17: Manchester | C17: =IFERROR(SUMIFS(D_D[INV],D_D[MT],1,D_D[CAT],TA_20,D_D[EP],-1, D_D[LOC],$A17),0) -> 92 | D17: =IFERROR(SUMIFS(D_D[ADP],D_D[MT],1,D_D[CAT],D$1,D_D[EP],-1, D_D[LOC],$A17),0) -> 60.68 | E17: =IFERROR(SUMIFS(D_D[INV],D_D[MT],2,D_D[CAT],TA_21,D_D[EP],-1, D_D[LOC],$A17),0) -> 869 | F17: =IFERROR(SUMIFS(D_D[BL],D_D[MT],2,D_D[CAT],TA_21,D_D[EP],-1, D_D[LOC],$A17),0) -> 317 | G17: 0.3647871116 | H17: =IFERROR(SUMIFS(D_D[INV],D_D[MT],2,D_D[CAT],TA_22,D_D[EP],-1, D_D[LOC],$A17),0) -> 245 | I17: =IFERROR(SUMIFS(D_D[BL],D_D[MT],2,D_D[CAT],TA_22,D_D[EP],-1, D_D[LOC],$A17),0) -> 54 | J17: 0.2204081633 | K17: =IFERROR(SUMIFS(D_D[INV],D_D[MT],2,D_D[CAT],TA_23,D_D[EP],-1, D_D[LOC],$A17),0) -> 0 | L17: =IFERROR(SUMIFS(D_D[BL],D_D[MT],2,D_D[CAT],TA_23,D_D[EP],-1, D_D[LOC],$A17),0) -> 0 | M17: 0% | N17: =IFERROR(SUMIFS(D_D[INV],D_D[MT],2,D_D[CAT],TA_24,D_D[EP],-1, D_D[LOC],$A17),0) -> 105 | O17: =IFERROR(SUMIFS(D_D[BL],D_D[MT],2,D_D[CAT],TA_24,D_D[EP],-1, D_D[LOC],$A17),0) -> 63 | P17: 0.6 | Q17: =IFERROR(SUMIFS(D_D[INV],D_D[MT],2,D_D[CAT],TA_25,D_D[EP],-1, D_D[LOC],$A17),0) -> 4 | R17: =IFERROR(SUMIFS(D_D[INV],D_D[MT],2,D_D[CAT],TA_26,D_D[EP],-1, D_D[LOC],$A17),0) -> 3 | S17: =IFERROR(SUMIFS(D_D[INV],D_D[MT],7,D_D[CAT],2,D_D[EP],TA_20, D_D[LOC],$A17),0) -> 1
A18: 330 | B18: Milwaukee | C18: =IFERROR(SUMIFS(D_D[INV],D_D[MT],1,D_D[CAT],TA_20,D_D[EP],-1, D_D[LOC],$A18),0) -> 2379 | D18: =IFERROR(SUMIFS(D_D[ADP],D_D[MT],1,D_D[CAT],D$1,D_D[EP],-1, D_D[LOC],$A18),0) -> 53.08 | E18: =IFERROR(SUMIFS(D_D[INV],D_D[MT],2,D_D[CAT],TA_21,D_D[EP],-1, D_D[LOC],$A18),0) -> 6636 | F18: =IFERROR(SUMIFS(D_D[BL],D_D[MT],2,D_D[CAT],TA_21,D_D[EP],-1, D_D[LOC],$A18),0) -> 3097 | G18: 0.4666968053 | H18: =IFERROR(SUMIFS(D_D[INV],D_D[MT],2,D_D[CAT],TA_22,D_D[EP],-1, D_D[LOC],$A18),0) -> 6077 | I18: =IFERROR(SUMIFS(D_D[BL],D_D[MT],2,D_D[CAT],TA_22,D_D[EP],-1, D_D[LOC],$A18),0) -> 544 | J18: 0.0895178542 | K18: =IFERROR(SUMIFS(D_D[INV],D_D[MT],2,D_D[CAT],TA_23,D_D[EP],-1, D_D[LOC],$A18),0) -> 53 | L18: =IFERROR(SUMIFS(D_D[BL],D_D[MT],2,D_D[CAT],TA_23,D_D[EP],-1, D_D[LOC],$A18),0) -> 4 | M18: 0.07547169811 | N18: =IFERROR(SUMIFS(D_D[INV],D_D[MT],2,D_D[CAT],TA_24,D_D[EP],-1, D_D[LOC],$A18),0) -> 1190 | O18: =IFERROR(SUMIFS(D_D[BL],D_D[MT],2,D_D[CAT],TA_24,D_D[EP],-1, D_D[LOC],$A18),0) -> 876 | P18: 0.7361344538 | Q18: =IFERROR(SUMIFS(D_D[INV],D_D[MT],2,D_D[CAT],TA_25,D_D[EP],-1, D_D[LOC],$A18),0) -> 582 | R18: =IFERROR(SUMIFS(D_D[INV],D_D[MT],2,D_D[CAT],TA_26,D_D[EP],-1, D_D[LOC],$A18),0) -> 0 | S18: =IFERROR(SUMIFS(D_D[INV],D_D[MT],7,D_D[CAT],2,D_D[EP],TA_20, D_D[LOC],$A18),0) -> 5
A19: 306 | B19: New York | C19: =IFERROR(SUMIFS(D_D[INV],D_D[MT],1,D_D[CAT],TA_20,D_D[EP],-1, D_D[LOC],$A19),0) -> 162 | D19: =IFERROR(SUMIFS(D_D[ADP],D_D[MT],1,D_D[CAT],D$1,D_D[EP],-1, D_D[LOC],$A19),0) -> 63.93 | E19: =IFERROR(SUMIFS(D_D[INV],D_D[MT],2,D_D[CAT],TA_21,D_D[EP],-1, D_D[LOC],$A19),0) -> 4243 | F19: =IFERROR(SUMIFS(D_D[BL],D_D[MT],2,D_D[CAT],TA_21,D_D[EP],-1, D_D[LOC],$A19),0) -> 1650 | G19: 0.3888757954 | H19: =IFERROR(SUMIFS(D_D[INV],D_D[MT],2,D_D[CAT],TA_22,D_D[EP],-1, D_D[LOC],$A19),0) -> 765 | I19: =IFERROR(SUMIFS(D_D[BL],D_D[MT],2,D_D[CAT],TA_22,D_D[EP],-1, D_D[LOC],$A19),0) -> 192 | J19: 0.2509803922 | K19: =IFERROR(SUMIFS(D_D[INV],D_D[MT],2,D_D[CAT],TA_23,D_D[EP],-1, D_D[LOC],$A19),0) -> 42 | L19: =IFERROR(SUMIFS(D_D[BL],D_D[MT],2,D_D[CAT],TA_23,D_D[EP],-1, D_D[LOC],$A19),0) -> 4 | M19: 0.09523809524 | N19: =IFERROR(SUMIFS(D_D[INV],D_D[MT],2,D_D[CAT],TA_24,D_D[EP],-1, D_D[LOC],$A19),0) -> 248 | O19: =IFERROR(SUMIFS(D_D[BL],D_D[MT],2,D_D[CAT],TA_24,D_D[EP],-1, D_D[LOC],$A19),0) -> 167 | P19: 0.6733870968 | Q19: =IFERROR(SUMIFS(D_D[INV],D_D[MT],2,D_D[CAT],TA_25,D_D[EP],-1, D_D[LOC],$A19),0) -> 24 | R19: =IFERROR(SUMIFS(D_D[INV],D_D[MT],2,D_D[CAT],TA_26,D_D[EP],-1, D_D[LOC],$A19),0) -> 0 | S19: =IFERROR(SUMIFS(D_D[INV],D_D[MT],7,D_D[CAT],2,D_D[EP],TA_20, D_D[LOC],$A19),0) -> 5
A20: 309 | B20: Newark | C20: =IFERROR(SUMIFS(D_D[INV],D_D[MT],1,D_D[CAT],TA_20,D_D[EP],-1, D_D[LOC],$A20),0) -> 105 | D20: =IFERROR(SUMIFS(D_D[ADP],D_D[MT],1,D_D[CAT],D$1,D_D[EP],-1, D_D[LOC],$A20),0) -> 69.8 | E20: =IFERROR(SUMIFS(D_D[INV],D_D[MT],2,D_D[CAT],TA_21,D_D[EP],-1, D_D[LOC],$A20),0) -> 2835 | F20: =IFERROR(SUMIFS(D_D[BL],D_D[MT],2,D_D[CAT],TA_21,D_D[EP],-1, D_D[LOC],$A20),0) -> 1114 | G20: 0.3929453263 | H20: =IFERROR(SUMIFS(D_D[INV],D_D[MT],2,D_D[CAT],TA_22,D_D[EP],-1, D_D[LOC],$A20),0) -> 411 | I20: =IFERROR(SUMIFS(D_D[BL],D_D[MT],2,D_D[CAT],TA_22,D_D[EP],-1, D_D[LOC],$A20),0) -> 102 | J20: 0.2481751825 | K20: =IFERROR(SUMIFS(D_D[INV],D_D[MT],2,D_D[CAT],TA_23,D_D[EP],-1, D_D[LOC],$A20),0) -> 16 | L20: =IFERROR(SUMIFS(D_D[BL],D_D[MT],2,D_D[CAT],TA_23,D_D[EP],-1, D_D[LOC],$A20),0) -> 0 | M20: 0 | N20: =IFERROR(SUMIFS(D_D[INV],D_D[MT],2,D_D[CAT],TA_24,D_D[EP],-1, D_D[LOC],$A20),0) -> 172 | O20: =IFERROR(SUMIFS(D_D[BL],D_D[MT],2,D_D[CAT],TA_24,D_D[EP],-1, D_D[LOC],$A20),0) -> 104 | P20: 0.6046511628 | Q20: =IFERROR(SUMIFS(D_D[INV],D_D[MT],2,D_D[CAT],TA_25,D_D[EP],-1, D_D[LOC],$A20),0) -> 18 | R20: =IFERROR(SUMIFS(D_D[INV],D_D[MT],2,D_D[CAT],TA_26,D_D[EP],-1, D_D[LOC],$A20),0) -> 2 | S20: =IFERROR(SUMIFS(D_D[INV],D_D[MT],7,D_D[CAT],2,D_D[EP],TA_20, D_D[LOC],$A20),0) -> 4
A21: 310 | B21: Philadelphia | C21: =IFERROR(SUMIFS(D_D[INV],D_D[MT],1,D_D[CAT],TA_20,D_D[EP],-1, D_D[LOC],$A21),0) -> 526 | D21: =IFERROR(SUMIFS(D_D[ADP],D_D[MT],1,D_D[CAT],D$1,D_D[EP],-1, D_D[LOC],$A21),0) -> 70.42 | E21: =IFERROR(SUMIFS(D_D[INV],D_D[MT],2,D_D[CAT],TA_21,D_D[EP],-1, D_D[LOC],$A21),0) -> 7433 | F21: =IFERROR(SUMIFS(D_D[BL],D_D[MT],2,D_D[CAT],TA_21,D_D[EP],-1, D_D[LOC],$A21),0) -> 2962 | G21: 0.398493206 | H21: =IFERROR(SUMIFS(D_D[INV],D_D[MT],2,D_D[CAT],TA_22,D_D[EP],-1, D_D[LOC],$A21),0) -> 3238 | I21: =IFERROR(SUMIFS(D_D[BL],D_D[MT],2,D_D[CAT],TA_22,D_D[EP],-1, D_D[LOC],$A21),0) -> 678 | J21: 0.2093885114 | K21: =IFERROR(SUMIFS(D_D[INV],D_D[MT],2,D_D[CAT],TA_23,D_D[EP],-1, D_D[LOC],$A21),0) -> 34 | L21: =IFERROR(SUMIFS(D_D[BL],D_D[MT],2,D_D[CAT],TA_23,D_D[EP],-1, D_D[LOC],$A21),0) -> 0 | M21: 0 | N21: =IFERROR(SUMIFS(D_D[INV],D_D[MT],2,D_D[CAT],TA_24,D_D[EP],-1, D_D[LOC],$A21),0) -> 1303 | O21: =IFERROR(SUMIFS(D_D[BL],D_D[MT],2,D_D[CAT],TA_24,D_D[EP],-1, D_D[LOC],$A21),0) -> 729 | P21: 0.5594781274 | Q21: =IFERROR(SUMIFS(D_D[INV],D_D[MT],2,D_D[CAT],TA_25,D_D[EP],-1, D_D[LOC],$A21),0) -> 549 | R21: =IFERROR(SUMIFS(D_D[INV],D_D[MT],2,D_D[CAT],TA_26,D_D[EP],-1, D_D[LOC],$A21),0) -> 0 | S21: =IFERROR(SUMIFS(D_D[INV],D_D[MT],7,D_D[CAT],2,D_D[EP],TA_20, D_D[LOC],$A21),0) -> 11
A22: 311 | B22: Pittsburgh | C22: =IFERROR(SUMIFS(D_D[INV],D_D[MT],1,D_D[CAT],TA_20,D_D[EP],-1, D_D[LOC],$A22),0) -> 197 | D22: =IFERROR(SUMIFS(D_D[ADP],D_D[MT],1,D_D[CAT],D$1,D_D[EP],-1, D_D[LOC],$A22),0) -> 74.94 | E22: =IFERROR(SUMIFS(D_D[INV],D_D[MT],2,D_D[CAT],TA_21,D_D[EP],-1, D_D[LOC],$A22),0) -> 5385 | F22: =IFERROR(SUMIFS(D_D[BL],D_D[MT],2,D_D[CAT],TA_21,D_D[EP],-1, D_D[LOC],$A22),0) -> 2071 | G22: 0.3845868152 | H22: =IFERROR(SUMIFS(D_D[INV],D_D[MT],2,D_D[CAT],TA_22,D_D[EP],-1, D_D[LOC],$A22),0) -> 780 | I22: =IFERROR(SUMIFS(D_D[BL],D_D[MT],2,D_D[CAT],TA_22,D_D[EP],-1, D_D[LOC],$A22),0) -> 149 | J22: 0.191025641 | K22: =IFERROR(SUMIFS(D_D[INV],D_D[MT],2,D_D[CAT],TA_23,D_D[EP],-1, D_D[LOC],$A22),0) -> 25 | L22: =IFERROR(SUMIFS(D_D[BL],D_D[MT],2,D_D[CAT],TA_23,D_D[EP],-1, D_D[LOC],$A22),0) -> 2 | M22: 0.08 | N22: =IFERROR(SUMIFS(D_D[INV],D_D[MT],2,D_D[CAT],TA_24,D_D[EP],-1, D_D[LOC],$A22),0) -> 338 | O22: =IFERROR(SUMIFS(D_D[BL],D_D[MT],2,D_D[CAT],TA_24,D_D[EP],-1, D_D[LOC],$A22),0) -> 213 | P22: 0.6301775148 | Q22: =IFERROR(SUMIFS(D_D[INV],D_D[MT],2,D_D[CAT],TA_25,D_D[EP],-1, D_D[LOC],$A22),0) -> 22 | R22: =IFERROR(SUMIFS(D_D[INV],D_D[MT],2,D_D[CAT],TA_26,D_D[EP],-1, D_D[LOC],$A22),0) -> 0 | S22: =IFERROR(SUMIFS(D_D[INV],D_D[MT],7,D_D[CAT],2,D_D[EP],TA_20, D_D[LOC],$A22),0) -> 205
A23: 304 | B23: Providence | C23: =IFERROR(SUMIFS(D_D[INV],D_D[MT],1,D_D[CAT],TA_20,D_D[EP],-1, D_D[LOC],$A23),0) -> 188 | D23: =IFERROR(SUMIFS(D_D[ADP],D_D[MT],1,D_D[CAT],D$1,D_D[EP],-1, D_D[LOC],$A23),0) -> 45.89 | E23: =IFERROR(SUMIFS(D_D[INV],D_D[MT],2,D_D[CAT],TA_21,D_D[EP],-1, D_D[LOC],$A23),0) -> 2024 | F23: =IFERROR(SUMIFS(D_D[BL],D_D[MT],2,D_D[CAT],TA_21,D_D[EP],-1, D_D[LOC],$A23),0) -> 574 | G23: 0.2835968379 | H23: =IFERROR(SUMIFS(D_D[INV],D_D[MT],2,D_D[CAT],TA_22,D_D[EP],-1, D_D[LOC],$A23),0) -> 560 | I23: =IFERROR(SUMIFS(D_D[BL],D_D[MT],2,D_D[CAT],TA_22,D_D[EP],-1, D_D[LOC],$A23),0) -> 143 | J23: 0.2553571429 | K23: =IFERROR(SUMIFS(D_D[INV],D_D[MT],2,D_D[CAT],TA_23,D_D[EP],-1, D_D[LOC],$A23),0) -> 15 | L23: =IFERROR(SUMIFS(D_D[BL],D_D[MT],2,D_D[CAT],TA_23,D_D[EP],-1, D_D[LOC],$A23),0) -> 0 | M23: 0 | N23: =IFERROR(SUMIFS(D_D[INV],D_D[MT],2,D_D[CAT],TA_24,D_D[EP],-1, D_D[LOC],$A23),0) -> 226 | O23: =IFERROR(SUMIFS(D_D[BL],D_D[MT],2,D_D[CAT],TA_24,D_D[EP],-1, D_D[LOC],$A23),0) -> 142 | P23: 0.6283185841 | Q23: =IFERROR(SUMIFS(D_D[INV],D_D[MT],2,D_D[CAT],TA_25,D_D[EP],-1, D_D[LOC],$A23),0) -> 7 | R23: =IFERROR(SUMIFS(D_D[INV],D_D[MT],2,D_D[CAT],TA_26,D_D[EP],-1, D_D[LOC],$A23),0) -> 3 | S23: =IFERROR(SUMIFS(D_D[INV],D_D[MT],7,D_D[CAT],2,D_D[EP],TA_20, D_D[LOC],$A23),0) -> 3
A24: 376 | B24: St. Louis RMC | C24: =IFERROR(SUMIFS(D_D[INV],D_D[MT],1,D_D[CAT],TA_20,D_D[EP],-1, D_D[LOC],$A24),0) -> 18 | D24: =IFERROR(SUMIFS(D_D[ADP],D_D[MT],1,D_D[CAT],D$1,D_D[EP],-1, D_D[LOC],$A24),0) -> 117.17 | E24: =IFERROR(SUMIFS(D_D[INV],D_D[MT],2,D_D[CAT],TA_21,D_D[EP],-1, D_D[LOC],$A24),0) -> 1399 | F24: =IFERROR(SUMIFS(D_D[BL],D_D[MT],2,D_D[CAT],TA_21,D_D[EP],-1, D_D[LOC],$A24),0) -> 90 | G24: 0.06433166548 | H24: =IFERROR(SUMIFS(D_D[INV],D_D[MT],2,D_D[CAT],TA_22,D_D[EP],-1, D_D[LOC],$A24),0) -> 19 | I24: =IFERROR(SUMIFS(D_D[BL],D_D[MT],2,D_D[CAT],TA_22,D_D[EP],-1, D_D[LOC],$A24),0) -> 4 | J24: 0.2105263158 | K24: =IFERROR(SUMIFS(D_D[INV],D_D[MT],2,D_D[CAT],TA_23,D_D[EP],-1, D_D[LOC],$A24),0) -> 0 | L24: =IFERROR(SUMIFS(D_D[BL],D_D[MT],2,D_D[CAT],TA_23,D_D[EP],-1, D_D[LOC],$A24),0) -> 0 | M24: 0% | N24: =IFERROR(SUMIFS(D_D[INV],D_D[MT],2,D_D[CAT],TA_24,D_D[EP],-1, D_D[LOC],$A24),0) -> 11826 | O24: =IFERROR(SUMIFS(D_D[BL],D_D[MT],2,D_D[CAT],TA_24,D_D[EP],-1, D_D[LOC],$A24),0) -> 2695 | P24: 0.2278877051 | Q24: =IFERROR(SUMIFS(D_D[INV],D_D[MT],2,D_D[CAT],TA_25,D_D[EP],-1, D_D[LOC],$A24),0) -> 16 | R24: =IFERROR(SUMIFS(D_D[INV],D_D[MT],2,D_D[CAT],TA_26,D_D[EP],-1, D_D[LOC],$A24),0) -> 0 | S24: =IFERROR(SUMIFS(D_D[INV],D_D[MT],7,D_D[CAT],2,D_D[EP],TA_20, D_D[LOC],$A24),0) -> 0
A25: 331 | B25: St. Louis | C25: =IFERROR(SUMIFS(D_D[INV],D_D[MT],1,D_D[CAT],TA_20,D_D[EP],-1, D_D[LOC],$A25),0) -> 314 | D25: =IFERROR(SUMIFS(D_D[ADP],D_D[MT],1,D_D[CAT],D$1,D_D[EP],-1, D_D[LOC],$A25),0) -> 96.31 | E25: =IFERROR(SUMIFS(D_D[INV],D_D[MT],2,D_D[CAT],TA_21,D_D[EP],-1, D_D[LOC],$A25),0) -> 5751 | F25: =IFERROR(SUMIFS(D_D[BL],D_D[MT],2,D_D[CAT],TA_21,D_D[EP],-1, D_D[LOC],$A25),0) -> 1821 | G25: 0.3166405842 | H25: =IFERROR(SUMIFS(D_D[INV],D_D[MT],2,D_D[CAT],TA_22,D_D[EP],-1, D_D[LOC],$A25),0) -> 909 | I25: =IFERROR(SUMIFS(D_D[BL],D_D[MT],2,D_D[CAT],TA_22,D_D[EP],-1, D_D[LOC],$A25),0) -> 261 | J25: 0.2871287129 | K25: =IFERROR(SUMIFS(D_D[INV],D_D[MT],2,D_D[CAT],TA_23,D_D[EP],-1, D_D[LOC],$A25),0) -> 39 | L25: =IFERROR(SUMIFS(D_D[BL],D_D[MT],2,D_D[CAT],TA_23,D_D[EP],-1, D_D[LOC],$A25),0) -> 1 | M25: 0.02564102564 | N25: =IFERROR(SUMIFS(D_D[INV],D_D[MT],2,D_D[CAT],TA_24,D_D[EP],-1, D_D[LOC],$A25),0) -> 1314 | O25: =IFERROR(SUMIFS(D_D[BL],D_D[MT],2,D_D[CAT],TA_24,D_D[EP],-1, D_D[LOC],$A25),0) -> 697 | P25: 0.5304414003 | Q25: =IFERROR(SUMIFS(D_D[INV],D_D[MT],2,D_D[CAT],TA_25,D_D[EP],-1, D_D[LOC],$A25),0) -> 31 | R25: =IFERROR(SUMIFS(D_D[INV],D_D[MT],2,D_D[CAT],TA_26,D_D[EP],-1, D_D[LOC],$A25),0) -> 6 | S25: =IFERROR(SUMIFS(D_D[INV],D_D[MT],7,D_D[CAT],2,D_D[EP],TA_20, D_D[LOC],$A25),0) -> 6
A26: 402 | B26: Togus | C26: =IFERROR(SUMIFS(D_D[INV],D_D[MT],1,D_D[CAT],TA_20,D_D[EP],-1, D_D[LOC],$A26),0) -> 93 | D26: =IFERROR(SUMIFS(D_D[ADP],D_D[MT],1,D_D[CAT],D$1,D_D[EP],-1, D_D[LOC],$A26),0) -> 106.9 | E26: =IFERROR(SUMIFS(D_D[INV],D_D[MT],2,D_D[CAT],TA_21,D_D[EP],-1, D_D[LOC],$A26),0) -> 1246 | F26: =IFERROR(SUMIFS(D_D[BL],D_D[MT],2,D_D[CAT],TA_21,D_D[EP],-1, D_D[LOC],$A26),0) -> 511 | G26: 0.4101123596 | H26: =IFERROR(SUMIFS(D_D[INV],D_D[MT],2,D_D[CAT],TA_22,D_D[EP],-1, D_D[LOC],$A26),0) -> 427 | I26: =IFERROR(SUMIFS(D_D[BL],D_D[MT],2,D_D[CAT],TA_22,D_D[EP],-1, D_D[LOC],$A26),0) -> 178 | J26: 0.4168618267 | K26: =IFERROR(SUMIFS(D_D[INV],D_D[MT],2,D_D[CAT],TA_23,D_D[EP],-1, D_D[LOC],$A26),0) -> 5 | L26: =IFERROR(SUMIFS(D_D[BL],D_D[MT],2,D_D[CAT],TA_23,D_D[EP],-1, D_D[LOC],$A26),0) -> 0 | M26: 0 | N26: =IFERROR(SUMIFS(D_D[INV],D_D[MT],2,D_D[CAT],TA_24,D_D[EP],-1, D_D[LOC],$A26),0) -> 466 | O26: =IFERROR(SUMIFS(D_D[BL],D_D[MT],2,D_D[CAT],TA_24,D_D[EP],-1, D_D[LOC],$A26),0) -> 117 | P26: 0.2510729614 | Q26: =IFERROR(SUMIFS(D_D[INV],D_D[MT],2,D_D[CAT],TA_25,D_D[EP],-1, D_D[LOC],$A26),0) -> 31 | R26: =IFERROR(SUMIFS(D_D[INV],D_D[MT],2,D_D[CAT],TA_26,D_D[EP],-1, D_D[LOC],$A26),0) -> 58 | S26: =IFERROR(SUMIFS(D_D[INV],D_D[MT],7,D_D[CAT],2,D_D[EP],TA_20, D_D[LOC],$A26),0) -> 2
A27: 372 | B27: Washington | C27: =IFERROR(SUMIFS(D_D[INV],D_D[MT],1,D_D[CAT],TA_20,D_D[EP],-1, D_D[LOC],$A27),0) -> 234 | D27: =IFERROR(SUMIFS(D_D[ADP],D_D[MT],1,D_D[CAT],D$1,D_D[EP],-1, D_D[LOC],$A27),0) -> 32.6 | E27: =IFERROR(SUMIFS(D_D[INV],D_D[MT],2,D_D[CAT],TA_21,D_D[EP],-1, D_D[LOC],$A27),0) -> 213 | F27: =IFERROR(SUMIFS(D_D[BL],D_D[MT],2,D_D[CAT],TA_21,D_D[EP],-1, D_D[LOC],$A27),0) -> 95 | G27: 0.4460093897 | H27: =IFERROR(SUMIFS(D_D[INV],D_D[MT],2,D_D[CAT],TA_22,D_D[EP],-1, D_D[LOC],$A27),0) -> 285 | I27: =IFERROR(SUMIFS(D_D[BL],D_D[MT],2,D_D[CAT],TA_22,D_D[EP],-1, D_D[LOC],$A27),0) -> 15 | J27: 0.05263157895 | K27: =IFERROR(SUMIFS(D_D[INV],D_D[MT],2,D_D[CAT],TA_23,D_D[EP],-1, D_D[LOC],$A27),0) -> 4 | L27: =IFERROR(SUMIFS(D_D[BL],D_D[MT],2,D_D[CAT],TA_23,D_D[EP],-1, D_D[LOC],$A27),0) -> 0 | M27: 0 | N27: =IFERROR(SUMIFS(D_D[INV],D_D[MT],2,D_D[CAT],TA_24,D_D[EP],-1, D_D[LOC],$A27),0) -> 14 | O27: =IFERROR(SUMIFS(D_D[BL],D_D[MT],2,D_D[CAT],TA_24,D_D[EP],-1, D_D[LOC],$A27),0) -> 1 | P27: 0.07142857143 | Q27: =IFERROR(SUMIFS(D_D[INV],D_D[MT],2,D_D[CAT],TA_25,D_D[EP],-1, D_D[LOC],$A27),0) -> 0 | R27: =IFERROR(SUMIFS(D_D[INV],D_D[MT],2,D_D[CAT],TA_26,D_D[EP],-1, D_D[LOC],$A27),0) -> 0 | S27: =IFERROR(SUMIFS(D_D[INV],D_D[MT],7,D_D[CAT],2,D_D[EP],TA_20, D_D[LOC],$A27),0) -> 0
A28: 405 | B28: White River Junction | C28: =IFERROR(SUMIFS(D_D[INV],D_D[MT],1,D_D[CAT],TA_20,D_D[EP],-1, D_D[LOC],$A28),0) -> 15 | D28: =IFERROR(SUMIFS(D_D[ADP],D_D[MT],1,D_D[CAT],D$1,D_D[EP],-1, D_D[LOC],$A28),0) -> 151 | E28: =IFERROR(SUMIFS(D_D[INV],D_D[MT],2,D_D[CAT],TA_21,D_D[EP],-1, D_D[LOC],$A28),0) -> 321 | F28: =IFERROR(SUMIFS(D_D[BL],D_D[MT],2,D_D[CAT],TA_21,D_D[EP],-1, D_D[LOC],$A28),0) -> 121 | G28: 0.3769470405 | H28: =IFERROR(SUMIFS(D_D[INV],D_D[MT],2,D_D[CAT],TA_22,D_D[EP],-1, D_D[LOC],$A28),0) -> 101 | I28: =IFERROR(SUMIFS(D_D[BL],D_D[MT],2,D_D[CAT],TA_22,D_D[EP],-1, D_D[LOC],$A28),0) -> 40 | J28: 0.396039604 | K28: =IFERROR(SUMIFS(D_D[INV],D_D[MT],2,D_D[CAT],TA_23,D_D[EP],-1, D_D[LOC],$A28),0) -> 2 | L28: =IFERROR(SUMIFS(D_D[BL],D_D[MT],2,D_D[CAT],TA_23,D_D[EP],-1, D_D[LOC],$A28),0) -> 0 | M28: 0 | N28: =IFERROR(SUMIFS(D_D[INV],D_D[MT],2,D_D[CAT],TA_24,D_D[EP],-1, D_D[LOC],$A28),0) -> 25 | O28: =IFERROR(SUMIFS(D_D[BL],D_D[MT],2,D_D[CAT],TA_24,D_D[EP],-1, D_D[LOC],$A28),0) -> 16 | P28: 0.64 | Q28: =IFERROR(SUMIFS(D_D[INV],D_D[MT],2,D_D[CAT],TA_25,D_D[EP],-1, D_D[LOC],$A28),0) -> 3 | R28: =IFERROR(SUMIFS(D_D[INV],D_D[MT],2,D_D[CAT],TA_26,D_D[EP],-1, D_D[LOC],$A28),0) -> 4 | S28: =IFERROR(SUMIFS(D_D[INV],D_D[MT],7,D_D[CAT],2,D_D[EP],TA_20, D_D[LOC],$A28),0) -> 0
A29: 460 | B29: Wilmington | C29: =IFERROR(SUMIFS(D_D[INV],D_D[MT],1,D_D[CAT],TA_20,D_D[EP],-1, D_D[LOC],$A29),0) -> 51 | D29: =IFERROR(SUMIFS(D_D[ADP],D_D[MT],1,D_D[CAT],D$1,D_D[EP],-1, D_D[LOC],$A29),0) -> 37.2 | E29: =IFERROR(SUMIFS(D_D[INV],D_D[MT],2,D_D[CAT],TA_21,D_D[EP],-1, D_D[LOC],$A29),0) -> 696 | F29: =IFERROR(SUMIFS(D_D[BL],D_D[MT],2,D_D[CAT],TA_21,D_D[EP],-1, D_D[LOC],$A29),0) -> 180 | G29: 0.2586206897 | H29: =IFERROR(SUMIFS(D_D[INV],D_D[MT],2,D_D[CAT],TA_22,D_D[EP],-1, D_D[LOC],$A29),0) -> 132 | I29: =IFERROR(SUMIFS(D_D[BL],D_D[MT],2,D_D[CAT],TA_22,D_D[EP],-1, D_D[LOC],$A29),0) -> 26 | J29: 0.196969697 | K29: =IFERROR(SUMIFS(D_D[INV],D_D[MT],2,D_D[CAT],TA_23,D_D[EP],-1, D_D[LOC],$A29),0) -> 1 | L29: =IFERROR(SUMIFS(D_D[BL],D_D[MT],2,D_D[CAT],TA_23,D_D[EP],-1, D_D[LOC],$A29),0) -> 0 | M29: 0 | N29: =IFERROR(SUMIFS(D_D[INV],D_D[MT],2,D_D[CAT],TA_24,D_D[EP],-1, D_D[LOC],$A29),0) -> 31 | O29: =IFERROR(SUMIFS(D_D[BL],D_D[MT],2,D_D[CAT],TA_24,D_D[EP],-1, D_D[LOC],$A29),0) -> 18 | P29: 0.5806451613 | Q29: =IFERROR(SUMIFS(D_D[INV],D_D[MT],2,D_D[CAT],TA_25,D_D[EP],-1, D_D[LOC],$A29),0) -> 3 | R29: =IFERROR(SUMIFS(D_D[INV],D_D[MT],2,D_D[CAT],TA_26,D_D[EP],-1, D_D[LOC],$A29),0) -> 0 | S29: =IFERROR(SUMIFS(D_D[INV],D_D[MT],7,D_D[CAT],2,D_D[EP],TA_20, D_D[LOC],$A29),0) -> 0
A30: 393 | B30: Southeast | C30: =IFERROR(SUMIFS(D_D[INV],D_D[MT],1,D_D[CAT],TA_20,D_D[EP],-1, D_D[LOC],$A30),0) -> 11037 | D30: =IFERROR(SUMIFS(D_D[ADP],D_D[MT],1,D_D[CAT],D$1,D_D[EP],-1, D_D[LOC],$A30),0) -> 90.34 | E30: =IFERROR(SUMIFS(D_D[INV],D_D[MT],2,D_D[CAT],TA_21,D_D[EP],-1, D_D[LOC],$A30),0) -> 112875 | F30: =IFERROR(SUMIFS(D_D[BL],D_D[MT],2,D_D[CAT],TA_21,D_D[EP],-1, D_D[LOC],$A30),0) -> 40229 | G30: 0.3564031008 | H30: =IFERROR(SUMIFS(D_D[INV],D_D[MT],2,D_D[CAT],TA_22,D_D[EP],-1, D_D[LOC],$A30),0) -> 27675 | I30: =IFERROR(SUMIFS(D_D[BL],D_D[MT],2,D_D[CAT],TA_22,D_D[EP],-1, D_D[LOC],$A30),0) -> 5784 | J30: 0.20899729 | K30: =IFERROR(SUMIFS(D_D[INV],D_D[MT],2,D_D[CAT],TA_23,D_D[EP],-1, D_D[LOC],$A30),0) -> 818 | L30: =IFERROR(SUMIFS(D_D[BL],D_D[MT],2,D_D[CAT],TA_23,D_D[EP],-1, D_D[LOC],$A30),0) -> 247 | M30: 0.3019559902 | N30: =IFERROR(SUMIFS(D_D[INV],D_D[MT],2,D_D[CAT],TA_24,D_D[EP],-1, D_D[LOC],$A30),0) -> 14113 | O30: =IFERROR(SUMIFS(D_D[BL],D_D[MT],2,D_D[CAT],TA_24,D_D[EP],-1, D_D[LOC],$A30),0) -> 7008 | P30: 0.4965634521 | Q30: =IFERROR(SUMIFS(D_D[INV],D_D[MT],2,D_D[CAT],TA_25,D_D[EP],-1, D_D[LOC],$A30),0) -> 527 | R30: =IFERROR(SUMIFS(D_D[INV],D_D[MT],2,D_D[CAT],TA_26,D_D[EP],-1, D_D[LOC],$A30),0) -> 323 | S30: =IFERROR(SUMIFS(D_D[INV],D_D[MT],7,D_D[CAT],2,D_D[EP],TA_20, D_D[LOC],$A30),0) -> 532
A31: 316 | B31: Atlanta | C31: =IFERROR(SUMIFS(D_D[INV],D_D[MT],1,D_D[CAT],TA_20,D_D[EP],-1, D_D[LOC],$A31),0) -> 606 | D31: =IFERROR(SUMIFS(D_D[ADP],D_D[MT],1,D_D[CAT],D$1,D_D[EP],-1, D_D[LOC],$A31),0) -> 121.41 | E31: =IFERROR(SUMIFS(D_D[INV],D_D[MT],2,D_D[CAT],TA_21,D_D[EP],-1, D_D[LOC],$A31),0) -> 16025 | F31: =IFERROR(SUMIFS(D_D[BL],D_D[MT],2,D_D[CAT],TA_21,D_D[EP],-1, D_D[LOC],$A31),0) -> 5847 | G31: 0.3648673947 | H31: =IFERROR(SUMIFS(D_D[INV],D_D[MT],2,D_D[CAT],TA_22,D_D[EP],-1, D_D[LOC],$A31),0) -> 2014 | I31: =IFERROR(SUMIFS(D_D[BL],D_D[MT],2,D_D[CAT],TA_22,D_D[EP],-1, D_D[LOC],$A31),0) -> 576 | J31: 0.2859980139 | K31: =IFERROR(SUMIFS(D_D[INV],D_D[MT],2,D_D[CAT],TA_23,D_D[EP],-1, D_D[LOC],$A31),0) -> 37 | L31: =IFERROR(SUMIFS(D_D[BL],D_D[MT],2,D_D[CAT],TA_23,D_D[EP],-1, D_D[LOC],$A31),0) -> 1 | M31: 0.02702702703 | N31: =IFERROR(SUMIFS(D_D[INV],D_D[MT],2,D_D[CAT],TA_24,D_D[EP],-1, D_D[LOC],$A31),0) -> 785 | O31: =IFERROR(SUMIFS(D_D[BL],D_D[MT],2,D_D[CAT],TA_24,D_D[EP],-1, D_D[LOC],$A31),0) -> 514 | P31: 0.6547770701 | Q31: =IFERROR(SUMIFS(D_D[INV],D_D[MT],2,D_D[CAT],TA_25,D_D[EP],-1, D_D[LOC],$A31),0) -> 56 | R31: =IFERROR(SUMIFS(D_D[INV],D_D[MT],2,D_D[CAT],TA_26,D_D[EP],-1, D_D[LOC],$A31),0) -> 4 | S31: =IFERROR(SUMIFS(D_D[INV],D_D[MT],7,D_D[CAT],2,D_D[EP],TA_20, D_D[LOC],$A31),0) -> 16
A32: 319 | B32: Columbia | C32: =IFERROR(SUMIFS(D_D[INV],D_D[MT],1,D_D[CAT],TA_20,D_D[EP],-1, D_D[LOC],$A32),0) -> 3857 | D32: =IFERROR(SUMIFS(D_D[ADP],D_D[MT],1,D_D[CAT],D$1,D_D[EP],-1, D_D[LOC],$A32),0) -> 123.6 | E32: =IFERROR(SUMIFS(D_D[INV],D_D[MT],2,D_D[CAT],TA_21,D_D[EP],-1, D_D[LOC],$A32),0) -> 7666 | F32: =IFERROR(SUMIFS(D_D[BL],D_D[MT],2,D_D[CAT],TA_21,D_D[EP],-1, D_D[LOC],$A32),0) -> 2669 | G32: =IFERROR(F32/E32,"0%") -> 0.3481607096 | H32: =IFERROR(SUMIFS(D_D[INV],D_D[MT],2,D_D[CAT],TA_22,D_D[EP],-1, D_D[LOC],$A32),0) -> 4844 | I32: =IFERROR(SUMIFS(D_D[BL],D_D[MT],2,D_D[CAT],TA_22,D_D[EP],-1, D_D[LOC],$A32),0) -> 1322 | J32: =IFERROR(I32/H32,"0%") -> 0.2729149463 | K32: =IFERROR(SUMIFS(D_D[INV],D_D[MT],2,D_D[CAT],TA_23,D_D[EP],-1, D_D[LOC],$A32),0) -> 25 | L32: =IFERROR(SUMIFS(D_D[BL],D_D[MT],2,D_D[CAT],TA_23,D_D[EP],-1, D_D[LOC],$A32),0) -> 1 | M32: =IFERROR(L32/K32,"0%") -> 0.04 | N32: =IFERROR(SUMIFS(D_D[INV],D_D[MT],2,D_D[CAT],TA_24,D_D[EP],-1, D_D[LOC],$A32),0) -> 682 | O32: =IFERROR(SUMIFS(D_D[BL],D_D[MT],2,D_D[CAT],TA_24,D_D[EP],-1, D_D[LOC],$A32),0) -> 398 | P32: =IFERROR(O32/N32,"0%") -> 0.5835777126 | Q32: =IFERROR(SUMIFS(D_D[INV],D_D[MT],2,D_D[CAT],TA_25,D_D[EP],-1, D_D[LOC],$A32),0) -> 44 | R32: =IFERROR(SUMIFS(D_D[INV],D_D[MT],2,D_D[CAT],TA_26,D_D[EP],-1, D_D[LOC],$A32),0) -> 4 | S32: =IFERROR(SUMIFS(D_D[INV],D_D[MT],7,D_D[CAT],2,D_D[EP],TA_20, D_D[LOC],$A32),0) -> 6
A33: 315 | B33: Huntington | C33: =IFERROR(SUMIFS(D_D[INV],D_D[MT],1,D_D[CAT],TA_20,D_D[EP],-1, D_D[LOC],$A33),0) -> 72 | D33: =IFERROR(SUMIFS(D_D[ADP],D_D[MT],1,D_D[CAT],D$1,D_D[EP],-1, D_D[LOC],$A33),0) -> 132.39 | E33: =IFERROR(SUMIFS(D_D[INV],D_D[MT],2,D_D[CAT],TA_21,D_D[EP],-1, D_D[LOC],$A33),0) -> 1840 | F33: =IFERROR(SUMIFS(D_D[BL],D_D[MT],2,D_D[CAT],TA_21,D_D[EP],-1, D_D[LOC],$A33),0) -> 694 | G33: 0.377173913 | H33: =IFERROR(SUMIFS(D_D[INV],D_D[MT],2,D_D[CAT],TA_22,D_D[EP],-1, D_D[LOC],$A33),0) -> 336 | I33: =IFERROR(SUMIFS(D_D[BL],D_D[MT],2,D_D[CAT],TA_22,D_D[EP],-1, D_D[LOC],$A33),0) -> 135 | J33: 0.4017857143 | K33: =IFERROR(SUMIFS(D_D[INV],D_D[MT],2,D_D[CAT],TA_23,D_D[EP],-1, D_D[LOC],$A33),0) -> 16 | L33: =IFERROR(SUMIFS(D_D[BL],D_D[MT],2,D_D[CAT],TA_23,D_D[EP],-1, D_D[LOC],$A33),0) -> 1 | M33: 0.0625 | N33: =IFERROR(SUMIFS(D_D[INV],D_D[MT],2,D_D[CAT],TA_24,D_D[EP],-1, D_D[LOC],$A33),0) -> 667 | O33: =IFERROR(SUMIFS(D_D[BL],D_D[MT],2,D_D[CAT],TA_24,D_D[EP],-1, D_D[LOC],$A33),0) -> 231 | P33: 0.3463268366 | Q33: =IFERROR(SUMIFS(D_D[INV],D_D[MT],2,D_D[CAT],TA_25,D_D[EP],-1, D_D[LOC],$A33),0) -> 31 | R33: =IFERROR(SUMIFS(D_D[INV],D_D[MT],2,D_D[CAT],TA_26,D_D[EP],-1, D_D[LOC],$A33),0) -> 223 | S33: =IFERROR(SUMIFS(D_D[INV],D_D[MT],7,D_D[CAT],2,D_D[EP],TA_20, D_D[LOC],$A33),0) -> 2
A34: 323 | B34: Jackson | C34: =IFERROR(SUMIFS(D_D[INV],D_D[MT],1,D_D[CAT],TA_20,D_D[EP],-1, D_D[LOC],$A34),0) -> 185 | D34: =IFERROR(SUMIFS(D_D[ADP],D_D[MT],1,D_D[CAT],D$1,D_D[EP],-1, D_D[LOC],$A34),0) -> 80.46 | E34: =IFERROR(SUMIFS(D_D[INV],D_D[MT],2,D_D[CAT],TA_21,D_D[EP],-1, D_D[LOC],$A34),0) -> 4035 | F34: =IFERROR(SUMIFS(D_D[BL],D_D[MT],2,D_D[CAT],TA_21,D_D[EP],-1, D_D[LOC],$A34),0) -> 1597 | G34: 0.3957868649 | H34: =IFERROR(SUMIFS(D_D[INV],D_D[MT],2,D_D[CAT],TA_22,D_D[EP],-1, D_D[LOC],$A34),0) -> 582 | I34: =IFERROR(SUMIFS(D_D[BL],D_D[MT],2,D_D[CAT],TA_22,D_D[EP],-1, D_D[LOC],$A34),0) -> 142 | J34: 0.2439862543 | K34: =IFERROR(SUMIFS(D_D[INV],D_D[MT],2,D_D[CAT],TA_23,D_D[EP],-1, D_D[LOC],$A34),0) -> 34 | L34: =IFERROR(SUMIFS(D_D[BL],D_D[MT],2,D_D[CAT],TA_23,D_D[EP],-1, D_D[LOC],$A34),0) -> 0 | M34: 0 | N34: =IFERROR(SUMIFS(D_D[INV],D_D[MT],2,D_D[CAT],TA_24,D_D[EP],-1, D_D[LOC],$A34),0) -> 601 | O34: =IFERROR(SUMIFS(D_D[BL],D_D[MT],2,D_D[CAT],TA_24,D_D[EP],-1, D_D[LOC],$A34),0) -> 257 | P34: 0.4276206323 | Q34: =IFERROR(SUMIFS(D_D[INV],D_D[MT],2,D_D[CAT],TA_25,D_D[EP],-1, D_D[LOC],$A34),0) -> 10 | R34: =IFERROR(SUMIFS(D_D[INV],D_D[MT],2,D_D[CAT],TA_26,D_D[EP],-1, D_D[LOC],$A34),0) -> 3 | S34: =IFERROR(SUMIFS(D_D[INV],D_D[MT],7,D_D[CAT],2,D_D[EP],TA_20, D_D[LOC],$A34),0) -> 48
A35: 350 | B35: Little Rock | C35: =IFERROR(SUMIFS(D_D[INV],D_D[MT],1,D_D[CAT],TA_20,D_D[EP],-1, D_D[LOC],$A35),0) -> 381 | D35: =IFERROR(SUMIFS(D_D[ADP],D_D[MT],1,D_D[CAT],D$1,D_D[EP],-1, D_D[LOC],$A35),0) -> 73.1 | E35: =IFERROR(SUMIFS(D_D[INV],D_D[MT],2,D_D[CAT],TA_21,D_D[EP],-1, D_D[LOC],$A35),0) -> 3701 | F35: =IFERROR(SUMIFS(D_D[BL],D_D[MT],2,D_D[CAT],TA_21,D_D[EP],-1, D_D[LOC],$A35),0) -> 1339 | G35: 0.3617941097 | H35: =IFERROR(SUMIFS(D_D[INV],D_D[MT],2,D_D[CAT],TA_22,D_D[EP],-1, D_D[LOC],$A35),0) -> 1600 | I35: =IFERROR(SUMIFS(D_D[BL],D_D[MT],2,D_D[CAT],TA_22,D_D[EP],-1, D_D[LOC],$A35),0) -> 200 | J35: 0.125 | K35: =IFERROR(SUMIFS(D_D[INV],D_D[MT],2,D_D[CAT],TA_23,D_D[EP],-1, D_D[LOC],$A35),0) -> 21 | L35: =IFERROR(SUMIFS(D_D[BL],D_D[MT],2,D_D[CAT],TA_23,D_D[EP],-1, D_D[LOC],$A35),0) -> 0 | M35: 0 | N35: =IFERROR(SUMIFS(D_D[INV],D_D[MT],2,D_D[CAT],TA_24,D_D[EP],-1, D_D[LOC],$A35),0) -> 654 | O35: =IFERROR(SUMIFS(D_D[BL],D_D[MT],2,D_D[CAT],TA_24,D_D[EP],-1, D_D[LOC],$A35),0) -> 329 | P35: 0.503058104 | Q35: =IFERROR(SUMIFS(D_D[INV],D_D[MT],2,D_D[CAT],TA_25,D_D[EP],-1, D_D[LOC],$A35),0) -> 21 | R35: =IFERROR(SUMIFS(D_D[INV],D_D[MT],2,D_D[CAT],TA_26,D_D[EP],-1, D_D[LOC],$A35),0) -> 0 | S35: =IFERROR(SUMIFS(D_D[INV],D_D[MT],7,D_D[CAT],2,D_D[EP],TA_20, D_D[LOC],$A35),0) -> 4
A36: 327 | B36: Louisville | C36: =IFERROR(SUMIFS(D_D[INV],D_D[MT],1,D_D[CAT],TA_20,D_D[EP],-1, D_D[LOC],$A36),0) -> 1925 | D36: =IFERROR(SUMIFS(D_D[ADP],D_D[MT],1,D_D[CAT],D$1,D_D[EP],-1, D_D[LOC],$A36),0) -> 67.87 | E36: =IFERROR(SUMIFS(D_D[INV],D_D[MT],2,D_D[CAT],TA_21,D_D[EP],-1, D_D[LOC],$A36),0) -> 3894 | F36: =IFERROR(SUMIFS(D_D[BL],D_D[MT],2,D_D[CAT],TA_21,D_D[EP],-1, D_D[LOC],$A36),0) -> 1279 | G36: 0.3284540318 | H36: =IFERROR(SUMIFS(D_D[INV],D_D[MT],2,D_D[CAT],TA_22,D_D[EP],-1, D_D[LOC],$A36),0) -> 2634 | I36: =IFERROR(SUMIFS(D_D[BL],D_D[MT],2,D_D[CAT],TA_22,D_D[EP],-1, D_D[LOC],$A36),0) -> 444 | J36: 0.1685649203 | K36: =IFERROR(SUMIFS(D_D[INV],D_D[MT],2,D_D[CAT],TA_23,D_D[EP],-1, D_D[LOC],$A36),0) -> 308 | L36: =IFERROR(SUMIFS(D_D[BL],D_D[MT],2,D_D[CAT],TA_23,D_D[EP],-1, D_D[LOC],$A36),0) -> 215 | M36: 0.6980519481 | N36: =IFERROR(SUMIFS(D_D[INV],D_D[MT],2,D_D[CAT],TA_24,D_D[EP],-1, D_D[LOC],$A36),0) -> 487 | O36: =IFERROR(SUMIFS(D_D[BL],D_D[MT],2,D_D[CAT],TA_24,D_D[EP],-1, D_D[LOC],$A36),0) -> 330 | P36: 0.6776180698 | Q36: =IFERROR(SUMIFS(D_D[INV],D_D[MT],2,D_D[CAT],TA_25,D_D[EP],-1, D_D[LOC],$A36),0) -> 18 | R36: =IFERROR(SUMIFS(D_D[INV],D_D[MT],2,D_D[CAT],TA_26,D_D[EP],-1, D_D[LOC],$A36),0) -> 3 | S36: =IFERROR(SUMIFS(D_D[INV],D_D[MT],7,D_D[CAT],2,D_D[EP],TA_20, D_D[LOC],$A36),0) -> 363
A37: 322 | B37: Montgomery | C37: =IFERROR(SUMIFS(D_D[INV],D_D[MT],1,D_D[CAT],TA_20,D_D[EP],-1, D_D[LOC],$A37),0) -> 270 | D37: =IFERROR(SUMIFS(D_D[ADP],D_D[MT],1,D_D[CAT],D$1,D_D[EP],-1, D_D[LOC],$A37),0) -> 63.7 | E37: =IFERROR(SUMIFS(D_D[INV],D_D[MT],2,D_D[CAT],TA_21,D_D[EP],-1, D_D[LOC],$A37),0) -> 6745 | F37: =IFERROR(SUMIFS(D_D[BL],D_D[MT],2,D_D[CAT],TA_21,D_D[EP],-1, D_D[LOC],$A37),0) -> 2400 | G37: 0.3558191253 | H37: =IFERROR(SUMIFS(D_D[INV],D_D[MT],2,D_D[CAT],TA_22,D_D[EP],-1, D_D[LOC],$A37),0) -> 856 | I37: =IFERROR(SUMIFS(D_D[BL],D_D[MT],2,D_D[CAT],TA_22,D_D[EP],-1, D_D[LOC],$A37),0) -> 194 | J37: 0.226635514 | K37: =IFERROR(SUMIFS(D_D[INV],D_D[MT],2,D_D[CAT],TA_23,D_D[EP],-1, D_D[LOC],$A37),0) -> 32 | L37: =IFERROR(SUMIFS(D_D[BL],D_D[MT],2,D_D[CAT],TA_23,D_D[EP],-1, D_D[LOC],$A37),0) -> 1 | M37: 0.03125 | N37: =IFERROR(SUMIFS(D_D[INV],D_D[MT],2,D_D[CAT],TA_24,D_D[EP],-1, D_D[LOC],$A37),0) -> 525 | O37: =IFERROR(SUMIFS(D_D[BL],D_D[MT],2,D_D[CAT],TA_24,D_D[EP],-1, D_D[LOC],$A37),0) -> 259 | P37: 0.4933333333 | Q37: =IFERROR(SUMIFS(D_D[INV],D_D[MT],2,D_D[CAT],TA_25,D_D[EP],-1, D_D[LOC],$A37),0) -> 41 | R37: =IFERROR(SUMIFS(D_D[INV],D_D[MT],2,D_D[CAT],TA_26,D_D[EP],-1, D_D[LOC],$A37),0) -> 3 | S37: =IFERROR(SUMIFS(D_D[INV],D_D[MT],7,D_D[CAT],2,D_D[EP],TA_20, D_D[LOC],$A37),0) -> 7
A38: 320 | B38: Nashville | C38: =IFERROR(SUMIFS(D_D[INV],D_D[MT],1,D_D[CAT],TA_20,D_D[EP],-1, D_D[LOC],$A38),0) -> 749 | D38: =IFERROR(SUMIFS(D_D[ADP],D_D[MT],1,D_D[CAT],D$1,D_D[EP],-1, D_D[LOC],$A38),0) -> 56.56 | E38: =IFERROR(SUMIFS(D_D[INV],D_D[MT],2,D_D[CAT],TA_21,D_D[EP],-1, D_D[LOC],$A38),0) -> 7921 | F38: =IFERROR(SUMIFS(D_D[BL],D_D[MT],2,D_D[CAT],TA_21,D_D[EP],-1, D_D[LOC],$A38),0) -> 2796 | G38: 0.3529857341 | H38: =IFERROR(SUMIFS(D_D[INV],D_D[MT],2,D_D[CAT],TA_22,D_D[EP],-1, D_D[LOC],$A38),0) -> 3843 | I38: =IFERROR(SUMIFS(D_D[BL],D_D[MT],2,D_D[CAT],TA_22,D_D[EP],-1, D_D[LOC],$A38),0) -> 441 | J38: 0.1147540984 | K38: =IFERROR(SUMIFS(D_D[INV],D_D[MT],2,D_D[CAT],TA_23,D_D[EP],-1, D_D[LOC],$A38),0) -> 63 | L38: =IFERROR(SUMIFS(D_D[BL],D_D[MT],2,D_D[CAT],TA_23,D_D[EP],-1, D_D[LOC],$A38),0) -> 6 | M38: 0.09523809524 | N38: =IFERROR(SUMIFS(D_D[INV],D_D[MT],2,D_D[CAT],TA_24,D_D[EP],-1, D_D[LOC],$A38),0) -> 789 | O38: =IFERROR(SUMIFS(D_D[BL],D_D[MT],2,D_D[CAT],TA_24,D_D[EP],-1, D_D[LOC],$A38),0) -> 437 | P38: 0.5538656527 | Q38: =IFERROR(SUMIFS(D_D[INV],D_D[MT],2,D_D[CAT],TA_25,D_D[EP],-1, D_D[LOC],$A38),0) -> 38 | R38: =IFERROR(SUMIFS(D_D[INV],D_D[MT],2,D_D[CAT],TA_26,D_D[EP],-1, D_D[LOC],$A38),0) -> 5 | S38: =IFERROR(SUMIFS(D_D[INV],D_D[MT],7,D_D[CAT],2,D_D[EP],TA_20, D_D[LOC],$A38),0) -> 9
A39: 321 | B39: New Orleans | C39: =IFERROR(SUMIFS(D_D[INV],D_D[MT],1,D_D[CAT],TA_20,D_D[EP],-1, D_D[LOC],$A39),0) -> 202 | D39: =IFERROR(SUMIFS(D_D[ADP],D_D[MT],1,D_D[CAT],D$1,D_D[EP],-1, D_D[LOC],$A39),0) -> 56.71 | E39: =IFERROR(SUMIFS(D_D[INV],D_D[MT],2,D_D[CAT],TA_21,D_D[EP],-1, D_D[LOC],$A39),0) -> 4877 | F39: =IFERROR(SUMIFS(D_D[BL],D_D[MT],2,D_D[CAT],TA_21,D_D[EP],-1, D_D[LOC],$A39),0) -> 1419 | G39: 0.2909575559 | H39: =IFERROR(SUMIFS(D_D[INV],D_D[MT],2,D_D[CAT],TA_22,D_D[EP],-1, D_D[LOC],$A39),0) -> 710 | I39: =IFERROR(SUMIFS(D_D[BL],D_D[MT],2,D_D[CAT],TA_22,D_D[EP],-1, D_D[LOC],$A39),0) -> 146 | J39: 0.2056338028 | K39: =IFERROR(SUMIFS(D_D[INV],D_D[MT],2,D_D[CAT],TA_23,D_D[EP],-1, D_D[LOC],$A39),0) -> 17 | L39: =IFERROR(SUMIFS(D_D[BL],D_D[MT],2,D_D[CAT],TA_23,D_D[EP],-1, D_D[LOC],$A39),0) -> 0 | M39: 0 | N39: =IFERROR(SUMIFS(D_D[INV],D_D[MT],2,D_D[CAT],TA_24,D_D[EP],-1, D_D[LOC],$A39),0) -> 403 | O39: =IFERROR(SUMIFS(D_D[BL],D_D[MT],2,D_D[CAT],TA_24,D_D[EP],-1, D_D[LOC],$A39),0) -> 154 | P39: 0.382133995 | Q39: =IFERROR(SUMIFS(D_D[INV],D_D[MT],2,D_D[CAT],TA_25,D_D[EP],-1, D_D[LOC],$A39),0) -> 14 | R39: =IFERROR(SUMIFS(D_D[INV],D_D[MT],2,D_D[CAT],TA_26,D_D[EP],-1, D_D[LOC],$A39),0) -> 7 | S39: =IFERROR(SUMIFS(D_D[INV],D_D[MT],7,D_D[CAT],2,D_D[EP],TA_20, D_D[LOC],$A39),0) -> 2
A40: 314 | B40: Roanoke | C40: =IFERROR(SUMIFS(D_D[INV],D_D[MT],1,D_D[CAT],TA_20,D_D[EP],-1, D_D[LOC],$A40),0) -> 595 | D40: =IFERROR(SUMIFS(D_D[ADP],D_D[MT],1,D_D[CAT],D$1,D_D[EP],-1, D_D[LOC],$A40),0) -> 66.98 | E40: =IFERROR(SUMIFS(D_D[INV],D_D[MT],2,D_D[CAT],TA_21,D_D[EP],-1, D_D[LOC],$A40),0) -> 13516 | F40: =IFERROR(SUMIFS(D_D[BL],D_D[MT],2,D_D[CAT],TA_21,D_D[EP],-1, D_D[LOC],$A40),0) -> 4624 | G40: 0.3421130512 | H40: =IFERROR(SUMIFS(D_D[INV],D_D[MT],2,D_D[CAT],TA_22,D_D[EP],-1, D_D[LOC],$A40),0) -> 1572 | I40: =IFERROR(SUMIFS(D_D[BL],D_D[MT],2,D_D[CAT],TA_22,D_D[EP],-1, D_D[LOC],$A40),0) -> 421 | J40: 0.2678117048 | K40: =IFERROR(SUMIFS(D_D[INV],D_D[MT],2,D_D[CAT],TA_23,D_D[EP],-1, D_D[LOC],$A40),0) -> 33 | L40: =IFERROR(SUMIFS(D_D[BL],D_D[MT],2,D_D[CAT],TA_23,D_D[EP],-1, D_D[LOC],$A40),0) -> 0 | M40: 0 | N40: =IFERROR(SUMIFS(D_D[INV],D_D[MT],2,D_D[CAT],TA_24,D_D[EP],-1, D_D[LOC],$A40),0) -> 1767 | O40: =IFERROR(SUMIFS(D_D[BL],D_D[MT],2,D_D[CAT],TA_24,D_D[EP],-1, D_D[LOC],$A40),0) -> 934 | P40: 0.5285795133 | Q40: =IFERROR(SUMIFS(D_D[INV],D_D[MT],2,D_D[CAT],TA_25,D_D[EP],-1, D_D[LOC],$A40),0) -> 33 | R40: =IFERROR(SUMIFS(D_D[INV],D_D[MT],2,D_D[CAT],TA_26,D_D[EP],-1, D_D[LOC],$A40),0) -> 4 | S40: =IFERROR(SUMIFS(D_D[INV],D_D[MT],7,D_D[CAT],2,D_D[EP],TA_20, D_D[LOC],$A40),0) -> 4
A41: 355 | B41: San Juan | C41: =IFERROR(SUMIFS(D_D[INV],D_D[MT],1,D_D[CAT],TA_20,D_D[EP],-1, D_D[LOC],$A41),0) -> 82 | D41: =IFERROR(SUMIFS(D_D[ADP],D_D[MT],1,D_D[CAT],D$1,D_D[EP],-1, D_D[LOC],$A41),0) -> 42.65 | E41: =IFERROR(SUMIFS(D_D[INV],D_D[MT],2,D_D[CAT],TA_21,D_D[EP],-1, D_D[LOC],$A41),0) -> 1733 | F41: =IFERROR(SUMIFS(D_D[BL],D_D[MT],2,D_D[CAT],TA_21,D_D[EP],-1, D_D[LOC],$A41),0) -> 806 | G41: 0.4650894403 | H41: =IFERROR(SUMIFS(D_D[INV],D_D[MT],2,D_D[CAT],TA_22,D_D[EP],-1, D_D[LOC],$A41),0) -> 349 | I41: =IFERROR(SUMIFS(D_D[BL],D_D[MT],2,D_D[CAT],TA_22,D_D[EP],-1, D_D[LOC],$A41),0) -> 101 | J41: 0.2893982808 | K41: =IFERROR(SUMIFS(D_D[INV],D_D[MT],2,D_D[CAT],TA_23,D_D[EP],-1, D_D[LOC],$A41),0) -> 10 | L41: =IFERROR(SUMIFS(D_D[BL],D_D[MT],2,D_D[CAT],TA_23,D_D[EP],-1, D_D[LOC],$A41),0) -> 0 | M41: 0 | N41: =IFERROR(SUMIFS(D_D[INV],D_D[MT],2,D_D[CAT],TA_24,D_D[EP],-1, D_D[LOC],$A41),0) -> 200 | O41: =IFERROR(SUMIFS(D_D[BL],D_D[MT],2,D_D[CAT],TA_24,D_D[EP],-1, D_D[LOC],$A41),0) -> 143 | P41: 0.715 | Q41: =IFERROR(SUMIFS(D_D[INV],D_D[MT],2,D_D[CAT],TA_25,D_D[EP],-1, D_D[LOC],$A41),0) -> 9 | R41: =IFERROR(SUMIFS(D_D[INV],D_D[MT],2,D_D[CAT],TA_26,D_D[EP],-1, D_D[LOC],$A41),0) -> 1 | S41: =IFERROR(SUMIFS(D_D[INV],D_D[MT],7,D_D[CAT],2,D_D[EP],TA_20, D_D[LOC],$A41),0) -> 9
A42: 317 | B42: St. Petersburg | C42: =IFERROR(SUMIFS(D_D[INV],D_D[MT],1,D_D[CAT],TA_20,D_D[EP],-1, D_D[LOC],$A42),0) -> 857 | D42: =IFERROR(SUMIFS(D_D[ADP],D_D[MT],1,D_D[CAT],D$1,D_D[EP],-1, D_D[LOC],$A42),0) -> 84.59 | E42: =IFERROR(SUMIFS(D_D[INV],D_D[MT],2,D_D[CAT],TA_21,D_D[EP],-1, D_D[LOC],$A42),0) -> 25883 | F42: =IFERROR(SUMIFS(D_D[BL],D_D[MT],2,D_D[CAT],TA_21,D_D[EP],-1, D_D[LOC],$A42),0) -> 9806 | G42: 0.3788587104 | H42: =IFERROR(SUMIFS(D_D[INV],D_D[MT],2,D_D[CAT],TA_22,D_D[EP],-1, D_D[LOC],$A42),0) -> 2665 | I42: =IFERROR(SUMIFS(D_D[BL],D_D[MT],2,D_D[CAT],TA_22,D_D[EP],-1, D_D[LOC],$A42),0) -> 723 | J42: 0.2712945591 | K42: =IFERROR(SUMIFS(D_D[INV],D_D[MT],2,D_D[CAT],TA_23,D_D[EP],-1, D_D[LOC],$A42),0) -> 155 | L42: =IFERROR(SUMIFS(D_D[BL],D_D[MT],2,D_D[CAT],TA_23,D_D[EP],-1, D_D[LOC],$A42),0) -> 22 | M42: 0.1419354839 | N42: =IFERROR(SUMIFS(D_D[INV],D_D[MT],2,D_D[CAT],TA_24,D_D[EP],-1, D_D[LOC],$A42),0) -> 5497 | O42: =IFERROR(SUMIFS(D_D[BL],D_D[MT],2,D_D[CAT],TA_24,D_D[EP],-1, D_D[LOC],$A42),0) -> 2414 | P42: 0.4391486265 | Q42: =IFERROR(SUMIFS(D_D[INV],D_D[MT],2,D_D[CAT],TA_25,D_D[EP],-1, D_D[LOC],$A42),0) -> 126 | R42: =IFERROR(SUMIFS(D_D[INV],D_D[MT],2,D_D[CAT],TA_26,D_D[EP],-1, D_D[LOC],$A42),0) -> 49 | S42: =IFERROR(SUMIFS(D_D[INV],D_D[MT],7,D_D[CAT],2,D_D[EP],TA_20, D_D[LOC],$A42),0) -> 51
A43: 318 | B43: Winston-Salem | C43: =IFERROR(SUMIFS(D_D[INV],D_D[MT],1,D_D[CAT],TA_20,D_D[EP],-1, D_D[LOC],$A43),0) -> 1256 | D43: =IFERROR(SUMIFS(D_D[ADP],D_D[MT],1,D_D[CAT],D$1,D_D[EP],-1, D_D[LOC],$A43),0) -> 61.33 | E43: =IFERROR(SUMIFS(D_D[INV],D_D[MT],2,D_D[CAT],TA_21,D_D[EP],-1, D_D[LOC],$A43),0) -> 15039 | F43: =IFERROR(SUMIFS(D_D[BL],D_D[MT],2,D_D[CAT],TA_21,D_D[EP],-1, D_D[LOC],$A43),0) -> 4953 | G43: 0.3293437064 | H43: =IFERROR(SUMIFS(D_D[INV],D_D[MT],2,D_D[CAT],TA_22,D_D[EP],-1, D_D[LOC],$A43),0) -> 5670 | I43: =IFERROR(SUMIFS(D_D[BL],D_D[MT],2,D_D[CAT],TA_22,D_D[EP],-1, D_D[LOC],$A43),0) -> 939 | J43: 0.1656084656 | K43: =IFERROR(SUMIFS(D_D[INV],D_D[MT],2,D_D[CAT],TA_23,D_D[EP],-1, D_D[LOC],$A43),0) -> 67 | L43: =IFERROR(SUMIFS(D_D[BL],D_D[MT],2,D_D[CAT],TA_23,D_D[EP],-1, D_D[LOC],$A43),0) -> 0 | M43: 0 | N43: =IFERROR(SUMIFS(D_D[INV],D_D[MT],2,D_D[CAT],TA_24,D_D[EP],-1, D_D[LOC],$A43),0) -> 1056 | O43: =IFERROR(SUMIFS(D_D[BL],D_D[MT],2,D_D[CAT],TA_24,D_D[EP],-1, D_D[LOC],$A43),0) -> 608 | P43: 0.5757575758 | Q43: =IFERROR(SUMIFS(D_D[INV],D_D[MT],2,D_D[CAT],TA_25,D_D[EP],-1, D_D[LOC],$A43),0) -> 86 | R43: =IFERROR(SUMIFS(D_D[INV],D_D[MT],2,D_D[CAT],TA_26,D_D[EP],-1, D_D[LOC],$A43),0) -> 17 | S43: =IFERROR(SUMIFS(D_D[INV],D_D[MT],7,D_D[CAT],2,D_D[EP],TA_20, D_D[LOC],$A43),0) -> 11
A44: 384 | B44: Continental | C44: =IFERROR(SUMIFS(D_D[INV],D_D[MT],1,D_D[CAT],TA_20,D_D[EP],-1, D_D[LOC],$A44),0) -> 5415 | D44: =IFERROR(SUMIFS(D_D[ADP],D_D[MT],1,D_D[CAT],D$1,D_D[EP],-1, D_D[LOC],$A44),0) -> 70.18 | E44: =IFERROR(SUMIFS(D_D[INV],D_D[MT],2,D_D[CAT],TA_21,D_D[EP],-1, D_D[LOC],$A44),0) -> 64775 | F44: =IFERROR(SUMIFS(D_D[BL],D_D[MT],2,D_D[CAT],TA_21,D_D[EP],-1, D_D[LOC],$A44),0) -> 23137 | G44: 0.357190274 | H44: =IFERROR(SUMIFS(D_D[INV],D_D[MT],2,D_D[CAT],TA_22,D_D[EP],-1, D_D[LOC],$A44),0) -> 18507 | I44: =IFERROR(SUMIFS(D_D[BL],D_D[MT],2,D_D[CAT],TA_22,D_D[EP],-1, D_D[LOC],$A44),0) -> 3331 | J44: 0.1799859513 | K44: =IFERROR(SUMIFS(D_D[INV],D_D[MT],2,D_D[CAT],TA_23,D_D[EP],-1, D_D[LOC],$A44),0) -> 322 | L44: =IFERROR(SUMIFS(D_D[BL],D_D[MT],2,D_D[CAT],TA_23,D_D[EP],-1, D_D[LOC],$A44),0) -> 16 | M44: 0.04968944099 | N44: =IFERROR(SUMIFS(D_D[INV],D_D[MT],2,D_D[CAT],TA_24,D_D[EP],-1, D_D[LOC],$A44),0) -> 10158 | O44: =IFERROR(SUMIFS(D_D[BL],D_D[MT],2,D_D[CAT],TA_24,D_D[EP],-1, D_D[LOC],$A44),0) -> 5900 | P44: 0.5808229967 | Q44: =IFERROR(SUMIFS(D_D[INV],D_D[MT],2,D_D[CAT],TA_25,D_D[EP],-1, D_D[LOC],$A44),0) -> 845 | R44: =IFERROR(SUMIFS(D_D[INV],D_D[MT],2,D_D[CAT],TA_26,D_D[EP],-1, D_D[LOC],$A44),0) -> 1351 | S44: =IFERROR(SUMIFS(D_D[INV],D_D[MT],7,D_D[CAT],2,D_D[EP],TA_20, D_D[LOC],$A44),0) -> 230
A45: 442 | B45: Cheyenne | C45: =IFERROR(SUMIFS(D_D[INV],D_D[MT],1,D_D[CAT],TA_20,D_D[EP],-1, D_D[LOC],$A45),0) -> 24 | D45: =IFERROR(SUMIFS(D_D[ADP],D_D[MT],1,D_D[CAT],D$1,D_D[EP],-1, D_D[LOC],$A45),0) -> 75.83 | E45: =IFERROR(SUMIFS(D_D[INV],D_D[MT],2,D_D[CAT],TA_21,D_D[EP],-1, D_D[LOC],$A45),0) -> 826 | F45: =IFERROR(SUMIFS(D_D[BL],D_D[MT],2,D_D[CAT],TA_21,D_D[EP],-1, D_D[LOC],$A45),0) -> 303 | G45: 0.3668280872 | H45: =IFERROR(SUMIFS(D_D[INV],D_D[MT],2,D_D[CAT],TA_22,D_D[EP],-1, D_D[LOC],$A45),0) -> 104 | I45: =IFERROR(SUMIFS(D_D[BL],D_D[MT],2,D_D[CAT],TA_22,D_D[EP],-1, D_D[LOC],$A45),0) -> 28 | J45: 0.2692307692 | K45: =IFERROR(SUMIFS(D_D[INV],D_D[MT],2,D_D[CAT],TA_23,D_D[EP],-1, D_D[LOC],$A45),0) -> 5 | L45: =IFERROR(SUMIFS(D_D[BL],D_D[MT],2,D_D[CAT],TA_23,D_D[EP],-1, D_D[LOC],$A45),0) -> 0 | M45: 0 | N45: =IFERROR(SUMIFS(D_D[INV],D_D[MT],2,D_D[CAT],TA_24,D_D[EP],-1, D_D[LOC],$A45),0) -> 101 | O45: =IFERROR(SUMIFS(D_D[BL],D_D[MT],2,D_D[CAT],TA_24,D_D[EP],-1, D_D[LOC],$A45),0) -> 74 | P45: 0.7326732673 | Q45: =IFERROR(SUMIFS(D_D[INV],D_D[MT],2,D_D[CAT],TA_25,D_D[EP],-1, D_D[LOC],$A45),0) -> 3 | R45: =IFERROR(SUMIFS(D_D[INV],D_D[MT],2,D_D[CAT],TA_26,D_D[EP],-1, D_D[LOC],$A45),0) -> 1 | S45: =IFERROR(SUMIFS(D_D[INV],D_D[MT],7,D_D[CAT],2,D_D[EP],TA_20, D_D[LOC],$A45),0) -> 2
A46: 339 | B46: Denver | C46: =IFERROR(SUMIFS(D_D[INV],D_D[MT],1,D_D[CAT],TA_20,D_D[EP],-1, D_D[LOC],$A46),0) -> 214 | D46: =IFERROR(SUMIFS(D_D[ADP],D_D[MT],1,D_D[CAT],D$1,D_D[EP],-1, D_D[LOC],$A46),0) -> 53.17 | E46: =IFERROR(SUMIFS(D_D[INV],D_D[MT],2,D_D[CAT],TA_21,D_D[EP],-1, D_D[LOC],$A46),0) -> 5762 | F46: =IFERROR(SUMIFS(D_D[BL],D_D[MT],2,D_D[CAT],TA_21,D_D[EP],-1, D_D[LOC],$A46),0) -> 1718 | G46: 0.298160361 | H46: =IFERROR(SUMIFS(D_D[INV],D_D[MT],2,D_D[CAT],TA_22,D_D[EP],-1, D_D[LOC],$A46),0) -> 1016 | I46: =IFERROR(SUMIFS(D_D[BL],D_D[MT],2,D_D[CAT],TA_22,D_D[EP],-1, D_D[LOC],$A46),0) -> 211 | J46: 0.2076771654 | K46: =IFERROR(SUMIFS(D_D[INV],D_D[MT],2,D_D[CAT],TA_23,D_D[EP],-1, D_D[LOC],$A46),0) -> 20 | L46: =IFERROR(SUMIFS(D_D[BL],D_D[MT],2,D_D[CAT],TA_23,D_D[EP],-1, D_D[LOC],$A46),0) -> 0 | M46: 0 | N46: =IFERROR(SUMIFS(D_D[INV],D_D[MT],2,D_D[CAT],TA_24,D_D[EP],-1, D_D[LOC],$A46),0) -> 367 | O46: =IFERROR(SUMIFS(D_D[BL],D_D[MT],2,D_D[CAT],TA_24,D_D[EP],-1, D_D[LOC],$A46),0) -> 255 | P46: 0.6948228883 | Q46: =IFERROR(SUMIFS(D_D[INV],D_D[MT],2,D_D[CAT],TA_25,D_D[EP],-1, D_D[LOC],$A46),0) -> 21 | R46: =IFERROR(SUMIFS(D_D[INV],D_D[MT],2,D_D[CAT],TA_26,D_D[EP],-1, D_D[LOC],$A46),0) -> 0 | S46: =IFERROR(SUMIFS(D_D[INV],D_D[MT],7,D_D[CAT],2,D_D[EP],TA_20, D_D[LOC],$A46),0) -> 14
A47: 333 | B47: Des Moines | C47: =IFERROR(SUMIFS(D_D[INV],D_D[MT],1,D_D[CAT],TA_20,D_D[EP],-1, D_D[LOC],$A47),0) -> 91 | D47: =IFERROR(SUMIFS(D_D[ADP],D_D[MT],1,D_D[CAT],D$1,D_D[EP],-1, D_D[LOC],$A47),0) -> 121.86 | E47: =IFERROR(SUMIFS(D_D[INV],D_D[MT],2,D_D[CAT],TA_21,D_D[EP],-1, D_D[LOC],$A47),0) -> 2102 | F47: =IFERROR(SUMIFS(D_D[BL],D_D[MT],2,D_D[CAT],TA_21,D_D[EP],-1, D_D[LOC],$A47),0) -> 618 | G47: 0.2940057088 | H47: =IFERROR(SUMIFS(D_D[INV],D_D[MT],2,D_D[CAT],TA_22,D_D[EP],-1, D_D[LOC],$A47),0) -> 423 | I47: =IFERROR(SUMIFS(D_D[BL],D_D[MT],2,D_D[CAT],TA_22,D_D[EP],-1, D_D[LOC],$A47),0) -> 116 | J47: 0.2742316785 | K47: =IFERROR(SUMIFS(D_D[INV],D_D[MT],2,D_D[CAT],TA_23,D_D[EP],-1, D_D[LOC],$A47),0) -> 19 | L47: =IFERROR(SUMIFS(D_D[BL],D_D[MT],2,D_D[CAT],TA_23,D_D[EP],-1, D_D[LOC],$A47),0) -> 0 | M47: 0 | N47: =IFERROR(SUMIFS(D_D[INV],D_D[MT],2,D_D[CAT],TA_24,D_D[EP],-1, D_D[LOC],$A47),0) -> 228 | O47: =IFERROR(SUMIFS(D_D[BL],D_D[MT],2,D_D[CAT],TA_24,D_D[EP],-1, D_D[LOC],$A47),0) -> 154 | P47: 0.6754385965 | Q47: =IFERROR(SUMIFS(D_D[INV],D_D[MT],2,D_D[CAT],TA_25,D_D[EP],-1, D_D[LOC],$A47),0) -> 19 | R47: =IFERROR(SUMIFS(D_D[INV],D_D[MT],2,D_D[CAT],TA_26,D_D[EP],-1, D_D[LOC],$A47),0) -> 2 | S47: =IFERROR(SUMIFS(D_D[INV],D_D[MT],7,D_D[CAT],2,D_D[EP],TA_20, D_D[LOC],$A47),0) -> 4
A48: 437 | B48: Fargo | C48: =IFERROR(SUMIFS(D_D[INV],D_D[MT],1,D_D[CAT],TA_20,D_D[EP],-1, D_D[LOC],$A48),0) -> 38 | D48: =IFERROR(SUMIFS(D_D[ADP],D_D[MT],1,D_D[CAT],D$1,D_D[EP],-1, D_D[LOC],$A48),0) -> 74.37 | E48: =IFERROR(SUMIFS(D_D[INV],D_D[MT],2,D_D[CAT],TA_21,D_D[EP],-1, D_D[LOC],$A48),0) -> 953 | F48: =IFERROR(SUMIFS(D_D[BL],D_D[MT],2,D_D[CAT],TA_21,D_D[EP],-1, D_D[LOC],$A48),0) -> 316 | G48: 0.3315844701 | H48: =IFERROR(SUMIFS(D_D[INV],D_D[MT],2,D_D[CAT],TA_22,D_D[EP],-1, D_D[LOC],$A48),0) -> 165 | I48: =IFERROR(SUMIFS(D_D[BL],D_D[MT],2,D_D[CAT],TA_22,D_D[EP],-1, D_D[LOC],$A48),0) -> 31 | J48: 0.1878787879 | K48: =IFERROR(SUMIFS(D_D[INV],D_D[MT],2,D_D[CAT],TA_23,D_D[EP],-1, D_D[LOC],$A48),0) -> 8 | L48: =IFERROR(SUMIFS(D_D[BL],D_D[MT],2,D_D[CAT],TA_23,D_D[EP],-1, D_D[LOC],$A48),0) -> 0 | M48: 0 | N48: =IFERROR(SUMIFS(D_D[INV],D_D[MT],2,D_D[CAT],TA_24,D_D[EP],-1, D_D[LOC],$A48),0) -> 157 | O48: =IFERROR(SUMIFS(D_D[BL],D_D[MT],2,D_D[CAT],TA_24,D_D[EP],-1, D_D[LOC],$A48),0) -> 118 | P48: 0.7515923567 | Q48: =IFERROR(SUMIFS(D_D[INV],D_D[MT],2,D_D[CAT],TA_25,D_D[EP],-1, D_D[LOC],$A48),0) -> 12 | R48: =IFERROR(SUMIFS(D_D[INV],D_D[MT],2,D_D[CAT],TA_26,D_D[EP],-1, D_D[LOC],$A48),0) -> 3 | S48: =IFERROR(SUMIFS(D_D[INV],D_D[MT],7,D_D[CAT],2,D_D[EP],TA_20, D_D[LOC],$A48),0) -> 2
A49: 436 | B49: Fort Harrison | C49: =IFERROR(SUMIFS(D_D[INV],D_D[MT],1,D_D[CAT],TA_20,D_D[EP],-1, D_D[LOC],$A49),0) -> 72 | D49: =IFERROR(SUMIFS(D_D[ADP],D_D[MT],1,D_D[CAT],D$1,D_D[EP],-1, D_D[LOC],$A49),0) -> 125.68 | E49: =IFERROR(SUMIFS(D_D[INV],D_D[MT],2,D_D[CAT],TA_21,D_D[EP],-1, D_D[LOC],$A49),0) -> 1406 | F49: =IFERROR(SUMIFS(D_D[BL],D_D[MT],2,D_D[CAT],TA_21,D_D[EP],-1, D_D[LOC],$A49),0) -> 549 | G49: 0.3904694168 | H49: =IFERROR(SUMIFS(D_D[INV],D_D[MT],2,D_D[CAT],TA_22,D_D[EP],-1, D_D[LOC],$A49),0) -> 258 | I49: =IFERROR(SUMIFS(D_D[BL],D_D[MT],2,D_D[CAT],TA_22,D_D[EP],-1, D_D[LOC],$A49),0) -> 69 | J49: 0.2674418605 | K49: =IFERROR(SUMIFS(D_D[INV],D_D[MT],2,D_D[CAT],TA_23,D_D[EP],-1, D_D[LOC],$A49),0) -> 7 | L49: =IFERROR(SUMIFS(D_D[BL],D_D[MT],2,D_D[CAT],TA_23,D_D[EP],-1, D_D[LOC],$A49),0) -> 1 | M49: 0.1428571429 | N49: =IFERROR(SUMIFS(D_D[INV],D_D[MT],2,D_D[CAT],TA_24,D_D[EP],-1, D_D[LOC],$A49),0) -> 191 | O49: =IFERROR(SUMIFS(D_D[BL],D_D[MT],2,D_D[CAT],TA_24,D_D[EP],-1, D_D[LOC],$A49),0) -> 135 | P49: 0.7068062827 | Q49: =IFERROR(SUMIFS(D_D[INV],D_D[MT],2,D_D[CAT],TA_25,D_D[EP],-1, D_D[LOC],$A49),0) -> 8 | R49: =IFERROR(SUMIFS(D_D[INV],D_D[MT],2,D_D[CAT],TA_26,D_D[EP],-1, D_D[LOC],$A49),0) -> 4 | S49: =IFERROR(SUMIFS(D_D[INV],D_D[MT],7,D_D[CAT],2,D_D[EP],TA_20, D_D[LOC],$A49),0) -> 4
A50: 362 | B50: Houston | C50: =IFERROR(SUMIFS(D_D[INV],D_D[MT],1,D_D[CAT],TA_20,D_D[EP],-1, D_D[LOC],$A50),0) -> 728 | D50: =IFERROR(SUMIFS(D_D[ADP],D_D[MT],1,D_D[CAT],D$1,D_D[EP],-1, D_D[LOC],$A50),0) -> 66.47 | E50: =IFERROR(SUMIFS(D_D[INV],D_D[MT],2,D_D[CAT],TA_21,D_D[EP],-1, D_D[LOC],$A50),0) -> 17160 | F50: =IFERROR(SUMIFS(D_D[BL],D_D[MT],2,D_D[CAT],TA_21,D_D[EP],-1, D_D[LOC],$A50),0) -> 6153 | G50: 0.3585664336 | H50: =IFERROR(SUMIFS(D_D[INV],D_D[MT],2,D_D[CAT],TA_22,D_D[EP],-1, D_D[LOC],$A50),0) -> 2010 | I50: =IFERROR(SUMIFS(D_D[BL],D_D[MT],2,D_D[CAT],TA_22,D_D[EP],-1, D_D[LOC],$A50),0) -> 434 | J50: 0.215920398 | K50: =IFERROR(SUMIFS(D_D[INV],D_D[MT],2,D_D[CAT],TA_23,D_D[EP],-1, D_D[LOC],$A50),0) -> 73 | L50: =IFERROR(SUMIFS(D_D[BL],D_D[MT],2,D_D[CAT],TA_23,D_D[EP],-1, D_D[LOC],$A50),0) -> 1 | M50: 0.01369863014 | N50: =IFERROR(SUMIFS(D_D[INV],D_D[MT],2,D_D[CAT],TA_24,D_D[EP],-1, D_D[LOC],$A50),0) -> 1489 | O50: =IFERROR(SUMIFS(D_D[BL],D_D[MT],2,D_D[CAT],TA_24,D_D[EP],-1, D_D[LOC],$A50),0) -> 892 | P50: 0.5990597717 | Q50: =IFERROR(SUMIFS(D_D[INV],D_D[MT],2,D_D[CAT],TA_25,D_D[EP],-1, D_D[LOC],$A50),0) -> 39 | R50: =IFERROR(SUMIFS(D_D[INV],D_D[MT],2,D_D[CAT],TA_26,D_D[EP],-1, D_D[LOC],$A50),0) -> 4 | S50: =IFERROR(SUMIFS(D_D[INV],D_D[MT],7,D_D[CAT],2,D_D[EP],TA_20, D_D[LOC],$A50),0) -> 12
A51: 334 | B51: Lincoln | C51: =IFERROR(SUMIFS(D_D[INV],D_D[MT],1,D_D[CAT],TA_20,D_D[EP],-1, D_D[LOC],$A51),0) -> 1247 | D51: =IFERROR(SUMIFS(D_D[ADP],D_D[MT],1,D_D[CAT],D$1,D_D[EP],-1, D_D[LOC],$A51),0) -> 53.75 | E51: =IFERROR(SUMIFS(D_D[INV],D_D[MT],2,D_D[CAT],TA_21,D_D[EP],-1, D_D[LOC],$A51),0) -> 2187 | F51: =IFERROR(SUMIFS(D_D[BL],D_D[MT],2,D_D[CAT],TA_21,D_D[EP],-1, D_D[LOC],$A51),0) -> 802 | G51: 0.3667123914 | H51: =IFERROR(SUMIFS(D_D[INV],D_D[MT],2,D_D[CAT],TA_22,D_D[EP],-1, D_D[LOC],$A51),0) -> 1559 | I51: =IFERROR(SUMIFS(D_D[BL],D_D[MT],2,D_D[CAT],TA_22,D_D[EP],-1, D_D[LOC],$A51),0) -> 251 | J51: 0.1610006414 | K51: =IFERROR(SUMIFS(D_D[INV],D_D[MT],2,D_D[CAT],TA_23,D_D[EP],-1, D_D[LOC],$A51),0) -> 15 | L51: =IFERROR(SUMIFS(D_D[BL],D_D[MT],2,D_D[CAT],TA_23,D_D[EP],-1, D_D[LOC],$A51),0) -> 6 | M51: 0.4 | N51: =IFERROR(SUMIFS(D_D[INV],D_D[MT],2,D_D[CAT],TA_24,D_D[EP],-1, D_D[LOC],$A51),0) -> 786 | O51: =IFERROR(SUMIFS(D_D[BL],D_D[MT],2,D_D[CAT],TA_24,D_D[EP],-1, D_D[LOC],$A51),0) -> 273 | P51: 0.3473282443 | Q51: =IFERROR(SUMIFS(D_D[INV],D_D[MT],2,D_D[CAT],TA_25,D_D[EP],-1, D_D[LOC],$A51),0) -> 11 | R51: =IFERROR(SUMIFS(D_D[INV],D_D[MT],2,D_D[CAT],TA_26,D_D[EP],-1, D_D[LOC],$A51),0) -> 7 | S51: =IFERROR(SUMIFS(D_D[INV],D_D[MT],7,D_D[CAT],2,D_D[EP],TA_20, D_D[LOC],$A51),0) -> 2
A52: 351 | B52: Muskogee | C52: =IFERROR(SUMIFS(D_D[INV],D_D[MT],1,D_D[CAT],TA_20,D_D[EP],-1, D_D[LOC],$A52),0) -> 636 | D52: =IFERROR(SUMIFS(D_D[ADP],D_D[MT],1,D_D[CAT],D$1,D_D[EP],-1, D_D[LOC],$A52),0) -> 101.75 | E52: =IFERROR(SUMIFS(D_D[INV],D_D[MT],2,D_D[CAT],TA_21,D_D[EP],-1, D_D[LOC],$A52),0) -> 5373 | F52: =IFERROR(SUMIFS(D_D[BL],D_D[MT],2,D_D[CAT],TA_21,D_D[EP],-1, D_D[LOC],$A52),0) -> 1975 | G52: 0.3675786339 | H52: =IFERROR(SUMIFS(D_D[INV],D_D[MT],2,D_D[CAT],TA_22,D_D[EP],-1, D_D[LOC],$A52),0) -> 3739 | I52: =IFERROR(SUMIFS(D_D[BL],D_D[MT],2,D_D[CAT],TA_22,D_D[EP],-1, D_D[LOC],$A52),0) -> 504 | J52: 0.1347953998 | K52: =IFERROR(SUMIFS(D_D[INV],D_D[MT],2,D_D[CAT],TA_23,D_D[EP],-1, D_D[LOC],$A52),0) -> 46 | L52: =IFERROR(SUMIFS(D_D[BL],D_D[MT],2,D_D[CAT],TA_23,D_D[EP],-1, D_D[LOC],$A52),0) -> 0 | M52: 0 | N52: =IFERROR(SUMIFS(D_D[INV],D_D[MT],2,D_D[CAT],TA_24,D_D[EP],-1, D_D[LOC],$A52),0) -> 702 | O52: =IFERROR(SUMIFS(D_D[BL],D_D[MT],2,D_D[CAT],TA_24,D_D[EP],-1, D_D[LOC],$A52),0) -> 427 | P52: 0.6082621083 | Q52: =IFERROR(SUMIFS(D_D[INV],D_D[MT],2,D_D[CAT],TA_25,D_D[EP],-1, D_D[LOC],$A52),0) -> 23 | R52: =IFERROR(SUMIFS(D_D[INV],D_D[MT],2,D_D[CAT],TA_26,D_D[EP],-1, D_D[LOC],$A52),0) -> 16 | S52: =IFERROR(SUMIFS(D_D[INV],D_D[MT],7,D_D[CAT],2,D_D[EP],TA_20, D_D[LOC],$A52),0) -> 4
A53: 438 | B53: Sioux Falls | C53: =IFERROR(SUMIFS(D_D[INV],D_D[MT],1,D_D[CAT],TA_20,D_D[EP],-1, D_D[LOC],$A53),0) -> 72 | D53: =IFERROR(SUMIFS(D_D[ADP],D_D[MT],1,D_D[CAT],D$1,D_D[EP],-1, D_D[LOC],$A53),0) -> 72.72 | E53: =IFERROR(SUMIFS(D_D[INV],D_D[MT],2,D_D[CAT],TA_21,D_D[EP],-1, D_D[LOC],$A53),0) -> 1250 | F53: =IFERROR(SUMIFS(D_D[BL],D_D[MT],2,D_D[CAT],TA_21,D_D[EP],-1, D_D[LOC],$A53),0) -> 484 | G53: 0.3872 | H53: =IFERROR(SUMIFS(D_D[INV],D_D[MT],2,D_D[CAT],TA_22,D_D[EP],-1, D_D[LOC],$A53),0) -> 351 | I53: =IFERROR(SUMIFS(D_D[BL],D_D[MT],2,D_D[CAT],TA_22,D_D[EP],-1, D_D[LOC],$A53),0) -> 85 | J53: 0.2421652422 | K53: =IFERROR(SUMIFS(D_D[INV],D_D[MT],2,D_D[CAT],TA_23,D_D[EP],-1, D_D[LOC],$A53),0) -> 5 | L53: =IFERROR(SUMIFS(D_D[BL],D_D[MT],2,D_D[CAT],TA_23,D_D[EP],-1, D_D[LOC],$A53),0) -> 0 | M53: 0 | N53: =IFERROR(SUMIFS(D_D[INV],D_D[MT],2,D_D[CAT],TA_24,D_D[EP],-1, D_D[LOC],$A53),0) -> 121 | O53: =IFERROR(SUMIFS(D_D[BL],D_D[MT],2,D_D[CAT],TA_24,D_D[EP],-1, D_D[LOC],$A53),0) -> 89 | P53: 0.7355371901 | Q53: =IFERROR(SUMIFS(D_D[INV],D_D[MT],2,D_D[CAT],TA_25,D_D[EP],-1, D_D[LOC],$A53),0) -> 5 | R53: =IFERROR(SUMIFS(D_D[INV],D_D[MT],2,D_D[CAT],TA_26,D_D[EP],-1, D_D[LOC],$A53),0) -> 2 | S53: =IFERROR(SUMIFS(D_D[INV],D_D[MT],7,D_D[CAT],2,D_D[EP],TA_20, D_D[LOC],$A53),0) -> 1
A54: 335 | B54: St. Paul | C54: =IFERROR(SUMIFS(D_D[INV],D_D[MT],1,D_D[CAT],TA_20,D_D[EP],-1, D_D[LOC],$A54),0) -> 1073 | D54: =IFERROR(SUMIFS(D_D[ADP],D_D[MT],1,D_D[CAT],D$1,D_D[EP],-1, D_D[LOC],$A54),0) -> 70.95 | E54: =IFERROR(SUMIFS(D_D[INV],D_D[MT],2,D_D[CAT],TA_21,D_D[EP],-1, D_D[LOC],$A54),0) -> 6611 | F54: =IFERROR(SUMIFS(D_D[BL],D_D[MT],2,D_D[CAT],TA_21,D_D[EP],-1, D_D[LOC],$A54),0) -> 2909 | G54: 0.4400242021 | H54: =IFERROR(SUMIFS(D_D[INV],D_D[MT],2,D_D[CAT],TA_22,D_D[EP],-1, D_D[LOC],$A54),0) -> 5623 | I54: =IFERROR(SUMIFS(D_D[BL],D_D[MT],2,D_D[CAT],TA_22,D_D[EP],-1, D_D[LOC],$A54),0) -> 696 | J54: 0.1237773431 | K54: =IFERROR(SUMIFS(D_D[INV],D_D[MT],2,D_D[CAT],TA_23,D_D[EP],-1, D_D[LOC],$A54),0) -> 48 | L54: =IFERROR(SUMIFS(D_D[BL],D_D[MT],2,D_D[CAT],TA_23,D_D[EP],-1, D_D[LOC],$A54),0) -> 5 | M54: 0.1041666667 | N54: =IFERROR(SUMIFS(D_D[INV],D_D[MT],2,D_D[CAT],TA_24,D_D[EP],-1, D_D[LOC],$A54),0) -> 2642 | O54: =IFERROR(SUMIFS(D_D[BL],D_D[MT],2,D_D[CAT],TA_24,D_D[EP],-1, D_D[LOC],$A54),0) -> 1685 | P54: 0.6377744133 | Q54: =IFERROR(SUMIFS(D_D[INV],D_D[MT],2,D_D[CAT],TA_25,D_D[EP],-1, D_D[LOC],$A54),0) -> 602 | R54: =IFERROR(SUMIFS(D_D[INV],D_D[MT],2,D_D[CAT],TA_26,D_D[EP],-1, D_D[LOC],$A54),0) -> 0 | S54: =IFERROR(SUMIFS(D_D[INV],D_D[MT],7,D_D[CAT],2,D_D[EP],TA_20, D_D[LOC],$A54),0) -> 178
A55: 349 | B55: Waco | C55: =IFERROR(SUMIFS(D_D[INV],D_D[MT],1,D_D[CAT],TA_20,D_D[EP],-1, D_D[LOC],$A55),0) -> 1120 | D55: =IFERROR(SUMIFS(D_D[ADP],D_D[MT],1,D_D[CAT],D$1,D_D[EP],-1, D_D[LOC],$A55),0) -> 67.79 | E55: =IFERROR(SUMIFS(D_D[INV],D_D[MT],2,D_D[CAT],TA_21,D_D[EP],-1, D_D[LOC],$A55),0) -> 18568 | F55: =IFERROR(SUMIFS(D_D[BL],D_D[MT],2,D_D[CAT],TA_21,D_D[EP],-1, D_D[LOC],$A55),0) -> 6415 | G55: 0.3454868591 | H55: =IFERROR(SUMIFS(D_D[INV],D_D[MT],2,D_D[CAT],TA_22,D_D[EP],-1, D_D[LOC],$A55),0) -> 2814 | I55: =IFERROR(SUMIFS(D_D[BL],D_D[MT],2,D_D[CAT],TA_22,D_D[EP],-1, D_D[LOC],$A55),0) -> 781 | J55: 0.2775408671 | K55: =IFERROR(SUMIFS(D_D[INV],D_D[MT],2,D_D[CAT],TA_23,D_D[EP],-1, D_D[LOC],$A55),0) -> 60 | L55: =IFERROR(SUMIFS(D_D[BL],D_D[MT],2,D_D[CAT],TA_23,D_D[EP],-1, D_D[LOC],$A55),0) -> 3 | M55: 0.05 | N55: =IFERROR(SUMIFS(D_D[INV],D_D[MT],2,D_D[CAT],TA_24,D_D[EP],-1, D_D[LOC],$A55),0) -> 3179 | O55: =IFERROR(SUMIFS(D_D[BL],D_D[MT],2,D_D[CAT],TA_24,D_D[EP],-1, D_D[LOC],$A55),0) -> 1665 | P55: 0.5237496068 | Q55: =IFERROR(SUMIFS(D_D[INV],D_D[MT],2,D_D[CAT],TA_25,D_D[EP],-1, D_D[LOC],$A55),0) -> 85 | R55: =IFERROR(SUMIFS(D_D[INV],D_D[MT],2,D_D[CAT],TA_26,D_D[EP],-1, D_D[LOC],$A55),0) -> 1309 | S55: =IFERROR(SUMIFS(D_D[INV],D_D[MT],7,D_D[CAT],2,D_D[EP],TA_20, D_D[LOC],$A55),0) -> 4
A56: 452 | B56: Wichita | C56: =IFERROR(SUMIFS(D_D[INV],D_D[MT],1,D_D[CAT],TA_20,D_D[EP],-1, D_D[LOC],$A56),0) -> 100 | D56: =IFERROR(SUMIFS(D_D[ADP],D_D[MT],1,D_D[CAT],D$1,D_D[EP],-1, D_D[LOC],$A56),0) -> 64.66 | E56: =IFERROR(SUMIFS(D_D[INV],D_D[MT],2,D_D[CAT],TA_21,D_D[EP],-1, D_D[LOC],$A56),0) -> 2577 | F56: =IFERROR(SUMIFS(D_D[BL],D_D[MT],2,D_D[CAT],TA_21,D_D[EP],-1, D_D[LOC],$A56),0) -> 895 | G56: 0.3473030656 | H56: =IFERROR(SUMIFS(D_D[INV],D_D[MT],2,D_D[CAT],TA_22,D_D[EP],-1, D_D[LOC],$A56),0) -> 445 | I56: =IFERROR(SUMIFS(D_D[BL],D_D[MT],2,D_D[CAT],TA_22,D_D[EP],-1, D_D[LOC],$A56),0) -> 125 | J56: 0.2808988764 | K56: =IFERROR(SUMIFS(D_D[INV],D_D[MT],2,D_D[CAT],TA_23,D_D[EP],-1, D_D[LOC],$A56),0) -> 16 | L56: =IFERROR(SUMIFS(D_D[BL],D_D[MT],2,D_D[CAT],TA_23,D_D[EP],-1, D_D[LOC],$A56),0) -> 0 | M56: 0 | N56: =IFERROR(SUMIFS(D_D[INV],D_D[MT],2,D_D[CAT],TA_24,D_D[EP],-1, D_D[LOC],$A56),0) -> 195 | O56: =IFERROR(SUMIFS(D_D[BL],D_D[MT],2,D_D[CAT],TA_24,D_D[EP],-1, D_D[LOC],$A56),0) -> 133 | P56: 0.6820512821 | Q56: =IFERROR(SUMIFS(D_D[INV],D_D[MT],2,D_D[CAT],TA_25,D_D[EP],-1, D_D[LOC],$A56),0) -> 17 | R56: =IFERROR(SUMIFS(D_D[INV],D_D[MT],2,D_D[CAT],TA_26,D_D[EP],-1, D_D[LOC],$A56),0) -> 3 | S56: =IFERROR(SUMIFS(D_D[INV],D_D[MT],7,D_D[CAT],2,D_D[EP],TA_20, D_D[LOC],$A56),0) -> 3
A57: 395 | B57: Pacific | C57: =IFERROR(SUMIFS(D_D[INV],D_D[MT],1,D_D[CAT],TA_20,D_D[EP],-1, D_D[LOC],$A57),0) -> 5582 | D57: =IFERROR(SUMIFS(D_D[ADP],D_D[MT],1,D_D[CAT],D$1,D_D[EP],-1, D_D[LOC],$A57),0) -> 58.32 | E57: =IFERROR(SUMIFS(D_D[INV],D_D[MT],2,D_D[CAT],TA_21,D_D[EP],-1, D_D[LOC],$A57),0) -> 61851 | F57: =IFERROR(SUMIFS(D_D[BL],D_D[MT],2,D_D[CAT],TA_21,D_D[EP],-1, D_D[LOC],$A57),0) -> 22165 | G57: 0.3583612229 | H57: =IFERROR(SUMIFS(D_D[INV],D_D[MT],2,D_D[CAT],TA_22,D_D[EP],-1, D_D[LOC],$A57),0) -> 15719 | I57: =IFERROR(SUMIFS(D_D[BL],D_D[MT],2,D_D[CAT],TA_22,D_D[EP],-1, D_D[LOC],$A57),0) -> 2989 | J57: 0.1901520453 | K57: =IFERROR(SUMIFS(D_D[INV],D_D[MT],2,D_D[CAT],TA_23,D_D[EP],-1, D_D[LOC],$A57),0) -> 357 | L57: =IFERROR(SUMIFS(D_D[BL],D_D[MT],2,D_D[CAT],TA_23,D_D[EP],-1, D_D[LOC],$A57),0) -> 12 | M57: 0.03361344538 | N57: =IFERROR(SUMIFS(D_D[INV],D_D[MT],2,D_D[CAT],TA_24,D_D[EP],-1, D_D[LOC],$A57),0) -> 9957 | O57: =IFERROR(SUMIFS(D_D[BL],D_D[MT],2,D_D[CAT],TA_24,D_D[EP],-1, D_D[LOC],$A57),0) -> 5067 | P57: 0.5088882193 | Q57: =IFERROR(SUMIFS(D_D[INV],D_D[MT],2,D_D[CAT],TA_25,D_D[EP],-1, D_D[LOC],$A57),0) -> 337 | R57: =IFERROR(SUMIFS(D_D[INV],D_D[MT],2,D_D[CAT],TA_26,D_D[EP],-1, D_D[LOC],$A57),0) -> 7446 | S57: =IFERROR(SUMIFS(D_D[INV],D_D[MT],7,D_D[CAT],2,D_D[EP],TA_20, D_D[LOC],$A57),0) -> 138
A58: 340 | B58: Albuquerque | C58: =IFERROR(SUMIFS(D_D[INV],D_D[MT],1,D_D[CAT],TA_20,D_D[EP],-1, D_D[LOC],$A58),0) -> 110 | D58: =IFERROR(SUMIFS(D_D[ADP],D_D[MT],1,D_D[CAT],D$1,D_D[EP],-1, D_D[LOC],$A58),0) -> 68.62 | E58: =IFERROR(SUMIFS(D_D[INV],D_D[MT],2,D_D[CAT],TA_21,D_D[EP],-1, D_D[LOC],$A58),0) -> 2268 | F58: =IFERROR(SUMIFS(D_D[BL],D_D[MT],2,D_D[CAT],TA_21,D_D[EP],-1, D_D[LOC],$A58),0) -> 876 | G58: 0.3862433862 | H58: =IFERROR(SUMIFS(D_D[INV],D_D[MT],2,D_D[CAT],TA_22,D_D[EP],-1, D_D[LOC],$A58),0) -> 308 | I58: =IFERROR(SUMIFS(D_D[BL],D_D[MT],2,D_D[CAT],TA_22,D_D[EP],-1, D_D[LOC],$A58),0) -> 70 | J58: 0.2272727273 | K58: =IFERROR(SUMIFS(D_D[INV],D_D[MT],2,D_D[CAT],TA_23,D_D[EP],-1, D_D[LOC],$A58),0) -> 14 | L58: =IFERROR(SUMIFS(D_D[BL],D_D[MT],2,D_D[CAT],TA_23,D_D[EP],-1, D_D[LOC],$A58),0) -> 0 | M58: 0 | N58: =IFERROR(SUMIFS(D_D[INV],D_D[MT],2,D_D[CAT],TA_24,D_D[EP],-1, D_D[LOC],$A58),0) -> 304 | O58: =IFERROR(SUMIFS(D_D[BL],D_D[MT],2,D_D[CAT],TA_24,D_D[EP],-1, D_D[LOC],$A58),0) -> 207 | P58: 0.6809210526 | Q58: =IFERROR(SUMIFS(D_D[INV],D_D[MT],2,D_D[CAT],TA_25,D_D[EP],-1, D_D[LOC],$A58),0) -> 10 | R58: =IFERROR(SUMIFS(D_D[INV],D_D[MT],2,D_D[CAT],TA_26,D_D[EP],-1, D_D[LOC],$A58),0) -> 2 | S58: =IFERROR(SUMIFS(D_D[INV],D_D[MT],7,D_D[CAT],2,D_D[EP],TA_20, D_D[LOC],$A58),0) -> 4
A59: 463 | B59: Anchorage | C59: =IFERROR(SUMIFS(D_D[INV],D_D[MT],1,D_D[CAT],TA_20,D_D[EP],-1, D_D[LOC],$A59),0) -> 39 | D59: =IFERROR(SUMIFS(D_D[ADP],D_D[MT],1,D_D[CAT],D$1,D_D[EP],-1, D_D[LOC],$A59),0) -> 32.64 | E59: =IFERROR(SUMIFS(D_D[INV],D_D[MT],2,D_D[CAT],TA_21,D_D[EP],-1, D_D[LOC],$A59),0) -> 1093 | F59: =IFERROR(SUMIFS(D_D[BL],D_D[MT],2,D_D[CAT],TA_21,D_D[EP],-1, D_D[LOC],$A59),0) -> 443 | G59: 0.4053064959 | H59: =IFERROR(SUMIFS(D_D[INV],D_D[MT],2,D_D[CAT],TA_22,D_D[EP],-1, D_D[LOC],$A59),0) -> 177 | I59: =IFERROR(SUMIFS(D_D[BL],D_D[MT],2,D_D[CAT],TA_22,D_D[EP],-1, D_D[LOC],$A59),0) -> 44 | J59: 0.2485875706 | K59: =IFERROR(SUMIFS(D_D[INV],D_D[MT],2,D_D[CAT],TA_23,D_D[EP],-1, D_D[LOC],$A59),0) -> 1 | L59: =IFERROR(SUMIFS(D_D[BL],D_D[MT],2,D_D[CAT],TA_23,D_D[EP],-1, D_D[LOC],$A59),0) -> 0 | M59: 0 | N59: =IFERROR(SUMIFS(D_D[INV],D_D[MT],2,D_D[CAT],TA_24,D_D[EP],-1, D_D[LOC],$A59),0) -> 82 | O59: =IFERROR(SUMIFS(D_D[BL],D_D[MT],2,D_D[CAT],TA_24,D_D[EP],-1, D_D[LOC],$A59),0) -> 63 | P59: 0.7682926829 | Q59: =IFERROR(SUMIFS(D_D[INV],D_D[MT],2,D_D[CAT],TA_25,D_D[EP],-1, D_D[LOC],$A59),0) -> 3 | R59: =IFERROR(SUMIFS(D_D[INV],D_D[MT],2,D_D[CAT],TA_26,D_D[EP],-1, D_D[LOC],$A59),0) -> 3 | S59: =IFERROR(SUMIFS(D_D[INV],D_D[MT],7,D_D[CAT],2,D_D[EP],TA_20, D_D[LOC],$A59),0) -> 1
A60: 347 | B60: Boise | C60: =IFERROR(SUMIFS(D_D[INV],D_D[MT],1,D_D[CAT],TA_20,D_D[EP],-1, D_D[LOC],$A60),0) -> 78 | D60: =IFERROR(SUMIFS(D_D[ADP],D_D[MT],1,D_D[CAT],D$1,D_D[EP],-1, D_D[LOC],$A60),0) -> 86.44 | E60: =IFERROR(SUMIFS(D_D[INV],D_D[MT],2,D_D[CAT],TA_21,D_D[EP],-1, D_D[LOC],$A60),0) -> 1950 | F60: =IFERROR(SUMIFS(D_D[BL],D_D[MT],2,D_D[CAT],TA_21,D_D[EP],-1, D_D[LOC],$A60),0) -> 634 | G60: 0.3251282051 | H60: =IFERROR(SUMIFS(D_D[INV],D_D[MT],2,D_D[CAT],TA_22,D_D[EP],-1, D_D[LOC],$A60),0) -> 345 | I60: =IFERROR(SUMIFS(D_D[BL],D_D[MT],2,D_D[CAT],TA_22,D_D[EP],-1, D_D[LOC],$A60),0) -> 106 | J60: 0.3072463768 | K60: =IFERROR(SUMIFS(D_D[INV],D_D[MT],2,D_D[CAT],TA_23,D_D[EP],-1, D_D[LOC],$A60),0) -> 10 | L60: =IFERROR(SUMIFS(D_D[BL],D_D[MT],2,D_D[CAT],TA_23,D_D[EP],-1, D_D[LOC],$A60),0) -> 0 | M60: 0 | N60: =IFERROR(SUMIFS(D_D[INV],D_D[MT],2,D_D[CAT],TA_24,D_D[EP],-1, D_D[LOC],$A60),0) -> 216 | O60: =IFERROR(SUMIFS(D_D[BL],D_D[MT],2,D_D[CAT],TA_24,D_D[EP],-1, D_D[LOC],$A60),0) -> 163 | P60: 0.7546296296 | Q60: =IFERROR(SUMIFS(D_D[INV],D_D[MT],2,D_D[CAT],TA_25,D_D[EP],-1, D_D[LOC],$A60),0) -> 7 | R60: =IFERROR(SUMIFS(D_D[INV],D_D[MT],2,D_D[CAT],TA_26,D_D[EP],-1, D_D[LOC],$A60),0) -> 9 | S60: =IFERROR(SUMIFS(D_D[INV],D_D[MT],7,D_D[CAT],2,D_D[EP],TA_20, D_D[LOC],$A60),0) -> 4
A61: 459 | B61: Honolulu | C61: =IFERROR(SUMIFS(D_D[INV],D_D[MT],1,D_D[CAT],TA_20,D_D[EP],-1, D_D[LOC],$A61),0) -> 108 | D61: =IFERROR(SUMIFS(D_D[ADP],D_D[MT],1,D_D[CAT],D$1,D_D[EP],-1, D_D[LOC],$A61),0) -> 92.91 | E61: =IFERROR(SUMIFS(D_D[INV],D_D[MT],2,D_D[CAT],TA_21,D_D[EP],-1, D_D[LOC],$A61),0) -> 2623 | F61: =IFERROR(SUMIFS(D_D[BL],D_D[MT],2,D_D[CAT],TA_21,D_D[EP],-1, D_D[LOC],$A61),0) -> 782 | G61: 0.29813191 | H61: =IFERROR(SUMIFS(D_D[INV],D_D[MT],2,D_D[CAT],TA_22,D_D[EP],-1, D_D[LOC],$A61),0) -> 398 | I61: =IFERROR(SUMIFS(D_D[BL],D_D[MT],2,D_D[CAT],TA_22,D_D[EP],-1, D_D[LOC],$A61),0) -> 88 | J61: 0.2211055276 | K61: =IFERROR(SUMIFS(D_D[INV],D_D[MT],2,D_D[CAT],TA_23,D_D[EP],-1, D_D[LOC],$A61),0) -> 1 | L61: =IFERROR(SUMIFS(D_D[BL],D_D[MT],2,D_D[CAT],TA_23,D_D[EP],-1, D_D[LOC],$A61),0) -> 1 | M61: 1 | N61: =IFERROR(SUMIFS(D_D[INV],D_D[MT],2,D_D[CAT],TA_24,D_D[EP],-1, D_D[LOC],$A61),0) -> 157 | O61: =IFERROR(SUMIFS(D_D[BL],D_D[MT],2,D_D[CAT],TA_24,D_D[EP],-1, D_D[LOC],$A61),0) -> 97 | P61: 0.6178343949 | Q61: =IFERROR(SUMIFS(D_D[INV],D_D[MT],2,D_D[CAT],TA_25,D_D[EP],-1, D_D[LOC],$A61),0) -> 7 | R61: =IFERROR(SUMIFS(D_D[INV],D_D[MT],2,D_D[CAT],TA_26,D_D[EP],-1, D_D[LOC],$A61),0) -> 1 | S61: =IFERROR(SUMIFS(D_D[INV],D_D[MT],7,D_D[CAT],2,D_D[EP],TA_20, D_D[LOC],$A61),0) -> 1
A62: 344 | B62: Los Angeles | C62: =IFERROR(SUMIFS(D_D[INV],D_D[MT],1,D_D[CAT],TA_20,D_D[EP],-1, D_D[LOC],$A62),0) -> 389 | D62: =IFERROR(SUMIFS(D_D[ADP],D_D[MT],1,D_D[CAT],D$1,D_D[EP],-1, D_D[LOC],$A62),0) -> 54.4 | E62: =IFERROR(SUMIFS(D_D[INV],D_D[MT],2,D_D[CAT],TA_21,D_D[EP],-1, D_D[LOC],$A62),0) -> 7374 | F62: =IFERROR(SUMIFS(D_D[BL],D_D[MT],2,D_D[CAT],TA_21,D_D[EP],-1, D_D[LOC],$A62),0) -> 1959 | G62: 0.2656631408 | H62: =IFERROR(SUMIFS(D_D[INV],D_D[MT],2,D_D[CAT],TA_22,D_D[EP],-1, D_D[LOC],$A62),0) -> 1059 | I62: =IFERROR(SUMIFS(D_D[BL],D_D[MT],2,D_D[CAT],TA_22,D_D[EP],-1, D_D[LOC],$A62),0) -> 209 | J62: 0.1973559962 | K62: =IFERROR(SUMIFS(D_D[INV],D_D[MT],2,D_D[CAT],TA_23,D_D[EP],-1, D_D[LOC],$A62),0) -> 59 | L62: =IFERROR(SUMIFS(D_D[BL],D_D[MT],2,D_D[CAT],TA_23,D_D[EP],-1, D_D[LOC],$A62),0) -> 0 | M62: 0 | N62: =IFERROR(SUMIFS(D_D[INV],D_D[MT],2,D_D[CAT],TA_24,D_D[EP],-1, D_D[LOC],$A62),0) -> 723 | O62: =IFERROR(SUMIFS(D_D[BL],D_D[MT],2,D_D[CAT],TA_24,D_D[EP],-1, D_D[LOC],$A62),0) -> 365 | P62: 0.5048409405 | Q62: =IFERROR(SUMIFS(D_D[INV],D_D[MT],2,D_D[CAT],TA_25,D_D[EP],-1, D_D[LOC],$A62),0) -> 37 | R62: =IFERROR(SUMIFS(D_D[INV],D_D[MT],2,D_D[CAT],TA_26,D_D[EP],-1, D_D[LOC],$A62),0) -> 5 | S62: =IFERROR(SUMIFS(D_D[INV],D_D[MT],7,D_D[CAT],2,D_D[EP],TA_20, D_D[LOC],$A62),0) -> 6
A63: 358 | B63: Manila | C63: =IFERROR(SUMIFS(D_D[INV],D_D[MT],1,D_D[CAT],TA_20,D_D[EP],-1, D_D[LOC],$A63),0) -> 433 | D63: =IFERROR(SUMIFS(D_D[ADP],D_D[MT],1,D_D[CAT],D$1,D_D[EP],-1, D_D[LOC],$A63),0) -> 37.29 | E63: =IFERROR(SUMIFS(D_D[INV],D_D[MT],2,D_D[CAT],TA_21,D_D[EP],-1, D_D[LOC],$A63),0) -> 348 | F63: =IFERROR(SUMIFS(D_D[BL],D_D[MT],2,D_D[CAT],TA_21,D_D[EP],-1, D_D[LOC],$A63),0) -> 135 | G63: 0.3879310345 | H63: =IFERROR(SUMIFS(D_D[INV],D_D[MT],2,D_D[CAT],TA_22,D_D[EP],-1, D_D[LOC],$A63),0) -> 602 | I63: =IFERROR(SUMIFS(D_D[BL],D_D[MT],2,D_D[CAT],TA_22,D_D[EP],-1, D_D[LOC],$A63),0) -> 51 | J63: 0.08471760797 | K63: =IFERROR(SUMIFS(D_D[INV],D_D[MT],2,D_D[CAT],TA_23,D_D[EP],-1, D_D[LOC],$A63),0) -> 3 | L63: =IFERROR(SUMIFS(D_D[BL],D_D[MT],2,D_D[CAT],TA_23,D_D[EP],-1, D_D[LOC],$A63),0) -> 0 | M63: 0 | N63: =IFERROR(SUMIFS(D_D[INV],D_D[MT],2,D_D[CAT],TA_24,D_D[EP],-1, D_D[LOC],$A63),0) -> 93 | O63: =IFERROR(SUMIFS(D_D[BL],D_D[MT],2,D_D[CAT],TA_24,D_D[EP],-1, D_D[LOC],$A63),0) -> 55 | P63: 0.5913978495 | Q63: =IFERROR(SUMIFS(D_D[INV],D_D[MT],2,D_D[CAT],TA_25,D_D[EP],-1, D_D[LOC],$A63),0) -> 5 | R63: =IFERROR(SUMIFS(D_D[INV],D_D[MT],2,D_D[CAT],TA_26,D_D[EP],-1, D_D[LOC],$A63),0) -> 2 | S63: =IFERROR(SUMIFS(D_D[INV],D_D[MT],7,D_D[CAT],2,D_D[EP],TA_20, D_D[LOC],$A63),0) -> 90
A64: 343 | B64: Oakland | C64: =IFERROR(SUMIFS(D_D[INV],D_D[MT],1,D_D[CAT],TA_20,D_D[EP],-1, D_D[LOC],$A64),0) -> 270 | D64: =IFERROR(SUMIFS(D_D[ADP],D_D[MT],1,D_D[CAT],D$1,D_D[EP],-1, D_D[LOC],$A64),0) -> 47 | E64: =IFERROR(SUMIFS(D_D[INV],D_D[MT],2,D_D[CAT],TA_21,D_D[EP],-1, D_D[LOC],$A64),0) -> 8846 | F64: =IFERROR(SUMIFS(D_D[BL],D_D[MT],2,D_D[CAT],TA_21,D_D[EP],-1, D_D[LOC],$A64),0) -> 2859 | G64: 0.3231969252 | H64: =IFERROR(SUMIFS(D_D[INV],D_D[MT],2,D_D[CAT],TA_22,D_D[EP],-1, D_D[LOC],$A64),0) -> 1031 | I64: =IFERROR(SUMIFS(D_D[BL],D_D[MT],2,D_D[CAT],TA_22,D_D[EP],-1, D_D[LOC],$A64),0) -> 261 | J64: 0.2531522793 | K64: =IFERROR(SUMIFS(D_D[INV],D_D[MT],2,D_D[CAT],TA_23,D_D[EP],-1, D_D[LOC],$A64),0) -> 72 | L64: =IFERROR(SUMIFS(D_D[BL],D_D[MT],2,D_D[CAT],TA_23,D_D[EP],-1, D_D[LOC],$A64),0) -> 0 | M64: 0 | N64: =IFERROR(SUMIFS(D_D[INV],D_D[MT],2,D_D[CAT],TA_24,D_D[EP],-1, D_D[LOC],$A64),0) -> 950 | O64: =IFERROR(SUMIFS(D_D[BL],D_D[MT],2,D_D[CAT],TA_24,D_D[EP],-1, D_D[LOC],$A64),0) -> 466 | P64: 0.4905263158 | Q64: =IFERROR(SUMIFS(D_D[INV],D_D[MT],2,D_D[CAT],TA_25,D_D[EP],-1, D_D[LOC],$A64),0) -> 40 | R64: =IFERROR(SUMIFS(D_D[INV],D_D[MT],2,D_D[CAT],TA_26,D_D[EP],-1, D_D[LOC],$A64),0) -> 3 | S64: =IFERROR(SUMIFS(D_D[INV],D_D[MT],7,D_D[CAT],2,D_D[EP],TA_20, D_D[LOC],$A64),0) -> 5
A65: 345 | B65: Phoenix | C65: =IFERROR(SUMIFS(D_D[INV],D_D[MT],1,D_D[CAT],TA_20,D_D[EP],-1, D_D[LOC],$A65),0) -> 305 | D65: =IFERROR(SUMIFS(D_D[ADP],D_D[MT],1,D_D[CAT],D$1,D_D[EP],-1, D_D[LOC],$A65),0) -> 53.47 | E65: =IFERROR(SUMIFS(D_D[INV],D_D[MT],2,D_D[CAT],TA_21,D_D[EP],-1, D_D[LOC],$A65),0) -> 5767 | F65: =IFERROR(SUMIFS(D_D[BL],D_D[MT],2,D_D[CAT],TA_21,D_D[EP],-1, D_D[LOC],$A65),0) -> 1830 | G65: 0.3173226981 | H65: =IFERROR(SUMIFS(D_D[INV],D_D[MT],2,D_D[CAT],TA_22,D_D[EP],-1, D_D[LOC],$A65),0) -> 902 | I65: =IFERROR(SUMIFS(D_D[BL],D_D[MT],2,D_D[CAT],TA_22,D_D[EP],-1, D_D[LOC],$A65),0) -> 251 | J65: 0.27827051 | K65: =IFERROR(SUMIFS(D_D[INV],D_D[MT],2,D_D[CAT],TA_23,D_D[EP],-1, D_D[LOC],$A65),0) -> 25 | L65: =IFERROR(SUMIFS(D_D[BL],D_D[MT],2,D_D[CAT],TA_23,D_D[EP],-1, D_D[LOC],$A65),0) -> 0 | M65: 0 | N65: =IFERROR(SUMIFS(D_D[INV],D_D[MT],2,D_D[CAT],TA_24,D_D[EP],-1, D_D[LOC],$A65),0) -> 1411 | O65: =IFERROR(SUMIFS(D_D[BL],D_D[MT],2,D_D[CAT],TA_24,D_D[EP],-1, D_D[LOC],$A65),0) -> 643 | P65: 0.4557051736 | Q65: =IFERROR(SUMIFS(D_D[INV],D_D[MT],2,D_D[CAT],TA_25,D_D[EP],-1, D_D[LOC],$A65),0) -> 48 | R65: =IFERROR(SUMIFS(D_D[INV],D_D[MT],2,D_D[CAT],TA_26,D_D[EP],-1, D_D[LOC],$A65),0) -> 1030 | S65: =IFERROR(SUMIFS(D_D[INV],D_D[MT],7,D_D[CAT],2,D_D[EP],TA_20, D_D[LOC],$A65),0) -> 8
A66: 348 | B66: Portland | C66: =IFERROR(SUMIFS(D_D[INV],D_D[MT],1,D_D[CAT],TA_20,D_D[EP],-1, D_D[LOC],$A66),0) -> 141 | D66: =IFERROR(SUMIFS(D_D[ADP],D_D[MT],1,D_D[CAT],D$1,D_D[EP],-1, D_D[LOC],$A66),0) -> 114.94 | E66: =IFERROR(SUMIFS(D_D[INV],D_D[MT],2,D_D[CAT],TA_21,D_D[EP],-1, D_D[LOC],$A66),0) -> 3632 | F66: =IFERROR(SUMIFS(D_D[BL],D_D[MT],2,D_D[CAT],TA_21,D_D[EP],-1, D_D[LOC],$A66),0) -> 1343 | G66: 0.3697687225 | H66: =IFERROR(SUMIFS(D_D[INV],D_D[MT],2,D_D[CAT],TA_22,D_D[EP],-1, D_D[LOC],$A66),0) -> 548 | I66: =IFERROR(SUMIFS(D_D[BL],D_D[MT],2,D_D[CAT],TA_22,D_D[EP],-1, D_D[LOC],$A66),0) -> 157 | J66: 0.2864963504 | K66: =IFERROR(SUMIFS(D_D[INV],D_D[MT],2,D_D[CAT],TA_23,D_D[EP],-1, D_D[LOC],$A66),0) -> 15 | L66: =IFERROR(SUMIFS(D_D[BL],D_D[MT],2,D_D[CAT],TA_23,D_D[EP],-1, D_D[LOC],$A66),0) -> 0 | M66: 0 | N66: =IFERROR(SUMIFS(D_D[INV],D_D[MT],2,D_D[CAT],TA_24,D_D[EP],-1, D_D[LOC],$A66),0) -> 479 | O66: =IFERROR(SUMIFS(D_D[BL],D_D[MT],2,D_D[CAT],TA_24,D_D[EP],-1, D_D[LOC],$A66),0) -> 372 | P66: 0.7766179541 | Q66: =IFERROR(SUMIFS(D_D[INV],D_D[MT],2,D_D[CAT],TA_25,D_D[EP],-1, D_D[LOC],$A66),0) -> 19 | R66: =IFERROR(SUMIFS(D_D[INV],D_D[MT],2,D_D[CAT],TA_26,D_D[EP],-1, D_D[LOC],$A66),0) -> 3 | S66: =IFERROR(SUMIFS(D_D[INV],D_D[MT],7,D_D[CAT],2,D_D[EP],TA_20, D_D[LOC],$A66),0) -> 5
A67: 354 | B67: Reno | C67: =IFERROR(SUMIFS(D_D[INV],D_D[MT],1,D_D[CAT],TA_20,D_D[EP],-1, D_D[LOC],$A67),0) -> 91 | D67: =IFERROR(SUMIFS(D_D[ADP],D_D[MT],1,D_D[CAT],D$1,D_D[EP],-1, D_D[LOC],$A67),0) -> 117.31 | E67: =IFERROR(SUMIFS(D_D[INV],D_D[MT],2,D_D[CAT],TA_21,D_D[EP],-1, D_D[LOC],$A67),0) -> 3609 | F67: =IFERROR(SUMIFS(D_D[BL],D_D[MT],2,D_D[CAT],TA_21,D_D[EP],-1, D_D[LOC],$A67),0) -> 1161 | G67: 0.3216957606 | H67: =IFERROR(SUMIFS(D_D[INV],D_D[MT],2,D_D[CAT],TA_22,D_D[EP],-1, D_D[LOC],$A67),0) -> 406 | I67: =IFERROR(SUMIFS(D_D[BL],D_D[MT],2,D_D[CAT],TA_22,D_D[EP],-1, D_D[LOC],$A67),0) -> 126 | J67: 0.3103448276 | K67: =IFERROR(SUMIFS(D_D[INV],D_D[MT],2,D_D[CAT],TA_23,D_D[EP],-1, D_D[LOC],$A67),0) -> 16 | L67: =IFERROR(SUMIFS(D_D[BL],D_D[MT],2,D_D[CAT],TA_23,D_D[EP],-1, D_D[LOC],$A67),0) -> 0 | M67: 0 | N67: =IFERROR(SUMIFS(D_D[INV],D_D[MT],2,D_D[CAT],TA_24,D_D[EP],-1, D_D[LOC],$A67),0) -> 361 | O67: =IFERROR(SUMIFS(D_D[BL],D_D[MT],2,D_D[CAT],TA_24,D_D[EP],-1, D_D[LOC],$A67),0) -> 233 | P67: 0.6454293629 | Q67: =IFERROR(SUMIFS(D_D[INV],D_D[MT],2,D_D[CAT],TA_25,D_D[EP],-1, D_D[LOC],$A67),0) -> 17 | R67: =IFERROR(SUMIFS(D_D[INV],D_D[MT],2,D_D[CAT],TA_26,D_D[EP],-1, D_D[LOC],$A67),0) -> 1 | S67: =IFERROR(SUMIFS(D_D[INV],D_D[MT],7,D_D[CAT],2,D_D[EP],TA_20, D_D[LOC],$A67),0) -> 4
A68: 341 | B68: Salt Lake City | C68: =IFERROR(SUMIFS(D_D[INV],D_D[MT],1,D_D[CAT],TA_20,D_D[EP],-1, D_D[LOC],$A68),0) -> 1943 | D68: =IFERROR(SUMIFS(D_D[ADP],D_D[MT],1,D_D[CAT],D$1,D_D[EP],-1, D_D[LOC],$A68),0) -> 46.01 | E68: =IFERROR(SUMIFS(D_D[INV],D_D[MT],2,D_D[CAT],TA_21,D_D[EP],-1, D_D[LOC],$A68),0) -> 2168 | F68: =IFERROR(SUMIFS(D_D[BL],D_D[MT],2,D_D[CAT],TA_21,D_D[EP],-1, D_D[LOC],$A68),0) -> 797 | G68: 0.3676199262 | H68: =IFERROR(SUMIFS(D_D[INV],D_D[MT],2,D_D[CAT],TA_22,D_D[EP],-1, D_D[LOC],$A68),0) -> 2358 | I68: =IFERROR(SUMIFS(D_D[BL],D_D[MT],2,D_D[CAT],TA_22,D_D[EP],-1, D_D[LOC],$A68),0) -> 295 | J68: 0.1251060221 | K68: =IFERROR(SUMIFS(D_D[INV],D_D[MT],2,D_D[CAT],TA_23,D_D[EP],-1, D_D[LOC],$A68),0) -> 15 | L68: =IFERROR(SUMIFS(D_D[BL],D_D[MT],2,D_D[CAT],TA_23,D_D[EP],-1, D_D[LOC],$A68),0) -> 0 | M68: 0 | N68: =IFERROR(SUMIFS(D_D[INV],D_D[MT],2,D_D[CAT],TA_24,D_D[EP],-1, D_D[LOC],$A68),0) -> 1263 | O68: =IFERROR(SUMIFS(D_D[BL],D_D[MT],2,D_D[CAT],TA_24,D_D[EP],-1, D_D[LOC],$A68),0) -> 626 | P68: 0.495645289 | Q68: =IFERROR(SUMIFS(D_D[INV],D_D[MT],2,D_D[CAT],TA_25,D_D[EP],-1, D_D[LOC],$A68),0) -> 86 | R68: =IFERROR(SUMIFS(D_D[INV],D_D[MT],2,D_D[CAT],TA_26,D_D[EP],-1, D_D[LOC],$A68),0) -> 6359 | S68: =IFERROR(SUMIFS(D_D[INV],D_D[MT],7,D_D[CAT],2,D_D[EP],TA_20, D_D[LOC],$A68),0) -> 0
A69: 377 | B69: San Diego | C69: =IFERROR(SUMIFS(D_D[INV],D_D[MT],1,D_D[CAT],TA_20,D_D[EP],-1, D_D[LOC],$A69),0) -> 1075 | D69: =IFERROR(SUMIFS(D_D[ADP],D_D[MT],1,D_D[CAT],D$1,D_D[EP],-1, D_D[LOC],$A69),0) -> 62.31 | E69: =IFERROR(SUMIFS(D_D[INV],D_D[MT],2,D_D[CAT],TA_21,D_D[EP],-1, D_D[LOC],$A69),0) -> 10512 | F69: =IFERROR(SUMIFS(D_D[BL],D_D[MT],2,D_D[CAT],TA_21,D_D[EP],-1, D_D[LOC],$A69),0) -> 3839 | G69: =IFERROR(F69/E69,"0%") -> 0.3652016743 | H69: =IFERROR(SUMIFS(D_D[INV],D_D[MT],2,D_D[CAT],TA_22,D_D[EP],-1, D_D[LOC],$A69),0) -> 5534 | I69: =IFERROR(SUMIFS(D_D[BL],D_D[MT],2,D_D[CAT],TA_22,D_D[EP],-1, D_D[LOC],$A69),0) -> 852 | J69: =IFERROR(I69/H69,"0%") -> 0.1539573545 | K69: =IFERROR(SUMIFS(D_D[INV],D_D[MT],2,D_D[CAT],TA_23,D_D[EP],-1, D_D[LOC],$A69),0) -> 92 | L69: =IFERROR(SUMIFS(D_D[BL],D_D[MT],2,D_D[CAT],TA_23,D_D[EP],-1, D_D[LOC],$A69),0) -> 6 | M69: =IFERROR(L69/K69,"0%") -> 0.0652173913 | N69: =IFERROR(SUMIFS(D_D[INV],D_D[MT],2,D_D[CAT],TA_24,D_D[EP],-1, D_D[LOC],$A69),0) -> 1068 | O69: =IFERROR(SUMIFS(D_D[BL],D_D[MT],2,D_D[CAT],TA_24,D_D[EP],-1, D_D[LOC],$A69),0) -> 593 | P69: =IFERROR(O69/N69,"0%") -> 0.5552434457 | Q69: =IFERROR(SUMIFS(D_D[INV],D_D[MT],2,D_D[CAT],TA_25,D_D[EP],-1, D_D[LOC],$A69),0) -> 14 | R69: =IFERROR(SUMIFS(D_D[INV],D_D[MT],2,D_D[CAT],TA_26,D_D[EP],-1, D_D[LOC],$A69),0) -> 6 | S69: =IFERROR(SUMIFS(D_D[INV],D_D[MT],7,D_D[CAT],2,D_D[EP],TA_20, D_D[LOC],$A69),0) -> 5
A70: 346 | B70: Seattle | C70: =IFERROR(SUMIFS(D_D[INV],D_D[MT],1,D_D[CAT],TA_20,D_D[EP],-1, D_D[LOC],$A70),0) -> 600 | D70: =IFERROR(SUMIFS(D_D[ADP],D_D[MT],1,D_D[CAT],D$1,D_D[EP],-1, D_D[LOC],$A70),0) -> 83.95 | E70: =IFERROR(SUMIFS(D_D[INV],D_D[MT],2,D_D[CAT],TA_21,D_D[EP],-1, D_D[LOC],$A70),0) -> 11661 | F70: =IFERROR(SUMIFS(D_D[BL],D_D[MT],2,D_D[CAT],TA_21,D_D[EP],-1, D_D[LOC],$A70),0) -> 5507 | G70: 0.4722579539 | H70: =IFERROR(SUMIFS(D_D[INV],D_D[MT],2,D_D[CAT],TA_22,D_D[EP],-1, D_D[LOC],$A70),0) -> 2051 | I70: =IFERROR(SUMIFS(D_D[BL],D_D[MT],2,D_D[CAT],TA_22,D_D[EP],-1, D_D[LOC],$A70),0) -> 479 | J70: 0.2335446124 | K70: =IFERROR(SUMIFS(D_D[INV],D_D[MT],2,D_D[CAT],TA_23,D_D[EP],-1, D_D[LOC],$A70),0) -> 34 | L70: =IFERROR(SUMIFS(D_D[BL],D_D[MT],2,D_D[CAT],TA_23,D_D[EP],-1, D_D[LOC],$A70),0) -> 5 | M70: 0.1470588235 | N70: =IFERROR(SUMIFS(D_D[INV],D_D[MT],2,D_D[CAT],TA_24,D_D[EP],-1, D_D[LOC],$A70),0) -> 2850 | O70: =IFERROR(SUMIFS(D_D[BL],D_D[MT],2,D_D[CAT],TA_24,D_D[EP],-1, D_D[LOC],$A70),0) -> 1184 | P70: 0.4154385965 | Q70: =IFERROR(SUMIFS(D_D[INV],D_D[MT],2,D_D[CAT],TA_25,D_D[EP],-1, D_D[LOC],$A70),0) -> 44 | R70: =IFERROR(SUMIFS(D_D[INV],D_D[MT],2,D_D[CAT],TA_26,D_D[EP],-1, D_D[LOC],$A70),0) -> 22 | S70: =IFERROR(SUMIFS(D_D[INV],D_D[MT],7,D_D[CAT],2,D_D[EP],TA_20, D_D[LOC],$A70),0) -> 5
